Workbook

Sheet Instructions
B2: =CONCATENATE(dms_Sector," ",dms_Segment," ", "Network Service Provider") -> Electricity Distribution Network Service Provider
B3: =IF(dms_Model="Reset","Regulatory Proposal RIN Template","Annual Reporting RIN") -> Regulatory Proposal RIN Template
B4: =CONCATENATE("This template is to be used by ",INDEX(dms_TradingNameFull_List,MATCH(dms_TradingName,dms_TradingName_List))," to fulfil its reporting obligations to the AER.") -> This template is to be used by SA Power Networks to fulfil its reporting obligations to the AER.
B5: INSTRUCTIONS
B6: GENERAL | C6: Complete the Business & other details worksheet before entering data or values in any other worksheets. The Business & other details worksheet is linked to other worksheets within the workbook and automatically generates certain column headings and conditional formatting.
B8: CONFIDENTIAL INFORMATION | C8: Businesses must use the macro at the top of each worksheet to identify confidential information in the confidential workbook and where confidential information has been removed in the public workbook.
C9: -Do this by selecting the cell or cells that contain confidential information and then run the CONFIDENTIAL macro. This will format the cells a specific colour that is identified by the AER's database which in turn marks that information as confidential. -To reverse this, select the cell or cells and run the NON-CONFIDENTIAL macro.
B11: PROTECTED (SOCI) INFORMATION | C11: Please use the macro at the top of each worksheet to identify information in the confidential workbook that is protected information under the SOCI Act. All information marked Protected (SOCI) is also deemed to be confidential information.
C12: -Do this by selecting the cell or cells that contain protected information and then run the PROTECTED (SOCI) macro. This will format the cells a specific colour that is identified by the AER's database which in turn marks that information as protected.. -To reverse this, select the cell or cells and run the NON-PROTECTED macro.
B14: RESPONSES | C14: Please return two (2) files to the AER: 1. A confidential version which must contain a complete set of all responses with confidential information marked using the Mark selection CONFIDENTIAL macro and which has been completed using the locked template file provided by the AER. 2. A public version with confidential information redacted or aggregated. Use the drop down box on the Business and other details worksheet to identify the file as either confidential or public.
B17: ORDER OF MAGNITUDE | C17: All amounts are to be unrounded and reported on a one for one basis: that is 1000 is to be entered as '1000'.
B19: INPUT / NON-INPUT CELLS
D20: Yellow = Input cell (mandatory)
D21: Darker yellow = input cell (mandatory)
D22: Orange = input cell (if data available)
D23: Grey = Not applicable/No inputs required
D24: PLEASE DO NOT ENTER TEXT into cells that are to contain numbers (including 'numbers stored as text')

Sheet CONTENTS
C1: =IF(dms_MultiYear_ResponseFlag="Yes","REGULATORY REPORTING STATEMENT - HISTORICAL INFORMATION",INDEX(dms_Worksheet_List,MATCH(dms_Model,dms_Model_List))) -> REGULATORY REPORTING STATEMENT
C2: =INDEX(dms_TradingNameFull_List,MATCH(dms_TradingName,dms_TradingName_List)) -> SA Power Networks
C3: =CONCATENATE("REGULATORY PERIOD FROM ", FRCP_y1," TO ",dms_MultiYear_FinalYear_Result) -> REGULATORY PERIOD FROM 2025-26 TO 2029-30
D7: CONTENTS
D9: DRAFT RIN ONLY - DO NOT USE FOR SUBMISSION
D11: TEMPLATE | E11: OCTOBER 2023 - FINAL RIN
D13: SUBMISSION | E13: Business & other details
D15: EXPENDITURE | E15: 2.1 Expenditure summary
E16: 2.2 Repex
E17: 2.3 Augex (b)
E18: 2.5 Connections
E19: 2.6 Non-network
E20: 2.10 Overheads
E21: 2.11 Labour
E22: 2.14 FORECAST price changes
E23: 2.16 Opex Summary
E24: 2.17 Step Changes
D26: ECONOMIC BENCHMARKING | E26: 3.1 Revenue
E27: 3.2 Operating expenditure
E28: 3.3 Assets (RAB)
E29: 3.4 Operational data
E30: 3.5 Physical assets
E31: 3.6 Quality of service
E32: 3.7 Operating Environment
D34: ALTERNATIVE CONTROL | E34: 4.1 Public lighting
D36: NETWORK | E36: 5.4 MD & utilisation-Spatial
D38: SERVICE | E38: 6.2 Reliability & Cust serv
D40: OTHER | E40: 7.1 Policies and Procedures
E41: 7.2 Contingent projects
E42: 7.3 Obligations
E43: 7.4 Shared Assets
E44: 7.7 TSS-LRMC
E45: 7.8 Export Services

Sheet Business & other details
V1: =INDEX(dms_Worksheet_List,MATCH(dms_Model,dms_Model_List)) -> REGULATORY REPORTING STATEMENT
V2: =INDEX(dms_TradingNameFull_List,MATCH(dms_TradingName,dms_TradingName_List)) -> SA Power Networks
V3: =CONCATENATE("REGULATORY PERIOD FROM ", FRCP_y1," TO ",dms_MultiYear_FinalYear_Result) -> REGULATORY PERIOD FROM 2025-26 TO 2029-30
V4: BUSINESS & OTHER DETAILS
V6: INSTRUCTIONS
V7: Complete the following business details regulatory template before entering data or values in any other regulatory template. This regulatory template is linked to other cells within the spreadsheet and automatically generates column headings and conditional formatting to distinguish business specific input and non-input cells.
Q9: SUBMISSION PARTICULARS INPUT SHEET
Q11: DRAFT TEMPLATE ONLY
Q12: DO NOT USE FOR SUBMISSIONS
V15: ENTITY DETAILS
V17: Business Name
V19: Short name | AL19: SA Power Networks
V20: ACN/ABN | AL20: =INDEX(dms_ABN_List,MATCH(dms_TradingName,dms_TradingName_List)) -> 13332330749
V24: Business Address | BQ24: Postal Address
V26: Address 1 | AL26: =INDEX(dms_Addr1_List,MATCH(dms_TradingName,dms_TradingName_List)) -> 1 Anzac Highway | BI26: Address 1 | BQ26: =INDEX(dms_PAddr1_List,MATCH(dms_TradingName,dms_TradingName_List)) -> GPO Box 77
V27: Address 2 | AL27: =IF(ISBLANK(INDEX(dms_Addr2_List,MATCH(dms_TradingName,dms_TradingName_List))),"",(INDEX(dms_Addr2_List,MATCH(dms_TradingName,dms_TradingName_List)))) ->  | BI27: Address 2 | BQ27: =IF(ISBLANK(INDEX(dms_PAddr2_List,MATCH(dms_TradingName,dms_TradingName_List))),"",(INDEX(dms_PAddr2_List,MATCH(dms_TradingName,dms_TradingName_List)))) -> 
V28: Suburb | AL28: =INDEX(dms_Suburb_List,MATCH(dms_TradingName,dms_TradingName_List)) -> KESWICK | BI28: Suburb | BQ28: =INDEX(dms_PSuburb_List,MATCH(dms_TradingName,dms_TradingName_List)) -> ADELAIDE
V29: State | AL29: =INDEX(dms_State_List,MATCH(dms_TradingName,dms_TradingName_List)) -> SA | AV29: Post code | BI29: State | BQ29: =INDEX(dms_PState_List,MATCH(dms_TradingName,dms_TradingName_List)) -> SA | CA29: Post code
BA31: `
V33: Contact Names
V35: Name | BI35: Name
V36: Phone | BI36: Phone
V37: Email | BI37: Email
Q42: REGULATORY CONTROL PERIODS
Z45: Forthcoming period | AL45: 2025-26 | AU45: =FRCP_y2 -> 2026-27 | BD45: =FRCP_y3 -> 2027-28 | BM45: =FRCP_y4 -> 2028-29 | BV45: =FRCP_y5 -> 2029-30
AL46: =FRCP_y6 -> 2030-31 | AU46: =FRCP_y7 -> 2031-32 | BD46: =FRCP_y8 -> 2032-33 | BM46: =FRCP_y9 -> 2033-34 | BV46: =FRCP_y10 -> 2034-35
AL47: =FRCP_y11 -> 2035-36 | AU47: =FRCP_y12 -> 2036-37 | BD47: =FRCP_y13 -> 2037-38 | BM47: =FRCP_y14 -> 2038-39 | BV47: =FRCP_y15 -> 2039-40
X49: RESETS | Z49: Current period | AL49: =CRCP_y1 -> 2020-21 | AU49: =CRCP_y2 -> 2021-22 | BD49: =CRCP_y3 -> 2022-23 | BM49: =CRCP_y4 -> 2023-24 | BV49: =CRCP_y5 -> 2024-25
AL50: =CRCP_y6 -> 2025-26 | AU50: =CRCP_y7 -> 2026-27 | BD50: =CRCP_y8 -> 2027-28 | BM50: =CRCP_y9 -> 2028-29 | BV50: =CRCP_y10 -> 2029-30
AL51: =CRCP_y11 -> 2030-31 | AU51: =CRCP_y12 -> 2031-32 | BD51: =CRCP_y13 -> 2032-33 | BM51: =CRCP_y14 -> 2033-34 | BV51: =CRCP_y15 -> 2034-35
Z53: Previous period | AL53: =PRCP_y1 -> 2015-16 | AU53: =PRCP_y2 -> 2016-17 | BD53: =PRCP_y3 -> 2017-18 | BM53: =PRCP_y4 -> 2018-19 | BV53: =PRCP_y5 -> 2019-20
AL54: =PRCP_y6 -> 2020-21 | AU54: =PRCP_y7 -> 2021-22 | BD54: =PRCP_y8 -> 2022-23 | BM54: =PRCP_y9 -> 2023-24 | BV54: =PRCP_y10 -> 2024-25
AL55: =PRCP_y11 -> 2025-26 | AU55: =PRCP_y12 -> 2026-27 | BD55: =PRCP_y13 -> 2027-28 | BM55: =PRCP_y14 -> 2028-29 | BV55: =PRCP_y15 -> 2029-30
Z57: Commencing year | AL57: 2022-23
X58: ANNUAL RINS
Z59: Final year | AL59: 2028-29
Q63: SUBMISSION DETAILS
Z65: RIN type | AL65: =INDIRECT(dms_Model) -> Regulatory Reporting (Reset)
Z67: Source | AL67: Regulatory proposal
X69: THIS FILE | Z69: Data Quality | AL69: Consolidated
Z71: Confidentiality Status | AL71: Public
Z73: Amended RIN Amendment Reason | AL73: .
Z77: Submission Date | AL77: 31/01/2024 | BD77: Please enter date this file submitted to AER

Sheet 2.1 Expenditure summary
B1: =INDEX(dms_Worksheet_List,MATCH(dms_Model,dms_Model_List)) -> REGULATORY REPORTING STATEMENT
B2: =INDEX(dms_TradingNameFull_List,MATCH(dms_TradingName,dms_TradingName_List)) -> SA Power Networks
B3: =CONCATENATE("REGULATORY PERIOD FROM ", FRCP_y1," TO ",dms_MultiYear_FinalYear_Result) -> REGULATORY PERIOD FROM 2025-26 TO 2029-30
B4: 2.1 EXPENDITURE SUMMARY & RECONCILIATION
B5: TEMPLATE DATE - OCTOBER 2023 - FINAL RIN
B8: 2.1.1 - STANDARD CONTROL SERVICES CAPEX (including dual function assets)
C9: =CONCATENATE("EXPENDITURE ($, real ", dms_DollarReal, ")") -> EXPENDITURE ($, real June 2025)
C10: =CRCP_y4 -> 2023-24 | D10: =CRCP_y5 -> 2024-25 | E10: =FRCP_y1 -> 2025-26 | F10: =FRCP_y2 -> 2026-27 | G10: =FRCP_y3 -> 2027-28 | H10: =FRCP_y4 -> 2028-29 | I10: =FRCP_y5 -> 2029-30
B11: Replacement expenditure | C11: =SUM('2.2 Repex'!D12:D119,'2.2 Repex'!D129:D177 ) -> 155744160 | D11: =SUM('2.2 Repex'!E12:E119,'2.2 Repex'!E129:E177 ) -> 152067367 | E11: =SUM('2.2 Repex'!F12:F119,'2.2 Repex'!F129:F177 ) -> 170753632 | F11: =SUM('2.2 Repex'!G12:G119,'2.2 Repex'!G129:G177 ) -> 176501369 | G11: =SUM('2.2 Repex'!H12:H119,'2.2 Repex'!H129:H177 ) -> 194770884 | H11: =SUM('2.2 Repex'!I12:I119,'2.2 Repex'!I129:I177 ) -> 181454398 | I11: =SUM('2.2 Repex'!J12:J119,'2.2 Repex'!J129:J177 ) -> 185897118
B12: Connections | C12: =SUM('2.5 Connections'!E124:E137, '2.5 Connections'!E142:E155) -> 159611458 | D12: =SUM('2.5 Connections'!F124:F137, '2.5 Connections'!F142:F155) -> 148241170 | E12: =SUM('2.5 Connections'!G124:G137, '2.5 Connections'!G142:G155) -> 150339865 | F12: =SUM('2.5 Connections'!H124:H137, '2.5 Connections'!H142:H155) -> 146448986 | G12: =SUM('2.5 Connections'!I124:I137, '2.5 Connections'!I142:I155) -> 150225068 | H12: =SUM('2.5 Connections'!J124:J137, '2.5 Connections'!J142:J155) -> 152369957 | I12: =SUM('2.5 Connections'!K124:K137, '2.5 Connections'!K142:K155) -> 145852754 | Q12: ADELAIDE | R12: SA | S12: 5000 | T12: PO Box 6468 | U12: Halifax Street | V12: ADELAIDE | W12: SA | X12: 5000 | Y12: NO | Z12: NO | AA12: NO | AB12: NO | AC12: NO | AD12: CBD | AE12: Urban | AF12: Short rural | AG12: Long rural | AI12: NO | AJ12: NO | AK12: =B12 -> Connections
B13: Augmentation Expenditure | C13: =SUM('2.3 Augex (b)'!D48:D56) -> 77256190.1 | D13: =SUM('2.3 Augex (b)'!E48:E56) -> 76802135.51 | E13: =SUM('2.3 Augex (b)'!F48:F56) -> 96521072.12 | F13: =SUM('2.3 Augex (b)'!G48:G56) -> 95209153.43 | G13: =SUM('2.3 Augex (b)'!H48:H56) -> 97088166.23 | H13: =SUM('2.3 Augex (b)'!I48:I56) -> 104786085.2 | I13: =SUM('2.3 Augex (b)'!J48:J56) -> 111916404.8 | Q13: ADELAIDE | R13: SA | S13: 5000 | T13: PO Box 6468 | U13: Halifax Street | V13: ADELAIDE | W13: SA | X13: 5000 | Y13: NO | Z13: NO | AA13: NO | AB13: NO | AC13: NO | AD13: CBD | AE13: Urban | AF13: Short rural | AG13: Long rural | AI13: NO | AJ13: NO | AK13: Augmentation Expenditure
B14: Non-network | C14: =SUM('2.6 Non-network'!E33:E51) -> 103086609.8 | D14: =SUM('2.6 Non-network'!F33:F51) -> 102953519.2 | E14: =SUM('2.6 Non-network'!G33:G51) -> 120308810.4 | F14: =SUM('2.6 Non-network'!H33:H51) -> 147827794.3 | G14: =SUM('2.6 Non-network'!I33:I51) -> 135880292.9 | H14: =SUM('2.6 Non-network'!J33:J51) -> 127616590.9 | I14: =SUM('2.6 Non-network'!K33:K51) -> 122896764.5
B15: Export services | C15: =SUM('7.8 Export Services'!C24:C26) -> 9224375 | D15: =SUM('7.8 Export Services'!D24:D26) -> 6261121 | E15: =SUM('7.8 Export Services'!E24:E26) -> 35115037 | F15: =SUM('7.8 Export Services'!F24:F26) -> 17411699 | G15: =SUM('7.8 Export Services'!G24:G26) -> 16517535 | H15: =SUM('7.8 Export Services'!H24:H26) -> 10592116 | I15: =SUM('7.8 Export Services'!I24:I26) -> 11068750
B16: Public lighting
B17: Metering | C17: 0 | D17: 0 | E17: 0 | F17: 0 | G17: 0 | H17: 0 | I17: 0
B18: Capitalised network overheads | C18: ='2.10 Overheads'!D16 -> 6551264 | D18: ='2.10 Overheads'!E16 -> 6364032 | E18: ='2.10 Overheads'!F16 -> 8372654 | F18: ='2.10 Overheads'!G16 -> 8431900 | G18: ='2.10 Overheads'!H16 -> 8863296 | H18: ='2.10 Overheads'!I16 -> 8454242 | I18: ='2.10 Overheads'!J16 -> 8607092
B19: Capitalised corporate overheads | C19: ='2.10 Overheads'!D31 -> -5877666 | D19: ='2.10 Overheads'!E31 -> -5854775 | E19: ='2.10 Overheads'!F31 -> -6528751 | F19: ='2.10 Overheads'!G31 -> -6528751 | G19: ='2.10 Overheads'!H31 -> -6528751 | H19: ='2.10 Overheads'!I31 -> -6528751 | I19: ='2.10 Overheads'!J31 -> -6528751
B20: capcons (included in the above) | C20: 103492235 | D20: 97076548 | E20: 107158241 | F20: 102000248 | G20: 103670847 | H20: 104141384 | I20: 97573262
B21: Total | C21: =SUM(C11:C19) -> 505596390.9 | D21: 486834569.8 | E21: =SUM(E11:E19) -> 574882319.5 | F21: 585302150.7 | G21: 596816491.1 | H21: 578744638.1 | I21: 579710132.3
B24: 2.1.2 - STANDARD CONTROL SERVICES OPEX BY CATEGORY
C25: =CONCATENATE("EXPENDITURE ($, real ", dms_DollarReal, ")") -> EXPENDITURE ($, real June 2025)
C26: =CRCP_y4 -> 2023-24 | D26: =CRCP_y5 -> 2024-25
B27: Vegetation management | C27: 47133744 | D27: 48316759
B28: Maintenance | C28: 39277337 | D28: 40263163
B29: Emergency response | C29: 43483727 | D29: 44575129
B30: Non-network | C30: =SUM('2.6 Non-network'!E13:E31) -> 61315895 | D30: =SUM('2.6 Non-network'!F13:F31) -> 67095334
B31: Export services | C31: =SUM('7.8 Export Services'!C14:C15) -> 0 | D31: =SUM('7.8 Export Services'!D14:D15) -> 0
B32: Metering | C32: 0 | D32: 0
B33: Network overheads | C33: ='2.10 Overheads'!D13 -> 98397895 | D33: ='2.10 Overheads'!E13 -> 102817373
B34: Corporate overheads | C34: ='2.10 Overheads'!D28 -> 62364547 | D34: ='2.10 Overheads'!E28 -> 62914460
B35: Total | C35: =SUM(C27:C34) -> 351973145 | D35: =SUM(D27:D34) -> 365982218
B38: 2.1.3 - ALTERNATIVE CONTROL SERVICES CAPEX
C39: =CONCATENATE("EXPENDITURE ($, real ", dms_DollarReal, ")") -> EXPENDITURE ($, real June 2025)
C40: =CRCP_y4 -> 2023-24 | D40: =CRCP_y5 -> 2024-25 | E40: =FRCP_y1 -> 2025-26 | F40: =FRCP_y2 -> 2026-27 | G40: =FRCP_y3 -> 2027-28 | H40: =FRCP_y4 -> 2028-29 | I40: =FRCP_y5 -> 2029-30
B41: Connections | C41: 0 | D41: 0 | E41: 0 | F41: 0 | G41: 0 | H41: 0 | I41: 0
B42: Metering | C42: 0 | D42: 0 | E42: 0 | F42: 0 | G42: 0 | H42: 0 | I42: 0
B43: Public lighting | C43: =SUM('4.1 Public lighting'!D15,'4.1 Public lighting'!D19,'4.1 Public lighting'!D23) -> 19099414.1 | D43: =SUM('4.1 Public lighting'!E15,'4.1 Public lighting'!E19,'4.1 Public lighting'!E23) -> 18479681.23 | E43: =SUM('4.1 Public lighting'!F15,'4.1 Public lighting'!F19,'4.1 Public lighting'!F23) -> 14987166.54 | F43: =SUM('4.1 Public lighting'!G15,'4.1 Public lighting'!G19,'4.1 Public lighting'!G23) -> 14375284.56 | G43: =SUM('4.1 Public lighting'!H15,'4.1 Public lighting'!H19,'4.1 Public lighting'!H23) -> 14920208.04 | H43: =SUM('4.1 Public lighting'!I15,'4.1 Public lighting'!I19,'4.1 Public lighting'!I23) -> 14329574.93 | I43: =SUM('4.1 Public lighting'!J15,'4.1 Public lighting'!J19,'4.1 Public lighting'!J23) -> 13793102.73
B44: Fee and quoted | C44: 0 | D44: 0 | E44: 0 | F44: 0 | G44: 0 | H44: 0 | I44: 0
B45: Network overheads | C45: ='2.10 Overheads'!D17 -> 233196 | D45: ='2.10 Overheads'!E17 -> 220410 | E45: ='2.10 Overheads'!F17 -> 198324 | F45: ='2.10 Overheads'!G17 -> 184712 | G45: ='2.10 Overheads'!H17 -> 180390 | H45: ='2.10 Overheads'!I17 -> 162656 | I45: ='2.10 Overheads'!J17 -> 145326
B46: Corporate overheads | C46: ='2.10 Overheads'!D32 -> -52991 | D46: ='2.10 Overheads'!E32 -> -54270 | E46: ='2.10 Overheads'!F32 -> -68412 | F46: ='2.10 Overheads'!G32 -> -71736 | G46: ='2.10 Overheads'!H32 -> -72922 | H46: ='2.10 Overheads'!I32 -> -73390 | I46: ='2.10 Overheads'!J32 -> -74801
B47: capcons (included in the above) | C47: 2567126.394 | D47: 2704992.042 | E47: 604125.0423 | F47: 606322.5672 | G47: 608202.0776 | H47: 610588.2274 | I47: 613246.439
B48: Total | C48: =SUM(C41:C46) -> 19279619.1 | D48: 18645821.23 | E48: 15117078.54 | F48: 14488260.56 | G48: 15027676.04 | H48: 14418840.93 | I48: 13863627.73
B51: 2.1.4 - ALTERNATIVE CONTROL SERVICES OPEX
C52: =CONCATENATE("EXPENDITURE ($, real ", dms_DollarReal, ")") -> EXPENDITURE ($, real June 2025)
C53: =CRCP_y4 -> 2023-24 | D53: =CRCP_y5 -> 2024-25 | E53: =FRCP_y1 -> 2025-26 | F53: =FRCP_y2 -> 2026-27 | G53: =FRCP_y3 -> 2027-28 | H53: =FRCP_y4 -> 2028-29 | I53: =FRCP_y5 -> 2029-30
B54: Connections | C54: =SUM('3.2 Operating expenditure'!K73) -> 61567126 | D54: =SUM('3.2 Operating expenditure'!L73) -> 60468110 | E54: =SUM('3.2 Operating expenditure'!M73) -> 61017618 | F54: =SUM('3.2 Operating expenditure'!N73) -> 61017618 | G54: =SUM('3.2 Operating expenditure'!O73) -> 61017618 | H54: =SUM('3.2 Operating expenditure'!P73) -> 61017618 | I54: =SUM('3.2 Operating expenditure'!Q73) -> 61017618
B55: Metering | C55: ='3.2 Operating expenditure'!K72 -> 8033123 | D55: ='3.2 Operating expenditure'!L72 -> 7256367 | E55: ='3.2 Operating expenditure'!M72 -> 0 | F55: ='3.2 Operating expenditure'!N72 -> 0 | G55: ='3.2 Operating expenditure'!O72 -> 0 | H55: ='3.2 Operating expenditure'!P72 -> 0 | I55: ='3.2 Operating expenditure'!Q72 -> 0
B56: Public lighting | C56: ='3.2 Operating expenditure'!K74 -> 7488430 | D56: ='3.2 Operating expenditure'!L74 -> 6787048 | E56: ='3.2 Operating expenditure'!M74 -> 6252233 | F56: ='3.2 Operating expenditure'!N74 -> 5982168 | G56: ='3.2 Operating expenditure'!O74 -> 6662238 | H56: ='3.2 Operating expenditure'!P74 -> 6536717 | I56: ='3.2 Operating expenditure'!Q74 -> 6417080
B57: Fee and quoted | C57: 52450764 | D57: 51631783 | E57: 51682655 | F57: 51682655 | G57: 51682655 | H57: 51682686 | I57: 51682655
B58: Network overheads | C58: ='2.10 Overheads'!D14 -> 3627912 | D58: ='2.10 Overheads'!E14 -> 3647457 | E58: ='2.10 Overheads'!F14 -> 2446142 | F58: ='2.10 Overheads'!G14 -> 2446982 | G58: ='2.10 Overheads'!H14 -> 2454902 | H58: ='2.10 Overheads'!I14 -> 2458372 | I58: ='2.10 Overheads'!J14 -> 2471018
B59: Corporate overheads | C59: ='2.10 Overheads'!D29 -> 10629459 | D59: ='2.10 Overheads'!E29 -> 10885983 | E59: ='2.10 Overheads'!F29 -> 11817481 | F59: ='2.10 Overheads'!G29 -> 12382788 | G59: ='2.10 Overheads'!H29 -> 12568516 | H59: ='2.10 Overheads'!I29 -> 12578084 | I59: ='2.10 Overheads'!J29 -> 12780597
B60: Total | C60: =SUM(C54:C59) -> 143796814 | D60: 140676748 | E60: 133216129 | F60: 133512211 | G60: 134385929 | H60: 134273477 | I60: 134368968
B63: 2.1.5 - DUAL FUNCTION ASSETS CAPEX
C64: =CONCATENATE("EXPENDITURE ($, real ", dms_DollarReal, ")") -> EXPENDITURE ($, real June 2025)
C65: =CRCP_y4 -> 2023-24 | D65: =CRCP_y5 -> 2024-25 | E65: =FRCP_y1 -> 2025-26 | F65: =FRCP_y2 -> 2026-27 | G65: =FRCP_y3 -> 2027-28 | H65: =FRCP_y4 -> 2028-29 | I65: =FRCP_y5 -> 2029-30
B66: Replacement expenditure
B67: Connections
B68: Augmentation expenditure
B69: Non-network
B70: Export services
B71: Capitalised network overheads
B72: Capitalised corporate overheads
B73: capcons (included in the above)
B74: Total | C74: =SUM(C66:C72) -> 0 | D74: 0 | E74: 0 | F74: 0 | G74: 0 | H74: 0 | I74: 0
B77: 2.1.6 - DUAL FUNCTION ASSETS OPEX BY CATEGORY
C78: =CONCATENATE("EXPENDITURE ($, real ", dms_DollarReal, ")") -> EXPENDITURE ($, real June 2025)
C79: =CRCP_y4 -> 2023-24 | D79: =CRCP_y5 -> 2024-25
B80: Vegetation management
B81: Maintenance
B82: Emergency response
B83: Non-network
B84: Export services
B85: Metering
B86: Network overheads
B87: Corporate overheads
B88: Total | C88: =SUM(C80:C87) -> 0 | D88: =SUM(D80:D87) -> 0
B91: 2.1.7 - STANDARD CONTROL SERVICES CAPCONS
C92: =CONCATENATE("EXPENDITURE ($, real ", dms_DollarReal, ")") -> EXPENDITURE ($, real June 2025)
C93: =CRCP_y4 -> 2023-24 | D93: =CRCP_y5 -> 2024-25 | E93: =FRCP_y1 -> 2025-26 | F93: =FRCP_y2 -> 2026-27 | G93: =FRCP_y3 -> 2027-28 | H93: =FRCP_y4 -> 2028-29 | I93: =FRCP_y5 -> 2029-30
B94: Replacement expenditure | C94: 3157000 | D94: 2796350 | E94: 0 | F94: 0 | G94: 0 | H94: 0 | I94: 0
B95: Connections | C95: 96466207 | D95: 89702614 | E95: 102195099 | F95: 97124398 | G95: 98760549 | H95: 99217077 | I95: 92760756
B96: Augmentation Expenditure | C96: 2515418 | D96: 3331602 | E96: 3044120 | F96: 3047405 | G96: 3050222 | H96: 3053816 | I96: 3057873
B97: Non-network | C97: 0 | D97: 0 | E97: 0 | F97: 0 | G97: 0 | H97: 0 | I97: 0
B98: Export services | C98: 0 | D98: 0 | E98: 0 | F98: 0 | G98: 0 | H98: 0 | I98: 0
B99: Capitalised network overheads | C99: 1353610 | D99: 1245982 | E99: 1919022 | F99: 1828445 | G99: 1860076 | H99: 1870491 | I99: 1754634
B100: Capitalised corporate overheads | C100: 0 | D100: 0 | E100: 0 | F100: 0 | G100: 0 | H100: 0 | I100: 0
B101: Total | C101: =SUM(C94:C100) -> 103492235 | D101: 97076548 | E101: 107158241 | F101: 102000248 | G101: 103670847 | H101: 104141384 | I101: 97573263
B104: 2.1.8 - STANDARD CONTROL SERVICES CAPITALISED OVERHEADS
C105: =CONCATENATE("EXPENDITURE ($, real ", dms_DollarReal, ")") -> EXPENDITURE ($, real June 2025)
C106: =CRCP_y4 -> 2023-24 | D106: =CRCP_y5 -> 2024-25 | E106: =FRCP_y1 -> 2025-26 | F106: =FRCP_y2 -> 2026-27 | G106: =FRCP_y3 -> 2027-28 | H106: =FRCP_y4 -> 2028-29 | I106: =FRCP_y5 -> 2029-30
B107: Replacement expenditure | C107: 1037143 | D107: 952124 | E107: 1187092 | F107: 1345808 | G107: 1552086 | H107: 1385915 | I107: 1425962
B108: Connections | C108: 260559 | D108: 276495 | E108: 1028572 | F108: 1034253 | G108: 1094793 | H108: 1062176 | I108: 1022343
B109: Augmentation Expenditure | C109: 514470 | D109: 480873 | E109: 671234 | F109: 728932 | G109: 777814 | H109: 803150 | I109: 866343
B110: Non-network | C110: -1200003 | D110: -1239437 | E110: -1286932 | F110: -1336664 | G110: -1221403 | H110: -1405902 | I110: -1320784
B111: Export services | C111: 61428 | D111: 39202 | E111: 243937 | F111: 130821 | G111: 131257 | H111: 80153 | I111: 84478
B112: capcons (included in the above) | C112: 1353610 | D112: 1245982 | E112: 1919022 | F112: 1828445 | G112: 1860076 | H112: 1870491 | I112: 1754634
B113: Total | C113: =SUM(C107:C111) -> 673597 | D113: 509257 | E113: 1843903 | F113: 1903150 | G113: 2334547 | H113: 1925492 | I113: 2078342

Sheet 2.2 Repex
B1: =INDEX(dms_Worksheet_List,MATCH(dms_Model,dms_Model_List)) -> REGULATORY REPORTING STATEMENT
B2: =INDEX(dms_TradingNameFull_List,MATCH(dms_TradingName,dms_TradingName_List)) -> SA Power Networks
B3: =CONCATENATE("REGULATORY PERIOD FROM ", FRCP_y1," TO ",dms_MultiYear_FinalYear_Result) -> REGULATORY PERIOD FROM 2025-26 TO 2029-30
B4: 2.2 REPEX
B5: TEMPLATE DATE - OCTOBER 2023 - FINAL RIN
B8: 2.2.1 - REPLACEMENT EXPENDITURE, VOLUMES AND ASSET FAILURES BY ASSET CATEGORY
B9: EXPENDITURE
D10: =CONCATENATE("EXPENDITURE ($, real ", dms_DollarReal, ")") -> EXPENDITURE ($, real June 2025)
B11: ASSET GROUP | C11: ASSET CATEGORY | D11: =CRCP_y4 -> 2023-24 | E11: =CRCP_y5 -> 2024-25 | F11: =FRCP_y1 -> 2025-26 | G11: =FRCP_y2 -> 2026-27 | H11: =FRCP_y3 -> 2027-28 | I11: =FRCP_y4 -> 2028-29 | J11: =FRCP_y5 -> 2029-30
B12: POLES BY: HIGHEST OPERATING VOLTAGE ; MATERIAL TYPE | C12: ˂ = 1 kV; Wood | D12: 0 | E12: 0 | F12: 0 | G12: 0 | H12: 0 | I12: 0 | J12: 0
C13: > 1 kV & < = 11 kV; Wood | D13: 0 | E13: 0 | F13: 0 | G13: 0 | H13: 0 | I13: 0 | J13: 0
C14: ˃ 11 kV & < = 22 kV; Wood | D14: 0 | E14: 0 | F14: 0 | G14: 0 | H14: 0 | I14: 0 | J14: 0
C15: > 22 kV & < = 66 kV; Wood | D15: 0 | E15: 0 | F15: 0 | G15: 0 | H15: 0 | I15: 0 | J15: 0
C16: > 66 kV & < = 132 kV; Wood | D16: 0 | E16: 0 | F16: 0 | G16: 0 | H16: 0 | I16: 0 | J16: 0
C17: > 132 kV; Wood | D17: 0 | E17: 0 | F17: 0 | G17: 0 | H17: 0 | I17: 0 | J17: 0
C18: ˂ = 1 kV; Concrete | D18: 0 | E18: 0 | F18: 0 | G18: 0 | H18: 0 | I18: 0 | J18: 0
C19: > 1 kV & < = 11 kV; Concrete | D19: 0 | E19: 0 | F19: 0 | G19: 0 | H19: 0 | I19: 0 | J19: 0
C20: ˃ 11 kV & < = 22 kV; Concrete | D20: 0 | E20: 0 | F20: 0 | G20: 0 | H20: 0 | I20: 0 | J20: 0
C21: > 22 kV & < = 66 kV; Concrete | D21: 0 | E21: 0 | F21: 0 | G21: 0 | H21: 0 | I21: 0 | J21: 0
C22: > 66 kV & < = 132 kV; Concrete | D22: 0 | E22: 0 | F22: 0 | G22: 0 | H22: 0 | I22: 0 | J22: 0
C23: > 132 kV; Concrete | D23: 0 | E23: 0 | F23: 0 | G23: 0 | H23: 0 | I23: 0 | J23: 0
C24: ˂ = 1 kV; Steel | D24: 0 | E24: 0 | F24: 0 | G24: 0 | H24: 0 | I24: 0 | J24: 0
C25: > 1 kV & < = 11 kV; Steel | D25: 0 | E25: 0 | F25: 0 | G25: 0 | H25: 0 | I25: 0 | J25: 0
C26: ˃ 11 kV & < = 22 kV; Steel | D26: 0 | E26: 0 | F26: 0 | G26: 0 | H26: 0 | I26: 0 | J26: 0
C27: > 22 kV & < = 66 kV; Steel | D27: 0 | E27: 0 | F27: 0 | G27: 0 | H27: 0 | I27: 0 | J27: 0
C28: > 66 kV & < = 132 kV; Steel | D28: 0 | E28: 0 | F28: 0 | G28: 0 | H28: 0 | I28: 0 | J28: 0
C29: > 132 kV; Steel | D29: 0 | E29: 0 | F29: 0 | G29: 0 | H29: 0 | I29: 0 | J29: 0
C30: Other | D30: 0 | E30: 0 | F30: 0 | G30: 0 | H30: 0 | I30: 0 | J30: 0
B31: POLE TOP STRUCTURES BY: HIGHEST OPERATING VOLTAGE | C31: ˂ = 1 kV | D31: 5452909.11 | E31: 6182630.42 | F31: 6952451.92 | G31: 6800803.24 | H31: 6771657.38 | I31: 6793772.7 | J31: 6814925.67
C32: > 1 kV & < = 11 kV | D32: 11370768.22 | E32: 12892431.12 | F32: 14497713.84 | G32: 14181486.49 | H32: 14120708.87 | I32: 14166826.08 | J32: 14210933.87
C33: ˃ 11 kV & < = 22 kV | D33: 5144686.1 | E33: 5833160.22 | F33: 6559467.45 | G33: 6416391.52 | H33: 6388892.29 | I33: 6409758.05 | J33: 6429715.31
C34: > 22 kV & < = 66 kV | D34: 3119235.06 | E34: 3536658.95 | F34: 3977020.85 | G34: 3890273.32 | H34: 3873600.07 | I34: 3886251.65 | J34: 3898351.15
C35: > 66 kV & < = 132 kV | D35: 0 | E35: 0 | F35: 0 | G35: 0 | H35: 0 | I35: 0 | J35: 0
C36: > 132 kV | D36: 0 | E36: 0 | F36: 0 | G36: 0 | H36: 0 | I36: 0 | J36: 0
C37: Other | D37: 0 | E37: 0 | F37: 0 | G37: 0 | H37: 0 | I37: 0 | J37: 0
B38: STAKING WOODEN POLES BY: HIGHEST OPERATING VOLTAGE | C38: ˂ = 1 Kv | D38: 0 | E38: 0 | F38: 0 | G38: 0 | H38: 0 | I38: 0 | J38: 0
C39: > 1 kV & < = 11 kV | D39: 0 | E39: 0 | F39: 0 | G39: 0 | H39: 0 | I39: 0 | J39: 0
C40: ˃ 11 kV & < = 22 kV | D40: 0 | E40: 0 | F40: 0 | G40: 0 | H40: 0 | I40: 0 | J40: 0
C41: > 22 kV & < = 66 kV | D41: 0 | E41: 0 | F41: 0 | G41: 0 | H41: 0 | I41: 0 | J41: 0
C42: > 66 kV & < = 132 kV | D42: 0 | E42: 0 | F42: 0 | G42: 0 | H42: 0 | I42: 0 | J42: 0
C43: > 132 kV | D43: 0 | E43: 0 | F43: 0 | G43: 0 | H43: 0 | I43: 0 | J43: 0
B44: OVERHEAD CONDUCTORS BY: Highest operating voltage; Number of phases (at HV) | C44: ˂ = 1 kV | D44: 290108.01 | E44: 217241.12 | F44: 0 | G44: 0 | H44: 0 | I44: 0 | J44: 0
C45: > 1 kV & < = 11 kV | D45: 6556112.13 | E45: 4909415.71 | F45: 4850449.98 | G45: 6820767.79 | H45: 8857953.8 | I45: 10958342.47 | J45: 13068609.17
C46: ˃ 11 kV & < = 22 kV ; SWER | D46: 779886.02 | E46: 584002.32 | F46: 3530396.32 | G46: 4964490.37 | H46: 6447255.74 | I46: 7976021.46 | J46: 9511977.26
C47: ˃ 11 kV & < = 22 kV ; Single-Phase | D47: 0 | E47: 0 | F47: 0 | G47: 0 | H47: 0 | I47: 0 | J47: 0
C48: ˃ 11 kV & < = 22 kV ; Multiple-Phase | D48: 0 | E48: 0 | F48: 0 | G48: 0 | H48: 0 | I48: 0 | J48: 0
C49: > 22 kV & < = 66 kV | D49: 1938558.04 | E49: 1451650.8 | F49: 77591.98 | G49: 109111.42 | H49: 141700 | I49: 175298.98 | J49: 209056.95
C50: > 66 kV & < = 132 kV | D50: 0 | E50: 0 | F50: 0 | G50: 0 | H50: 0 | I50: 0 | J50: 0
C51: > 132 kV | D51: 0 | E51: 0 | F51: 0 | G51: 0 | H51: 0 | I51: 0 | J51: 0
C52: Other | D52: 0 | E52: 0 | F52: 0 | G52: 0 | H52: 0 | I52: 0 | J52: 0
B53: UNDERGROUND CABLES BY: Highest operating voltage | C53: ˂ = 1 kV | D53: 2633564.05 | E53: 1789083.99 | F53: 374248.95 | G53: 468778.92 | H53: 568970.13 | I53: 673298.97 | J53: 778109.99
C54: > 1 kV & < = 11 kV | D54: 11500877.22 | E54: 7812998.32 | F54: 11463806 | G54: 14359408.67 | H54: 17428425.74 | I54: 20624180.85 | J54: 23834707.11
C55: > 11 kV & < = 22 kV | D55: 0 | E55: 0 | F55: 0 | G55: 0 | H55: 0 | I55: 0 | J55: 0
C56: > 22 kV & < = 33 kV | D56: 27100 | E56: 18410.01 | F56: 447652.31 | G56: 560722.57 | H56: 680565.32 | I56: 805357.41 | J56: 930725.57
C57: > 33 kV & < = 66 kV | D57: 0 | E57: 0 | F57: 0 | G57: 0 | H57: 0 | I57: 0 | J57: 0
C58: > 66 kV & < = 132 kV | D58: 0 | E58: 0 | F58: 0 | G58: 0 | H58: 0 | I58: 0 | J58: 0
C59: > 132 kV | D59: 0 | E59: 0 | F59: 0 | G59: 0 | H59: 0 | I59: 0 | J59: 0
C60: Other | D60: 0 | E60: 0 | F60: 0 | G60: 0 | H60: 0 | I60: 0 | J60: 0
B61: SERVICE LINES BY: Connection voltage; Customer type; Connection complexity | C61: ˂ = 11 kV ; Residential ; Simple Type | D61: 7060850.14 | E61: 9291015.13 | F61: 8801223.82 | G61: 8614910.65 | H61: 8583452.1 | I61: 8617253.52 | J61: 8650038.15
C62: ˂ = 11 kV ; Commercial & Industrial ; Simple Type | D62: 0 | E62: 0 | F62: 0 | G62: 0 | H62: 0 | I62: 0 | J62: 0
C63: ˂ = 11 kV ; Residential ; Complex Type | D63: 0 | E63: 0 | F63: 0 | G63: 0 | H63: 0 | I63: 0 | J63: 0
C64: ˂ = 11 kV ; Commercial & Industrial ; Complex Type | D64: 783401.02 | E64: 1030838.57 | F64: 1087791.61 | G64: 1064764.44 | H64: 1060875.9 | I64: 1065053.45 | J64: 1069106.32
C65: ˂ = 11 kV ; Subdivision ; Complex Type | D65: 0 | E65: 0 | F65: 0 | G65: 0 | H65: 0 | I65: 0 | J65: 0
C66: > 11 kV & < = 22 kV ; Commercial & Industrial | D66: 0 | E66: 0 | F66: 0 | G66: 0 | H66: 0 | I66: 0 | J66: 0
C67: > 11 kV & < = 22 kV ; Subdivision | D67: 0 | E67: 0 | F67: 0 | G67: 0 | H67: 0 | I67: 0 | J67: 0
C68: > 22 kV & < = 33 kV ; Commercial & Industrial | D68: 0 | E68: 0 | F68: 0 | G68: 0 | H68: 0 | I68: 0 | J68: 0
C69: > 22 kV & < = 33 kV ; Subdivision | D69: 0 | E69: 0 | F69: 0 | G69: 0 | H69: 0 | I69: 0 | J69: 0
C70: > 33 kV & < = 66 kV ; Commercial & Industrial | D70: 0 | E70: 0 | F70: 0 | G70: 0 | H70: 0 | I70: 0 | J70: 0
C71: > 33 kV & < = 66 kV ; Subdivision | D71: 0 | E71: 0 | F71: 0 | G71: 0 | H71: 0 | I71: 0 | J71: 0
C72: > 66 kV & < = 132 kV ; Commercial & Industrial | D72: 0 | E72: 0 | F72: 0 | G72: 0 | H72: 0 | I72: 0 | J72: 0
C73: > 66 kV & < = 132 kV ; Subdivision | D73: 0 | E73: 0 | F73: 0 | G73: 0 | H73: 0 | I73: 0 | J73: 0
C74: > 132 kV ; Commercial & Industrial | D74: 0 | E74: 0 | F74: 0 | G74: 0 | H74: 0 | I74: 0 | J74: 0
C75: > 132 kV ; Subdivision | D75: 0 | E75: 0 | F75: 0 | G75: 0 | H75: 0 | I75: 0 | J75: 0
C76: Other | D76: 0 | E76: 0 | F76: 0 | G76: 0 | H76: 0 | I76: 0 | J76: 0
B77: TRANSFORMERS BY: Mounting type; Highest operating voltage; Ampere rating; Number of phases (at LV) | C77: Pole Mounted ; < = 22kV ; < = 60 kVA ; Single Phase | D77: 1949684.04 | E77: 2747039.52 | F77: 4689692.78 | G77: 4804648.81 | H77: 5000269.46 | I77: 5233643.64 | J77: 5467719.21
C78: Pole Mounted ; < = 22kV ; > 60 kVA and < = 600 kVA ; Single Phase | D78: 176345 | E78: 248464.14 | F78: 79541.17 | G78: 81490.88 | H78: 84809.64 | I78: 88767.72 | J78: 92737.36
C79: Pole Mounted ; < = 22kV ; > 600 kVA ; Single Phase | D79: 0 | E79: 0 | F79: 0 | G79: 0 | H79: 0 | I79: 0 | J79: 0
C80: Pole Mounted ; < = 22kV ; < = 60 kVA ; Multiple Phase | D80: 339347.01 | E80: 478128.26 | F80: 1169978.75 | G80: 1198657.9 | H80: 1247460.78 | I80: 1305682.63 | J80: 1364079.99
C81: Pole Mounted ; < = 22kV ; > 60 kVA and < = 600 kVA ; Multiple Phase | D81: 1665628.03 | E81: 2346814.3 | F81: 969770.53 | G81: 993542.02 | H81: 1033993.95 | I81: 1082253.38 | J81: 1130657.13
C82: Pole Mounted ; < = 22kV ; > 600 kVA ; Multiple Phase | D82: 0 | E82: 0 | F82: 0 | G82: 0 | H82: 0 | I82: 0 | J82: 0
C83: Kiosk Mounted ; < = 22kV ; < = 60 kVA ; Single Phase | D83: 34714 | E83: 48911.03 | F83: 19697.68 | G83: 20180.88 | H83: 21003.09 | I83: 21982.56 | J83: 22966.46
C84: Kiosk Mounted ; < = 22kV ; > 60 kVA and < = 600 kVA ; Single Phase | D84: 231430 | E84: 326076.18 | F84: 9935.81 | G84: 10180.18 | H84: 10594.1 | I84: 11088.73 | J84: 11584.57
C85: Kiosk Mounted ; < = 22kV ; > 600 kVA ; Single Phase | D85: 57857 | E85: 81519.05 | F85: 0 | G85: 0 | H85: 0 | I85: 0 | J85: 0
C86: Kiosk Mounted ; < = 22kV ; < = 60 kVA ; Multiple Phase | D86: 28929 | E86: 40760.02 | F86: 3526.64 | G86: 3613.6 | H86: 3760.81 | I86: 3936.48 | J86: 4112.46
C87: Kiosk Mounted ; < = 22kV ; > 60 kVA and < = 600 kVA ; Multiple Phase | D87: 1203434.02 | E87: 1695598.94 | F87: 1050373.27 | G87: 1076121.34 | H87: 1119935.4 | I87: 1172204.94 | J87: 1224631.8
C88: Kiosk Mounted ; < = 22kV ; > 600 kVA ; Multiple Phase | D88: 231430 | E88: 326076.18 | F88: 164473.69 | G88: 168505.47 | H88: 175366.07 | I88: 183551.12 | J88: 191760.68
C89: Ground Outdoor / Indoor Chamber Mounted; ˂ 22 kV ; < = 60 kVA ; Single Phase | D89: 0 | E89: 0 | F89: 0 | G89: 0 | H89: 0 | I89: 0 | J89: 0
C90: Ground Outdoor / Indoor Chamber Mounted; ˂ 22 kV ; > 60 kVA and < = 600 kVA ; Single Phase | D90: 0 | E90: 0 | F90: 0 | G90: 0 | H90: 0 | I90: 0 | J90: 0
C91: Ground Outdoor / Indoor Chamber Mounted; ˂ 22 kV ; > 600 kVA ; Single Phase | D91: 0 | E91: 0 | F91: 0 | G91: 0 | H91: 0 | I91: 0 | J91: 0
C92: Ground Outdoor / Indoor Chamber Mounted; ˂ 22 kV ; < = 60 kVA ; Multiple Phase | D92: 0 | E92: 0 | F92: 0 | G92: 0 | H92: 0 | I92: 0 | J92: 0
C93: Ground Outdoor / Indoor Chamber Mounted; ˂ 22 kV ; > 60 kVA and < = 600 kVA ; Multiple Phase | D93: 0 | E93: 0 | F93: 0 | G93: 0 | H93: 0 | I93: 0 | J93: 0
C94: Ground Outdoor / Indoor Chamber Mounted; ˂ 22 kV ; > 600 kVA ; Multiple Phase | D94: 79300 | E94: 193019.11 | F94: 723790.58 | G94: 651763.06 | H94: 578799.72 | I94: 562576.67 | J94: 547570.96
C95: Ground Outdoor / Indoor Chamber Mounted; > = 22 kV & < = 33 kV ; < = 15 MVA | D95: 852426.02 | E95: 707949.39 | F95: 1123052.01 | G95: 1120363.49 | H95: 1124941.78 | I95: 1131497.06 | J95: 1136408.39
C96: Ground Outdoor / Indoor Chamber Mounted; > = 22 kV & < = 33 kV ; > 15 MVA and < = 40 MVA | D96: 0 | E96: 0 | F96: 0 | G96: 0 | H96: 0 | I96: 0 | J96: 0
C97: Ground Outdoor / Indoor Chamber Mounted; > = 22 kV & < = 33 kV ; > 40 MVA | D97: 0 | E97: 0 | F97: 0 | G97: 0 | H97: 0 | I97: 0 | J97: 0
C98: Ground Outdoor / Indoor Chamber Mounted; > 33 kV & < = 66 kV ; < = 15 MVA | D98: 914340.02 | E98: 548478.3 | F98: 1158670.25 | G98: 1188225.5 | H98: 1213950.89 | I98: 1230581.65 | J98: 1252177.85
C99: Ground Outdoor / Indoor Chamber Mounted; > 33 kV & < = 66 kV ; > 15 MVA and < = 40 MVA | D99: 244042 | E99: 656970.36 | F99: 1416961.63 | G99: 1357980.46 | H99: 1374576.43 | I99: 1380739.23 | J99: 1381240.17
C100: Ground Outdoor / Indoor Chamber Mounted; > 33 kV & < = 66 kV ; > 40 MVA | D100: 0 | E100: 0 | F100: 0 | G100: 0 | H100: 0 | I100: 0 | J100: 0
C101: Ground Outdoor / Indoor Chamber Mounted; > 66 kV & < = 132 kV ; < = 100 MVA | D101: 0 | E101: 0 | F101: 0 | G101: 0 | H101: 0 | I101: 0 | J101: 0
C102: Ground Outdoor / Indoor Chamber Mounted; > 66 kV & < = 132 kV ; > 100 MVA | D102: 0 | E102: 0 | F102: 0 | G102: 0 | H102: 0 | I102: 0 | J102: 0
C103: Ground Outdoor / Indoor Chamber Mounted; > 132 kV ; < = 100 MVA | D103: 0 | E103: 0 | F103: 0 | G103: 0 | H103: 0 | I103: 0 | J103: 0
C104: Ground Outdoor / Indoor Chamber Mounted; > 132 kV ; > 100 MVA | D104: 0 | E104: 0 | F104: 0 | G104: 0 | H104: 0 | I104: 0 | J104: 0
C105: Other | D105: 0 | E105: 0 | F105: 0 | G105: 0 | H105: 0 | I105: 0 | J105: 0
B106: SWITCHGEAR BY: Highest operating voltage; Switch function | C106: ˂ = 11 kV ; FUSE | D106: 0 | E106: 0 | F106: 0 | G106: 0 | H106: 0 | I106: 0 | J106: 0
C107: ˂ = 11 kV ; Switch | D107: 2734152.05 | E107: 1555362.86 | F107: 828638.45 | G107: 798129.03 | H107: 730865.34 | I107: 614657.9 | J107: 578680.3
C108: ˂ = 11 kV ; Circuit Breaker | D108: 7515979.14 | E108: 8617724.76 | F108: 11294761 | G108: 11232941.46 | H108: 11150844.24 | I108: 11361749.13 | J108: 11735787.16
C109: > 11 kV & < = 22 kV ; Switch | D109: 0 | E109: 0 | F109: 0 | G109: 0 | H109: 0 | I109: 0 | J109: 0
C110: > 11 kV & < = 22 kV ; Circuit Breaker | D110: 0 | E110: 0 | F110: 0 | G110: 0 | H110: 0 | I110: 0 | J110: 0
C111: > 22 kV & < = 33 kV ; Switch | D111: 689573.01 | E111: 390027.22 | F111: 502856.9 | G111: 491979.71 | H111: 489949.68 | I111: 491649.52 | J111: 493292.48
C112: > 22 kV & < = 33 kV ; Circuit Breaker | D112: 2682688.05 | E112: 1249738.69 | F112: 648459.9 | G112: 1055469.97 | H112: 1079218.17 | I112: 999625.8 | J112: 920952.57
C113: > 33 kV & < = 66 kV ; Switch | D113: 425160.01 | E113: 457074.25 | F113: 632645.69 | G113: 336181.51 | H113: 272194.7 | I113: 273138.94 | J113: 274051.38
C114: > 33 kV & < = 66 kV ; Circuit Breaker | D114: 11583058.22 | E114: 12519369.92 | F114: 13782248.83 | G114: 4312429.48 | H114: 2462578.18 | I114: 2528386.48 | J114: 2328819.97
C115: > 66 kV & < = 132 kV ; Switch | D115: 0 | E115: 0 | F115: 0 | G115: 0 | H115: 0 | I115: 0 | J115: 0
C116: > 66 kV & < = 132 kV ; Circuit Breaker | D116: 0 | E116: 0 | F116: 0 | G116: 0 | H116: 0 | I116: 0 | J116: 0
C117: > 132 kV ; Switch | D117: 0 | E117: 0 | F117: 0 | G117: 0 | H117: 0 | I117: 0 | J117: 0
C118: > 132 kV ; Circuit Breaker | D118: 0 | E118: 0 | F118: 0 | G118: 0 | H118: 0 | I118: 0 | J118: 0
C119: Other | D119: 0 | E119: 0 | F119: 0 | G119: 0 | H119: 0 | I119: 0 | J119: 0
B120: PUBLIC LIGHTING BY: Asset type ; Lighting obligation | C120: Luminaires ; Major Road
C121: Luminaires ; Minor Road
C122: Brackets ; Major Road
C123: Brackets ; Minor Road
C124: Lamps ; Major Road
C125: Lamps ; Minor Road
C126: Poles / Columns ; Major Road
C127: Poles / Columns ; Minor Road
C128: Other
B129: SCADA, NETWORK CONTROL AND PROTECTION SYSTEMS BY: Function | C129: Field Devices | D129: 5656192.11 | E129: 5308449.93 | F129: 7697883.4 | G129: 7289206.21 | H129: 7220658.46 | I129: 7229635.1 | J129: 7259175.54
C130: Local Network Wiring Assets | D130: 0 | E130: 0 | F130: 0 | G130: 0 | H130: 0 | I130: 0 | J130: 0
C131: Communications Network Assets | D131: 10107461.19 | E131: 7380039.08 | F131: 7794688 | G131: 7362367.86 | H131: 5564793.32 | I131: 5526711.04 | J131: 5277000.88
C132: Master Station Assets | D132: 0 | E132: 0 | F132: 1044355.72 | G132: 1022028.86 | H132: 1018034.84 | I132: 1021851.5 | J132: 1025586.24
C133: Communications Site Infrastructure | D133: 77471 | E133: 326559.18 | F133: 207388.72 | G133: 202903.09 | H133: 202065.81 | I133: 202766.57 | J133: 203443.7
C134: Communications Linear Assets | D134: 454570.01 | E134: 433692.24 | F134: 518742.67 | G134: 507446.9 | H134: 707402.92 | I134: 709742.33 | J134: 711984.41
C135: AFLC | D135: 0 | E135: 0 | F135: 0 | G135: 0 | H135: 0 | I135: 0 | J135: 0
C136: Other | D136: 0 | E136: 0 | F136: 0 | G136: 0 | H136: 0 | I136: 0 | J136: 0
B137: OTHER: | C137: < = 1 kV; stobie pole | D137: 4833380.09 | E137: 4953825.74 | F137: 9637050.73 | G137: 9425593.67 | H137: 9384133.96 | I137: 9413424.83 | J137: 9441205.51
C138: > 1 kV & < = 11 kV; stobie pole | D138: 12185755.23 | E138: 12489419.9 | F138: 9364022.62 | G138: 9158556.64 | H138: 9118271.23 | I138: 9146731.88 | J138: 9173725.77
C139: > 11 kV & < = 22 kV; stobie pole | D139: 2130628.04 | E139: 2183723.21 | F139: 1705488.85 | G139: 1668067.39 | H139: 1660729.8 | I139: 1665913.39 | J139: 1670830.29
C140: > 22 kV & < = 66 kV; stobie pole | D140: 1032654.02 | E140: 1058387.58 | F140: 2781185.73 | G140: 2720161.43 | H140: 2708195.57 | I140: 2716648.84 | J140: 2724666.17
C141: > 66 kV & < = 132 kV; stobie pole | D141: 0 | E141: 0 | F141: 0 | G141: 0 | H141: 0 | I141: 0 | J141: 0
C142: > 132 kV; stobie pole | D142: 0 | E142: 0 | F142: 0 | G142: 0 | H142: 0 | I142: 0 | J142: 0
C143: Pole REFURBISHED; STOBIE Pole | D143: 6257989.12 | E143: 6785487.75 | F143: 7384404.33 | G143: 7221303.46 | H143: 7188628.41 | I143: 7209904.43 | J143: 7229873.91
C144: Pole Mounted ;> = 22 kV & < = 33 kV ; < = 60kVA; DISTRIBUTION TRANSFORMER | D144: 72845 | E144: 102636.06 | F144: 135654.26 | G144: 138979.67 | H144: 144638.47 | I144: 151388.69 | J144: 158159.35
C145: Pole Mounted ;> = 22 kV & < = 33 kV ; > 60 KVA AND < = 600 KVA; DISTRIBUTION TRANSFORMER | D145: 156304 | E145: 220227.12 | F145: 53635.1 | G145: 54950.05 | H145: 57187.29 | I145: 59856.75 | J145: 62533.32
C146: Kiosk Mounted; > = 22 kV & < = 33 kV ; DISTRIBUTION TRANSFORMER | D146: 57857 | E146: 81519.05 | F146: 68435.45 | G146: 70113.6 | H146: 72968.05 | I146: 76373.58 | J146: 79789.05
C147: Voltage regulator; DISTRIBUTION TRANSFORMER | D147: 1413689.03 | E147: 2053714.13 | F147: 1302642.13 | G147: 1273995.47 | H147: 1268337.58 | I147: 1272227.34 | J147: 1275904.84
C148: Recloser ;SWITCHGEAR | D148: 4228756.08 | E148: 3855051.13 | F148: 3344042.17 | G148: 3800738.42 | H148: 4311689.88 | I148: 4854759.92 | J148: 5400537.78
C149: Sectionalizer ;SWITCHGEAR | D149: 158988 | E149: 144938.08 | F149: 149060.06 | G149: 217054.84 | H149: 287186.85 | I149: 359505.22 | J149: 432290.83
C150: >= 11 kV & < = 22 kV ; LOAD BREAK SWITCH; GROUND LEVEL (Switching Cubicle);SWITCHGEAR | D150: 3484748.07 | E150: 4018782.22 | F150: 4150908.51 | G150: 4061359.24 | H150: 4044796.57 | I150: 4059080.67 | J150: 4072927.52
C151: > 22 kV & < = 33 kV ; LOAD BREAK SWITCH; GROUND LEVEL (Switching Cubicle);SWITCHGEAR | D151: 0 | E151: 0 | F151: 0 | G151: 0 | H151: 0 | I151: 0 | J151: 0
C152: OTHER - Distribution | D152: 854650.02 | E152: 1178130.65 | F152: 1115009.73 | G152: 1090636.87 | H152: 1085917.45 | I152: 1089407.55 | J152: 1092735.83
C153: OTHER - Non Category Substation asset replacement/refurbishment | D153: 3234913.06 | E153: 4541160.51 | F153: 4125516.33 | G153: 4042215.39 | H153: 4026267.26 | I153: 4041169.67 | J153: 4055726.8
C154: Pipework Bus Substation Replacements | D154: 2588310.05 | E154: 1830610.01 | F154: 2516532.88 | G154: 2462101.65 | H154: 2451939.74 | I154: 2460445.46 | J154: 2468666.76
C155: > = 11 kV ; Circuit Breaker REFURBISHED | D155: 570147.01 | E155: 127406.07 | F155: 229724.42 | G155: 224813.66 | H155: 223934.63 | I155: 224774.22 | J155: 225595.58
C156: > 22 kV & < = 33 kV ; Circuit Breaker REFURBISHED | D156: 0 | E156: 0 | F156: 0 | G156: 0 | H156: 0 | I156: 0 | J156: 0
C157: > 33 kV & < = 66 kV ; Circuit Breaker REFURBISHED | D157: 1368353.03 | E157: 101925.06 | F157: 122519.83 | G157: 119900.81 | H157: 119432.06 | I157: 119879.45 | J157: 120318.16
C158: Ground Outdoor / Indoor Chamber Mounted; 22 kV ; > 600 kVA ; Multiple Phase REFURBISHED | D158: 242609 | E158: 101673.06 | F158: 109169.7 | G158: 106835.57 | H158: 106418.17 | I158: 106817.66 | J158: 107207.7
C159: GROUND OUTDOOR / INDOOR CHAMBER MOUNTED ; > = 22 kV & < = 33 kV ; < = 15 MVA REFURBISHED | D159: 889568.02 | E159: 372801.21 | F159: 400289.21 | G159: 391732.05 | H159: 390200.91 | I159: 391663.78 | J159: 393094.58
C160: GROUND OUTDOOR / INDOOR CHAMBER MOUNTED ; > 33 kV & < = 66 kV ; < = 15 MVA REFURBISHED | D160: 1698266.03 | E160: 711712.39 | F160: 764187.87 | G160: 747850.95 | H160: 744928.13 | I160: 747720.72 | J160: 750453.91
C161: GROUND OUTDOOR / INDOOR CHAMBER MOUNTED ; > 33 kV & < = 66 kV ; > 15 MVA AND < = 40 MVA REFURBISHED | D161: 1617396.03 | E161: 677821.37 | F161: 727798.3 | G161: 712239.74 | H161: 709455.41 | I161: 712114.83 | J161: 714717.69
C162: Mobile Plant Renewal | D162: 73088 | E162: 243035.13 | F162: 414404.71 | G162: 608319.31 | H162: 6665355.86 | I162: 2736958.4 | J162: 203478.44
C163: Hindley St Substation 66kV Yard Renewal | D163: 0 | E163: 0 | F163: 0 | G163: 10645582.02 | H163: 19188145.6 | I163: 1317795.04 | J163: 0
B181: ASSET REPLACEMENTS
D182: VOLUMES (0's)
B183: ASSET GROUP | C183: ASSET CATEGORY | D183: =CRCP_y4 -> 2023-24 | E183: =CRCP_y5 -> 2024-25 | F183: =FRCP_y1 -> 2025-26 | G183: =FRCP_y2 -> 2026-27 | H183: =FRCP_y3 -> 2027-28 | I183: =FRCP_y4 -> 2028-29 | J183: =FRCP_y5 -> 2029-30
B184: POLES BY: HIGHEST OPERATING VOLTAGE ; MATERIAL TYPE | C184: ˂ = 1 kV; Wood | D184: 0 | E184: 0 | F184: 0 | G184: 0 | H184: 0 | I184: 0 | J184: 0
C185: > 1 kV & < = 11 kV; Wood | D185: 0 | E185: 0 | F185: 0 | G185: 0 | H185: 0 | I185: 0 | J185: 0
C186: ˃ 11 kV & < = 22 kV; Wood | D186: 0 | E186: 0 | F186: 0 | G186: 0 | H186: 0 | I186: 0 | J186: 0
C187: > 22 kV & < = 66 kV; Wood | D187: 0 | E187: 0 | F187: 0 | G187: 0 | H187: 0 | I187: 0 | J187: 0
C188: > 66 kV & < = 132 kV; Wood | D188: 0 | E188: 0 | F188: 0 | G188: 0 | H188: 0 | I188: 0 | J188: 0
C189: > 132 kV; Wood | D189: 0 | E189: 0 | F189: 0 | G189: 0 | H189: 0 | I189: 0 | J189: 0
C190: ˂ = 1 kV; Concrete | D190: 0 | E190: 0 | F190: 0 | G190: 0 | H190: 0 | I190: 0 | J190: 0
C191: > 1 kV & < = 11 kV; Concrete | D191: 0 | E191: 0 | F191: 0 | G191: 0 | H191: 0 | I191: 0 | J191: 0
C192: ˃ 11 kV & < = 22 kV; Concrete | D192: 0 | E192: 0 | F192: 0 | G192: 0 | H192: 0 | I192: 0 | J192: 0
C193: > 22 kV & < = 66 kV; Concrete | D193: 0 | E193: 0 | F193: 0 | G193: 0 | H193: 0 | I193: 0 | J193: 0
C194: > 66 kV & < = 132 kV; Concrete | D194: 0 | E194: 0 | F194: 0 | G194: 0 | H194: 0 | I194: 0 | J194: 0
C195: > 132 kV; Concrete | D195: 0 | E195: 0 | F195: 0 | G195: 0 | H195: 0 | I195: 0 | J195: 0
C196: ˂ = 1 kV; Steel | D196: 0 | E196: 0 | F196: 0 | G196: 0 | H196: 0 | I196: 0 | J196: 0
C197: > 1 kV & < = 11 kV; Steel | D197: 0 | E197: 0 | F197: 0 | G197: 0 | H197: 0 | I197: 0 | J197: 0
C198: ˃ 11 kV & < = 22 kV; Steel | D198: 0 | E198: 0 | F198: 0 | G198: 0 | H198: 0 | I198: 0 | J198: 0
C199: > 22 kV & < = 66 kV; Steel | D199: 0 | E199: 0 | F199: 0 | G199: 0 | H199: 0 | I199: 0 | J199: 0
C200: > 66 kV & < = 132 kV; Steel | D200: 0 | E200: 0 | F200: 0 | G200: 0 | H200: 0 | I200: 0 | J200: 0
C201: > 132 kV; Steel | D201: 0 | E201: 0 | F201: 0 | G201: 0 | H201: 0 | I201: 0 | J201: 0
C202: Other | D202: 0 | E202: 0 | F202: 0 | G202: 0 | H202: 0 | I202: 0 | J202: 0
B203: POLE TOP STRUCTURES BY: HIGHEST OPERATING VOLTAGE | C203: ˂ = 1 kV | D203: 5190 | E203: 5884 | F203: 6657 | G203: 6657 | H203: 6657 | I203: 6657 | J203: 6657
C204: > 1 kV & < = 11 kV | D204: 6723 | E204: 7623 | F204: 8624 | G204: 8624 | H204: 8624 | I204: 8624 | J204: 8624
C205: ˃ 11 kV & < = 22 kV | D205: 2803 | E205: 3178 | F205: 3596 | G205: 3596 | H205: 3596 | I205: 3596 | J205: 3596
C206: > 22 kV & < = 66 kV | D206: 1149 | E206: 1302 | F206: 1473 | G206: 1473 | H206: 1473 | I206: 1473 | J206: 1473
C207: > 66 kV & < = 132 kV | D207: 0 | E207: 0 | F207: 0 | G207: 0 | H207: 0 | I207: 0 | J207: 0
C208: > 132 kV | D208: 0 | E208: 0 | F208: 0 | G208: 0 | H208: 0 | I208: 0 | J208: 0
C209: Other | D209: 0 | E209: 0 | F209: 0 | G209: 0 | H209: 0 | I209: 0 | J209: 0
B210: STAKING WOODEN POLES BY: HIGHEST OPERATING VOLTAGE | C210: ˂ = 1 Kv | D210: 0 | E210: 0 | F210: 0 | G210: 0 | H210: 0 | I210: 0 | J210: 0
C211: > 1 kV & < = 11 kV | D211: 0 | E211: 0 | F211: 0 | G211: 0 | H211: 0 | I211: 0 | J211: 0
C212: ˃ 11 kV & < = 22 kV | D212: 0 | E212: 0 | F212: 0 | G212: 0 | H212: 0 | I212: 0 | J212: 0
C213: > 22 kV & < = 66 kV | D213: 0 | E213: 0 | F213: 0 | G213: 0 | H213: 0 | I213: 0 | J213: 0
C214: > 66 kV & < = 132 kV | D214: 0 | E214: 0 | F214: 0 | G214: 0 | H214: 0 | I214: 0 | J214: 0
C215: > 132 kV | D215: 0 | E215: 0 | F215: 0 | G215: 0 | H215: 0 | I215: 0 | J215: 0
B216: OVERHEAD CONDUCTORS BY: Highest operating voltage; Number of phases (at HV) | C216: ˂ = 1 kV | D216: 0 | E216: 0 | F216: 0 | G216: 0 | H216: 0 | I216: 0 | J216: 0
C217: > 1 kV & < = 11 kV | D217: 145 | E217: 109 | F217: 108 | G217: 155 | H217: 203 | I217: 250 | J217: 297
C218: ˃ 11 kV & < = 22 kV ; SWER | D218: 16 | E218: 12 | F218: 72 | G218: 103 | H218: 135 | I218: 166 | J218: 198
C219: ˃ 11 kV & < = 22 kV ; Single-Phase | D219: 0 | E219: 0 | F219: 0 | G219: 0 | H219: 0 | I219: 0 | J219: 0
... 273 more rows

Sheet 2.3 Augex (b)
B1: =INDEX(dms_Worksheet_List,MATCH(dms_Model,dms_Model_List)) -> REGULATORY REPORTING STATEMENT
B2: =INDEX(dms_TradingNameFull_List,MATCH(dms_TradingName,dms_TradingName_List)) -> SA Power Networks
B3: =CONCATENATE("REGULATORY PERIOD FROM ", FRCP_y1," TO ",dms_MultiYear_FinalYear_Result) -> REGULATORY PERIOD FROM 2025-26 TO 2029-30
B4: 2.3 AUGEX PROJECT DATA
B5: TEMPLATE DATE - OCTOBER 2023 - FINAL RIN
B7: There are FOUR tables on this worksheet. These tables have been 'grouped' (and sub-grouped) for easy navigation. See the Instructions sheet on how to group or ungroup tables.
B9: NOTE: DNSP must provide expenditure information on an 'as incurred' basis.
B10: 2.3.3 - AUGEX DATA - HV/LV FEEDERS AND DISTRIBUTION SUBSTATIONS
D11: VOLUMES
B12: PROJECT TYPE | C12: UNITS | D12: =CRCP_y4 -> 2023-24 | E12: =CRCP_y5 -> 2024-25 | F12: =FRCP_y1 -> 2025-26 | G12: =FRCP_y2 -> 2026-27 | H12: =FRCP_y3 -> 2027-28 | I12: =FRCP_y4 -> 2028-29 | J12: =FRCP_y5 -> 2029-30
B13: DESCRIPTOR METRICS - UNITS ADDED
B14: HV Feeder Augmentations - Overhead Lines | C14: Circuit Line Length in KM | D14: 0 | E14: 0 | F14: 0 | G14: 0 | H14: 0 | I14: 0 | J14: 1.4
B15: HV Feeder Augmentations - Underground Cables | C15: Circuit Line Length in KM | D15: 0.22 | E15: 0 | F15: 0 | G15: 0.2 | H15: 0 | I15: 0 | J15: 3.4
B16: LV Feeder Augmentations - Overhead Lines | C16: Circuit Line Length in KM | D16: 0.2578 | E16: 0.238 | F16: 0.218 | G16: 0.2186 | H16: 0.2191 | I16: 0.2197 | J16: 0.2205
B17: LV Feeder Augmentations - Underground Cables | C17: Circuit Line Length in KM | D17: 1.7768 | E17: 1.6401 | F17: 1.5023 | G17: 1.5063 | H17: 1.5098 | I17: 1.5141 | J17: 1.5193
B18: Distribution Substation Augmentations - Pole Mounted | C18: Number | D18: 90 | E18: 83 | F18: 76 | G18: 76 | H18: 76 | I18: 77 | J18: 77
B19: Distribution Substation Augmentations - Ground Mounted | C19: Number | D19: 0 | E19: 0 | F19: 0 | G19: 0 | H19: 0 | I19: 0 | J19: 0
B20: Distribution Substation Augmentations - Indoor | C20: Number | D20: 0 | E20: 0 | F20: 0 | G20: 0 | H20: 0 | I20: 0 | J20: 0
B21: DESCRIPTOR METRICS - UNITS UPGRADED
B22: HV Feeder Augmentations - Overhead Lines | C22: Circuit Line Length in KM | D22: 4.4 | E22: 0 | F22: 0 | G22: 1.8 | H22: 0 | I22: 0 | J22: 0
B23: HV Feeder Augmentations - Underground Cables | C23: Circuit Line Length in KM | D23: 0 | E23: 0 | F23: 0 | G23: 0 | H23: 0 | I23: 0 | J23: 0
B24: LV Feeder Augmentations - Overhead Lines | C24: Circuit Line Length in KM | D24: 5.3645 | E24: 4.9517 | F24: 4.5357 | G24: 4.5478 | H24: 4.5583 | I24: 4.5715 | J24: 4.587
B25: LV Feeder Augmentations - Underground Cables | C25: Circuit Line Length in KM | D25: 0.1056 | E25: 0.0975 | F25: 0.0893 | G25: 0.0895 | H25: 0.0897 | I25: 0.09 | J25: 0.0903
B26: Distribution Substation Augmentations - Pole Mounted | C26: Number | D26: 106 | E26: 98 | F26: 89 | G26: 90 | H26: 90 | I26: 90 | J26: 90
B27: Distribution Substation Augmentations - Ground Mounted | C27: Number | D27: 0 | E27: 0 | F27: 0 | G27: 0 | H27: 0 | I27: 0 | J27: 0
B28: Distribution Substation Augmentations - Indoor | C28: Number | D28: 0 | E28: 0 | F28: 0 | G28: 0 | H28: 0 | I28: 0 | J28: 0
B30: COST METRICS
D31: =CONCATENATE("TOTAL DIRECT EXPENDITURE ($, real ", dms_DollarReal,")") -> TOTAL DIRECT EXPENDITURE ($, real June 2025)
B32: PROJECT TYPE | D32: =CRCP_y4 -> 2023-24 | E32: =CRCP_y5 -> 2024-25 | F32: =FRCP_y1 -> 2025-26 | G32: =FRCP_y2 -> 2026-27 | H32: =FRCP_y3 -> 2027-28 | I32: =FRCP_y4 -> 2028-29 | J32: =FRCP_y5 -> 2029-30
B33: HV Feeder Augmentations - Overhead Lines | D33: 760814.79 | E33: 0 | F33: 0 | G33: 545604.23 | H33: 0 | I33: 0 | J33: 424358.85
B34: HV Feeder Augmentations - Underground Cables | D34: 230063.12 | E34: 0 | F34: 0 | G34: 209148.29 | H34: 0 | I34: 0 | J34: 3555520.92
B35: HV Feeder Non-Material Projects | D35: 46824298.49 | E35: 46744909.11 | F35: 50635444.15 | G35: 44898277.28 | H35: 47736501.76 | I35: 47721640.49 | J35: 46586278.02
B36: LV Feeder Augmentations - Overhead Lines | D36: 814992.83 | E36: 728460.28 | F36: 885594.85 | G36: 887965.06 | H36: 890012.06 | I36: 892597.73 | J36: 895614.36
B37: LV Feeder Augmentations - Underground Cables | D37: 282541.71 | E37: 252542.61 | F37: 307018.03 | G37: 307839.73 | H37: 308549.38 | I37: 309445.78 | J37: 310491.59
B38: LV Feeder Non-Material Projects | D38: 808035.09 | E38: 722241.29 | F38: 878034.38 | G38: 880384.35 | H38: 882413.87 | I38: 884977.47 | J38: 887968.34
B39: Distribution Substation Augmentations - Pole Mounted | D39: 404988.4 | E39: 361988.42 | F39: 440072.15 | G39: 441249.96 | H39: 442267.16 | I39: 443552.04 | J39: 445051.07
B40: Distribution Substation Augmentations - Ground Mounted | D40: 0 | E40: 0 | F40: 0 | G40: 0 | H40: 0 | I40: 0 | J40: 0
B41: Distribution Substation Augmentations - Indoor | D41: 0 | E41: 0 | F41: 0 | G41: 0 | H41: 0 | I41: 0 | J41: 0
B45: 2.3.4 - AUGEX - TOTAL EXPENDITURE
D46: =CONCATENATE("TOTAL DIRECT EXPENDITURE ($, real ", dms_DollarReal,")") -> TOTAL DIRECT EXPENDITURE ($, real June 2025)
D47: =CRCP_y4 -> 2023-24 | E47: =CRCP_y5 -> 2024-25 | F47: =FRCP_y1 -> 2025-26 | G47: =FRCP_y2 -> 2026-27 | H47: =FRCP_y3 -> 2027-28 | I47: =FRCP_y4 -> 2028-29 | J47: =FRCP_y5 -> 2029-30
B48: Subtransmission Substations, Switching Stations, Zone Substations | D48: 21140010.51 | E48: 19453628.78 | F48: 33088936.88 | G48: 37826957.57 | H48: 30248414.32 | I48: 33901698.61 | J48: 52777102.97
B49: Subtransmission Lines | D49: 5990445.16 | E49: 8538365.02 | F49: 10285971.68 | G49: 9211726.96 | H49: 16580007.68 | I49: 20632173.08 | J49: 6034018.68
B50: HV Feeders | D50: 47815176.4 | E50: 46744909.11 | F50: 50635444.15 | G50: 45653029.8 | H50: 47736501.76 | I50: 47721640.49 | J50: 50566157.79
B51: HV Feeders - Land Purchases and Easements | D51: 0 | E51: 0 | F51: 0 | G51: 0 | H51: 0 | I51: 0 | J51: 0
B52: Distribution Substations | D52: 404988.4 | E52: 361988.42 | F52: 440072.15 | G52: 441249.96 | H52: 442267.16 | I52: 443552.04 | J52: 445051.07
B53: Distribution Substations - Land Purchases and Easements | D53: 0 | E53: 0 | F53: 0 | G53: 0 | H53: 0 | I53: 0 | J53: 0
B54: LV Feeders | D54: 1905569.63 | E54: 1703244.18 | F54: 2070647.26 | G54: 2076189.14 | H54: 2080975.31 | I54: 2087020.99 | J54: 2094074.29
B55: LV Feeders - Land Purchases and Easements | D55: 0 | E55: 0 | F55: 0 | G55: 0 | H55: 0 | I55: 0 | J55: 0
B56: Other Assets | D56: 0 | E56: 0 | F56: 0 | G56: 0 | H56: 0 | I56: 0 | J56: 0
B60: 2.3.5 - AUGEX - BY DRIVER
D61: =CONCATENATE("TOTAL DIRECT EXPENDITURE ($, real ", dms_DollarReal,")") -> TOTAL DIRECT EXPENDITURE ($, real June 2025)
D62: =CRCP_y4 -> 2023-24 | E62: =CRCP_y5 -> 2024-25 | F62: =FRCP_y1 -> 2025-26 | G62: =FRCP_y2 -> 2026-27 | H62: =FRCP_y3 -> 2027-28 | I62: =FRCP_y4 -> 2028-29 | J62: =FRCP_y5 -> 2029-30
B63: "Greenfield" driven augex (network expansion capex) | D63: 2950558 | E63: 2302800 | F63: 377375 | G63: 1957505 | H63: 7043269 | I63: 15521838 | J63: 15440004
B64: Reinforcement driven augex (augmentation of the existing network) | D64: 74305632 | E64: 74499336 | F64: 96143697 | G64: 93251648 | H64: 90044897 | I64: 89264248 | J64: 96476401
B68: 2.3.6 - AUGEX - GREENFIELDS DRIVEN
D69: =CONCATENATE("TOTAL DIRECT EXPENDITURE ($, real ", dms_DollarReal,")") -> TOTAL DIRECT EXPENDITURE ($, real June 2025)
D70: =CRCP_y4 -> 2023-24 | E70: =CRCP_y5 -> 2024-25 | F70: =FRCP_y1 -> 2025-26 | G70: =FRCP_y2 -> 2026-27 | H70: =FRCP_y3 -> 2027-28 | I70: =FRCP_y4 -> 2028-29 | J70: =FRCP_y5 -> 2029-30
B71: Subtransmission Substations, Switching Stations, Zone Substations | D71: 2327564 | E71: 2302800 | F71: 377375 | G71: 1957505 | H71: 1580130 | I71: 215355 | J71: 8754015
B72: Subtransmission Lines | D72: 0 | E72: 0 | F72: 0 | G72: 0 | H72: 5463139 | I72: 13462923 | J72: 4842429
B73: HV Feeders | D73: 622994 | E73: 0 | F73: 0 | G73: 0 | H73: 0 | I73: 1843560 | J73: 1843560
B74: HV Feeders - Land Purchases and Easements | D74: 0 | E74: 0 | F74: 0 | G74: 0 | H74: 0 | I74: 0 | J74: 0
B75: Distribution Substations | D75: 0 | E75: 0 | F75: 0 | G75: 0 | H75: 0 | I75: 0 | J75: 0
B76: Distribution Substations - Land Purchases and Easements | D76: 0 | E76: 0 | F76: 0 | G76: 0 | H76: 0 | I76: 0 | J76: 0
B77: LV Feeders | D77: 0 | E77: 0 | F77: 0 | G77: 0 | H77: 0 | I77: 0 | J77: 0
B78: LV Feeders - Land Purchases and Easements | D78: 0 | E78: 0 | F78: 0 | G78: 0 | H78: 0 | I78: 0 | J78: 0
B79: Other Assets | D79: 0 | E79: 0 | F79: 0 | G79: 0 | H79: 0 | I79: 0 | J79: 0

Sheet 2.5 Connections
B1: =INDEX(dms_Worksheet_List,MATCH(dms_Model,dms_Model_List)) -> REGULATORY REPORTING STATEMENT
B2: =INDEX(dms_TradingNameFull_List,MATCH(dms_TradingName,dms_TradingName_List)) -> SA Power Networks
B3: =CONCATENATE("REGULATORY PERIOD FROM ", FRCP_y1," TO ",dms_MultiYear_FinalYear_Result) -> REGULATORY PERIOD FROM 2025-26 TO 2029-30
B4: 2.5 CONNECTIONS
B5: TEMPLATE DATE - OCTOBER 2023 - FINAL RIN
B7: There are THREE tables on this worksheet - each has been 'grouped' (and sub-grouped) for easy navigation. See the Instructions sheet on how to group or ungroup tables.
B9: 2.5.1 - DESCRIPTOR METRICS
B10: VOLUMES AND EXPENDITURE - ALL
B11: CONNECTION SUBCATEGORY | C11: DESCRIPTOR METRIC | D11: Unit of Measure | E11: =CONCATENATE("VOLUMES and EXPENDITURE (0's, real ", dms_DollarReal, ")") -> VOLUMES and EXPENDITURE (0's, real June 2025)
E12: =CRCP_y4 -> 2023-24 | F12: =CRCP_y5 -> 2024-25 | G12: =FRCP_y1 -> 2025-26 | H12: =FRCP_y2 -> 2026-27 | I12: =FRCP_y3 -> 2027-28 | J12: =FRCP_y4 -> 2028-29 | K12: =FRCP_y5 -> 2029-30 | Q12: DRAFT TEMPLATE ONLY
B13: RESIDENTIAL | C13: Underground connections | D13: 0's | E13: 6124 | F13: 5628 | G13: 6067 | H13: 6552 | I13: 6762 | J13: 6836 | K13: 6823 | Q13: DO NOT USE FOR SUBMISSIONS
C14: Overhead connections | D14: 0's | E14: 106 | F14: 97 | G14: 105 | H14: 113 | I14: 117 | J14: 118 | K14: 118
C15: Distribution substations installed | D15: MVA added | E15: 3 | F15: 2 | G15: 3 | H15: 3 | I15: 3 | J15: 3 | K15: 3
C16: Distribution substations installed | D16: 0's | E16: 60 | F16: 55 | G16: 59 | H16: 64 | I16: 66 | J16: 67 | K16: 67
C17: Distribution substations installed | D17: total spend $0s | E17: 1340370.72 | F17: 1231800.695 | G17: 1323324.829 | H17: 1434177.822 | I17: 1484485.533 | J17: 1506508.365 | K17: 1509908.239
C18: Augmentation HV | D18: net circuit KM added | E18: 2 | F18: 2 | G18: 2 | H18: 3 | I18: 3 | J18: 3 | K18: 3
C19: Augmentation HV | D19: total spend $0s | E19: 465035.42 | F19: 427367.551 | G19: 459121.426 | H19: 497581.359 | I19: 515035.387 | J19: 522676.106 | K19: 523855.677
C20: Augmentation LV | D20: net circuit KM added | E20: 3 | F20: 3 | G20: 3 | H20: 3 | I20: 3 | J20: 3 | K20: 3
C21: Augmentation LV | D21: total spend $0s | E21: 607654.89 | F21: 558434.847 | G21: 599927.165 | H21: 650182.19 | I21: 672989.109 | J21: 682973.124 | K21: 684514.451
C22: Mean days to connect residential customer with LV single phase connection | D22: 0's | E22: 11 | F22: 11 | G22: 11 | H22: 11 | I22: 11 | J22: 11 | K22: 11
C23: Volume of GSL breaches for residential customers | D23: 0's | E23: 205 | F23: 205 | G23: 205 | H23: 205 | I23: 205 | J23: 205 | K23: 205
C24: Volume of customer complaints relating to connection services | D24: 0's | E24: 220 | F24: 220 | G24: 220 | H24: 220 | I24: 220 | J24: 220 | K24: 220
C25: GSL payments | D25: $ | E25: 72318 | F25: 72318 | G25: 72318 | H25: 72318 | I25: 72318 | J25: 72318 | K25: 72318
B26: COMMERCIAL/INDUSTRIAL | C26: Underground connections | D26: 0's | E26: 646 | F26: 719 | G26: 663 | H26: 651 | I26: 678 | J26: 702 | K26: 681
C27: Overhead connections | D27: 0's | E27: 105 | F27: 117 | G27: 108 | H27: 106 | I27: 110 | J27: 114 | K27: 111
C28: Distribution substations installed | D28: MVA added | E28: 95 | F28: 105 | G28: 97 | H28: 95 | I28: 99 | J28: 103 | K28: 100
C29: Distribution substations installed | D29: 0's | E29: 211 | F29: 235 | G29: 216 | H29: 212 | I29: 221 | J29: 229 | K29: 222
C30: Distribution substations installed | D30: total spend $0s | E30: 11393274.68 | F30: 12686411.35 | G30: 11667945.48 | H30: 11479926.21 | I30: 11976533.72 | J30: 12420791.69 | K30: 12062846.75
C31: Augmentation HV | D31: net circuit KM added | E31: 21 | F31: 24 | G31: 22 | H31: 22 | I31: 22 | J31: 23 | K31: 23
C32: Augmentation HV | D32: total spend $0s | E32: 5126020.08 | F32: 5707823.361 | G32: 5249598.957 | H32: 5165006.018 | I32: 5388437.836 | J32: 5588316.745 | K32: 5427271.478
C33: Augmentation LV | D33: net circuit KM added | E33: 8 | F33: 8 | G33: 8 | H33: 8 | I33: 8 | J33: 8 | K33: 8
C34: Augmentation LV | D34: total spend $0s | E34: 3154638.66 | F34: 3512690.145 | G34: 3230691.168 | H34: 3178631.256 | I34: 3316134.941 | J34: 3439143.771 | K34: 3340033.815
B35: SUBDIVISION | C35: Underground connections | D35: 0's | E35: 184 | F35: 168 | G35: 175 | H35: 179 | I35: 165 | J35: 143 | K35: 142
C36: Overhead connections | D36: 0's | E36: 35 | F36: 32 | G36: 33 | H36: 34 | I36: 31 | J36: 27 | K36: 27
C37: Distribution substations installed | D37: MVA added | E37: 22 | F37: 20 | G37: 21 | H37: 21 | I37: 19 | J37: 17 | K37: 17
C38: Distribution substations installed | D38: 0's | E38: 68 | F38: 62 | G38: 65 | H38: 66 | I38: 61 | J38: 53 | K38: 53
C39: Distribution substations installed | D39: total spend $0s | E39: 3890039.42 | F39: 3559386.067 | G39: 3690139.236 | H39: 3790768.328 | I39: 3486519.703 | J39: 3037096.789 | K39: 3027076.171
C40: Augmentation HV | D40: net circuit KM added | E40: 14 | F40: 13 | G40: 13 | H40: 14 | I40: 13 | J40: 11 | K40: 11
C41: Augmentation HV | D41: total spend $0s | E41: 3188999.467 | F41: 2917934.512 | G41: 3025124.116 | H41: 3107618.427 | I41: 2858199.694 | J41: 2489769.125 | K41: 2481554.364
C42: Augmentation LV | D42: net circuit KM added | E42: 36 | F42: 33 | G42: 34 | H42: 35 | I42: 32 | J42: 28 | K42: 28
C43: Augmentation LV | D43: total spend $0s | E43: 12764998.85 | F43: 11679973.95 | G43: 12109034.91 | H43: 12439244.99 | I43: 11440866.07 | J43: 9966103.9 | K43: 9933221.668
C44: Cost per lot | D44: $ | E44: 3258 | F44: 2981 | G44: 3097 | H44: 3175 | I44: 2914 | J44: 2533 | K44: 2517
B45: EMBEDDED GENERATION | C45: Underground connections | D45: 0's | E45: 0 | F45: 0 | G45: 0 | H45: 0 | I45: 0 | J45: 0 | K45: 0
C46: Overhead connections | D46: 0's | E46: 0 | F46: 0 | G46: 0 | H46: 0 | I46: 0 | J46: 0 | K46: 0
C47: Distribution substations installed | D47: MVA added | E47: 0 | F47: 0 | G47: 0 | H47: 0 | I47: 0 | J47: 0 | K47: 0
C48: Distribution substations installed | D48: 0's | E48: 0 | F48: 0 | G48: 0 | H48: 0 | I48: 0 | J48: 0 | K48: 0
C49: Distribution substations installed | D49: total spend $ | E49: 0 | F49: 0 | G49: 0 | H49: 0 | I49: 0 | J49: 0 | K49: 0
C50: Augmentation HV | D50: net circuit KM added | E50: 0 | F50: 0 | G50: 0 | H50: 0 | I50: 0 | J50: 0 | K50: 0
C51: Augmentation HV | D51: total spend $0s | E51: 0 | F51: 0 | G51: 0 | H51: 0 | I51: 0 | J51: 0 | K51: 0
C52: Augmentation LV | D52: net circuit KM added | E52: 0 | F52: 0 | G52: 0 | H52: 0 | I52: 0 | J52: 0 | K52: 0
C53: Augmentation LV | D53: total spend $0s | E53: 0 | F53: 0 | G53: 0 | H53: 0 | I53: 0 | J53: 0 | K53: 0
B55: VOLUMES AND EXPENDITURE - STANDARD CONTROL SERVICES
B56: CONNECTION SUBCATEGORY | C56: DESCRIPTOR METRIC | D56: Unit of Measure | E56: =CONCATENATE("VOLUMES and EXPENDITURE (0's, real ", dms_DollarReal, ")") -> VOLUMES and EXPENDITURE (0's, real June 2025)
E57: =CRCP_y4 -> 2023-24 | F57: =CRCP_y5 -> 2024-25 | G57: =FRCP_y1 -> 2025-26 | H57: =FRCP_y2 -> 2026-27 | I57: =FRCP_y3 -> 2027-28 | J57: =FRCP_y4 -> 2028-29 | K57: =FRCP_y5 -> 2029-30
B58: RESIDENTIAL | C58: Underground connections | D58: 0's | E58: 6124 | F58: 5628 | G58: 6067 | H58: 6552 | I58: 6762 | J58: 6836 | K58: 6823
C59: Overhead connections | D59: 0's | E59: 106 | F59: 97 | G59: 105 | H59: 113 | I59: 117 | J59: 118 | K59: 118
C60: Distribution substations installed | D60: MVA added | E60: 3 | F60: 2 | G60: 3 | H60: 3 | I60: 3 | J60: 3 | K60: 3
C61: Distribution substations installed | D61: 0's | E61: 60 | F61: 55 | G61: 59 | H61: 64 | I61: 66 | J61: 67 | K61: 67
C62: Distribution substations installed | D62: total spend $0s | E62: 1340370.72 | F62: 1231800.69 | G62: 1323324.83 | H62: 1434177.82 | I62: 1484485.53 | J62: 1506508.36 | K62: 1509908.24
C63: Augmentation HV | D63: net circuit KM added | E63: 2 | F63: 2 | G63: 2 | H63: 3 | I63: 3 | J63: 3 | K63: 3
C64: Augmentation HV | D64: total spend $0s | E64: 465035.42 | F64: 427367.55 | G64: 459121.43 | H64: 497581.36 | I64: 515035.39 | J64: 522676.11 | K64: 523855.68
C65: Augmentation LV | D65: net circuit KM added | E65: 3 | F65: 3 | G65: 3 | H65: 3 | I65: 3 | J65: 3 | K65: 3
C66: Augmentation LV | D66: total spend $0s | E66: 607654.89 | F66: 558434.85 | G66: 599927.16 | H66: 650182.19 | I66: 672989.11 | J66: 682973.12 | K66: 684514.45
C67: Mean days to connect residential customer with LV single phase connection | D67: 0's | E67: 11 | F67: 11 | G67: 11 | H67: 11 | I67: 11 | J67: 11 | K67: 11
C68: Volume of GSL breaches for residential customers | D68: 0's | E68: 205 | F68: 205 | G68: 205 | H68: 205 | I68: 205 | J68: 205 | K68: 205
C69: Volume of customer complaints relating to connection services | D69: 0's | E69: 220 | F69: 220 | G69: 220 | H69: 220 | I69: 220 | J69: 220 | K69: 220
C70: GSL payments | D70: $ | E70: 72318 | F70: 72318 | G70: 72318 | H70: 72318 | I70: 72318 | J70: 72318 | K70: 72318
B71: COMMERCIAL/INDUSTRIAL | C71: Underground connections | D71: 0's | E71: 646 | F71: 719 | G71: 663 | H71: 651 | I71: 678 | J71: 702 | K71: 681
C72: Overhead connections | D72: 0's | E72: 105 | F72: 117 | G72: 108 | H72: 106 | I72: 110 | J72: 114 | K72: 111
C73: Distribution substations installed | D73: MVA added | E73: 95 | F73: 105 | G73: 97 | H73: 95 | I73: 99 | J73: 103 | K73: 100
C74: Distribution substations installed | D74: 0's | E74: 211 | F74: 235 | G74: 216 | H74: 212 | I74: 221 | J74: 229 | K74: 222
C75: Distribution substations installed | D75: total spend $0s | E75: 11393274.68 | F75: 12686411.35 | G75: 11667945.48 | H75: 11479926.2 | I75: 11976533.72 | J75: 12420791.69 | K75: 12062846.75
C76: Augmentation HV | D76: net circuit KM added | E76: 21 | F76: 24 | G76: 22 | H76: 22 | I76: 22 | J76: 23 | K76: 23
C77: Augmentation HV | D77: total spend $0s | E77: 5126020.08 | F77: 5707823.36 | G77: 5249598.96 | H77: 5165006.02 | I77: 5388437.84 | J77: 5588316.75 | K77: 5427271.48
C78: Augmentation LV | D78: net circuit KM added | E78: 8 | F78: 8 | G78: 8 | H78: 8 | I78: 8 | J78: 8 | K78: 8
C79: Augmentation LV | D79: total spend $0s | E79: 3154638.66 | F79: 3512690.14 | G79: 3230691.17 | H79: 3178631.26 | I79: 3316134.94 | J79: 3439143.77 | K79: 3340033.81
B80: SUBDIVISION | C80: Underground connections | D80: 0's | E80: 184 | F80: 168 | G80: 175 | H80: 179 | I80: 165 | J80: 143 | K80: 142
C81: Overhead connections | D81: 0's | E81: 35 | F81: 32 | G81: 33 | H81: 34 | I81: 31 | J81: 27 | K81: 27
C82: Distribution substations installed | D82: MVA added | E82: 22 | F82: 20 | G82: 21 | H82: 21 | I82: 19 | J82: 17 | K82: 17
C83: Distribution substations installed | D83: 0's | E83: 68 | F83: 62 | G83: 65 | H83: 66 | I83: 61 | J83: 53 | K83: 53
C84: Distribution substations installed | D84: total spend $0s | E84: 3890039.42 | F84: 3559386.07 | G84: 3690139.24 | H84: 3790768.33 | I84: 3486519.7 | J84: 3037096.79 | K84: 3027076.17
C85: Augmentation HV | D85: net circuit KM added | E85: 14 | F85: 13 | G85: 13 | H85: 14 | I85: 13 | J85: 11 | K85: 11
C86: Augmentation HV | D86: total spend $0s | E86: 3188999.47 | F86: 2917934.51 | G86: 3025124.12 | H86: 3107618.43 | I86: 2858199.69 | J86: 2489769.13 | K86: 2481554.36
C87: Augmentation LV | D87: net circuit KM added | E87: 36 | F87: 33 | G87: 34 | H87: 35 | I87: 32 | J87: 28 | K87: 28
C88: Augmentation LV | D88: total spend $0s | E88: 12764998.85 | F88: 11679973.95 | G88: 12109034.91 | H88: 12439244.99 | I88: 11440866.07 | J88: 9966103.9 | K88: 9933221.67
C89: Cost per lot | D89: $ | E89: 3258 | F89: 2981 | G89: 3097 | H89: 3175 | I89: 2914 | J89: 2533 | K89: 2517
B90: EMBEDDED GENERATION | C90: Underground connections | D90: 0's | E90: 0 | F90: 0 | G90: 0 | H90: 0 | I90: 0 | J90: 0 | K90: 0
C91: Overhead connections | D91: 0's | E91: 0 | F91: 0 | G91: 0 | H91: 0 | I91: 0 | J91: 0 | K91: 0
C92: Distribution substations installed | D92: MVA added | E92: 0 | F92: 0 | G92: 0 | H92: 0 | I92: 0 | J92: 0 | K92: 0
C93: Distribution substations installed | D93: 0's | E93: 0 | F93: 0 | G93: 0 | H93: 0 | I93: 0 | J93: 0 | K93: 0
C94: Distribution substations installed | D94: total spend $0s | E94: 0 | F94: 0 | G94: 0 | H94: 0 | I94: 0 | J94: 0 | K94: 0
C95: Augmentation HV | D95: net circuit KM added | E95: 0 | F95: 0 | G95: 0 | H95: 0 | I95: 0 | J95: 0 | K95: 0
C96: Augmentation HV | D96: total spend $0s | E96: 0 | F96: 0 | G96: 0 | H96: 0 | I96: 0 | J96: 0 | K96: 0
C97: Augmentation LV | D97: net circuit KM added | E97: 0 | F97: 0 | G97: 0 | H97: 0 | I97: 0 | J97: 0 | K97: 0
C98: Augmentation LV | D98: total spend $0s | E98: 0 | F98: 0 | G98: 0 | H98: 0 | I98: 0 | J98: 0 | K98: 0
B102: 2.5.2 - COST METRICS BY CONNECTION CLASSIFICATION
B103: EXPENDITURE - ALL SERVICE CLASSIFICATIONS (including capcons)
B104: CONNECTION SUBCATEGORY | C104: CONNECTION CLASSICIATION | E104: =CONCATENATE("EXPENDITURE ($, real ", dms_DollarReal, ")") -> EXPENDITURE ($, real June 2025)
E105: =CRCP_y4 -> 2023-24 | F105: =CRCP_y5 -> 2024-25 | G105: =FRCP_y1 -> 2025-26 | H105: =FRCP_y2 -> 2026-27 | I105: =FRCP_y3 -> 2027-28 | J105: =FRCP_y4 -> 2028-29 | K105: =FRCP_y5 -> 2029-30
B106: RESIDENTIAL | C106: Simple connection LV | E106: 16661417 | F106: 14034517 | G106: 15967440 | H106: 16447012 | I106: 16849273 | J106: 17119137 | K106: 16854025
C107: Complex connection LV | E107: 4109776 | F107: 3461814 | G107: 3938597 | H107: 4056890 | I107: 4156113 | J107: 4222679 | K107: 4157285
C108: Complex connection HV | E108: 0 | F108: 0 | G108: 0 | H108: 0 | I108: 0 | J108: 0 | K108: 0
B109: COMMERCIAL/INDUSTRIAL | C109: Simple connection LV | E109: 3227615 | F109: 3294139 | G109: 3201995 | H109: 3000414 | I109: 3103583 | J109: 3229706 | K109: 3088887
C110: Complex connection HV (customer connected at LV, minor HV works) | E110: 34704221 | F110: 35419510 | G110: 34428749 | H110: 32261291 | I110: 33370593 | J110: 34726705 | K110: 33212581
C111: Complex connection HV (customer connected at LV, upstream asset works) | E111: 28301865 | F111: 28885194 | G111: 28077213 | H111: 26309615 | I111: 27214269 | J111: 28320201 | K111: 27085407
C112: Complex connection HV (customer connected at HV) | E112: 11971315 | F112: 12218056 | G112: 11876291 | H112: 11128620 | I112: 11511277 | J112: 11979071 | K112: 11456770
C113: Complex connection sub-transmission | E113: 4585345 | F113: 4679853 | G113: 4548948 | H113: 4262569 | I113: 4409137 | J113: 4588315 | K113: 4388260
B114: SUBDIVISION | C114: Complex connection LV | E114: 2183105 | F114: 1902542 | G114: 1852883 | H114: 1903272 | I114: 1749542 | J114: 1523336 | K114: 1518867
C115: Complex connection HV (no upstream asset works) | E115: 50385251 | F115: 41311429 | G115: 32377612 | H115: 32528602 | I115: 32067952 | J115: 31390130 | K115: 31376740
C116: Complex connection HV (with upstream asset works) | E116: 3481548 | F116: 3034114 | G116: 2954920 | H116: 3035279 | I116: 2790114 | J116: 2429368 | K116: 2422242
B117: EMBEDDED GENERATION | C117: Simple connection LV | E117: 0 | F117: 0 | G117: 0 | H117: 0 | I117: 0 | J117: 0 | K117: 0
C118: Complex connection HV (small capacity) | E118: 0 | F118: 0 | G118: 847393 | H118: 877904 | I118: 991329 | J118: 978986 | K118: 784610
C119: Complex connection HV (large capacity) | E119: 0 | F119: 0 | G119: 10267822 | H119: 10637520 | I119: 12011885 | J119: 11862323 | K119: 9507079
B121: EXPENDITURE - STANDARD CONTROL SERVICES (excluding capcons)
E122: =CONCATENATE("EXPENDITURE ($, real ", dms_DollarReal, ")") -> EXPENDITURE ($, real June 2025)
E123: =CRCP_y4 -> 2023-24 | F123: =CRCP_y5 -> 2024-25 | G123: =FRCP_y1 -> 2025-26 | H123: =FRCP_y2 -> 2026-27 | I123: =FRCP_y3 -> 2027-28 | J123: =FRCP_y4 -> 2028-29 | K123: =FRCP_y5 -> 2029-30
B124: RESIDENTIAL | C124: Simple connection LV | E124: 14127555 | F124: 12036637 | G124: 13261822 | H124: 13775739 | I124: 14141347 | J124: 14358445 | K124: 14194676
C125: Complex connection LV | E125: 1931279 | F125: 1744129 | G125: 1612431 | H125: 1760254 | I125: 1827964 | J125: 1849164 | K125: 1870901
C126: Complex connection HV | E126: 0 | F126: 0 | G126: 0 | H126: 0 | I126: 0 | J126: 0 | K126: 0
B127: COMMERCIAL/INDUSTRIAL | C127: Simple connection LV | E127: 1719234 | F127: 1853113 | G127: 1534709 | H127: 1502901 | I127: 1570812 | J127: 1629201 | K127: 1591163
C128: Complex connection HV (customer connected at LV, minor HV works) | E128: 13331136 | F128: 15000799 | G128: 10804046 | H128: 11042202 | I128: 11651913 | J128: 12048249 | K128: 11990491
C129: Complex connection HV (customer connected at LV, upstream asset works) | E129: 18212631 | F129: 19246476 | G129: 16925096 | H129: 16293076 | I129: 16961896 | J129: 17614763 | K129: 17067452
C130: Complex connection HV (customer connected at HV) | E130: 2138625 | F130: 2824426 | G130: 1007743 | H130: 1366776 | I130: 1519595 | J130: 1545845 | K130: 1693545
C131: Complex connection sub-transmission | E131: -4411150 | F131: -3914920 | G131: -5395312 | H131: -4669104 | I131: -4732828 | J131: -4957644 | K131: -4544677
B132: SUBDIVISION | C132: Complex connection LV | E132: -724128 | F132: -555174 | G132: -1138235 | H132: -1169190 | I132: -1074752 | J132: -935793 | K132: -933048
C133: Complex connection HV (no upstream asset works) | E133: 17068024 | F133: 10421803 | G133: 11082002 | H133: 11018617 | I133: 11211995 | J133: 11496539 | K133: 11502160
C134: Complex connection HV (with upstream asset works) | E134: -247955 | F134: -118733 | G134: -882195 | H134: -906186 | I134: -832992 | J134: -725291 | K134: -723163
B135: EMBEDDED GENERATION | C135: Simple connection LV | E135: 0 | F135: 0 | G135: 0 | H135: 0 | I135: 0 | J135: 0 | K135: 0
C136: Complex connection HV (small capacity) | E136: 0 | F136: 0 | G136: -50876 | H136: -52642 | I136: -59498 | J136: -58748 | K136: -47077
C137: Complex connection HV (large capacity) | E137: 0 | F137: 0 | G137: -616465 | H137: -637855 | I137: -720934 | J137: -711850 | K137: -570425
B139: EXPENDITURE - STANDARD CONTROL SERVICES - CAPITAL CONTRIBUTIONS
E140: =CONCATENATE("EXPENDITURE ($, real ", dms_DollarReal, ")") -> EXPENDITURE ($, real June 2025)
E141: =CRCP_y4 -> 2023-24 | F141: =CRCP_y5 -> 2024-25 | G141: =FRCP_y1 -> 2025-26 | H141: =FRCP_y2 -> 2026-27 | I141: =FRCP_y3 -> 2027-28 | J141: =FRCP_y4 -> 2028-29 | K141: =FRCP_y5 -> 2029-30
B142: RESIDENTIAL | C142: Simple connection LV | E142: 2533862 | F142: 1997880 | G142: 2705618 | H142: 2671272 | I142: 2707926 | J142: 2760692 | K142: 2659349
C143: Complex connection LV | E143: 2178497 | F143: 1717684 | G143: 2326165 | H143: 2296636 | I143: 2328149 | J143: 2373515 | K143: 2286385
C144: Complex connection HV | E144: 0 | F144: 0 | G144: 0 | H144: 0 | I144: 0 | J144: 0 | K144: 0
B145: COMMERCIAL/INDUSTRIAL | C145: Simple connection LV | E145: 1508381 | F145: 1441027 | G145: 1667286 | H145: 1497512 | I145: 1532771 | J145: 1600506 | K145: 1497724
C146: Complex connection HV (customer connected at LV, minor HV works) | E146: 21373086 | F146: 20418711 | G146: 23624703 | H146: 21219089 | I146: 21718680 | J146: 22678456 | K146: 21222090
C147: Complex connection HV (customer connected at LV, upstream asset works) | E147: 10089233 | F147: 9638718 | G147: 11152117 | H147: 10016539 | I147: 10252373 | J147: 10705438 | K147: 10017955
C148: Complex connection HV (customer connected at HV) | E148: 9832691 | F148: 9393631 | G148: 10868548 | H148: 9761844 | I148: 9991682 | J148: 10433226 | K148: 9763225
C149: Complex connection sub-transmission | E149: 8996495 | F149: 8594774 | G149: 9944260 | H149: 8931674 | I149: 9141965 | J149: 9545960 | K149: 8932937
B150: SUBDIVISION | C150: Complex connection LV | E150: 2907233 | F150: 2457716 | G150: 2991119 | H150: 3072462 | I150: 2824294 | J150: 2459128 | K150: 2451915
C151: Complex connection HV (no upstream asset works) | E151: 33317226 | F151: 30889626 | G151: 21295611 | H151: 21509985 | I151: 20855957 | J151: 19893590 | K151: 19874580
C152: Complex connection HV (with upstream asset works) | E152: 3729503 | F152: 3152847 | G152: 3837115 | H152: 3941465 | I152: 3623107 | J152: 3154659 | K152: 3145405
B153: EMBEDDED GENERATION | C153: Simple connection LV | E153: 0 | F153: 0 | G153: 0 | H153: 0 | I153: 0 | J153: 0 | K153: 0
C154: Complex connection HV (small capacity) | E154: 0 | F154: 0 | G154: 898270 | H154: 930546 | I154: 1050827 | J154: 1037734 | K154: 831687
C155: Complex connection HV (large capacity) | E155: 0 | F155: 0 | G155: 10884287 | H155: 11275374 | I155: 12732819 | J155: 12574173 | K155: 10077504
B159: 2.5.3 - VOLUMES BY CONNECTION CLASSIFICATION
B160: NEW CONNECTIONS - ALL
E161: VOLUMES
E162: =CRCP_y4 -> 2023-24 | F162: =CRCP_y5 -> 2024-25 | G162: =FRCP_y1 -> 2025-26 | H162: =FRCP_y2 -> 2026-27 | I162: =FRCP_y3 -> 2027-28 | J162: =FRCP_y4 -> 2028-29 | K162: =FRCP_y5 -> 2029-30
B163: RESIDENTIAL | C163: Simple connection LV | E163: 6079 | F163: 5587 | G163: 6022 | H163: 6504 | I163: 6712 | J163: 6786 | K163: 6772
C164: Complex connection LV | E164: 151 | F164: 139 | G164: 150 | H164: 162 | I164: 167 | J164: 169 | K164: 168
C165: Complex connection HV | E165: 0 | F165: 0 | G165: 0 | H165: 0 | I165: 0 | J165: 0 | K165: 0
B166: COMMERCIAL/INDUSTRIAL | C166: Simple connection LV | E166: 396 | F166: 440 | G166: 406 | H166: 399 | I166: 415 | J166: 430 | K166: 417
C167: Complex connection HV (customer connected at LV, minor HV works) | E167: 300 | F167: 334 | G167: 308 | H167: 302 | I167: 315 | J167: 326 | K167: 316
C168: Complex connection HV (customer connected at LV, upstream asset works) | E168: 55 | F168: 62 | G168: 57 | H168: 56 | I168: 58 | J168: 60 | K168: 58
C169: Complex connection HV (customer connected at HV) | E169: 3 | F169: 4 | G169: 3 | H169: 3 | I169: 3 | J169: 4 | K169: 3
C170: Complex connection sub-transmission | E170: 0 | F170: 1 | G170: 0 | H170: 0 | I170: 0 | J170: 0 | K170: 1
B171: SUBDIVISION | C171: Complex connection LV | E171: 73 | F171: 67 | G171: 69 | H171: 71 | I171: 65 | J171: 57 | K171: 56
C172: Complex connection HV (no upstream asset works) | E172: 108 | F172: 99 | G172: 103 | H172: 106 | I172: 97 | J172: 84 | K172: 84
C173: Complex connection HV (with upstream asset works) | E173: 38 | F173: 34 | G173: 36 | H173: 37 | I173: 34 | J173: 29 | K173: 29
B174: EMBEDDED GENERATION | C174: Simple connection LV | E174: 0 | F174: 0 | G174: 0 | H174: 0 | I174: 0 | J174: 0 | K174: 0
C175: Complex connection HV (small capacity) | E175: 110 | F175: 157 | G175: 199 | H175: 197 | I175: 213 | J175: 212 | K175: 227
C176: Complex connection HV (large capacity) | E176: 14 | F176: 19 | G176: 24 | H176: 24 | I176: 26 | J176: 26 | K176: 28
B178: NEW CONNECTIONS - STANDARD CONTROL SERVICES
E179: VOLUMES
E180: =CRCP_y4 -> 2023-24 | F180: =CRCP_y5 -> 2024-25 | G180: =FRCP_y1 -> 2025-26 | H180: =FRCP_y2 -> 2026-27 | I180: =FRCP_y3 -> 2027-28 | J180: =FRCP_y4 -> 2028-29 | K180: =FRCP_y5 -> 2029-30
B181: RESIDENTIAL | C181: Simple connection LV | E181: 6079 | F181: 5587 | G181: 6022 | H181: 6504 | I181: 6712 | J181: 6786 | K181: 6772
C182: Complex connection LV | E182: 151 | F182: 139 | G182: 150 | H182: 162 | I182: 167 | J182: 169 | K182: 168
C183: Complex connection HV | E183: 0 | F183: 0 | G183: 0 | H183: 0 | I183: 0 | J183: 0 | K183: 0
B184: COMMERCIAL/INDUSTRIAL | C184: Simple connection LV | E184: 396 | F184: 440 | G184: 406 | H184: 399 | I184: 415 | J184: 430 | K184: 417
C185: Complex connection HV (customer connected at LV, minor HV works) | E185: 300 | F185: 334 | G185: 308 | H185: 302 | I185: 315 | J185: 326 | K185: 316
C186: Complex connection HV (customer connected at LV, upstream asset works) | E186: 55 | F186: 62 | G186: 57 | H186: 56 | I186: 58 | J186: 60 | K186: 58
C187: Complex connection HV (customer connected at HV) | E187: 3 | F187: 4 | G187: 3 | H187: 3 | I187: 3 | J187: 4 | K187: 3
C188: Complex connection sub-transmission | E188: 0 | F188: 1 | G188: 0 | H188: 0 | I188: 0 | J188: 0 | K188: 1
B189: SUBDIVISION | C189: Complex connection LV | E189: 73 | F189: 67 | G189: 69 | H189: 71 | I189: 65 | J189: 57 | K189: 56
C190: Complex connection HV (no upstream asset works) | E190: 108 | F190: 99 | G190: 103 | H190: 106 | I190: 97 | J190: 84 | K190: 84
C191: Complex connection HV (with upstream asset works) | E191: 38 | F191: 34 | G191: 36 | H191: 37 | I191: 34 | J191: 29 | K191: 29
B192: EMBEDDED GENERATION | C192: Simple connection LV | E192: 0 | F192: 0 | G192: 0 | H192: 0 | I192: 0 | J192: 0 | K192: 0
C193: Complex connection HV (small capacity) | E193: 110 | F193: 157 | G193: 199 | H193: 197 | I193: 213 | J193: 212 | K193: 227
C194: Complex connection HV (large capacity) | E194: 14 | F194: 19 | G194: 24 | H194: 24 | I194: 26 | J194: 26 | K194: 28
B196: EXISTING CONNECTIONS
E197: VOLUMES
E198: =CRCP_y4 -> 2023-24 | F198: =CRCP_y5 -> 2024-25 | G198: =FRCP_y1 -> 2025-26 | H198: =FRCP_y2 -> 2026-27 | I198: =FRCP_y3 -> 2027-28 | J198: =FRCP_y4 -> 2028-29 | K198: =FRCP_y5 -> 2029-30
B199: RESIDENTIAL | C199: Simple connection LV | E199: 831552 | F199: 837139 | G199: 843161 | H199: 849665 | I199: 856377 | J199: 863163 | K199: 869935
C200: Complex connection LV | E200: 11988 | F200: 12127 | G200: 12277 | H200: 12439 | I200: 12606 | J200: 12775 | K200: 12943
C201: Complex connection HV | E201: 0 | F201: 0 | G201: 0 | H201: 0 | I201: 0 | J201: 0 | K201: 0
B202: COMMERCIAL/INDUSTRIAL | C202: Simple connection LV | E202: 54169 | F202: 54609 | G202: 55015 | H202: 55414 | I202: 55829 | J202: 56259 | K202: 56676
C203: Complex connection HV (customer connected at LV, minor HV works) | E203: 23817 | F203: 24151 | G203: 24459 | H203: 24761 | I203: 25076 | J203: 25402 | K203: 25718
C204: Complex connection HV (customer connected at LV, upstream asset works) | E204: 4366 | F204: 4428 | G204: 4485 | H204: 4541 | I204: 4599 | J204: 4659 | K204: 4717
C205: Complex connection HV (customer connected at HV) | E205: 238 | F205: 242 | G205: 245 | H205: 248 | I205: 251 | J205: 255 | K205: 258
C206: Complex connection sub-transmission | E206: 0 | F206: 1 | G206: 1 | H206: 1 | I206: 1 | J206: 1 | K206: 2
B207: SUBDIVISION | C207: Complex connection LV | E207: 5796 | F207: 5863 | G207: 5932 | H207: 6003 | I207: 6068 | J207: 6125 | K207: 6181
C208: Complex connection HV (no upstream asset works) | E208: 8574 | F208: 8673 | G208: 8776 | H208: 8882 | I208: 8979 | J208: 9063 | K208: 9147
C209: Complex connection HV (with upstream asset works) | E209: 3017 | F209: 3051 | G209: 3087 | H209: 3124 | I209: 3158 | J209: 3187 | K209: 3216
B210: EMBEDDED GENERATION | C210: Simple connection LV | E210: 0 | F210: 0 | G210: 0 | H210: 0 | I210: 0 | J210: 0 | K210: 0
C211: Complex connection HV (small capacity) | E211: 1556 | F211: 1713 | G211: 1912 | H211: 2109 | I211: 2322 | J211: 2534 | K211: 2761
C212: Complex connection HV (large capacity) | E212: 198 | F212: 217 | G212: 241 | H212: 265 | I212: 291 | J212: 317 | K212: 345

Sheet 2.6 Non-network
B1: =INDEX(dms_Worksheet_List,MATCH(dms_Model,dms_Model_List)) -> REGULATORY REPORTING STATEMENT
B2: =INDEX(dms_TradingNameFull_List,MATCH(dms_TradingName,dms_TradingName_List)) -> SA Power Networks
B3: =CONCATENATE("REGULATORY PERIOD FROM ", FRCP_y1," TO ",dms_MultiYear_FinalYear_Result) -> REGULATORY PERIOD FROM 2025-26 TO 2029-30
B4: 2.6 NON-NETWORK EXPENDITURE
B5: TEMPLATE DATE - OCTOBER 2023 - FINAL RIN
B7: There are THREE tables on this worksheet - each has been 'grouped' (and sub-grouped) for easy navigation. See the Instructions sheet on how to group or ungroup tables.
B9: 2.6.1 - NON-NETWORK EXPENDITURE
E10: =CONCATENATE("EXPENDITURE ($, real ", dms_DollarReal, ")") -> EXPENDITURE ($, real June 2025)
B11: SERVICE SUBCATEGORY | C11: ASSET CATEGORY | E11: =CRCP_y4 -> 2023-24 | F11: =CRCP_y5 -> 2024-25 | G11: =FRCP_y1 -> 2025-26 | H11: =FRCP_y2 -> 2026-27 | I11: =FRCP_y3 -> 2027-28 | J11: =FRCP_y4 -> 2028-29 | K11: =FRCP_y5 -> 2029-30
B12: OPEX
B13: IT & COMMUNICATIONS | C13: Total IT and communications | E13: 39924280 | F13: 41928893 | G13: 69727456 | H13: 76714621 | I13: 78807581 | J13: 79441956 | K13: 81467905
B14: MOTOR VEHICLES | C14: Car | E14: 439206 | F14: 556791 | G14: 566648 | H14: 576504 | I14: 579774 | J14: 595902 | K14: 611588
C15: Light commercial vehicle | E15: 3211691 | F15: 4071536 | G15: 4143611 | H15: 4215685 | I15: 4239597 | J15: 4357536 | K15: 4472234
C16: Elevated work platform (LCV) | E16: 0 | F16: 0 | G16: 0 | H16: 0 | I16: 0 | J16: 0 | K16: 0
C17: Elevated work platform (HCV) | E17: 5311643 | F17: 6733695 | G17: 6852894 | H17: 6972094 | I17: 7011642 | J17: 7206694 | K17: 7396387
C18: Heavy commercial vehicle | E18: 947037 | F18: 1200581 | G18: 1221834 | H18: 1243087 | I18: 1250138 | J18: 1284914 | K18: 1318736
B19: BUILDINGS AND PROPERTY | C19: Total buildings and property expenditure | E19: 6409143 | F19: 6477861 | G19: 6481789 | H19: 6502494 | I19: 6519817 | J19: 6578712 | K19: 6662580
B20: OTHER | C20: Other expenditure
B21: OTHER - DNSP nominated | C21: TEC Vehicles | E21: 1345067 | F21: 1705173 | G21: 1735358 | H21: 1765543 | I21: 1775558 | J21: 1825568 | K21: 1873604
C22: Cranes | E22: 988213 | F22: 1252780 | G22: 1274957 | H22: 1297134 | I22: 1304492 | J22: 1341234 | K22: 1376525
C23: Trailers | E23: 1180365 | F23: 1496377 | G23: 1522865 | H23: 1549354 | I23: 1558143 | J23: 1602029 | K23: 1644183
C24: Other Commercial Vehicles | E24: 301954 | F24: 382794 | G24: 389570 | H24: 396346 | I24: 398595 | J24: 409821 | K24: 420605
C25: Network Telephony | E25: 1257296 | F25: 1288853 | G25: 1274964 | H25: 1279037 | I25: 1282444 | J25: 1294029 | K25: 1310526
B32: CAPEX
B33: IT & COMMUNICATIONS | C33: Total IT and communications | E33: 47905299 | F33: 59715199 | G33: 55046668 | H33: 62743518 | I33: 63044261 | J33: 60503760 | K33: 59479099
B34: MOTOR VEHICLES | C34: Car | E34: 1068558.717 | F34: 311937.4992 | G34: 963085.5838 | H34: 2255639.238 | I34: 2547393.626 | J34: 1093483.091 | K34: 1943051.044
C35: Light commercial vehicle | E35: 6433346.803 | F35: 7546928.779 | G35: 10735379.18 | H35: 10120883.16 | I35: 7980045.52 | J35: 8592915.424 | K35: 8035922.628
C36: Elevated work platform (LCV) | E36: 0 | F36: 0 | G36: 0 | H36: 0 | I36: 0 | J36: 0 | K36: 0
C37: Elevated work platform (HCV) | E37: 10030554.87 | F37: 9848004.272 | G37: 9446182.805 | H37: 6728875.872 | I37: 12662994.02 | J37: 18746006.86 | K37: 8758916.193
C38: Heavy commercial vehicle | E38: 1388796.023 | F38: 1782637.695 | G38: 4993802.833 | H38: 715317.0004 | I38: 2488528.778 | J38: 3459763.477 | K38: 767508.6254
B39: BUILDINGS AND PROPERTY | C39: Total buildings and property expenditure | E39: 18878329 | F39: 10606684 | G39: 23942086 | H39: 34512600 | I39: 17726826 | J39: 17754768 | K39: 21855815
B40: OTHER | C40: Other expenditure
B41: OTHER - DNSP nominated | C41: TEC Vehicles | E41: 1524959.129 | F41: 1179164.997 | G41: 1089774 | H41: 1150317 | I41: 423800.9996 | J41: 968687.9998 | K41: 1089774
C42: Cranes | E42: 2051682.655 | F42: 2786173.792 | G42: 659645.0004 | H42: 1319290 | I42: 3433225 | J42: 3882125 | K42: 5817160
C43: Trailers | E43: 1140055.968 | F43: 955971.5973 | G43: 767924.9994 | H43: 2702279 | I43: 2438690.967 | J43: 1685192 | K43: 3101482
C44: Other Commercial Vehicles | E44: 526001.6766 | F44: 136978.5996 | G44: 0 | H44: 105811.9998 | I44: 238404.0004 | J44: 752927.9998 | K44: 249642.0004
C45: ADMS Hardware Upgrade | E45: 0 | F45: 0 | G45: 577333 | H45: 4161821 | I45: 405041 | J45: 0 | K45: 0
C46: ADMS Software Upgrade | E46: 0 | F46: 0 | G46: 1674265 | H46: 9132885 | I46: 11398998 | J46: 0 | K46: 0
C47: Additional ADMS Functions | E47: 0 | F47: 0 | G47: 1004559 | H47: 1005773 | I47: 1006815 | J47: 1008144 | K47: 1009644
C48: ADMS/OMS Replacement | E48: 6635759 | F48: 1107228 | G48: 0 | H48: 0 | I48: 0 | J48: 0 | K48: 0
C49: Other Network Strategic | E49: 445224 | F49: 2032207 | G49: 3796558 | H49: 3797557 | I49: 4157462 | J49: 3799506 | K49: 3800740
C50: Non-Network Telecommuniations | E50: 1310257 | F50: 1081704 | G50: 741342 | H50: 2505022 | I50: 1057602 | J50: 499106 | K50: 2117805
C51: Non-Network Plant and Tools | E51: 3747786 | F51: 3862700 | G51: 4870205 | H51: 4870205 | I51: 4870205 | J51: 4870205 | K51: 4870205
B55: 2.6.2 - ANNUAL DESCRIPTOR METRICS
B56: IT & COMMUNICATIONS
E57: VOLUMES
E58: =CRCP_y4 -> 2023-24 | F58: =CRCP_y5 -> 2024-25 | G58: =FRCP_y1 -> 2025-26 | H58: =FRCP_y2 -> 2026-27 | I58: =FRCP_y3 -> 2027-28 | J58: =FRCP_y4 -> 2028-29 | K58: =FRCP_y5 -> 2029-30
B59: Employee numbers | E59: 1989 | F59: 2001 | G59: 2208 | H59: 2206 | I59: 2300 | J59: 2334 | K59: 2414
B60: User numbers | E60: 2984 | F60: 3002 | G60: 3312 | H60: 3309 | I60: 3450 | J60: 3502 | K60: 3621
B61: Number of devices | E61: 6266 | F61: 6304 | G61: 6956 | H61: 6949 | I61: 7244 | J61: 7353 | K61: 7605
B63: MOTOR VEHICLES
E64: VOLUMES or PER CENT
B65: ASSET CATEGORY | C65: DESCRIPTOR METRIC | D65: UNITS | E65: =CRCP_y4 -> 2023-24 | F65: =CRCP_y5 -> 2024-25 | G65: =FRCP_y1 -> 2025-26 | H65: =FRCP_y2 -> 2026-27 | I65: =FRCP_y3 -> 2027-28 | J65: =FRCP_y4 -> 2028-29 | K65: =FRCP_y5 -> 2029-30
B66: CAR | C66: Average kilometres travelled | D66: 0's | E66: 11393 | F66: 11393 | G66: 11393 | H66: 11393 | I66: 11393 | J66: 11393 | K66: 11393
C67: Number purchased | D67: 0's | E67: 21 | F67: 6 | G67: 13 | H67: 38 | I67: 43 | J67: 9 | K67: 23
C68: Number leased | D68: 0's | E68: 0 | F68: 0 | G68: 0 | H68: 0 | I68: 0 | J68: 0 | K68: 0
C69: Number in fleet | D69: 0's | E69: 136 | F69: 136 | G69: 149 | H69: 149 | I69: 149 | J69: 149 | K69: 150
C70: Proportion of total fleet expenditure allocated as regulatory expenditure | D70: % | E70: 87% | F70: 87% | G70: 87% | H70: 87% | I70: 87% | J70: 87% | K70: 87%
B71: LIGHT COMMERCIAL VEHICLE | C71: Average kilometres travelled | D71: 0's | E71: 18734 | F71: 18734 | G71: 18734 | H71: 18734 | I71: 18734 | J71: 18734 | K71: 18734
C72: Number purchased | D72: 0's | E72: 89 | F72: 105 | G72: 132 | H72: 134 | I72: 108 | J72: 122 | K72: 111
C73: Number leased | D73: 0's | E73: 0 | F73: 0 | G73: 0 | H73: 0 | I73: 0 | J73: 0 | K73: 0
C74: Number in fleet | D74: 0's | E74: 517 | F74: 517 | G74: 595 | H74: 597 | I74: 611 | J74: 620 | K74: 634
C75: Proportion of total fleet expenditure allocated as regulatory expenditure | D75: % | E75: 87% | F75: 87% | G75: 87% | H75: 87% | I75: 87% | J75: 87% | K75: 87%
B76: ELEVATED WORK PLATFORM (LCV) | C76: Average kilometres travelled | D76: 0's | E76: 0 | F76: 0 | G76: 0 | H76: 0 | I76: 0 | J76: 0 | K76: 0
C77: Number purchased | D77: 0's | E77: 0 | F77: 0 | G77: 0 | H77: 0 | I77: 0 | J77: 0 | K77: 0
C78: Number leased | D78: 0's | E78: 0 | F78: 0 | G78: 0 | H78: 0 | I78: 0 | J78: 0 | K78: 0
C79: Number in fleet | D79: 0's | E79: 0 | F79: 0 | G79: 0 | H79: 0 | I79: 0 | J79: 0 | K79: 0
C80: Proportion of total fleet expenditure allocated as regulatory expenditure | D80: % | E80: 0 | F80: 0 | G80: 0 | H80: 0 | I80: 0 | J80: 0 | K80: 0
B81: ELEVATED WORK PLATFORM (HCV) | C81: Average kilometres travelled | D81: 0's | E81: 14988 | F81: 14988 | G81: 14988 | H81: 14988 | I81: 14988 | J81: 14988 | K81: 14988
C82: Number purchased | D82: 0's | E82: 19 | F82: 18 | G82: 15 | H82: 13 | I82: 21 | J82: 38 | K82: 17
C83: Number leased | D83: 0's | E83: 0 | F83: 0 | G83: 0 | H83: 0 | I83: 0 | J83: 0 | K83: 0
C84: Number in fleet | D84: 0's | E84: 176 | F84: 176 | G84: 175 | H84: 176 | I84: 186 | J84: 193 | K84: 197
C85: Proportion of total fleet expenditure allocated as regulatory expenditure | D85: % | E85: 87% | F85: 87% | G85: 87% | H85: 87% | I85: 87% | J85: 87% | K85: 87%
B86: HEAVY COMMERCIAL VEHICLE | C86: Average kilometres travelled | D86: 0's | E86: 8486 | F86: 8486 | G86: 8486 | H86: 8486 | I86: 8486 | J86: 8486 | K86: 8486
C87: Number purchased | D87: 0's | E87: 6 | F87: 7 | G87: 20 | H87: 3 | I87: 10 | J87: 14 | K87: 3
C88: Number leased | D88: 0's | E88: 0 | F88: 0 | G88: 0 | H88: 0 | I88: 0 | J88: 0 | K88: 0
C89: Number in fleet | D89: 0's | E89: 72 | F89: 72 | G89: 87 | H89: 87 | I89: 90 | J89: 93 | K89: 96
C90: Proportion of total fleet expenditure allocated as regulatory expenditure | D90: % | E90: 87% | F90: 87% | G90: 87% | H90: 87% | I90: 87% | J90: 87% | K90: 87%
B93: Table 2.6.4 intentionally omitted
B95: 2.6.5 - INFORMATION & COMMUNICATIONS TECHNOLOGY - CAPEX
E96: =CONCATENATE("EXPENDITURE ($, real ", dms_DollarReal, ")") -> EXPENDITURE ($, real June 2025)
E97: =CRCP_y4 -> 2023-24 | F97: =CRCP_y5 -> 2024-25 | G97: =FRCP_y1 -> 2025-26 | H97: =FRCP_y2 -> 2026-27 | I97: =FRCP_y3 -> 2027-28 | J97: =FRCP_y4 -> 2028-29 | K97: =FRCP_y5 -> 2029-30
B98: RECURRENT
B99: ICT001 - IT Applications Refresh | E99: 13119175 | F99: 17185263 | G99: 13516577 | H99: 14573126 | I99: 13992379 | J99: 14629332 | K99: 15960375
B100: ICT002 - Client Device Refresh | E100: 5685439 | F100: 6308059 | G100: 7253090 | H100: 7131630 | I100: 7909855 | J100: 7777813 | K100: 7145804
B101: ICT003 - Cyber Security Refresh | E101: 3723676 | F101: 3954821 | G101: 0 | H101: 0 | I101: 0 | J101: 0 | K101: 0
B102: ICT015 - Data Mgmt & Analytics | E102: 2674172 | F102: 2444882 | G102: 1942977 | H102: 3421770 | I102: 3091126 | J102: 2557524 | K102: 2791679
B103: ICT004 - IT Infrastructure Refresh | E103: 5077270 | F103: 6716247 | G103: 10895392 | H103: 5940466 | I103: 4926352 | J103: 9821277 | K103: 7916020
B104: ICT040-045 Network Uplift - IT Costs | E104: 0 | F104: 0 | G104: 1140331 | H104: 13853 | I104: 444833 | J104: 178336 | K104: 372146
B109: NON-RECURRENT
B110: COMPLIANCE | E110: 2560211 | F110: 2612508 | G110: 68950 | H110: 1188446 | I110: 965855 | J110: 1046563 | K110: 2091260
B111: MAJOR UPGRADES | E111: 8833043 | F111: 10480599 | G111: 14971101 | H111: 21803792 | I111: 22670914 | J111: 17307792 | K111: 17057984
B112: NEW OR EXPANDED CAPABILITY | E112: 6232312 | F112: 10012820 | G112: 5258249 | H112: 8670436 | I112: 9042946 | J112: 7185124 | K112: 6143829

Sheet 2.10 Overheads
B1: =INDEX(dms_Worksheet_List,MATCH(dms_Model,dms_Model_List)) -> REGULATORY REPORTING STATEMENT
B2: =INDEX(dms_TradingNameFull_List,MATCH(dms_TradingName,dms_TradingName_List)) -> SA Power Networks
B3: =CONCATENATE("REGULATORY PERIOD FROM ", FRCP_y1," TO ",dms_MultiYear_FinalYear_Result) -> REGULATORY PERIOD FROM 2025-26 TO 2029-30
B4: 2.10 OVERHEADS
B5: TEMPLATE DATE - OCTOBER 2023 - FINAL RIN
B7: There are TWO tables on this worksheet. Each table has been 'grouped' (and sub-grouped) for easy navigation. See the Instructions sheet on how to group or ungroup data.
B9: 2.10.1 - NETWORK OVERHEADS EXPENDITURE
D10: =CONCATENATE("EXPENDITURE ($, real ", dms_DollarReal, ")") -> EXPENDITURE ($, real June 2025)
D11: =CRCP_y4 -> 2023-24 | E11: =CRCP_y5 -> 2024-25 | F11: =FRCP_y1 -> 2025-26 | G11: =FRCP_y2 -> 2026-27 | H11: =FRCP_y3 -> 2027-28 | I11: =FRCP_y4 -> 2028-29 | J11: =FRCP_y5 -> 2029-30
B12: OPEX
B13: Standard Control Services | C13: Total | D13: 98397895 | E13: 102817373 | F13: 113038531 | G13: 107544596 | H13: 108690569 | I13: 110080648 | J13: 111832160
B14: Alternative Control Services | C14: Total | D14: 3627912 | E14: 3647457 | F14: 2446142 | G14: 2446982 | H14: 2454902 | I14: 2458372 | J14: 2471018
B15: CAPEX
B16: Standard Control Services | C16: Total | D16: 6551264 | E16: 6364032 | F16: 8372654 | G16: 8431900 | H16: 8863296 | I16: 8454242 | J16: 8607092
B17: Alternative Control Services | C17: Total | D17: 233196 | E17: 220410 | F17: 198324 | G17: 184712 | H17: 180390 | I17: 162656 | J17: 145326
B18: OTHER DISTRIBUTION SERVICES
B19: Negotiated Services | C19: Total | D19: 0 | E19: 0 | F19: 0 | G19: 0 | H19: 0 | I19: 0 | J19: 0
B20: Unregulated Distribution Services | C20: Total | D20: 0 | E20: 0 | F20: 0 | G20: 0 | H20: 0 | I20: 0 | J20: 0
B24: 2.10.2 - CORPORATE OVERHEADS EXPENDITURE
D25: =CONCATENATE("EXPENDITURE ($, real ", dms_DollarReal, ")") -> EXPENDITURE ($, real June 2025)
D26: =CRCP_y4 -> 2023-24 | E26: =CRCP_y5 -> 2024-25 | F26: =FRCP_y1 -> 2025-26 | G26: =FRCP_y2 -> 2026-27 | H26: =FRCP_y3 -> 2027-28 | I26: =FRCP_y4 -> 2028-29 | J26: =FRCP_y5 -> 2029-30
B27: OPEX
B28: Standard Control Services | C28: Total | D28: 62364547 | E28: 62914460 | F28: 66025967 | G28: 65937171 | H28: 66312251 | I28: 66664515 | J28: 67529422
B29: Alternative Control Services | C29: Total | D29: 10629459 | E29: 10885983 | F29: 11817481 | G29: 12382788 | H29: 12568516 | I29: 12578084 | J29: 12780597
B30: CAPEX
B31: Standard Control Services | C31: Total | D31: -5877666 | E31: -5854775 | F31: -6528751 | G31: -6528751 | H31: -6528751 | I31: -6528751 | J31: -6528751
B32: Alternative Control Services | C32: Total | D32: -52991 | E32: -54270 | F32: -68412 | G32: -71736 | H32: -72922 | I32: -73390 | J32: -74801
B33: OTHER DISTRIBUTION SERVICES
B34: Negotiated Services | C34: Total | D34: 0 | E34: 0 | F34: 0 | G34: 0 | H34: 0 | I34: 0 | J34: 0
B35: Unregulated Distribution Services | C35: Total | D35: 898594 | E35: 920280 | F35: 1160092 | G35: 1216454 | H35: 1236568 | I35: 1244514 | J35: 1268440

Sheet 2.11 Labour
B1: =INDEX(dms_Worksheet_List,MATCH(dms_Model,dms_Model_List)) -> REGULATORY REPORTING STATEMENT
B2: =INDEX(dms_TradingNameFull_List,MATCH(dms_TradingName,dms_TradingName_List)) -> SA Power Networks
B3: =CONCATENATE("REGULATORY PERIOD FROM ", FRCP_y1," TO ",dms_MultiYear_FinalYear_Result) -> REGULATORY PERIOD FROM 2025-26 TO 2029-30
B4: 2.11 LABOUR
B5: TEMPLATE DATE - OCTOBER 2023 - FINAL RIN
B7: Table numbering on this worksheet starts at 2.11.3.
B9: 2.11.3 - LABOUR / NON-LABOUR EXPENDITURE SPLIT - STANDARD CONTROL SERVICES
C10: =CONCATENATE("EXPENDITURE ($, real ", dms_DollarReal, ")") -> EXPENDITURE ($, real June 2025)
C11: =CRCP_y4 -> 2023-24 | D11: =CRCP_y5 -> 2024-25 | E11: =FRCP_y1 -> 2025-26 | F11: =FRCP_y2 -> 2026-27 | G11: =FRCP_y3 -> 2027-28 | H11: =FRCP_y4 -> 2028-29 | I11: =FRCP_y5 -> 2029-30
B12: OPEX
B13: In-house labour expenditure | C13: 129271293 | D13: 133220931 | E13: 152383007 | F13: 153300665 | G13: 154929472 | H13: 156435334 | I13: 158810805
B14: Labour expenditure outsourced to related parties | C14: 8801804 | D14: 9070726 | E14: 10375431 | F14: 10437912 | G14: 10548814 | H14: 10651345 | I14: 10813086
B15: Labour expenditure outsourced to unrelated parties | C15: 0 | D15: 0 | E15: 0 | F15: 0 | G15: 0 | H15: 0 | I15: 0
B16: Controllable non-labour expenditure | C16: 192285159 | D16: 198251108 | E16: 228013465 | F16: 229415162 | G16: 231921215 | H16: 234198172 | I16: 237798447
B17: Uncontrollable non-labour expenditure | C17: 7889713 | D17: 8039726 | E17: 7949588 | F17: 7968872 | G17: 7985004 | H17: 8039855 | I17: 8117965
B18: Total | C18: =SUM(C13:C17) -> 338247969 | D18: 348582491 | E18: 398721491 | F18: 401122611 | G18: 405384505 | H18: 409324706 | I18: 415540303
B19: CAPEX
B20: In-house labour expenditure | C20: 163845569 | D20: 158750062 | E20: 192323628 | F20: 196354175 | G20: 205476100 | H20: 194363718 | I20: 199443449
B21: Labour expenditure outsourced to related parties | C21: 6286583 | D21: 6037721 | E21: 7051151 | F21: 7168916 | G21: 7213012 | H21: 7084738 | I21: 7008906
B22: Labour expenditure outsourced to unrelated parties | C22: 0 | D22: 0 | E22: 0 | F22: 0 | G22: 0 | H22: 0 | I22: 0
B23: Controllable non-labour expenditure | C23: 335464237 | D23: 322046786 | E23: 375507539 | F23: 381779062 | G23: 384127380 | H23: 377296184 | I23: 373257776
B24: Uncontrollable non-labour expenditure | C24: 0 | D24: 0 | E24: 0 | F24: 0 | G24: 0 | H24: 0 | I24: 0
B25: Total | C25: =SUM(C20:C24) -> 505596389 | D25: 486834569 | E25: 574882318 | F25: 585302153 | G25: 596816492 | H25: 578744640 | I25: 579710131

Sheet 2.14 Forecast price changes
B1: =INDEX(dms_Worksheet_List,MATCH(dms_Model,dms_Model_List)) -> REGULATORY REPORTING STATEMENT
B2: =INDEX(dms_TradingNameFull_List,MATCH(dms_TradingName,dms_TradingName_List)) -> SA Power Networks
B3: =CONCATENATE("REGULATORY PERIOD FROM ", FRCP_y1," TO ",dms_MultiYear_FinalYear_Result) -> REGULATORY PERIOD FROM 2025-26 TO 2029-30
B4: 2.14 FORECAST PRICE CHANGES
B5: TEMPLATE DATE - OCTOBER 2023 - FINAL RIN
B7: There is ONE table on this worksheet.
B9: Instructions
B10: =CONCATENATE(dms_TradingName, " must provide all forecast price changes used to forecast opex and capex, including forecast changes in CPI. FORECAST price changes must be expressed in real terms, except for CPI. "&"If the same escalators are not used for capex and opex, report capex and opex escalators separately. Add additional rows as required. If price changes for a given year were not used to forecast either opex or capex enter '0' for that year.") -> SA Power Networks must provide all forecast price changes used to forecast opex and capex, including forecast changes in CPI. FORECAST price changes must be expressed in real terms, except for CPI. If the same escalators are not used for capex and opex, report capex and opex escalators separately. Add additional rows as required. If price changes for a given year were not used to forecast either opex or capex enter '0' for that year.
B12: 2.14.2 - FORECAST CAPEX AND OPEX PRICE CHANGES
C13: Price changes (% YoY real) Current regulatory period | E13: Price changes (%YoY real) Forthcoming regulatory period
C14: FORECAST
B15: DESCRIPTION | C15: =CRCP_y4 -> 2023-24 | D15: =CRCP_y5 -> 2024-25 | E15: =FRCP_y1 -> 2025-26 | F15: =FRCP_y2 -> 2026-27 | G15: =FRCP_y3 -> 2027-28 | H15: =FRCP_y4 -> 2028-29 | I15: =FRCP_y5 -> 2029-30
B16: OPEX
B17: Real labour escalations | E17: 1.16% | F17: 0.61% | G17: 0.52% | H17: 0.66% | I17: 0.74%
B18: Real non-labour escalations | E18: 0.00% | F18: 0.00% | G18: 0.00% | H18: 0.00% | I18: 0.00%
B19: CPI | C19: 0.036 | D19: 0.031 | E19: 0.025 | F19: 0.025 | G19: 0.025 | H19: 0.025 | I19: 0.025
B20: CAPEX
B21: Real labour escalations | C21: 0.60% | D21: 1.03% | E21: 1.16% | F21: 0.61% | G21: 0.52% | H21: 0.66% | I21: 0.74%
B22: Real contracts esclations | C22: 0.11% | D22: 0.96% | E22: 0.91% | F22: 0.78% | G22: 0.39% | H22: 0.68% | I22: 0.89%
B23: CPI | C23: 0.041 | D23: 0.033 | E23: 0.028 | F23: 0.025 | G23: 0.025 | H23: 0.025 | I23: 0.025

Sheet 2.16 Opex Summary
B1: =INDEX(dms_Worksheet_List,MATCH(dms_Model,dms_Model_List)) -> REGULATORY REPORTING STATEMENT
B2: =INDEX(dms_TradingNameFull_List,MATCH(dms_TradingName,dms_TradingName_List)) -> SA Power Networks
B3: =CONCATENATE("REGULATORY PERIOD FROM ", FRCP_y1," TO ",dms_MultiYear_FinalYear_Result) -> REGULATORY PERIOD FROM 2025-26 TO 2029-30
B4: 2.16 OPEX SUMMARY
B5: TEMPLATE DATE - OCTOBER 2023 - FINAL RIN
B7: Instructions | J7: IMPORTANT!
B8: =CONCATENATE("Complete the tables below in accordance with the regulatory information notice. ",dms_TradingName,"'s total forecast opex must reconcile to Table 2.16.1 (and if ",dms_TradingName," owns any dual function assets Table 2.16.3). If ",dms_TradingName," did not forecast its total opex using a Base Year approach, total forecast opex must reconcile to Table 2.16.2 (and if ",dms_TradingName," owns any dual function assets Table 2.16.4).") -> Complete the tables below in accordance with the regulatory information notice. SA Power Networks's total forecast opex must reconcile to Table 2.16.1 (and if SA Power Networks owns any dual function assets Table 2.16.3). If SA Power Networks did not forecast its total opex using a Base Year approach, total forecast opex must reconcile to Table 2.16.2 (and if SA Power Networks owns any dual function assets Table 2.16.4). | J8: =CONCATENATE("Has ",dms_TradingName," used a base-step-trend model to derive its opex forecast? ") -> Has SA Power Networks used a base-step-trend model to derive its opex forecast? | L8: Yes
B9: =CONCATENATE("If ",dms_TradingName," does not own any dual function assets,Table 2.16.3 and 2.16.4 may be left blank.") -> If SA Power Networks does not own any dual function assets,Table 2.16.3 and 2.16.4 may be left blank. | J9: Yes / No
B10: The total step changes in Table 2.16.1 and Table 2.16.3 must "&"reconcile (in each year) to the total step changes for each year in Table 2.17.1 and Table 2.17.3 of worksheet '2.17 Step Changes', respectively.") | J10: Please nominate the base year. | L10: 2023-24
B13: 2.16.1 - STANDARD CONTROL SERVICES - OPEX BY DRIVER
C14: =CONCATENATE("EXPENDITURE ($, real ", dms_DollarReal, ")") -> EXPENDITURE ($, real June 2025)
C15: =CRCP_y1 -> 2020-21 | D15: =CRCP_y2 -> 2021-22 | E15: =CRCP_y3 -> 2022-23 | F15: =CRCP_y4 -> 2023-24 | G15: =CRCP_y5 -> 2024-25 | H15: =FRCP_y1 -> 2025-26 | I15: =FRCP_y2 -> 2026-27 | J15: =FRCP_y3 -> 2027-28 | K15: =FRCP_y4 -> 2028-29 | L15: =FRCP_y5 -> 2029-30
B16: Base year total opex, excluding category specific | F16: 355188433.8 | G16: 355188433.8 | H16: 358176386.8 | I16: 358176386.8 | J16: 358176386.8 | K16: 358176386.8 | L16: 358176386.8
B17: Increment from base year to final year | G17: 2987952.96
B18: Price growth | H18: 1632453.305 | I18: 3254038.843 | J18: 4858907.983 | K18: 8467792.8 | L18: 13297783.74
B19: Output growth | H19: 2452581.639 | I19: 3734627.086 | J19: 4807695.184 | K19: 6200023.414 | L19: 7754904.7
B20: Productivity growth | H20: -1783677.451 | I20: -3535797.334 | J20: -5250366.72 | K20: -6976185.129 | L20: -8696804.606
B21: Step changes | H21: 16916747.26 | I21: 24814078.12 | J21: 28018968.65 | K21: 28590552.28 | L21: 30465139.81
B22: Category specific | H22: 9489329.98 | I22: 2629713.374 | J22: 2629713.374 | K22: 2629713.374 | L22: 2629713.374
B23: Total opex | C23: =SUM(C16:C22) -> 0 | D23: 0 | E23: 0 | F23: 355188433.8 | G23: 358176386.8 | H23: 386883821.5 | I23: 389073046.9 | J23: 393241305.3 | K23: 397088283.5 | L23: 403627123.8
B26: 2.16.2 - STANDARD CONTROL SERVICES - OPEX BY CATEGORY
C27: =CONCATENATE("EXPENDITURE ($, real ", dms_DollarReal, ")") -> EXPENDITURE ($, real June 2025)
C28: =CRCP_y1 -> 2020-21 | D28: =CRCP_y2 -> 2021-22 | E28: =CRCP_y3 -> 2022-23 | F28: =CRCP_y4 -> 2023-24 | G28: =CRCP_y5 -> 2024-25 | H28: =FRCP_y1 -> 2025-26 | I28: =FRCP_y2 -> 2026-27 | J28: =FRCP_y3 -> 2027-28 | K28: =FRCP_y4 -> 2028-29 | L28: =FRCP_y5 -> 2029-30
B29: Vegetation management
B30: Maintenance
B31: Emergency response
B32: Non-network
B33: Metering
B34: Network overheads
B35: Corporate overheads
B36: Total opex | C36: =SUM(C29:C35) -> 0 | D36: 0 | E36: 0 | F36: 0 | G36: 0 | H36: 0 | I36: 0 | J36: 0 | K36: 0 | L36: 0
B39: 2.16.3 - DUAL FUNCTION ASSETS - OPEX BY DRIVER
C40: =CONCATENATE("EXPENDITURE ($, real ", dms_DollarReal, ")") -> EXPENDITURE ($, real June 2025)
C41: =CRCP_y1 -> 2020-21 | D41: =CRCP_y2 -> 2021-22 | E41: =CRCP_y3 -> 2022-23 | F41: =CRCP_y4 -> 2023-24 | G41: =CRCP_y5 -> 2024-25 | H41: =FRCP_y1 -> 2025-26 | I41: =FRCP_y2 -> 2026-27 | J41: =FRCP_y3 -> 2027-28 | K41: =FRCP_y4 -> 2028-29 | L41: =FRCP_y5 -> 2029-30
B42: Base year total opex, excluding category specific
B43: Increment from base year to final year
B44: Price growth
B45: Output growth
B46: Productivity growth
B47: Step changes
B48: Category specific
B49: Total opex | C49: =SUM(C42:C48) -> 0 | D49: 0 | E49: 0 | F49: 0 | G49: 0 | H49: 0 | I49: 0 | J49: 0 | K49: 0 | L49: 0
B52: 2.16.4 - DUAL FUNCTION ASSETS - OPEX BY CATEGORY
C53: =CONCATENATE("EXPENDITURE ($, real ", dms_DollarReal, ")") -> EXPENDITURE ($, real June 2025)
C54: =CRCP_y1 -> 2020-21 | D54: =CRCP_y2 -> 2021-22 | E54: =CRCP_y3 -> 2022-23 | F54: =CRCP_y4 -> 2023-24 | G54: =CRCP_y5 -> 2024-25 | H54: =FRCP_y1 -> 2025-26 | I54: =FRCP_y2 -> 2026-27 | J54: =FRCP_y3 -> 2027-28 | K54: =FRCP_y4 -> 2028-29 | L54: =FRCP_y5 -> 2029-30
B55: Vegetation management
B56: Maintenance
B57: Emergency response
B58: Non-network
B59: Metering
B60: Network overheads
B61: Corporate overheads
B62: Total opex | C62: =SUM(C55:C61) -> 0 | D62: 0 | E62: 0 | F62: 0 | G62: 0 | H62: 0 | I62: 0 | J62: 0 | K62: 0 | L62: 0

Sheet 2.17 Step Changes
B1: =INDEX(dms_Worksheet_List,MATCH(dms_Model,dms_Model_List)) -> REGULATORY REPORTING STATEMENT
B2: =INDEX(dms_TradingNameFull_List,MATCH(dms_TradingName,dms_TradingName_List)) -> SA Power Networks
B3: =CONCATENATE("REGULATORY PERIOD FROM ", FRCP_y1," TO ",dms_MultiYear_FinalYear_Result) -> REGULATORY PERIOD FROM 2025-26 TO 2029-30
B4: 2.17 STEP CHANGES
B5: TEMPLATE DATE - OCTOBER 2023 - FINAL RIN
B7: 2.17.1 - STEP CHANGES FOR STANDARD CONTROL SERVICES - FORECAST OPEX
E8: =CONCATENATE("EXPENDITURE ($, real ", dms_DollarReal, ")") -> EXPENDITURE ($, real June 2025)
B9: STEP CHANGE | C9: DESCRIPTION | E9: =CRCP_y4 -> 2023-24 | F9: =CRCP_y5 -> 2024-25 | G9: =FRCP_y1 -> 2025-26 | H9: =FRCP_y2 -> 2026-27 | I9: =FRCP_y3 -> 2027-28 | J9: =FRCP_y4 -> 2028-29 | K9: =FRCP_y5 -> 2029-30
B10: Cyber Security Uplift | C10: To implement a comprehensive cyber security uplift program. | G10: 4611828.667 | H10: 10873558 | I10: 11346313.91 | J10: 10447467.25 | K10: 10369287.73
B11: Smart Meter Rollout - IT upgrades | C11: To store and secure greater volumes of data from the increasing number of smart meters. | G11: 360624.0131 | H11: 601040.0219 | I11: 841456.0306 | J11: 1202080.044 | K11: 1803120.066
B12: IT Infrastructure Refresh | C12: To ensure our existing services continue to function with sufficient capacity for growth and efficiently managed storage. | G12: 799189.1734 | H12: 1280078.334 | I12: 1996643.694 | J12: 2665187.655 | K12: 3191566.331
B13: Operationalising Cyber Security | C13: To maintain our existing cyber security and IT resilience capabilities. | G13: 3473247.756 | H13: 3473247.756 | I13: 3473247.756 | J13: 3473247.756 | K13: 3473247.756
B14: CER Compliance | C14: To execute the second phase of the long-term CER compliance program. | G14: 314832.485 | H14: 520945.8385 | I14: 520945.8385 | J14: 588895.2957 | K14: 588895.2957
B15: CER Integration | C15: To continue the scaling and maintenance of IT systems to enable our flexible exports program. | G15: 606740.413 | H15: 742182.4193 | I15: 874821.4573 | J15: 1004315.894 | K15: 1130782.965
B16: Network Visability | C16: To build on the foundations established in the current RCP to significantly enhance our Network visibility capability. | G16: 1046295.304 | H16: 1203917.635 | I16: 1360716.083 | J16: 1516287.289 | K16: 1623698.783
B17: Increases to Insurance Premiums | C17: To reflect the significant market driven increases that are expected to apply to our insurance premiums. | G17: 2233861.527 | H17: 3315633.214 | I17: 4141274.868 | J17: 4639723.788 | K17: 5068555.134
B18: Network Program Uplift | C18: To support the proposed uplift in our total network capital program. | G18: 3538194.513 | H18: 3020118.544 | I18: 3871516.722 | J18: 3607138.98 | K18: 3969953.021
B19: Reliability Improvements | C19: Resulting from a reduction in network interruptions achieved by proposed augex on our reliability programs. | G19: -36062.40131 | H19: -84145.60306 | I19: -132228.8048 | J19: -180312.0066 | K19: -228395.2083
B20: Transitioning to Electric Vehicles | C20: Resulting from reductions in fuel and maintenance that is expected to occur as a result of proposed EV program. | G20: -32004.19434 | H20: -132498.0441 | I20: -275738.8973 | J20: -373479.6615 | K20: -525572.064
B30: Total | E30: =SUM(E10:E29) -> 0 | F30: 0 | G30: 16916747.26 | H30: 24814078.12 | I30: 28018968.65 | J30: 28590552.28 | K30: 30465139.81
B31: Check | G31: =IF(ROUND(G$30,0)-ROUND('2.16 Opex Summary'!H$21,0)=0,"OK","Error") -> OK | H31: =IF(ROUND(H$30,0)-ROUND('2.16 Opex Summary'!I$21,0)=0,"OK","Error") -> OK | I31: =IF(ROUND(I$30,0)-ROUND('2.16 Opex Summary'!J$21,0)=0,"OK","Error") -> OK | J31: =IF(ROUND(J$30,0)-ROUND('2.16 Opex Summary'!K$21,0)=0,"OK","Error") -> OK | K31: =IF(ROUND(K$30,0)-ROUND('2.16 Opex Summary'!L$21,0)=0,"OK","Error") -> OK
B33: 2.17.2 - STEP CHANGES FOR STANDARD CONTROL SERVICES - FORECAST CAPEX
E34: =CONCATENATE("EXPENDITURE ($, real ", dms_DollarReal, ")") -> EXPENDITURE ($, real June 2025)
B35: STEP CHANGE | C35: DESCRIPTION | E35: =CRCP_y4 -> 2023-24 | F35: =CRCP_y5 -> 2024-25 | G35: =FRCP_y1 -> 2025-26 | H35: =FRCP_y2 -> 2026-27 | I35: =FRCP_y3 -> 2027-28 | J35: =FRCP_y4 -> 2028-29 | K35: =FRCP_y5 -> 2029-30
B56: Total | E56: =SUM(E36:E55) -> 0 | F56: 0 | G56: 0 | H56: 0 | I56: 0 | J56: 0 | K56: 0
B58: 2.17.3 - STEP CHANGES FOR DUAL FUNCTION ASSETS - FORECAST OPEX
E59: =CONCATENATE("EXPENDITURE ($, real ", dms_DollarReal, ")") -> EXPENDITURE ($, real June 2025)
B60: STEP CHANGE | C60: DESCRIPTION | E60: =CRCP_y4 -> 2023-24 | F60: =CRCP_y5 -> 2024-25 | G60: =FRCP_y1 -> 2025-26 | H60: =FRCP_y2 -> 2026-27 | I60: =FRCP_y3 -> 2027-28 | J60: =FRCP_y4 -> 2028-29 | K60: =FRCP_y5 -> 2029-30
B81: Total | E81: =SUM(E61:E80) -> 0 | F81: 0 | G81: 0 | H81: 0 | I81: 0 | J81: 0 | K81: 0
B82: Check | G82: =IF(ROUND(G$30,0)-ROUND('2.16 Opex Summary'!H$47,0)=0,"OK","Error") -> Error | H82: =IF(ROUND(H$30,0)-ROUND('2.16 Opex Summary'!I$47,0)=0,"OK","Error") -> Error | I82: =IF(ROUND(I$30,0)-ROUND('2.16 Opex Summary'!J$47,0)=0,"OK","Error") -> Error | J82: =IF(ROUND(J$30,0)-ROUND('2.16 Opex Summary'!K$47,0)=0,"OK","Error") -> Error | K82: =IF(ROUND(K$30,0)-ROUND('2.16 Opex Summary'!L$47,0)=0,"OK","Error") -> Error
B84: 2.17.4 - STEP CHANGES FOR DUAL FUNCTION ASSETS - FORECAST CAPEX
E85: =CONCATENATE("EXPENDITURE ($, real ", dms_DollarReal, ")") -> EXPENDITURE ($, real June 2025)
B86: STEP CHANGE | C86: DESCRIPTION | E86: =CRCP_y4 -> 2023-24 | F86: =CRCP_y5 -> 2024-25 | G86: =FRCP_y1 -> 2025-26 | H86: =FRCP_y2 -> 2026-27 | I86: =FRCP_y3 -> 2027-28 | J86: =FRCP_y4 -> 2028-29 | K86: =FRCP_y5 -> 2029-30
B107: Total | E107: =SUM(E87:E106) -> 0 | F107: 0 | G107: 0 | H107: 0 | I107: 0 | J107: 0 | K107: 0
B110: 2.17.5 - FORECAST CATEGORY SPECIFIC OPEX
D111: EXPENDITURE ($, real June 2024)
B112: CATEGORY | C112: DESCRIPTION | D112: =CRCP_y3 -> 2022-23 | E112: =CRCP_y4 -> 2023-24 | F112: =CRCP_y5 -> 2024-25 | G112: =FRCP_y1 -> 2025-26 | H112: =FRCP_y2 -> 2026-27 | I112: =FRCP_y3 -> 2027-28 | J112: =FRCP_y4 -> 2028-29 | K112: =FRCP_y5 -> 2029-30
B113: Enactment of the Small Compensation Claims Regime | C113: To meet an expected new regulatory obligation relating to claims and damages that will apply to us from 1 July 2025 | G113: 8379166.256 | H113: 2322061.264 | I113: 2322061.264 | J113: 2322061.264 | K113: 2322061.264
B133: Total | D133: =SUM(D113:D132) -> 0 | E133: =SUM(E113:E132) -> 0 | F133: =SUM(F113:F132) -> 0 | G133: 8379166.256 | H133: 2322061.264 | I133: 2322061.264 | J133: 2322061.264 | K133: 2322061.264

Sheet 3.1 Revenue
B1: =INDEX(dms_Worksheet_List,MATCH(dms_Model,dms_Model_List)) -> REGULATORY REPORTING STATEMENT
B2: =INDEX(dms_TradingNameFull_List,MATCH(dms_TradingName,dms_TradingName_List)) -> SA Power Networks
B3: =CONCATENATE("REGULATORY PERIOD FROM ", FRCP_y1," TO ",dms_MultiYear_FinalYear_Result) -> REGULATORY PERIOD FROM 2025-26 TO 2029-30
B4: 3.1 REVENUE
B5: TEMPLATE DATE - OCTOBER 2023 - FINAL RIN
B7: There are THREE tables on this worksheet. Each table has been 'grouped' (and 'sub-grouped') for easy navigation. See the Instructions sheet on how to group or ungroup data.
B9: 3.1.1 - REVENUE GROUPING BY CHARGEABLE QUANTITY
C10: Standard control services | K10: Alternative control services
C11: =CONCATENATE("REVENUE FORECAST ($, real ", dms_DollarReal,")") -> REVENUE FORECAST ($, real June 2025) | K11: =CONCATENATE("REVENUE FORECAST ($, real ", dms_DollarReal,")") -> REVENUE FORECAST ($, real June 2025)
C12: =CRCP_y4 -> 2023-24 | D12: =CRCP_y5 -> 2024-25 | E12: =FRCP_y1 -> 2025-26 | F12: =FRCP_y2 -> 2026-27 | G12: =FRCP_y3 -> 2027-28 | H12: =FRCP_y4 -> 2028-29 | I12: =FRCP_y5 -> 2029-30 | K12: =CRCP_y4 -> 2023-24 | L12: =CRCP_y5 -> 2024-25 | M12: =FRCP_y1 -> 2025-26 | N12: =FRCP_y2 -> 2026-27 | O12: =FRCP_y3 -> 2027-28 | P12: =FRCP_y4 -> 2028-29 | Q12: =FRCP_y5 -> 2029-30
A13: DREV0101 | B13: Revenue from Fixed Customer Charges | C13: 204125589.5 | D13: 228010064.2 | E13: 231688392.2 | F13: 231784738.5 | G13: 229987447.7 | H13: 236682420.6 | I13: 232084431.4 | K13: 0 | L13: 0 | M13: 0 | N13: 0 | O13: 0 | P13: 0 | Q13: 0
A14: DREV0102 | B14: Revenue from Energy Delivery charges where time of use is not a determinant | C14: 219670242.4 | D14: 183393509.4 | E14: 152234167.8 | F14: 124671126 | G14: 95170000.18 | H14: 68748743.29 | I14: 37135505.74 | K14: 0 | L14: 0 | M14: 0 | N14: 0 | O14: 0 | P14: 0 | Q14: 0
A15: DREV0103 | B15: Revenue from On–Peak Energy Delivery charges | C15: 197666717.2 | D15: 228807901.9 | E15: 236085398.1 | F15: 256766914.1 | G15: 278433816.9 | H15: 319114810.4 | I15: 340734455.2 | K15: 0 | L15: 0 | M15: 0 | N15: 0 | O15: 0 | P15: 0 | Q15: 0
A16: DREV0104 | B16: Revenue from Shoulder period Energy Delivery Charges | C16: 36640165.72 | D16: 53064658.51 | E16: 59012903.52 | F16: 63393969.67 | G16: 68839067.35 | H16: 78561402.33 | I16: 84186189.7 | K16: 0 | L16: 0 | M16: 0 | N16: 0 | O16: 0 | P16: 0 | Q16: 0
A17: DREV0105 | B17: Revenue from Off–Peak Energy Delivery charges | C17: 83514881.95 | D17: 109669481 | E17: 129684196.5 | F17: 136751744.7 | G17: 144144420.2 | H17: 161883585.5 | I17: 170123371.9 | K17: 0 | L17: 0 | M17: 0 | N17: 0 | O17: 0 | P17: 0 | Q17: 0
A18: DREV0106 | B18: Revenue from controlled load customer charges | C18: 19462294.23 | D18: 22521101.7 | E18: 24630014.38 | F18: 24838127.36 | G18: 24484711.09 | H18: 25099549.34 | I18: 24451879.04 | K18: 0 | L18: 0 | M18: 0 | N18: 0 | O18: 0 | P18: 0 | Q18: 0
A19: DREV0107 | B19: Revenue from unmetered supplies | C19: 6931127.86 | D19: 7225050.71 | E19: 6729009.73 | F19: 6306125.55 | G19: 6245817.87 | H19: 6595189.61 | I19: 6576723.16 | K19: 0 | L19: 0 | M19: 0 | N19: 0 | O19: 0 | P19: 0 | Q19: 0
A20: DREV0108 | B20: Revenue from Contracted Maximum Demand charges | C20: 11454366.28 | D20: 10578120.51 | E20: 8383980.48 | F20: 8012813.91 | G20: 7833523.28 | H20: 8110205.01 | I20: 7895447.02 | K20: 0 | L20: 0 | M20: 0 | N20: 0 | O20: 0 | P20: 0 | Q20: 0
A21: DREV0109 | B21: Revenue from Measured Maximum Demand charges | C21: 101398265.2 | D21: 117614751.7 | E21: 99897675.79 | F21: 100294369.7 | G21: 102187730.3 | H21: 109731637.6 | I21: 111163706 | K21: 0 | L21: 0 | M21: 0 | N21: 0 | O21: 0 | P21: 0 | Q21: 0
A22: DREV0110 | B22: Revenue from metering charges | C22: 0 | D22: 0 | E22: 12695067.68 | F22: 12534900.19 | G22: 12377114.97 | H22: 12581701.03 | I22: 12583508.82 | K22: 15874962.84 | L22: 15716213.21 | M22: 0 | N22: 0 | O22: 0 | P22: 0 | Q22: 0
A23: DREV0111 | B23: Revenue from connection charges | C23: 0 | D23: 0 | E23: 0 | F23: 0 | G23: 0 | H23: 0 | I23: 0 | K23: 65496943 | L23: 64327777 | M23: 64912360 | N23: 64912360 | O23: 64912360 | P23: 64912360 | Q23: 64912360
A24: DREV0112 | B24: Revenue from public lighting charges | C24: 0 | D24: 0 | E24: 0 | F24: 0 | G24: 0 | H24: 0 | I24: 0 | K24: 18958704 | L24: 18905758 | M24: 18287637 | N24: 18462187 | O24: 18622958 | P24: 18727201 | Q24: 18773887
A25: DREV0113 | B25: Revenue from other Sources | C25: 3457015.77 | D25: 2941491.55 | E25: 3702746.66 | F25: 3867948.9 | G25: 4046635.2 | H25: 4163295.69 | I25: 4301898.55 | K25: 62673368 | L25: 62484958 | M25: 60455164 | N25: 58890087 | O25: 56935369 | P25: 55110966 | Q25: 53547192
A26: DREV01 | B26: Total revenue by chargeable quantity | C26: =SUM(C13:C25) -> 884320666.1 | D26: 963826131.3 | E26: 964743552.8 | F26: 969222778.5 | G26: 973750285 | H26: 1031272540 | I26: 1031237116 | K26: =SUM(K13:K25) -> 163003977.8 | L26: 161434706.2 | M26: 143655161 | N26: 142264634 | O26: 140470687 | P26: 138750527 | Q26: 137233439
B29: 3.1.2 - REVENUE GROUPING BY CUSTOMER TYPE OR CLASS
C30: Standard control services | K30: Alternative control services
C31: =CONCATENATE("REVENUE FORECAST ($, real ", dms_DollarReal,")") -> REVENUE FORECAST ($, real June 2025) | K31: =CONCATENATE("REVENUE FORECAST ($, real ", dms_DollarReal,")") -> REVENUE FORECAST ($, real June 2025)
C32: =CRCP_y4 -> 2023-24 | D32: =CRCP_y5 -> 2024-25 | E32: =FRCP_y1 -> 2025-26 | F32: =FRCP_y2 -> 2026-27 | G32: =FRCP_y3 -> 2027-28 | H32: =FRCP_y4 -> 2028-29 | I32: =FRCP_y5 -> 2029-30 | K32: =CRCP_y4 -> 2023-24 | L32: =CRCP_y5 -> 2024-25 | M32: =FRCP_y1 -> 2025-26 | N32: =FRCP_y2 -> 2026-27 | O32: =FRCP_y3 -> 2027-28 | P32: =FRCP_y4 -> 2028-29 | Q32: =FRCP_y5 -> 2029-30
A33: DREV0201 | B33: Revenue from residential Customers | C33: 476075282 | D33: 480325752 | E33: 501367437.9 | F33: 510476267.3 | G33: 510954180.6 | H33: 539082526.9 | I33: 537310615.7 | K33: 14086828.99 | L33: 13945960.7 | M33: 0 | N33: 0 | O33: 0 | P33: 0 | Q33: 0
A34: DREV0202 | B34: Revenue from Non residential customers not on demand tariffs | C34: 113694655.7 | D34: 130476849.4 | E34: 124198996.6 | F34: 119863372.2 | G34: 117354658.9 | H34: 120858423.6 | I34: 117381658.7 | K34: 1735152.97 | L34: 1717801.44 | M34: 0 | N34: 0 | O34: 0 | P34: 0 | Q34: 0
A35: DREV0203 | B35: Revenue from Non-residential low voltage demand tariff customers | C35: 234979877.8 | D35: 288318862.9 | E35: 279144201.3 | F35: 280096989.9 | G35: 286541302 | H35: 308988795.5 | I35: 314311366.4 | K35: 52331.14 | L35: 51807.83 | M35: 0 | N35: 0 | O35: 0 | P35: 0 | Q35: 0
A36: DREV0204 | B36: Revenue from Non-residential high voltage demand tariff customers | C36: 49182706.99 | D36: 54538124.72 | E36: 53303907.27 | F36: 52480023.53 | G36: 52654325.62 | H36: 55747604.74 | I36: 55656752.53 | K36: 649.74 | L36: 643.24 | M36: 0 | N36: 0 | O36: 0 | P36: 0 | Q36: 0
A37: DREV0205 | B37: Revenue from unmetered supplies | C37: 6931127.86 | D37: 7225050.71 | E37: 6729009.73 | F37: 6306125.55 | G37: 6245817.87 | H37: 6595189.61 | I37: 6576723.16 | K37: 0 | L37: 0 | M37: 0 | N37: 0 | O37: 0 | P37: 0 | Q37: 0
A38: DREV0206 | B38: Revenue from Other Customers | C38: 3457015.77 | D38: 2941491.55 | E38: 0 | F38: 0 | G38: 0 | H38: 0 | I38: 0 | K38: 147129015 | L38: 145718493 | M38: 143655161 | N38: 142264634 | O38: 140470687 | P38: 138750527 | Q38: 137233439
A39: DREV02 | B39: Total revenue by customer class | C39: =SUM(C33:C38) -> 884320666.1 | D39: 963826131.3 | E39: 964743552.8 | F39: 969222778.5 | G39: 973750285 | H39: 1031272540 | I39: 1031237117 | K39: =SUM(K33:K38) -> 163003977.8 | L39: 161434706.2 | M39: 143655161 | N39: 142264634 | O39: 140470687 | P39: 138750527 | Q39: 137233439
B42: 3.1.3 - REVENUE (penalties) ALLOWED (deducted) THROUGH INCENTIVE SCHEMES
C43: Standard control services | K43: Alternative control services
C44: =CONCATENATE("REVENUE FORECAST ($, real ", dms_DollarReal,")") -> REVENUE FORECAST ($, real June 2025) | K44: =CONCATENATE("REVENUE FORECAST ($, real ", dms_DollarReal,")") -> REVENUE FORECAST ($, real June 2025)
C45: =CRCP_y4 -> 2023-24 | D45: =CRCP_y5 -> 2024-25 | E45: =FRCP_y1 -> 2025-26 | F45: =FRCP_y2 -> 2026-27 | G45: =FRCP_y3 -> 2027-28 | H45: =FRCP_y4 -> 2028-29 | I45: =FRCP_y5 -> 2029-30 | K45: =CRCP_y4 -> 2023-24 | L45: =CRCP_y5 -> 2024-25 | M45: =FRCP_y1 -> 2025-26 | N45: =FRCP_y2 -> 2026-27 | O45: =FRCP_y3 -> 2027-28 | P45: =FRCP_y4 -> 2028-29 | Q45: =FRCP_y5 -> 2029-30
A46: DREV0301 | B46: EBSS | C46: 2237060.23 | D46: 0 | E46: 5167583.47 | F46: -26689913.13 | G46: -26063498.85 | H46: 27182149.77 | I46: 0 | K46: 0 | L46: 0 | M46: 0 | N46: 0 | O46: 0 | P46: 0 | Q46: 0
A47: DREV0302 | B47: STPIS | C47: 16927023.23 | D47: 11954909 | E47: 8000000 | F47: 9756097.56 | G47: 0 | H47: 0 | I47: 0 | K47: 0 | L47: 0 | M47: 0 | N47: 0 | O47: 0 | P47: 0 | Q47: 0
A48: DREV0303 | B48: F-Factor | C48: 0 | D48: 0 | E48: 0 | F48: 0 | G48: 0 | H48: 0 | I48: 0 | K48: 0 | L48: 0 | M48: 0 | N48: 0 | O48: 0 | P48: 0 | Q48: 0
A49: DREV0304 | B49: S-Factor True up | C49: 0 | D49: 0 | E49: 0 | F49: 0 | G49: 0 | H49: 0 | I49: 0 | K49: 0 | L49: 0 | M49: 0 | N49: 0 | O49: 0 | P49: 0 | Q49: 0
A50: DREV0305 | B50: Other | C50: 16427267.85 | D50: 15780276.51 | E50: -2321713.2 | F50: -2321713.2 | G50: -2321713.2 | H50: -2321713.2 | I50: -2321713.2 | K50: 0 | L50: 0 | M50: 0 | N50: 0 | O50: 0 | P50: 0 | Q50: 0
A51: DREV03 | B51: Total revenue of incentive schemes | C51: =SUM(C46:C50) -> 35591351.31 | D51: 27735185.51 | E51: 10845870.27 | F51: -19255528.77 | G51: -28385212.05 | H51: 24860436.57 | I51: -2321713.2 | K51: =SUM(K46:K50) -> 0 | L51: 0 | M51: 0 | N51: 0 | O51: 0 | P51: 0 | Q51: 0

Sheet 3.2 Operating expenditure
B1: =INDEX(dms_Worksheet_List,MATCH(dms_Model,dms_Model_List)) -> REGULATORY REPORTING STATEMENT
B2: =INDEX(dms_TradingNameFull_List,MATCH(dms_TradingName,dms_TradingName_List)) -> SA Power Networks
B3: =CONCATENATE("REGULATORY PERIOD FROM ", FRCP_y1," TO ",dms_MultiYear_FinalYear_Result) -> REGULATORY PERIOD FROM 2025-26 TO 2029-30
B4: 3.2 OPERATING EXPENDITURE
B5: TEMPLATE DATE - OCTOBER 2023 - FINAL RIN
B7: There are TWO tables on this worksheet. Both ROWS and COLUMNS have been grouped for ease of navigation. see the Instructions sheet on how to group or ungroup tables.
B9: 3.2.1 - OPEX CATEGORIES
B10: CURRENT OPEX CATEGORIES AND COST ALLOCATIONS
C11: Standard control services | K11: Alternative control services
C12: =CONCATENATE("EXPENDITURE ($, real ", dms_DollarReal, ")") -> EXPENDITURE ($, real June 2025) | K12: =CONCATENATE("EXPENDITURE ($, real ", dms_DollarReal, ")") -> EXPENDITURE ($, real June 2025)
C13: =CRCP_y4 -> 2023-24 | D13: =CRCP_y5 -> 2024-25 | E13: =FRCP_y1 -> 2025-26 | F13: =FRCP_y2 -> 2026-27 | G13: =FRCP_y3 -> 2027-28 | H13: =FRCP_y4 -> 2028-29 | I13: =FRCP_y5 -> 2029-30 | K13: =CRCP_y4 -> 2023-24 | L13: =CRCP_y5 -> 2024-25 | M13: =FRCP_y1 -> 2025-26 | N13: =FRCP_y2 -> 2026-27 | O13: =FRCP_y3 -> 2027-28 | P13: =FRCP_y4 -> 2028-29 | Q13: =FRCP_y5 -> 2029-30
A14: DOPEX0101 | B14: Distribution licence fee | C14: 3286144 | D14: 3368623 | E14: 3306711 | F14: 3317274 | G14: 3326111 | H14: 3356156 | I14: 3398942 | K14: 0 | L14: 0 | M14: 0 | N14: 0 | O14: 0 | P14: 0 | Q14: 0
A15: DOPEX0102 | B15: Network operating costs | C15: 33599934 | D15: 34443263 | E15: 35418514 | F15: 35685935 | G15: 35934593 | H15: 36402479 | I15: 36954635 | K15: 0 | L15: 0 | M15: 0 | N15: 0 | O15: 0 | P15: 0 | Q15: 0
A16: DOPEX0103 | B16: Inspections | C16: 17560453 | D16: 18001204 | E16: 17781719 | F16: 17838521 | G16: 17886043 | H16: 18047612 | I16: 18277691 | K16: 0 | L16: 0 | M16: 0 | N16: 0 | O16: 0 | P16: 0 | Q16: 0
A17: DOPEX0104 | B17: Maintenance & repair | C17: 22431732 | D17: 22994749 | E17: 22695361 | F17: 22767859 | G17: 22828512 | H17: 23034728 | I17: 23328385 | K17: 451992 | L17: 451992 | M17: 0 | N17: 0 | O17: 0 | P17: 0 | Q17: 0
A18: DOPEX0105 | B18: Substation property maintenance | C18: 8013897 | D18: 8215039 | E18: 8122518 | F18: 8148464 | G18: 8170172 | H18: 8243975 | I18: 8349073 | K18: 0 | L18: 0 | M18: 0 | N18: 0 | O18: 0 | P18: 0 | Q18: 0
A19: DOPEX0106 | B19: Vegetation management | C19: 47991578 | D19: 49196124 | E19: 48563966 | F19: 48719099 | G19: 48848885 | H19: 49290149 | I19: 49918523 | K19: 0 | L19: 0 | M19: 0 | N19: 0 | O19: 0 | P19: 0 | Q19: 0
A20: DOPEX0107 | B20: Emergency response | C20: 44275131 | D20: 45386397 | E20: 44839604 | F20: 44934872 | G20: 45006717 | H20: 45366386 | I20: 45898953 | K20: 0 | L20: 0 | M20: 0 | N20: 0 | O20: 0 | P20: 0 | Q20: 0
A21: DOPEX0108 | B21: Guaranteed service level payments | C21: 5469239 | D21: 5606512 | E21: 5542302 | F21: 5560006 | G21: 5574818 | H21: 5625177 | I21: 5696889 | K21: 0 | L21: 0 | M21: 0 | N21: 0 | O21: 0 | P21: 0 | Q21: 0
A22: DOPEX0109 | B22: Network insurance | C22: 7481108 | D22: 8603274 | E22: 9785585 | F22: 10891480 | G22: 11737303 | H22: 12304369 | I22: 12830913 | K22: 0 | L22: 0 | M22: 0 | N22: 0 | O22: 0 | P22: 0 | Q22: 0
A23: DOPEX0110 | B23: Call centre | C23: 3291158 | D23: 3373763 | E23: 3381294 | F23: 3380250 | G23: 3401134 | H23: 3423119 | I23: 3471149 | K23: 0 | L23: 0 | M23: 0 | N23: 0 | O23: 0 | P23: 0 | Q23: 0
A24: DOPEX0111 | B24: Customer billing (previously full retail contestability) | C24: 16786581 | D24: 17207909 | E24: 17009164 | F24: 17063498 | G24: 17108954 | H24: 17263504 | I24: 17483587 | K24: 939910 | L24: 939910 | M24: 0 | N24: 0 | O24: 0 | P24: 0 | Q24: 0
A25: DOPEX0112 | B25: Meter reading | C25: 0 | D25: 0 | E25: 0 | F25: 0 | G25: 0 | H25: 0 | I25: 0 | K25: 4642245 | L25: 3829111 | M25: 0 | N25: 0 | O25: 0 | P25: 0 | Q25: 0
A26: DOPEX0113 | B26: Other customer services | C26: 19363044 | D26: 20864421 | E26: 29417464 | F26: 22588695 | G26: 22677985 | H26: 22842325 | I26: 23117043 | K26: 1648631 | L26: 1690010 | M26: 1438563 | N26: 1442131 | O26: 1443787 | P26: 1448630 | Q26: 1462600
A27: DOPEX0114 | B27: Corporate costs and other operating | C27: 108697970 | D27: 111321214 | E27: 142235212 | F27: 149154287 | G27: 151639649 | H27: 152685183 | I27: 155659907 | K27: 10629459 | L27: 10885983 | M27: 11817481 | N27: 12382788 | O27: 12568516 | P27: 12578084 | Q27: 12780597
A28: DOPEX0115 | B28: Public lighting | C28: 0 | D28: 0 | E28: 0 | F28: 0 | G28: 0 | H28: 0 | I28: 0 | K28: 6881315 | L28: 6234788 | M28: 5722175 | N28: 5473705 | O28: 6104185 | P28: 5989542 | Q28: 5880378
A29: DOPEX0116 | B29: Fee-based and quoted services | C29: 0 | D29: 0 | E29: 0 | F29: 0 | G29: 0 | H29: 0 | I29: 0 | K29: 53405368 | L29: 52571481 | M29: 52623279 | N29: 52623279 | O29: 52623279 | P29: 52623311 | Q29: 52623279
A30: DOPEX0117 | B30: Cost of Deriving Contributed Assets | C30: 0 | D30: 0 | E30: 0 | F30: 0 | G30: 0 | H30: 0 | I30: 0 | K30: 61567126 | L30: 60468110 | M30: 61017618 | N30: 61017618 | O30: 61017618 | P30: 61017618 | Q30: 61017618
A31: DOPEX0118 | B31: Export Services | C31: 0 | D31: 0 | E31: 921573 | F31: 1263128 | G31: 1395767 | H31: 1593211 | I31: 1719678 | K31: 0 | L31: 0 | M31: 0 | N31: 0 | O31: 0 | P31: 0 | Q31: 0
A32: DOPEX0119 | B32: Legacy Metering Services | C32: 0 | D32: 0 | E32: 9700504 | F32: 9809242 | G32: 9847862 | H32: 9846333 | I32: 9434934 | K32: 0 | L32: 0 | M32: 0 | N32: 0 | O32: 0 | P32: 0 | Q32: 0
A33: DOPEX0120
A34: DOPEX0121
A35: DOPEX0122
A36: DOPEX0123
A37: DOPEX0124
A38: DOPEX0125
A39: DOPEX0126
A40: DOPEX0127
A41: DOPEX0128
A42: DOPEX0129
A43: DOPEX0130
A44: DOPEX0131
A45: DOPEX0132
A46: DOPEX0133
A47: DOPEX0134
A48: DOPEX0135
A49: DOPEX0136
A50: DOPEX0137
A51: DOPEX0138
A52: DOPEX0139
A53: DOPEX0140
A54: DOPEX0141
A55: DOPEX0142
A56: DOPEX0143
A57: DOPEX0144
A58: DOPEX0145
A59: DOPEX0146
A60: DOPEX0147
A61: DOPEX0148
A62: DOPEX0149
A63: DOPEX01 | B63: Total opex | C63: =SUM(C14:C62) -> 338247969 | D63: 348582492 | E63: 398721491 | F63: 401122610 | G63: 405384505 | H63: 409324706 | I63: 415540302 | K63: =SUM(K14:K62) -> 140166046 | L63: 137071385 | M63: 132619116 | N63: 132939521 | O63: 133757385 | P63: 133657185 | Q63: 133764472
B66: 3.2.2 - OPEX CONSISTENCY
B67: OPEX CONSISTENCY - CURRENT COST ALLOCATION APPROACH
C68: Standard control services | K68: Alternative control services
C69: =CONCATENATE("EXPENDITURE ($, real ", dms_DollarReal, ")") -> EXPENDITURE ($, real June 2025) | K69: =CONCATENATE("EXPENDITURE ($, real ", dms_DollarReal, ")") -> EXPENDITURE ($, real June 2025)
C70: =CRCP_y4 -> 2023-24 | D70: =CRCP_y5 -> 2024-25 | E70: =FRCP_y1 -> 2025-26 | F70: =FRCP_y2 -> 2026-27 | G70: =FRCP_y3 -> 2027-28 | H70: =FRCP_y4 -> 2028-29 | I70: =FRCP_y5 -> 2029-30 | K70: =CRCP_y4 -> 2023-24 | L70: =CRCP_y5 -> 2024-25 | M70: =FRCP_y1 -> 2025-26 | N70: =FRCP_y2 -> 2026-27 | O70: =FRCP_y3 -> 2027-28 | P70: =FRCP_y4 -> 2028-29 | Q70: =FRCP_y5 -> 2029-30
A71: DOPEX0201 | B71: Opex for network services | C71: 334044031 | D71: 344273038 | E71: 382631689 | F71: 384807331 | G71: 388964226 | H71: 392772568 | I71: 399256390 | K71: 63077367 | L71: 62559859 | M71: 65349265 | N71: 65939735 | O71: 66077529 | P71: 66102850 | Q71: 66329774
A72: DOPEX0202 | B72: Opex for metering | C72: 0 | D72: 0 | E72: 11837669 | F72: 12049564 | G72: 12143200 | H72: 12236424 | I72: 11913179 | K72: 8033123 | L72: 7256367 | M72: 0 | N72: 0 | O72: 0 | P72: 0 | Q72: 0
A73: DOPEX0203 | B73: Opex for connection services | C73: 4203938 | D73: 4309453 | E73: 4252133 | F73: 4265716 | G73: 4277080 | H73: 4315716 | I73: 4370734 | K73: 61567126 | L73: 60468110 | M73: 61017618 | N73: 61017618 | O73: 61017618 | P73: 61017618 | Q73: 61017618
A74: DOPEX0204 | B74: Opex for public lighting | C74: 0 | D74: 0 | E74: 0 | F74: 0 | G74: 0 | H74: 0 | I74: 0 | K74: 7488430 | L74: 6787048 | M74: 6252233 | N74: 5982168 | O74: 6662238 | P74: 6536717 | Q74: 6417080
A75: DOPEX0205 | B75: Opex for amounts payable for easement levy or similar direct charges on DNSP | C75: 0 | D75: 0 | E75: 0 | F75: 0 | G75: 0 | H75: 0 | I75: 0 | K75: 0 | L75: 0 | M75: 0 | N75: 0 | O75: 0 | P75: 0 | Q75: 0
A76: DOPEX0207 | B76: Opex for transmission connection point planning | C76: 0 | D76: 0 | E76: 0 | F76: 0 | G76: 0 | H76: 0 | I76: 0 | K76: 0 | L76: 0 | M76: 0 | N76: 0 | O76: 0 | P76: 0 | Q76: 0

Sheet 3.3 Assets (RAB)
B1: =INDEX(dms_Worksheet_List,MATCH(dms_Model,dms_Model_List)) -> REGULATORY REPORTING STATEMENT
B2: =INDEX(dms_TradingNameFull_List,MATCH(dms_TradingName,dms_TradingName_List)) -> SA Power Networks
B3: =CONCATENATE("REGULATORY PERIOD FROM ", FRCP_y1," TO ",dms_MultiYear_FinalYear_Result) -> REGULATORY PERIOD FROM 2025-26 TO 2029-30
B4: 3.3 ASSETS
B5: TEMPLATE DATE - OCTOBER 2023 - FINAL RIN
B7: There are FOUR tables on this worksheet. Both ROWS and COLUMNS in each have been grouped (and sub-grouped) for ease of navigation. see the Instructions sheet on how to group or ungroup tables.
B9: 3.3.1 - BENCHMARKING ASSET BASE VALUES
C10: Network services | K10: Standard control services | S10: Alternative control services
C11: =CONCATENATE(" VALUE FORECAST ($, real ", dms_DollarReal, ")") -> VALUE FORECAST ($, real June 2025) | K11: =CONCATENATE(" VALUE FORECAST ($, real ", dms_DollarReal, ")") -> VALUE FORECAST ($, real June 2025) | S11: =CONCATENATE(" VALUE FORECAST ($, real ", dms_DollarReal, ")") -> VALUE FORECAST ($, real June 2025)
C12: =CRCP_y4 -> 2023-24 | D12: =CRCP_y5 -> 2024-25 | E12: =FRCP_y1 -> 2025-26 | F12: =FRCP_y2 -> 2026-27 | G12: =FRCP_y3 -> 2027-28 | H12: =FRCP_y4 -> 2028-29 | I12: =FRCP_y5 -> 2029-30 | K12: =CRCP_y4 -> 2023-24 | L12: =CRCP_y5 -> 2024-25 | M12: =FRCP_y1 -> 2025-26 | N12: =FRCP_y2 -> 2026-27 | O12: =FRCP_y3 -> 2027-28 | P12: =FRCP_y4 -> 2028-29 | Q12: =FRCP_y5 -> 2029-30 | S12: =CRCP_y4 -> 2023-24 | T12: =CRCP_y5 -> 2024-25 | U12: =FRCP_y1 -> 2025-26 | V12: =FRCP_y2 -> 2026-27 | W12: =FRCP_y3 -> 2027-28 | X12: =FRCP_y4 -> 2028-29 | Y12: =FRCP_y5 -> 2029-30
B13: For total asset base:
A14: DRAB0101 | B14: Opening value | C14: =SUM(C27,C34,C41,C48,C55,C62,C69,C75,C82,C89) -> 4978209237 | D14: =C19 -> 4975780203 | E14: =SUM(E27,E34,E41,E48,E55,E62,E69,E75,E82,E89) -> 4949818772 | F14: =E19 -> 5011052382 | G14: =F19 -> 5088288830 | H14: 5181406619 | I14: 5310483806 | K14: =SUM(K27,K34,K41,K48,K55,K62,K69,K75,K82,K89) -> 5240257439 | L14: =K19 -> 5245003058 | M14: =SUM(M27,M34,M41,M48,M55,M62,M69,M75,M82,M89) -> 5223701456 | N14: 5295824279 | O14: 5383597824 | P14: 5487481305 | Q14: 5628399081 | S14: =SUM(S27,S34,S41,S48,S55,S62,S69,S75,S82,S89) -> 73954421.07 | T14: =S19 -> 65549464.22 | U14: =SUM(U27,U34,U41,U48,U55,U62,U69,U75,U82,U89) -> 58028425.21 | V14: 57523160.48 | W14: 57033445.01 | X14: 56669112.58 | Y14: 56302892.99
A15: DRAB0102 | B15: Inflation addition | C15: =SUM(C28,C35,C42,C49,C56,C63,C70,C76,C83,C90) -> 0 | D15: =SUM(D28,D35,D42,D49,D56,D63,D70,D76,D83,D90) -> 0 | E15: =SUM(E28,E35,E42,E49,E56,E63,E70,E76,E83,E90) -> 0 | F15: =SUM(F28,F35,F42,F49,F56,F63,F70,F76,F83,F90) -> 0 | G15: =SUM(G28,G35,G42,G49,G56,G63,G70,G76,G83,G90) -> 0 | H15: =SUM(H28,H35,H42,H49,H56,H63,H70,H76,H83,H90) -> 0 | I15: =SUM(I28,I35,I42,I49,I56,I63,I70,I76,I83,I90) -> 0
A16: DRAB0103 | B16: Straight line depreciation | C16: =SUM(C29,C36,C43,C50,C57,C64,C77,C84,C91) -> -393901637.5 | D16: -384505862.3 | E16: -385092125.9 | F16: -383791300.5 | G16: -374765916.4 | H16: -319776707.8 | I16: -318275591.7 | K16: =SUM(K29,K36,K43,K50,K57,K64,K77,K84,K91) -> -414375569.9 | L16: -403798190.1 | M16: -400838329.5 | N16: -400026775.8 | O16: -391489152.1 | P16: -336998207.7 | Q16: -336023664.3 | S16: =SUM(S29,S36,S43,S50,S57,S64,S77,S84,S91) -> -11863611.3 | T16: -11918314.66 | U16: -4168731.14 | V16: -4167276.87 | W16: -4054528.53 | X16: -4072762.82 | Y16: -4145456.53
A17: DRAB0105 | B17: Actual additions (recognised in RAB) | C17: =SUM(C30,C37,C44,C51,C58,C65,C71,C78,C85,C92) -> 396166146.4 | D17: 362417457.8 | E17: 449106383 | F17: 464910172.8 | G17: 474377022 | H17: 454178121.3 | I17: 460611305.2 | K17: =SUM(K30,K37,K44,K51,K58,K65,K71,K78,K85,K92) -> 423814731.1 | L17: 386369614.3 | M17: 475741800.8 | N17: 491682744.9 | O17: 501865950.2 | P17: 483240209.3 | Q17: 491152213.5 | S17: =SUM(S30,S37,S44,S51,S58,S65,S71,S78,S85,S92) -> 3458654.45 | T17: 5201088.85 | U17: 3663466.41 | V17: 3677561.4 | W17: 3690196.1 | X17: 3706543.23 | Y17: 3724503.32
A18: DRAB0106 | B18: Disposals | C18: -4693542.09 | D18: -4676839.58 | E18: -2780647.96 | F18: -3882424.44 | G18: -6493316.44 | H18: -5324226.2 | I18: -3730934.76 | K18: -4693542.09 | L18: -4676839.58 | M18: -2780647.96 | N18: -3882424.44 | O18: -6493316.44 | P18: -5324226.2 | Q18: -3730934.76 | S18: 0 | T18: 0 | U18: 0 | V18: 0 | W18: 0 | X18: 0 | Y18: 0
A19: DRAB0107 | B19: Closing value | C19: =SUM(C14+C15+C16+C17+C18) -> 4975780203 | D19: 4949014959 | E19: 5011052382 | F19: 5088288830 | G19: 5181406619 | H19: 5310483806 | I19: 5449088585 | K19: =SUM(K14+K15+K16+K17+K18) -> 5245003058 | L19: 5222897642 | M19: 5295824279 | N19: 5383597824 | O19: 5487481305 | P19: 5628399081 | Q19: 5779796695 | S19: =SUM(S14+S15+S16+S17+S18) -> 65549464.22 | T19: 58832238.41 | U19: 57523160.48 | V19: 57033445.01 | W19: 56669112.58 | X19: 56302892.99 | Y19: 55881939.78
B22: 3.3.2 - ASSET VALUE ROLL FORWARD
C23: Network services | K23: Standard control services | S23: Alternative control services
C24: =CONCATENATE(" VALUE FORECAST ($, real ", dms_DollarReal, ")") -> VALUE FORECAST ($, real June 2025) | K24: =CONCATENATE(" VALUE FORECAST ($, real ", dms_DollarReal, ")") -> VALUE FORECAST ($, real June 2025) | S24: =CONCATENATE(" VALUE FORECAST ($, real ", dms_DollarReal, ")") -> VALUE FORECAST ($, real June 2025)
C25: =CRCP_y4 -> 2023-24 | D25: =CRCP_y5 -> 2024-25 | E25: =FRCP_y1 -> 2025-26 | F25: =FRCP_y2 -> 2026-27 | G25: =FRCP_y3 -> 2027-28 | H25: =FRCP_y4 -> 2028-29 | I25: =FRCP_y5 -> 2029-30 | K25: =CRCP_y4 -> 2023-24 | L25: =CRCP_y5 -> 2024-25 | M25: =FRCP_y1 -> 2025-26 | N25: =FRCP_y2 -> 2026-27 | O25: =FRCP_y3 -> 2027-28 | P25: =FRCP_y4 -> 2028-29 | Q25: =FRCP_y5 -> 2029-30 | S25: =CRCP_y4 -> 2023-24 | T25: =CRCP_y5 -> 2024-25 | U25: =FRCP_y1 -> 2025-26 | V25: =FRCP_y2 -> 2026-27 | W25: =FRCP_y3 -> 2027-28 | X25: =FRCP_y4 -> 2028-29 | Y25: =FRCP_y5 -> 2029-30
B26: For overhead network assets less than 33kV:
A27: DRAB0201 | B27: Opening value | C27: 660659806.3 | D27: =C32 -> 678748098.4 | E27: 690496171.9 | F27: 717949389.4 | G27: 744514869.6 | H27: 771656671.3 | I27: 801508433.5 | K27: 765277846.8 | L27: =K32 -> 786230490.1 | M27: 799838916.6 | N27: 831639457.4 | O27: 862411684.4 | P27: 893851495.5 | Q27: 928430399.9 | T27: =S32 -> 0 | U27: 0 | V27: 0 | W27: 0 | X27: 0 | Y27: 0
A28: DRAB0202 | B28: Inflation addition
A29: DRAB0203 | B29: Straight line depreciation | C29: -51617618.82 | D29: -48638630.03 | E29: -39698359.44 | F29: -40931881.46 | G29: -42161593.05 | H29: -43417786.29 | I29: -44745348.61 | K29: -59791468.79 | L29: -56340745.59 | M29: -45984748.5 | N29: -47413603.5 | O29: -48838044.69 | P29: -50293161.01 | Q29: -51830947.97
A30: DRAB0205 | B30: Actual additions (recognised in RAB) | C30: 69705910.93 | D30: 60386703.54 | E30: 67151576.89 | F30: 67497361.69 | G30: 69303394.72 | H30: 73269548.5 | I30: 76997859.3 | K30: 80744112.06 | L30: 69949172.05 | M30: 77785289.32 | N30: 78185830.48 | O30: 80277855.84 | P30: 84872065.44 | Q30: 89190768.7
A31: DRAB0206 | B31: Disposals
A32: DRAB0207 | B32: Closing value | C32: =SUM(C27+C28+C29+C30+C31) -> 678748098.4 | D32: 690496171.9 | E32: 717949389.4 | F32: 744514869.6 | G32: 771656671.3 | H32: 801508433.5 | I32: 833760944.2 | K32: =SUM(K27+K28+K29+K30+K31) -> 786230490.1 | L32: 799838916.6 | M32: 831639457.4 | N32: 862411684.4 | O32: 893851495.5 | P32: 928430399.9 | Q32: 965790220.7 | S32: =SUM(S27+S28+S29+S30+S31) -> 0 | T32: 0 | U32: 0 | V32: 0 | W32: 0 | X32: 0 | Y32: 0
B33: For underground network assets less than 33kV:
A34: DRAB0301 | B34: Opening value | C34: 1155398435 | D34: =C39 -> 1187032241 | E34: 1207580399 | F34: 1255592105 | G34: 1302051287 | H34: 1349518372 | I34: 1401724786 | K34: 1312828596 | L34: =K39 -> 1348772704 | M34: 1372120337 | N34: 1426673934 | O34: 1479463467 | P34: 1533398235 | Q34: 1592718094 | T34: =S39 -> 0 | U34: 0 | V34: 0 | W34: 0 | X34: 0 | Y34: 0
A35: DRAB0302 | B35: Inflation addition
A36: DRAB0303 | B36: Straight line depreciation | C36: -90271748.66 | D36: -85061928.19 | E36: -69426688.17 | F36: -71583939.74 | G36: -73734527.43 | H36: -75931427.71 | I36: -78253142.17 | K36: -102571831.1 | L36: -96652140.44 | M36: -78886502.55 | N36: -81337692.94 | O36: -83781311.47 | P36: -86277552.96 | Q36: -88915615.33
A37: DRAB0305 | B37: Actual additions (recognised in RAB) | C37: 121905555 | D37: 105610086 | E37: 117438394.3 | F37: 118043121.9 | G37: 121201612.4 | H37: 128137841.6 | I37: 134658117.9 | K37: 138515938.6 | L37: 119999774 | M37: 133440099.7 | N37: 134127225.2 | O37: 137716079.5 | P37: 145597412.7 | Q37: 153006116.8
A38: DRAB0306 | B38: Disposals
A39: DRAB0307 | B39: Closing value | C39: =SUM(C34+C35+C36+C37+C38) -> 1187032241 | D39: 1207580399 | E39: 1255592105 | F39: 1302051287 | G39: 1349518372 | H39: 1401724786 | I39: 1458129762 | K39: =SUM(K34+K35+K36+K37+K38) -> 1348772704 | L39: 1372120337 | M39: 1426673934 | N39: 1479463467 | O39: 1533398235 | P39: 1592718094 | Q39: 1656808596 | S39: =SUM(S34+S35+S36+S37+S38) -> 0 | T39: 0 | U39: 0 | V39: 0 | W39: 0 | X39: 0 | Y39: 0
B40: For distribution substations and transformers:
A41: DRAB0401 | B41: Opening value | C41: 1397299159 | D41: =C46 -> 1367942617 | E41: 1331671898 | F41: 1323488993 | G41: 1306574436 | H41: 1294571934 | I41: 1306606941 | K41: 1397299159 | L41: =K46 -> 1367942617 | M41: 1331671898 | N41: 1323488993 | O41: 1306574436 | P41: 1294571934 | Q41: 1306606941 | T41: =S46 -> 0 | U41: 0 | V41: 0 | W41: 0 | X41: 0 | Y41: 0
A42: DRAB0402 | B42: Inflation addition
A43: DRAB0403 | B43: Straight line depreciation | C43: -83721128.21 | D43: -84695684.1 | E43: -84773235.55 | F43: -86588639.02 | G43: -88221249.43 | H43: -46115472.33 | I43: -38909447.71 | K43: -83721128.21 | L43: -84695684.1 | M43: -84773235.55 | N43: -86588639.02 | O43: -88221249.43 | P43: -46115472.33 | Q43: -38909447.71
A44: DRAB0405 | B44: Actual additions (recognised in RAB) | C44: 54364585.58 | D44: 48424965.57 | E44: 76590330.44 | F44: 69674081.56 | G44: 76218747.9 | H44: 58150479.04 | I44: 68812587.87 | K44: 54364585.58 | L44: 48424965.57 | M44: 76590330.44 | N44: 69674081.56 | O44: 76218747.9 | P44: 58150479.04 | Q44: 68812587.87
A45: DRAB0406 | B45: Disposals
A46: DRAB0407 | B46: Closing value | C46: =SUM(C41+C42+C43+C44+C45) -> 1367942617 | D46: 1331671898 | E46: 1323488993 | F46: 1306574436 | G46: 1294571934 | H46: 1306606941 | I46: 1336510081 | K46: =SUM(K41+K42+K43+K44+K45) -> 1367942617 | L46: 1331671898 | M46: 1323488993 | N46: 1306574436 | O46: 1294571934 | P46: 1306606941 | Q46: 1336510081 | S46: =SUM(S41+S42+S43+S44+S45) -> 0 | T46: 0 | U46: 0 | V46: 0 | W46: 0 | X46: 0 | Y46: 0
B47: For overhead network assets 33kV and above:
A48: DRAB0501 | B48: Opening value | C48: 211129346.8 | D48: =C53 -> 215387282.5 | E48: 222894190.1 | F48: 239603801.4 | G48: 255036883.2 | H48: 276897186.9 | I48: 302022921.1 | K48: 211129346.8 | L48: =K53 -> 215387282.5 | M48: 222894190.1 | N48: 239603801.4 | O48: 255036883.2 | P48: 276897186.9 | Q48: 302022921.1 | T48: =S53 -> 0 | U48: 0 | V48: 0 | W48: 0 | X48: 0 | Y48: 0
A49: DRAB0502 | B49: Inflation addition
A50: DRAB0503 | B50: Straight line depreciation | C50: -5532468.8 | D50: -5717727.36 | E50: -5070840.51 | F50: -5466848.73 | G50: -5846847.46 | H50: -6350613.85 | I50: -6922911.09 | K50: -5532468.8 | L50: -5717727.36 | M50: -5070840.51 | N50: -5466848.73 | O50: -5846847.46 | P50: -6350613.85 | Q50: -6922911.09
A51: DRAB0505 | B51: Actual additions (recognised in RAB) | C51: 9790404.57 | D51: 13224634.94 | E51: 21780451.79 | F51: 20899930.57 | G51: 27707151.11 | H51: 31476348.09 | I51: 18155409.42 | K51: 9790404.57 | L51: 13224634.94 | M51: 21780451.79 | N51: 20899930.57 | O51: 27707151.11 | P51: 31476348.09 | Q51: 18155409.42
A52: DRAB0506 | B52: Disposals
A53: DRAB0507 | B53: Closing value | C53: =SUM(C48+C49+C50+C51+C52) -> 215387282.5 | D53: 222894190.1 | E53: 239603801.4 | F53: 255036883.2 | G53: 276897186.9 | H53: 302022921.1 | I53: 313255419.4 | K53: =SUM(K48+K49+K50+K51+K52) -> 215387282.5 | L53: 222894190.1 | M53: 239603801.4 | N53: 255036883.2 | O53: 276897186.9 | P53: 302022921.1 | Q53: 313255419.4 | S53: =SUM(S48+S49+S50+S51+S52) -> 0 | T53: 0 | U53: 0 | V53: 0 | W53: 0 | X53: 0 | Y53: 0
B54: For underground network assets 33kV and above:
A55: DRAB0601 | B55: Opening value | C55: 27630939.95 | D55: =C60 -> 28188184.93 | E55: 29170629.65 | F55: 31357451.49 | G55: 33377211.24 | H55: 36238114.98 | I55: 39526372.46 | K55: 27630939.95 | L55: =K60 -> 28188184.93 | M55: 29170629.65 | N55: 31357451.49 | O55: 33377211.24 | P55: 36238114.98 | Q55: 39526372.46 | T55: =S60 -> 0 | U55: 0 | V55: 0 | W55: 0 | X55: 0 | Y55: 0
A56: DRAB0602 | B56: Inflation addition
A57: DRAB0603 | B57: Straight line depreciation | C57: -724045.78 | D57: -748290.96 | E57: -663631.52 | F57: -715457.95 | G57: -765189.18 | H57: -831118.14 | I57: -906015.88 | K57: -724045.78 | L57: -748290.96 | M57: -663631.52 | N57: -715457.95 | O57: -765189.18 | P57: -831118.14 | Q57: -906015.88
A58: DRAB0605 | B58: Actual additions (recognised in RAB) | C58: 1281290.76 | D58: 1730735.68 | E58: 2850453.36 | F58: 2735217.7 | G58: 3626092.92 | H58: 4119375.62 | I58: 2376036.47 | K58: 1281290.76 | L58: 1730735.68 | M58: 2850453.36 | N58: 2735217.7 | O58: 3626092.92 | P58: 4119375.62 | Q58: 2376036.47
A59: DRAB0606 | B59: Disposals
A60: DRAB0607 | B60: Closing value | C60: =SUM(C55+C56+C57+C58+C59) -> 28188184.93 | D60: 29170629.65 | E60: 31357451.49 | F60: 33377211.24 | G60: 36238114.98 | H60: 39526372.46 | I60: 40996393.05 | K60: =SUM(K55+K56+K57+K58+K59) -> 28188184.93 | L60: 29170629.65 | M60: 31357451.49 | N60: 33377211.24 | O60: 36238114.98 | P60: 39526372.46 | Q60: 40996393.05 | S60: =SUM(S55+S56+S57+S58+S59) -> 0 | T60: 0 | U60: 0 | V60: 0 | W60: 0 | X60: 0 | Y60: 0
B61: Zone substations and transformers
A62: DRAB0701 | B62: Opening value | C62: 524648665.1 | D62: =C67 -> 513626064.2 | E62: 500007374.3 | F62: 496934911.1 | G62: 490583944.7 | H62: 486077324.6 | I62: 490596149.5 | K62: 524648665.1 | L62: =K67 -> 513626064.2 | M62: 500007374.3 | N62: 496934911.1 | O62: 490583944.7 | P62: 486077324.6 | Q62: 490596149.5 | T62: =S67 -> 0 | U62: 0 | V62: 0 | W62: 0 | X62: 0 | Y62: 0
A63: DRAB0702 | B63: Inflation addition
A64: DRAB0703 | B64: Straight line depreciation | C64: -31435056.6 | D64: -31800976.41 | E64: -31830094.92 | F64: -32511730.63 | G64: -33124732.41 | H64: -17315133.15 | I64: -14609462.59 | K64: -31435056.6 | L64: -31800976.41 | M64: -31830094.92 | N64: -32511730.63 | O64: -33124732.41 | P64: -17315133.15 | Q64: -14609462.59
A65: DRAB0705 | B65: Actual additions (recognised in RAB) | C65: 20412455.75 | D65: 18182286.43 | E65: 28757631.72 | F65: 26160764.24 | G65: 28618112.36 | H65: 21833958.03 | I65: 25837296.28 | K65: 20412455.75 | L65: 18182286.43 | M65: 28757631.72 | N65: 26160764.24 | O65: 28618112.36 | P65: 21833958.03 | Q65: 25837296.28
A66: DRAB0706 | B66: Disposals
A67: DRAB0707 | B67: Closing value | C67: =SUM(C62+C63+C64+C65+C66) -> 513626064.2 | D67: 500007374.3 | E67: 496934911.1 | F67: 490583944.7 | G67: 486077324.6 | H67: 490596149.5 | I67: 501823983.2 | K67: =SUM(K62+K63+K64+K65+K66) -> 513626064.2 | L67: 500007374.3 | M67: 496934911.1 | N67: 490583944.7 | O67: 486077324.6 | P67: 490596149.5 | Q67: 501823983.2 | S67: =SUM(S62+S63+S64+S65+S66) -> 0 | T67: 0 | U67: 0 | V67: 0 | W67: 0 | X67: 0 | Y67: 0
B68: For easements:
A69: DRAB0801 | B69: Opening value | C69: 10910927.64 | D69: =C73 -> 10910927.64 | E69: 10910927.64 | F69: 10910927.64 | G69: 10910927.64 | H69: 10910927.64 | I69: 10910927.64 | K69: 10910927.64 | L69: =K73 -> 10910927.64 | M69: 10910927.64 | N69: 10910927.64 | O69: 10910927.64 | P69: 10910927.64 | Q69: 10910927.64 | T69: =S73 -> 0 | U69: 0 | V69: 0 | W69: 0 | X69: 0 | Y69: 0
A70: DRAB0802 | B70: Inflation addition
A71: DRAB0803 | B71: Actual additions (recognised in RAB)
A72: DRAB0804 | B72: Disposals
A73: DRAB0805 | B73: Closing value | C73: =SUM(C69+C70+C71+C72) -> 10910927.64 | D73: 10910927.64 | E73: 10910927.64 | F73: 10910927.64 | G73: 10910927.64 | H73: 10910927.64 | I73: 10910927.64 | K73: =SUM(K69+K70+K71+K72) -> 10910927.64 | L73: 10910927.64 | M73: 10910927.64 | N73: 10910927.64 | O73: 10910927.64 | P73: 10910927.64 | Q73: 10910927.64 | S73: =SUM(S69+S70+S71+S72) -> 0 | T73: 0 | U73: 0 | V73: 0 | W73: 0 | X73: 0 | Y73: 0
B74: For meters:
A75: DRAB0901 | B75: Opening value | E75: =T80 -> 836156.38 | F75: =E80 -> 7311.23 | G75: -1.047737896e-09 | H75: -1.047737896e-09 | I75: -1.047737896e-09 | L75: =K80 -> 0 | M75: =T80 -> 836156.38 | N75: 7311.23 | O75: -1.047737896e-09 | P75: -1.047737896e-09 | Q75: -1.047737896e-09 | S75: 17646621.62 | T75: =S80 -> 9273810.34
A76: DRAB0902 | B76: Inflation addition
A77: DRAB0903 | B77: Straight line depreciation | E77: -836156.38 | F77: -7311.23 | M77: -836156.38 | N77: -7311.23 | S77: -8372811.28 | T77: -8437653.96
A78: DRAB0905 | B78: Actual additions (recognised in RAB) | E78: 7311.23 | M78: 7311.23
A79: DRAB0906 | B79: Disposals
A80: DRAB0907 | B80: Closing value | C80: =SUM(C75+C76+C77+C78+C79) -> 0 | D80: 0 | E80: 7311.23 | F80: -1.047737896e-09 | G80: -1.047737896e-09 | H80: -1.047737896e-09 | I80: -1.047737896e-09 | K80: =SUM(K75+K76+K77+K78+K79) -> 0 | L80: 0 | M80: 7311.23 | N80: -1.047737896e-09 | O80: -1.047737896e-09 | P80: -1.047737896e-09 | Q80: -1.047737896e-09 | S80: =SUM(S75+S76+S77+S78+S79) -> 9273810.34 | T80: 836156.38 | U80: 0 | V80: 0 | W80: 0 | X80: 0 | Y80: 0
B81: For “other” asset items with long lives:
A82: DRAB1001 | B82: Opening value | C82: 679332189.3 | D82: =C87 -> 687040850.9 | E82: 680054972.1 | F82: 694786546.8 | G82: 708706409.9 | H82: 712294960.8 | I82: 719124510.6 | K82: 679332189.3 | L82: =K87 -> 687040850.9 | M82: 680054972.1 | N82: 694786546.8 | O82: 708706409.9 | P82: 712294960.8 | Q82: 719124510.6 | S82: 56990384.45 | T82: =S87 -> 56634372.05 | U82: 58028425.21 | V82: 57523160.48 | W82: 57033445.01 | X82: 56669112.58 | Y82: 56302892.99
A83: DRAB1002 | B83: Inflation addition
A84: DRAB1003 | B84: Straight line depreciation | C84: -43089618.97 | D84: -46302570.96 | E84: -45554120.72 | F84: -48653499.17 | G84: -50865465.48 | H84: -52267859.16 | I84: -54688400.04 | K84: -43089618.97 | L84: -46302570.96 | M84: -45554120.72 | N84: -48653499.17 | O84: -50865465.48 | P84: -52267859.16 | Q84: -54688400.04 | S84: -3814666.85 | T84: -3807035.69 | U84: -4168731.14 | V84: -4167276.87 | W84: -4054528.53 | X84: -4072762.82 | Y84: -4145456.53
A85: DRAB1005 | B85: Actual additions (recognised in RAB) | C85: 52434165.26 | D85: 40946755.34 | E85: 61016098.76 | F85: 63803649.38 | G85: 55520465.28 | H85: 60731235.45 | I85: 57646405.95 | K85: 52434165.26 | L85: 40946755.34 | M85: 61016098.76 | N85: 63803649.38 | O85: 55520465.28 | P85: 60731235.45 | Q85: 57646405.95 | S85: 3458654.45 | T85: 5201088.85 | U85: 3663466.41 | V85: 3677561.4 | W85: 3690196.1 | X85: 3706543.23 | Y85: 3724503.32
A86: DRAB1006 | B86: Disposals | C86: -1635884.7 | D86: -1630063.22 | E86: -730403.36 | F86: -1230287.12 | G86: -1066448.82 | H86: -1633826.51 | I86: -1048450.45 | K86: -1635884.7 | L86: -1630063.22 | M86: -730403.36 | N86: -1230287.12 | O86: -1066448.82 | P86: -1633826.51 | Q86: -1048450.45
A87: DRAB1007 | B87: Closing value | C87: =SUM(C82+C83+C84+C85+C86) -> 687040850.9 | D87: 680054972.1 | E87: 694786546.8 | F87: 708706409.9 | G87: 712294960.8 | H87: 719124510.6 | I87: 721034066.1 | K87: =SUM(K82+K83+K84+K85+K86) -> 687040850.9 | L87: 680054972.1 | M87: 694786546.8 | N87: 708706409.9 | O87: 712294960.8 | P87: 719124510.6 | Q87: 721034066.1 | S87: =SUM(S82+S83+S84+S85+S86) -> 56634372.05 | T87: 58028425.21 | U87: 57523160.48 | V87: 57033445.01 | W87: 56669112.58 | X87: 56302892.99 | Y87: 55881939.78
B88: For “other” asset items with short lives:
A89: DRAB1101 | B89: Opening value | C89: 311199767.6 | D89: =C94 -> 286903937.1 | E89: =D94+T94 -> 276196053.5 | F89: 240420944.8 | G89: 236532860.6 | H89: 243241126.4 | I89: 238462764.5 | K89: 311199767.6 | L89: =K94 -> 286903937.1 | M89: =L94+T94 -> 276196053.5 | N89: 240420944.6 | O89: 236532860.4 | P89: 243241126.2 | Q89: 238462764.3 | S89: -682585 | T89: =S94 -> -358718.17 | V89: 0 | W89: 0 | X89: 0 | Y89: 0
A90: DRAB1102 | B90: Inflation addition
A91: DRAB1103 | B91: Straight line depreciation | C91: -87509951.65 | D91: -81540054.32 | E91: -107238998.6 | F91: -97331992.62 | G91: -80046311.93 | H91: -77547297.12 | I91: -79240863.65 | K91: -87509951.65 | L91: -81540054.32 | M91: -107238998.8 | N91: -97331992.62 | O91: -80046311.93 | P91: -77547297.12 | Q91: -79240863.65 | S91: 323866.83 | T91: 326374.99
A92: DRAB1105 | B92: Actual additions (recognised in RAB) | C92: 66271778.53 | D92: 73911290.25 | E92: 73514134.53 | F92: 96096045.82 | G92: 92181445.28 | H92: 76459334.96 | I92: 76127591.95 | K92: 66271778.53 | L92: 73911290.25 | M92: 73514134.53 | N92: 96096045.82 | O92: 92181445.28 | P92: 76459334.96 | Q92: 76127591.95
A93: DRAB1106 | B93: Disposals | C93: -3057657.39 | D93: -3046776.36 | E93: -2050244.6 | F93: -2652137.32 | G93: -5426867.62 | H93: -3690399.69 | I93: -2682484.31 | K93: -3057657.39 | L93: -3046776.36 | M93: -2050244.6 | N93: -2652137.32 | O93: -5426867.62 | P93: -3690399.69 | Q93: -2682484.31
A94: DRAB1107 | B94: Closing value | C94: =SUM(C89+C90+C91+C92+C93) -> 286903937.1 | D94: 276228396.6 | E94: 240420944.8 | F94: 236532860.6 | G94: 243241126.4 | H94: 238462764.5 | I94: 232667008.5 | K94: =SUM(K89+K90+K91+K92+K93) -> 286903937.1 | L94: 276228396.6 | M94: 240420944.6 | N94: 236532860.4 | O94: 243241126.2 | P94: 238462764.3 | Q94: 232667008.3 | S94: =SUM(S89+S90+S91+S92+S93) -> -358718.17 | T94: -32343.18 | U94: 0 | V94: 0 | W94: 0 | X94: 0 | Y94: 0
B98: 3.3.3 - TOTAL DISAGGREGATED BENCHMARKING ASSET BASE VALUES
C99: Network services | K99: Standard control services | S99: Alternative control services
C100: =CONCATENATE(" VALUE FORECAST ($, real ", dms_DollarReal, ")") -> VALUE FORECAST ($, real June 2025) | K100: =CONCATENATE(" VALUE FORECAST ($, real ", dms_DollarReal, ")") -> VALUE FORECAST ($, real June 2025) | S100: =CONCATENATE(" VALUE FORECAST ($, real ", dms_DollarReal, ")") -> VALUE FORECAST ($, real June 2025)
C101: =CRCP_y4 -> 2023-24 | D101: =CRCP_y5 -> 2024-25 | E101: =FRCP_y1 -> 2025-26 | F101: =FRCP_y2 -> 2026-27 | G101: =FRCP_y3 -> 2027-28 | H101: =FRCP_y4 -> 2028-29 | I101: =FRCP_y5 -> 2029-30 | K101: =CRCP_y4 -> 2023-24 | L101: =CRCP_y5 -> 2024-25 | M101: =FRCP_y1 -> 2025-26 | N101: =FRCP_y2 -> 2026-27 | O101: =FRCP_y3 -> 2027-28 | P101: =FRCP_y4 -> 2028-29 | Q101: =FRCP_y5 -> 2029-30 | S101: =CRCP_y4 -> 2023-24 | T101: =CRCP_y5 -> 2024-25 | U101: =FRCP_y1 -> 2025-26 | V101: =FRCP_y2 -> 2026-27 | W101: =FRCP_y3 -> 2027-28 | X101: =FRCP_y4 -> 2028-29 | Y101: =FRCP_y5 -> 2029-30
A102: DRAB1201 | B102: Overhead network assets less than 33kV (wires and poles) | C102: =IFERROR(AVERAGE(C27,C32),"") -> 669703952.4 | D102: =IFERROR(AVERAGE(D27,D32),"") -> 684622135.2 | E102: 704222780.6 | F102: 731232129.5 | G102: 758085770.4 | H102: 786582552.4 | I102: 817634688.8 | K102: =IFERROR(AVERAGE(K27,K32),"") -> 775754168.5 | L102: =IFERROR(AVERAGE(L27,L32),"") -> 793034703.3 | M102: 815739187 | N102: 847025570.9 | O102: 878131589.9 | P102: 911140947.7 | Q102: 947110310.3 | S102: =IFERROR(AVERAGE(S27,S32),"") -> 0 | T102: =IFERROR(AVERAGE(T27,T32),"") -> 0 | U102: 0 | V102: 0 | W102: 0 | X102: 0 | Y102: 0
A103: DRAB1202 | B103: Underground network assets less than 33kV (cables) | C103: =IFERROR(AVERAGE(C34,C39),"") -> 1171215338 | D103: =IFERROR(AVERAGE(D34,D39),"") -> 1197306320 | E103: 1231586252 | F103: 1278821696 | G103: 1325784830 | H103: 1375621579 | I103: 1429927274 | K103: =IFERROR(AVERAGE(K34,K39),"") -> 1330800650 | L103: =IFERROR(AVERAGE(L34,L39),"") -> 1360446520 | M103: 1399397136 | N103: 1453068700 | O103: 1506430851 | P103: 1563058164 | Q103: 1624763345 | S103: =IFERROR(AVERAGE(S34,S39),"") -> 0 | T103: =IFERROR(AVERAGE(T34,T39),"") -> 0 | U103: 0 | V103: 0 | W103: 0 | X103: 0 | Y103: 0
A104: DRAB1203 | B104: Distribution substations including transformers | C104: =IFERROR(AVERAGE(C41,C46),"") -> 1382620888 | D104: =IFERROR(AVERAGE(D41,D46),"") -> 1349807257 | E104: 1327580446 | F104: 1315031714 | G104: 1300573185 | H104: 1300589437 | I104: 1321558511 | K104: =IFERROR(AVERAGE(K41,K46),"") -> 1382620888 | L104: =IFERROR(AVERAGE(L41,L46),"") -> 1349807257 | M104: 1327580446 | N104: 1315031714 | O104: 1300573185 | P104: 1300589437 | Q104: 1321558511 | S104: =IFERROR(AVERAGE(S41,S46),"") -> 0 | T104: =IFERROR(AVERAGE(T41,T46),"") -> 0 | U104: 0 | V104: 0 | W104: 0 | X104: 0 | Y104: 0
A105: DRAB1204 | B105: Overhead network assets 33kV and above (wires and towers / poles etc) | C105: =IFERROR(AVERAGE(C48,C53),"") -> 213258314.6 | D105: =IFERROR(AVERAGE(D48,D53),"") -> 219140736.3 | E105: 231248995.7 | F105: 247320342.3 | G105: 265967035 | H105: 289460054 | I105: 307639170.3 | K105: =IFERROR(AVERAGE(K48,K53),"") -> 213258314.6 | L105: =IFERROR(AVERAGE(L48,L53),"") -> 219140736.3 | M105: 231248995.7 | N105: 247320342.3 | O105: 265967035 | P105: 289460054 | Q105: 307639170.3 | S105: =IFERROR(AVERAGE(S48,S53),"") -> 0 | T105: =IFERROR(AVERAGE(T48,T53),"") -> 0 | U105: 0 | V105: 0 | W105: 0 | X105: 0 | Y105: 0
A106: DRAB1205 | B106: Underground network assets 33kV and above(cables, ducts etc) | C106: =IFERROR(AVERAGE(C55,C60),"") -> 27909562.44 | D106: =IFERROR(AVERAGE(D55,D60),"") -> 28679407.29 | E106: 30264040.57 | F106: 32367331.36 | G106: 34807663.11 | H106: 37882243.72 | I106: 40261382.75 | K106: =IFERROR(AVERAGE(K55,K60),"") -> 27909562.44 | L106: =IFERROR(AVERAGE(L55,L60),"") -> 28679407.29 | M106: 30264040.57 | N106: 32367331.36 | O106: 34807663.11 | P106: 37882243.72 | Q106: 40261382.75 | S106: =IFERROR(AVERAGE(S55,S60),"") -> 0 | T106: =IFERROR(AVERAGE(T55,T60),"") -> 0 | U106: 0 | V106: 0 | W106: 0 | X106: 0 | Y106: 0
A107: DRAB1206 | B107: Zone substations and transformers | C107: =IFERROR(AVERAGE(C62,C67),"") -> 519137364.7 | D107: =IFERROR(AVERAGE(D62,D67),"") -> 506816719.2 | E107: 498471142.7 | F107: 493759427.9 | G107: 488330634.6 | H107: 488336737.1 | I107: 496210066.3 | K107: =IFERROR(AVERAGE(K62,K67),"") -> 519137364.7 | L107: =IFERROR(AVERAGE(L62,L67),"") -> 506816719.2 | M107: 498471142.7 | N107: 493759427.9 | O107: 488330634.6 | P107: 488336737.1 | Q107: 496210066.3 | S107: =IFERROR(AVERAGE(S62,S67),"") -> 0 | T107: =IFERROR(AVERAGE(T62,T67),"") -> 0 | U107: 0 | V107: 0 | W107: 0 | X107: 0 | Y107: 0
A108: DRAB1207 | B108: Easements | C108: =IFERROR(AVERAGE(C69,C73),"") -> 10910927.64 | D108: =IFERROR(AVERAGE(D69,D73),"") -> 10910927.64 | E108: 10910927.64 | F108: 10910927.64 | G108: 10910927.64 | H108: 10910927.64 | I108: 10910927.64 | K108: =IFERROR(AVERAGE(K69,K73),"") -> 10910927.64 | L108: =IFERROR(AVERAGE(L69,L73),"") -> 10910927.64 | M108: 10910927.64 | N108: 10910927.64 | O108: 10910927.64 | P108: 10910927.64 | Q108: 10910927.64 | S108: =IFERROR(AVERAGE(S69,S73),"") -> 0 | T108: =IFERROR(AVERAGE(T69,T73),"") -> 0 | U108: 0 | V108: 0 | W108: 0 | X108: 0 | Y108: 0
A109: DRAB1208 | B109: Meters | C109: =IFERROR(AVERAGE(C75,C80),"") -> 0 | D109: =IFERROR(AVERAGE(D75,D80),"") -> 0 | E109: 421733.805 | F109: 3655.615 | G109: -1.047737896e-09 | H109: -1.047737896e-09 | I109: -1.047737896e-09 | K109: =IFERROR(AVERAGE(K75,K80),"") -> 0 | L109: =IFERROR(AVERAGE(L75,L80),"") -> 0 | M109: 421733.805 | N109: 3655.615 | O109: -1.047737896e-09 | P109: -1.047737896e-09 | Q109: -1.047737896e-09 | S109: =IFERROR(AVERAGE(S75,S80),"") -> 13460215.98 | T109: =IFERROR(AVERAGE(T75,T80),"") -> 5054983.36 | U109: 0 | V109: 0 | W109: 0 | X109: 0 | Y109: 0
A110: DRAB1209 | B110: “Other” assets with long lives | C110: =IFERROR(AVERAGE(C82,C87),"") -> 683186520.1 | D110: =IFERROR(AVERAGE(D82,D87),"") -> 683547911.5 | E110: 687420759.4 | F110: 701746478.3 | G110: 710500685.3 | H110: 715709735.7 | I110: 720079288.3 | K110: =IFERROR(AVERAGE(K82,K87),"") -> 683186520.1 | L110: =IFERROR(AVERAGE(L82,L87),"") -> 683547911.5 | M110: 687420759.4 | N110: 701746478.3 | O110: 710500685.3 | P110: 715709735.7 | Q110: 720079288.3 | S110: =IFERROR(AVERAGE(S82,S87),"") -> 56812378.25 | T110: =IFERROR(AVERAGE(T82,T87),"") -> 57331398.63 | U110: 57775792.85 | V110: 57278302.75 | W110: 56851278.8 | X110: 56486002.79 | Y110: 56092416.39
A111: DRAB1210 | B111: “Other” assets with short lives | C111: =IFERROR(AVERAGE(C89,C94),"") -> 299051852.3 | D111: =IFERROR(AVERAGE(D89,D94),"") -> 281566166.9 | E111: 258308499.1 | F111: 238476902.7 | G111: 239886993.5 | H111: 240851945.4 | I111: 235564886.5 | K111: =IFERROR(AVERAGE(K89,K94),"") -> 299051852.3 | L111: =IFERROR(AVERAGE(L89,L94),"") -> 281566166.9 | M111: 258308499 | N111: 238476902.5 | O111: 239886993.3 | P111: 240851945.3 | Q111: 235564886.3 | S111: =IFERROR(AVERAGE(S89,S94),"") -> -520651.585 | T111: =IFERROR(AVERAGE(T89,T94),"") -> -195530.675 | U111: 0 | V111: 0 | W111: 0 | X111: 0 | Y111: 0
A112: DRAB13 | B112: Value of Capital Contributions or Contributed Assets (included in the above) | C112: -92756550.13 | D112: -89433743.92 | E112: -107158240.8 | F112: -102000247.7 | G112: -103670847.1 | H112: -104141383.7 | I112: -97573261.8 | K112: -92756550.13 | L112: -89433743.92 | M112: -107158240.8 | N112: -102000247.7 | O112: -103670847.1 | P112: -104141383.7 | Q112: -97573261.8 | S112: -2567126.39 | T112: -2704992.04 | U112: -604125.04 | V112: -606322.57 | W112: -608202.08 | X112: -610588.23 | Y112: -613246.44
B115: 3.3.4 - ASSET LIVES
C116: Network services | K116: Standard control services | S116: Alternative control services
C117: FORECAST ( years ) | K117: FORECAST ( years ) | S117: FORECAST ( years )
C118: =CRCP_y4 -> 2023-24 | D118: =CRCP_y5 -> 2024-25 | E118: =FRCP_y1 -> 2025-26 | F118: =FRCP_y2 -> 2026-27 | G118: =FRCP_y3 -> 2027-28 | H118: =FRCP_y4 -> 2028-29 | I118: =FRCP_y5 -> 2029-30 | K118: =CRCP_y4 -> 2023-24 | L118: =CRCP_y5 -> 2024-25 | M118: =FRCP_y1 -> 2025-26 | N118: =FRCP_y2 -> 2026-27 | O118: =FRCP_y3 -> 2027-28 | P118: =FRCP_y4 -> 2028-29 | Q118: =FRCP_y5 -> 2029-30 | S118: =CRCP_y4 -> 2023-24 | T118: =CRCP_y5 -> 2024-25 | U118: =FRCP_y1 -> 2025-26 | V118: =FRCP_y2 -> 2026-27 | W118: =FRCP_y3 -> 2027-28 | X118: =FRCP_y4 -> 2028-29 | Y118: =FRCP_y5 -> 2029-30
B119: Estimated service life of new assets
A120: DRAB1401 | B120: Overhead network assets less than 33kV (wires and poles) | C120: 53 | D120: 53 | E120: 53 | F120: 54 | G120: 54 | H120: 54 | I120: 54 | K120: 53 | L120: 53 | M120: 53 | N120: 54 | O120: 54 | P120: 54 | Q120: 54
A121: DRAB1402 | B121: Underground network assets less than 33kV (cables) | C121: 53 | D121: 53 | E121: 53 | F121: 54 | G121: 54 | H121: 54 | I121: 54 | K121: 53 | L121: 53 | M121: 53 | N121: 54 | O121: 54 | P121: 54 | Q121: 54
A122: DRAB1403 | B122: Distribution substations including transformers | C122: 42 | D122: 43 | E122: 44 | F122: 43 | G122: 43 | H122: 43 | I122: 43 | K122: 42 | L122: 43 | M122: 44 | N122: 43 | O122: 43 | P122: 43 | Q122: 43
A123: DRAB1404 | B123: Overhead network assets 33kV and above (wires and towers / poles etc) | C123: 55 | D123: 55 | E123: 55 | F123: 55 | G123: 55 | H123: 55 | I123: 55 | K123: 55 | L123: 55 | M123: 55 | N123: 55 | O123: 55 | P123: 55 | Q123: 55
A124: DRAB1405 | B124: Underground network assets 33kV and above(cables, ducts etc) | C124: 55 | D124: 55 | E124: 55 | F124: 55 | G124: 55 | H124: 55 | I124: 55 | K124: 55 | L124: 55 | M124: 55 | N124: 55 | O124: 55 | P124: 55 | Q124: 55
A125: DRAB1406 | B125: Zone substations and transformers | C125: 42 | D125: 43 | E125: 44 | F125: 43 | G125: 43 | H125: 43 | I125: 43 | K125: 42 | L125: 43 | M125: 44 | N125: 43 | O125: 43 | P125: 43 | Q125: 43
A126: DRAB1407 | B126: Meters | C126: 0 | D126: 0 | E126: 0 | F126: 0 | G126: 0 | H126: 0 | I126: 0 | K126: 0 | L126: 0 | M126: 0 | N126: 0 | O126: 0 | P126: 0 | Q126: 0
A127: DRAB1408 | B127: “Other” assets with long lives | C127: 20 | D127: 18 | E127: 21 | F127: 24 | G127: 20 | H127: 19 | I127: 21 | K127: 20 | L127: 18 | M127: 21 | N127: 24 | O127: 20 | P127: 19 | Q127: 21 | S127: 28 | T127: 28 | U127: 27 | V127: 27 | W127: 27 | X127: 27 | Y127: 27
A128: DRAB1409 | B128: “Other” assets with short lives | C128: 5 | D128: 5 | E128: 5 | F128: 5 | G128: 5 | H128: 5 | I128: 5 | K128: 5 | L128: 5 | M128: 5 | N128: 5 | O128: 5 | P128: 5 | Q128: 5
B129: Estimated residual service life
A130: DRAB1501 | B130: Overhead network assets less than 33kV (wires and poles) | C130: 14 | D130: 17 | E130: 18 | F130: 18 | G130: 18 | H130: 18 | I130: 19 | K130: 14 | L130: 17 | M130: 18 | N130: 18 | O130: 18 | P130: 18 | Q130: 19
A131: DRAB1502 | B131: Underground network assets less than 33kV (cables) | C131: 14 | D131: 17 | E131: 18 | F131: 18 | G131: 18 | H131: 18 | I131: 19 | K131: 14 | L131: 17 | M131: 18 | N131: 18 | O131: 18 | P131: 18 | Q131: 19
A132: DRAB1503 | B132: Distribution substations including transformers | C132: 16 | D132: 16 | E132: 15 | F132: 15 | G132: 28 | H132: 34 | I132: 34 | K132: 16 | L132: 16 | M132: 15 | N132: 15 | O132: 28 | P132: 34 | Q132: 34
A133: DRAB1504 | B133: Overhead network assets 33kV and above (wires and towers / poles etc) | C133: 38 | D133: 44 | E133: 44 | F133: 44 | G133: 44 | H133: 44 | I133: 45 | K133: 38 | L133: 44 | M133: 44 | N133: 44 | O133: 44 | P133: 44 | Q133: 45
A134: DRAB1505 | B134: Underground network assets 33kV and above (cables, ducts etc) | C134: 38 | D134: 44 | E134: 44 | F134: 44 | G134: 44 | H134: 44 | I134: 45 | K134: 38 | L134: 44 | M134: 44 | N134: 44 | O134: 44 | P134: 44 | Q134: 45
A135: DRAB1506 | B135: Zone substations and transformers | C135: 16 | D135: 16 | E135: 15 | F135: 15 | G135: 28 | H135: 34 | I135: 34 | K135: 16 | L135: 16 | M135: 15 | N135: 15 | O135: 28 | P135: 34 | Q135: 34
A136: DRAB1507 | B136: Meters | C136: 0 | D136: 0 | E136: 0 | F136: 0 | G136: 0 | H136: 0 | I136: 0 | K136: 0 | L136: 0 | M136: 0 | N136: 0 | O136: 0 | P136: 0 | Q136: 0 | S136: 0 | T136: 0 | U136: 0 | V136: 0 | W136: 0 | X136: 0 | Y136: 0
A137: DRAB1508 | B137: “Other” assets with long lives | C137: 15 | D137: 15 | E137: 14 | F137: 14 | G137: 14 | H137: 13 | I137: 13 | K137: 14 | L137: 15 | M137: 14 | N137: 14 | O137: 14 | P137: 13 | Q137: 13 | S137: 15 | T137: 14 | U137: 14 | V137: 14 | W137: 14 | X137: 14 | Y137: 13
A138: DRAB1509 | B138: “Other” assets with short lives | C138: 4 | D138: 3 | E138: 2 | F138: 3 | G138: 3 | H138: 3 | I138: 3 | K138: 4 | L138: 3 | M138: 2 | N138: 3 | O138: 3 | P138: 3 | Q138: 3 | S138: 1 | T138: 0 | U138: 0 | V138: 0 | W138: 0 | X138: 0 | Y138: 0

Sheet 3.4 Operational data
B1: =INDEX(dms_Worksheet_List,MATCH(dms_Model,dms_Model_List)) -> REGULATORY REPORTING STATEMENT
B2: =INDEX(dms_TradingNameFull_List,MATCH(dms_TradingName,dms_TradingName_List)) -> SA Power Networks
B3: =CONCATENATE("REGULATORY PERIOD FROM ", FRCP_y1," TO ",dms_MultiYear_FinalYear_Result) -> REGULATORY PERIOD FROM 2025-26 TO 2029-30
B4: 3.4 OPERATIONAL DATA
B5: TEMPLATE DATE - OCTOBER 2023 - FINAL RIN
B7: There are THREE tables on this worksheet. Each table has been grouped for ease of navigation.
B9: 3.4.1 - ENERGY DELIVERY
D10: Standard control services
D11: FORECAST
C12: Units | D12: =CRCP_y4 -> 2023-24 | E12: =CRCP_y5 -> 2024-25 | F12: =FRCP_y1 -> 2025-26 | G12: =FRCP_y2 -> 2026-27 | H12: =FRCP_y3 -> 2027-28 | I12: =FRCP_y4 -> 2028-29 | J12: =FRCP_y5 -> 2029-30
A13: DOPED01 | B13: TOTAL ENERGY DELIVERED
B14: 3.4.1.1 - Energy grouping - delivery by chargeable quantity
A15: DOPED0201 | B15: Energy Delivery where time of use is not a determinant | C15: GWh | D15: 3676.84 | E15: 3063.75 | F15: 2796.66 | G15: 2520.25 | H15: 2229.03 | I15: 1928.88 | J15: 1610.2
A16: DOPED0202 | B16: Energy Delivery at On-peak times | C16: GWh | D16: 2837.85 | E16: 3138.71 | F16: 3337.01 | G16: 3651.94 | H16: 3911.74 | I16: 4211.56 | J16: 4482.45
A17: DOPED0203 | B17: Energy Delivery at Shoulder times | C17: GWh | D17: 354.76 | E17: 515.33 | F17: 619.81 | G17: 713.02 | H17: 786.42 | I17: 857.92 | J17: 926.89
A18: DOPED0204 | B18: Energy Delivery at Off-peak times | C18: GWh | D18: 2586.68 | E18: 3144.18 | F18: 3661.01 | G18: 4008.82 | H18: 4248.17 | I18: 4536.04 | J18: 4797.28
A19: DOPED0205 | B19: Controlled load energy deliveries | C19: GWh | D19: 450.5 | E19: 458.08 | F19: 451.84 | G19: 445.68 | H19: 439.61 | I19: 433.62 | J19: 427.71
A20: DOPED0206 | B20: Energy Delivery to unmetered supplies | C20: GWh | D20: 99.47 | E20: 98.23 | F20: 98.23 | G20: 98.23 | H20: 98.23 | I20: 98.23 | J20: 98.23
B21: 3.4.1.2 - Energy - received from TNSP and other DNSPs by time of receipt
A22: DOPED0301 | B22: Energy into DNSP network at On-peak times | C22: GWh | D22: 3497.14 | E22: 3631.73 | F22: 3823.99 | G22: 3953.14 | H22: 4000.88 | I22: 4077.74 | J22: 4125.49
A23: DOPED0302 | B23: Energy into DNSP network at Shoulder times | C23: GWh | D23: 0 | E23: 0 | F23: 0 | G23: 0 | H23: 0 | I23: 0 | J23: 0
A24: DOPED0303 | B24: Energy into DNSP network at Off-peak times | C24: GWh | D24: 5128.62 | E24: 5325.99 | F24: 5607.94 | G24: 5797.35 | H24: 5867.36 | I24: 5980.08 | J24: 6050.1
A25: DOPED0304 | B25: Energy received from TNSP and other DNSPs not included in the above categories | C25: GWh | D25: 0 | E25: 0 | F25: 0 | G25: 0 | H25: 0 | I25: 0 | J25: 0
B26: 3.4.1.3 - Energy - received into DNSP system from embedded generation by time of receipt
A27: DOPED0401 | B27: Energy into DNSP network at On-peak times from non-residential embedded generation | C27: GWh | D27: 343.06 | E27: 371.9 | F27: 401.41 | G27: 437.42 | H27: 474.57 | I27: 515.82 | J27: 558.66
A28: DOPED0402 | B28: Energy into DNSP network at Shoulder times from non-residential embedded generation | C28: GWh | D28: 0 | E28: 0 | F28: 0 | G28: 0 | H28: 0 | I28: 0 | J28: 0
A29: DOPED0403 | B29: Energy into DNSP network at Off-peak times from non-residential embedded generation | C29: GWh | D29: 348.43 | E29: 377.73 | F29: 407.7 | G29: 444.27 | H29: 482 | I29: 523.91 | J29: 567.42
A30: DOPED0404 | B30: Energy received from embedded generation not included in above categories from non-residential embedded generation | C30: GWh | D30: 0 | E30: 0 | F30: 0 | G30: 0 | H30: 0 | I30: 0 | J30: 0
A31: DOPED0405 | B31: Energy into DNSP network at On-peak times from residential embedded generation | C31: GWh | D31: 955.09 | E31: 990.13 | F31: 1025.18 | G31: 1104.31 | H31: 1174.12 | I31: 1246.1 | J31: 1308.97
A32: DOPED0406 | B32: Energy into DNSP network at Shoulder times from residential embedded generation | C32: GWh | D32: 0 | E32: 0 | F32: 0 | G32: 0 | H32: 0 | I32: 0 | J32: 0
A33: DOPED0407 | B33: Energy into DNSP network at Off-peak times from residential embedded generation | C33: GWh | D33: 441.97 | E33: 458.19 | F33: 474.4 | G33: 511.02 | H33: 543.33 | I33: 576.64 | J33: 605.73
A34: DOPED0408 | B34: Energy received from embedded generation not included in above categories from residential embedded generation | C34: GWh | D34: 0 | E34: 0 | F34: 0 | G34: 0 | H34: 0 | I34: 0 | J34: 0
B35: 3.4.1.4 - Energy grouping - customer type or class
A36: DOPED0501 | B36: Residential customers energy deliveries | C36: GWh | D36: 3889.54 | E36: 3550.48 | F36: 3588.9 | G36: 3663.29 | H36: 3737.85 | I36: 3922.93 | J36: 4064.4
A37: DOPED0502 | B37: Non residential customers not on demand tariffs energy deliveries | C37: GWh | D37: 967.77 | E37: 1062.15 | F37: 1118.18 | G37: 1148.08 | H37: 1139.32 | I37: 1122.99 | J37: 1099.82
A38: DOPED0503 | B38: Non-residential low voltage demand tariff customers energy deliveries | C38: GWh | D38: 3108.11 | E38: 3615.16 | F38: 3989.47 | G38: 4297.68 | H38: 4476.51 | I38: 4635.17 | J38: 4772.77
A39: DOPED0504 | B39: Non-residential high voltage demand tariff customers energy deliveries | C39: GWh | D39: 1941.21 | E39: 2092.26 | F39: 2169.77 | G39: 2230.66 | H39: 2261.29 | I39: 2286.93 | J39: 2307.53
A40: DOPED0505 | B40: Other Customer Class Energy Deliveries | C40: GWh | D40: 0 | E40: 0 | F40: 0 | G40: 0 | H40: 0 | I40: 0 | J40: 0
B44: 3.4.2 - CUSTOMER NUMBERS (Benchmarking)
D45: FORECAST
C46: Units | D46: 2023-24 | E46: 2024-25 | F46: 2025-26 | G46: 2026-27 | H46: 2027-28 | I46: 2028-29 | J46: 2029-30
B47: 3.4.2.1 - Distribution customer numbers by customer type or class
A48: DOPCN0101 | B48: Residential customer numbers | C48: number | D48: 828334 | E48: 836404 | F48: 844551 | G48: 852779 | H48: 861086 | I48: 869474 | J48: 877944
A49: DOPCN0102 | B49: Non residential customers not on demand tariff customer numbers | C49: number | D49: 90525 | E49: 91050 | F49: 91579 | G49: 92109 | H49: 92644 | I49: 93181 | J49: 93722
A50: DOPCN0103 | B50: Low voltage demand tariff customer numbers | C50: number | D50: 16991 | E50: 17089 | F50: 17188 | G50: 17287 | H50: 17387 | I50: 17488 | J50: 17589
A51: DOPCN0104 | B51: High voltage demand tariff customer numbers | C51: number | D51: 245 | E51: 245 | F51: 245 | G51: 245 | H51: 245 | I51: 245 | J51: 245
A52: DOPCN0105 | B52: Unmetered Customer Numbers | C52: number | D52: 9176 | E52: 9176 | F52: 9176 | G52: 9176 | H52: 9176 | I52: 9176 | J52: 9176
A53: DOPCN0106 | B53: Other Customer Numbers | C53: number | D53: 0 | E53: 0 | F53: 0 | G53: 0 | H53: 0 | I53: 0 | J53: 0
B54: Total customer numbers | D54: =SUM(D48:D53) -> 945271 | E54: =SUM(E48:E53) -> 953964 | F54: 962739 | G54: 971596 | H54: 980538 | I54: 989564 | J54: 998676
B57: Table 3.4.2.2 Distribution customer numbers by location on the network
A58: DOPCN0201 | B58: =INDEX(dms_FeederName_1,MATCH(dms_TradingName,dms_TradingName_List)) -> CBD | C58: number | D58: 6876 | E58: 6907 | F58: 6938 | G58: 6969 | H58: 7000 | I58: 7031 | J58: 7062
A59: DOPCN0202 | B59: =INDEX(dms_FeederName_2,MATCH(dms_TradingName,dms_TradingName_List)) -> Urban | C59: number | D59: 648222 | E59: 654631 | F59: 661094 | G59: 667609 | H59: 674179 | I59: 680803 | J59: 687482
A60: DOPCN0203 | B60: =INDEX(dms_FeederName_3,MATCH(dms_TradingName,dms_TradingName_List)) -> Short rural | C60: number | D60: 142301 | E60: 144475 | F60: 146679 | G60: 148915 | H60: 151182 | I60: 153482 | J60: 155814
A61: DOPCN0204 | B61: =INDEX(dms_FeederName_4,MATCH(dms_TradingName,dms_TradingName_List)) -> Long rural | C61: number | D61: 138696 | E61: 138775 | F61: 138853 | G61: 138928 | H61: 139002 | I61: 139073 | J61: 139143
A62: DOPCN0205 | B62: =IF((INDEX(dms_FeederName_5,MATCH(dms_TradingName,dms_TradingName_List))=0),"",(INDEX(dms_FeederName_5,MATCH(dms_TradingName,dms_TradingName_List)))) ->  | C62: number
B63: Total customer numbers | D63: =SUM(D58:D62) -> 936095 | E63: =SUM(E58:E62) -> 944788 | F63: 953564 | G63: 962421 | H63: 971363 | I63: 980389 | J63: 989501
B66: 3.4.2.4 - Unmetered Supply
A67: DOPCN0301 | B67: Number of unmetered connections reported in customer numbers in the economic benchmarking RIN | D67: =D52 -> 9176 | E67: =E52 -> 9176 | F67: 9176 | G67: 9176 | H67: 9176 | I67: 9176 | J67: 9176
A68: DOPCN0302 | B68: Unmetered connections not reported in customer numbers in the economic benchmarking RIN | D68: 0 | E68: 0 | F68: 0 | G68: 0 | H68: 0 | I68: 0 | J68: 0
A69: DOPCN0303 | B69: Total unmetered connections | D69: =SUM(D67:D68) -> 9176 | E69: =SUM(E67:E68) -> 9176 | F69: 9176 | G69: 9176 | H69: 9176 | I69: 9176 | J69: 9176
B72: 3.4.3 - SYSTEM DEMAND
D73: Standard control services
D74: FORECAST
C75: Units | D75: =CRCP_y4 -> 2023-24 | E75: =CRCP_y5 -> 2024-25 | F75: =FRCP_y1 -> 2025-26 | G75: =FRCP_y2 -> 2026-27 | H75: =FRCP_y3 -> 2027-28 | I75: =FRCP_y4 -> 2028-29 | J75: =FRCP_y5 -> 2029-30
B76: 3.4.3.1 - Annual system maximum demand characteristics at the zone substation level – MW measure
A77: DOPSD0102 | B77: Non–coincident Summated Weather Adjusted System Annual Maximum Demand 10% POE | C77: MW | D77: 3323 | E77: 3391 | F77: 3480 | G77: 3603 | H77: 3656 | I77: 3710 | J77: 3768
A78: DOPSD0103 | B78: Non–coincident Summated Weather Adjusted System Annual Maximum Demand 50% POE | C78: MW | D78: 2986 | E78: 3049 | F78: 3125 | G78: 3229 | H78: 3280 | I78: 3331 | J78: 3386
A79: DOPSD0105 | B79: Coincident Weather Adjusted System Annual Maximum Demand 10% POE | C79: MW | D79: 3146 | E79: 3221 | F79: 3303 | G79: 3397 | H79: 3448 | I79: 3498 | J79: 3555
A80: DOPSD0106 | B80: Coincident Weather Adjusted System Annual Maximum Demand 50% POE | C80: MW | D80: 2833 | E80: 2902 | F80: 2971 | G80: 3050 | H80: 3098 | I80: 3146 | J80: 3200
B81: 3.4.3.2 - Annual system maximum demand characteristics at the transmission connection point – MW measure
A82: DOPSD0108 | B82: Non–coincident Summated Weather Adjusted System Annual Maximum Demand 10% POE | C82: MW | D82: 3411 | E82: 3578 | F82: 3680 | G82: 3793 | H82: 3850 | I82: 3906 | J82: 3975
A83: DOPSD0109 | B83: Non–coincident Summated Weather Adjusted System Annual Maximum Demand 50% POE | C83: MW | D83: 3078 | E83: 3236 | F83: 3323 | G83: 3424 | H83: 3479 | I83: 3533 | J83: 3599
A84: DOPSD0111 | B84: Coincident Weather Adjusted System Annual Maximum Demand 10% POE | C84: MW | D84: 3283 | E84: 3452 | F84: 3540 | G84: 3622 | H84: 3676 | I84: 3730 | J84: 3796
A85: DOPSD0112 | B85: Coincident Weather Adjusted System Annual Maximum Demand 50% POE | C85: MW | D85: 2985 | E85: 3141 | F85: 3224 | G85: 3302 | H85: 3355 | I85: 3408 | J85: 3472
B86: 3.4.3.3 - Annual system maximum demand characteristics at the zone substation level – MVA measure
A87: DOPSD0202 | B87: Non–coincident Summated Weather Adjusted System Annual Maximum Demand 10% POE | C87: MVA | D87: 3393 | E87: 3462 | F87: 3553 | G87: 3678 | H87: 3733 | I87: 3788 | J87: 3848
A88: DOPSD0203 | B88: Non–coincident Summated Weather Adjusted System Annual Maximum Demand 50% POE | C88: MVA | D88: 3050 | E88: 3114 | F88: 3191 | G88: 3297 | H88: 3350 | I88: 3402 | J88: 3458
A89: DOPSD0205 | B89: Coincident Weather Adjusted System Annual Maximum Demand 10% POE | C89: MVA | D89: 3210 | E89: 3286 | F89: 3370 | G89: 3465 | H89: 3517 | I89: 3568 | J89: 3626
A90: DOPSD0206 | B90: Coincident Weather Adjusted System Annual Maximum Demand 50% POE | C90: MVA | D90: 2890 | E90: 2961 | F90: 3031 | G90: 3112 | H90: 3161 | I90: 3210 | J90: 3265
B91: 3.4.3.4 - Annual system maximum demand characteristics at the transmission connection point – MVA measure
A92: DOPSD0208 | B92: Non–coincident Summated Weather Adjusted System Annual Maximum Demand 10% POE | C92: MVA | D92: 3444 | E92: 3612 | F92: 3715 | G92: 3830 | H92: 3887 | I92: 3944 | J92: 4013
A93: DOPSD0209 | B93: Non–coincident Summated Weather Adjusted System Annual Maximum Demand 50% POE | C93: MVA | D93: 3108 | E93: 3267 | F93: 3355 | G93: 3457 | H93: 3512 | I93: 3567 | J93: 3633
A94: DOPSD0211 | B94: Coincident Weather Adjusted System Annual Maximum Demand 10% POE | C94: MVA | D94: 3314 | E94: 3485 | F94: 3573 | G94: 3656 | H94: 3711 | I94: 3766 | J94: 3832
A95: DOPSD0212 | B95: Coincident Weather Adjusted System Annual Maximum Demand 50% POE | C95: MVA | D95: 3014 | E95: 3172 | F95: 3255 | G95: 3334 | H95: 3387 | I95: 3441 | J95: 3505
B96: 3.4.3.5 - Power factor conversion between MVA and MW
A97: DOPSD0301 | B97: Average overall network power factor conversion between MVA and MW | C97: Factor | D97: 0.9903312618 | E97: 0.9904771809 | F97: 0.990492469 | G97: 0.9905018223 | H97: 0.9904794371 | I97: 0.9904572369 | J97: 0.9904560028
A98: DOPSD0302 | B98: Average power factor conversion for low voltage distribution lines | C98: Factor | D98: 0.9784339021 | E98: 0.9784940152 | F98: 0.9785421265 | G98: 0.9785817475 | H98: 0.9785975488 | I98: 0.9786194246 | J98: 0.9786528912
A99: DOPSD0303 | B99: Average power factor conversion for 3.3 kV lines | C99: Factor | D99: 0.9483084846 | E99: 0.9483176689 | F99: 0.9483208183 | G99: 0.9483180266 | H99: 0.9483273588 | I99: 0.948337744 | J99: 0.9483476532
A100: DOPSD0304 | B100: Average power factor conversion for 6.6 kV lines | C100: Factor
A101: DOPSD0305 | B101: Average power factor conversion for 7.6 kV lines | C101: Factor | D101: 0.9848190803 | E101: 0.9848664812 | F101: 0.984891715 | G101: 0.9848677221 | H101: 0.9848881907 | I101: 0.9849083041 | J101: 0.9849276851
A102: DOPSD0306 | B102: Average power factor conversion for 11 kV lines | C102: Factor | D102: 0.9796458665 | E102: 0.9796796963 | F102: 0.9796955327 | G102: 0.9796941975 | H102: 0.9796927055 | I102: 0.9796978731 | J102: 0.9797132775
A103: DOPSD0307 | B103: Average power factor conversion for SWER lines | C103: Factor | D103: 0.9684395736 | E103: 0.9695942251 | F103: 0.969674268 | G103: 0.9688432214 | H103: 0.9688904312 | I103: 0.9689339981 | J103: 0.9689712403
A104: DOPSD0308 | B104: Average power factor conversion for 22 kV lines | C104: Factor | D104: 0 | E104: 0 | F104: 0 | G104: 0 | H104: 0 | I104: 0 | J104: 0
A105: DOPSD0309 | B105: Average power factor conversion for 33 kV lines | C105: Factor | D105: 0.9782497519 | E105: 0.9789215985 | F105: 0.9788091839 | G105: 0.9786961792 | H105: 0.9786217989 | I105: 0.978547585 | J105: 0.9784730425
A106: DOPSD0310 | B106: Average power factor conversion for 44 kV lines | C106: Factor | D106: 0 | E106: 0 | F106: 0 | G106: 0 | H106: 0 | I106: 0 | J106: 0
A107: DOPSD0311 | B107: Average power factor conversion for 66 kV lines | C107: Factor | D107: 0.9928688197 | E107: 0.9928427656 | F107: 0.9928643538 | G107: 0.9928756353 | H107: 0.9928622787 | I107: 0.9928491069 | J107: 0.9928500155
A108: DOPSD0312 | B108: Average power factor conversion for 110 kV lines | C108: Factor | D108: 0 | E108: 0 | F108: 0 | G108: 0 | H108: 0 | I108: 0 | J108: 0
A109: DOPSD0313 | B109: Average power factor conversion for 132 kV lines | C109: Factor | D109: 0 | E109: 0 | F109: 0 | G109: 0 | H109: 0 | I109: 0 | J109: 0
A110: DOPSD0314 | B110: Average power factor conversion for 220 kV lines | C110: Factor | D110: 0 | E110: 0 | F110: 0 | G110: 0 | H110: 0 | I110: 0 | J110: 0

Sheet 3.5 Physical assets
B1: =INDEX(dms_Worksheet_List,MATCH(dms_Model,dms_Model_List)) -> REGULATORY REPORTING STATEMENT
B2: =INDEX(dms_TradingNameFull_List,MATCH(dms_TradingName,dms_TradingName_List)) -> SA Power Networks
B3: =CONCATENATE("REGULATORY PERIOD FROM ", FRCP_y1," TO ",dms_MultiYear_FinalYear_Result) -> REGULATORY PERIOD FROM 2025-26 TO 2029-30
B4: 3.5 PHYSICAL ASSETS DATA
B5: TEMPLATE DATE - OCTOBER 2023 - FINAL RIN
B7: There are THREE tables on this worksheet. Each table has been grouped (and sub-grouped) for ease of navigation. See the Instructions sheet on how to group or ungroup tables.
B9: 3.5.1 - NETWORK CAPACITIES VARIABLES
D10: FORECAST
C11: Units | D11: =CRCP_y4 -> 2023-24 | E11: =CRCP_y5 -> 2024-25 | F11: =FRCP_y1 -> 2025-26 | G11: =FRCP_y2 -> 2026-27 | H11: =FRCP_y3 -> 2027-28 | I11: =FRCP_y4 -> 2028-29 | J11: =FRCP_y5 -> 2029-30
B12: CIRCUIT LENGTH
B13: 3.5.1.1 - Overhead network length of circuit at each voltage
A14: DPA0101 | B14: Overhead low voltage distribution | C14: km | D14: 18366.02 | E14: 18299.28 | F14: 18232.79 | G14: 18166.53 | H14: 18100.52 | I14: 18034.75 | J14: 17969.21
A15: DPA0102 | B15: Overhead 2.2 kV | C15: km | D15: 0 | E15: 0 | F15: 0 | G15: 0 | H15: 0 | I15: 0 | J15: 0
A16: DPA0103 | B16: Overhead 7.6 kV | C16: km | D16: 184.59 | E16: 174.73 | F16: 165.4 | G16: 156.56 | H16: 148.2 | I16: 140.29 | J16: 132.8
A17: DPA0104 | B17: Overhead 11 kV | C17: km | D17: 17699.05 | E17: 17713.11 | F17: 17727.18 | G17: 17741.26 | H17: 17755.36 | I17: 17769.46 | J17: 17783.58
A18: DPA0105 | B18: Overhead SWER | C18: km | D18: 29101.74 | E18: 29097.48 | F18: 29093.22 | G18: 29088.96 | H18: 29084.7 | I18: 29080.44 | J18: 29076.19
A19: DPA0106 | B19: Overhead 22 kV | C19: km | D19: 0 | E19: 0 | F19: 0 | G19: 0 | H19: 0 | I19: 0 | J19: 0
A20: DPA0107 | B20: Overhead 33 kV | C20: km | D20: 3997.46 | E20: 4001.92 | F20: 4006.39 | G20: 4010.86 | H20: 4015.33 | I20: 4019.82 | J20: 4024.3
A21: DPA0108 | B21: Overhead 44 kV | C21: km | D21: 0 | E21: 0 | F21: 0 | G21: 0 | H21: 0 | I21: 0 | J21: 0
A22: DPA0109 | B22: Overhead 66 kV | C22: km | D22: 1453.88 | E22: 1455.75 | F22: 1457.63 | G22: 1459.52 | H22: 1461.4 | I22: 1463.29 | J22: 1465.18
A23: DPA0110 | B23: Overhead 132 kV | C23: km | D23: 0 | E23: 0 | F23: 0 | G23: 0 | H23: 0 | I23: 0 | J23: 0
A24: DPA0111 | B24: Overhead 6.6kv | C24: km | D24: 0 | E24: 0 | F24: 0 | G24: 0 | H24: 0 | I24: 0 | J24: 0
A25: DPA0112 | B25: Overhead 110kV | C25: km | D25: 0 | E25: 0 | F25: 0 | G25: 0 | H25: 0 | I25: 0 | J25: 0
A26: DPA0113 | B26: Overhead 220kV | C26: km | D26: 0 | E26: 0 | F26: 0 | G26: 0 | H26: 0 | I26: 0 | J26: 0
A27: DPA0114 | B27: Other | C27: km | D27: 0 | E27: 0 | F27: 0 | G27: 0 | H27: 0 | I27: 0 | J27: 0
A28: DPA01 | B28: Total overhead circuit km | D28: =SUM(D14:D27) -> 70802.74 | E28: 70742.27 | F28: 70682.61 | G28: 70623.69 | H28: 70565.51 | I28: 70508.05 | J28: 70451.26
B29: 3.5.1.2 - Underground network circuit length at each voltage
A30: DPA0201 | B30: Underground low voltage distribution | C30: km | D30: 15054.73 | E30: 15294.2 | F30: 15537.48 | G30: 15784.64 | H30: 16035.72 | I30: 16290.8 | J30: 16549.94
A31: DPA0202 | B31: Underground 5 kV | C31: km | D31: 0 | E31: 0 | F31: 0 | G31: 0 | H31: 0 | I31: 0 | J31: 0
A32: DPA0203 | B32: Underground 6.6 Kv | C32: km | D32: 0 | E32: 0 | F32: 0 | G32: 0 | H32: 0 | I32: 0 | J32: 0
A33: DPA0204 | B33: Underground 7.6 kV | C33: km | D33: 37 | E33: 37 | F33: 37 | G33: 37 | H33: 37 | I33: 37 | J33: 37
A34: DPA0205 | B34: Underground 11 kV | C34: km | D34: 4399.43 | E34: 4469.97 | F34: 4541.65 | G34: 4614.47 | H34: 4688.46 | I34: 4763.64 | J34: 4840.03
A35: DPA0206 | B35: Underground SWER | C35: km | D35: 68.4 | E35: 69.83 | F35: 71.29 | G35: 72.77 | H35: 74.29 | I35: 75.85 | J35: 77.43
A36: DPA0207 | B36: Underground 22 kV | C36: km | D36: 0 | E36: 0 | F36: 0 | G36: 0 | H36: 0 | I36: 0 | J36: 0
A37: DPA0208 | B37: Underground 33 kV | C37: km | D37: 143.58 | E37: 147.26 | F37: 151.03 | G37: 154.9 | H37: 158.86 | I37: 162.93 | J37: 167.1
A38: DPA0209 | B38: Underground 66 kV | C38: km | D38: 54.15 | E38: 54.29 | F38: 54.44 | G38: 54.58 | H38: 54.73 | I38: 54.88 | J38: 55.03
A39: DPA0210 | B39: Underground 110 kV | C39: km | D39: 0 | E39: 0 | F39: 0 | G39: 0 | H39: 0 | I39: 0 | J39: 0
A40: DPA0211 | B40: Underground 132 kV | C40: km | D40: 0 | E40: 0 | F40: 0 | G40: 0 | H40: 0 | I40: 0 | J40: 0
A41: DPA0212 | B41: Other | C41: km | D41: 0 | E41: 0 | F41: 0 | G41: 0 | H41: 0 | I41: 0 | J41: 0
A42: DPA02 | B42: Total underground circuit km | D42: =SUM(D30:D41) -> 19757.29 | E42: 20072.55 | F42: 20392.89 | G42: 20718.36 | H42: 21049.06 | I42: 21385.1 | J42: 21726.53
B44: CIRCUIT CAPACITY MVA
B45: 3.5.1.3 - Estimated overhead network weighted average MVA capacity by voltage class
A46: DPA0301 | B46: Overhead low voltage distribution | C46: MVA | D46: 0.172 | E46: 0.172 | F46: 0.172 | G46: 0.172 | H46: 0.172 | I46: 0.172 | J46: 0.172
A47: DPA0302 | B47: Overhead 6.6 kV | C47: MVA | D47: 0 | E47: 0 | F47: 0 | G47: 0 | H47: 0 | I47: 0 | J47: 0
A48: DPA0303 | B48: Overhead 7.6 kV | C48: MVA | D48: 1.82 | E48: 1.883 | F48: 1.883 | G48: 1.883 | H48: 1.883 | I48: 1.883 | J48: 1.883
A49: DPA0304 | B49: Overhead 11 kV | C49: MVA | D49: 4.026 | E49: 4.024 | F49: 4.026 | G49: 4.027 | H49: 4.027 | I49: 4.027 | J49: 4.03
A50: DPA0305 | B50: Overhead SWER | C50: MVA | D50: 0.2 | E50: 0.2 | F50: 0.2 | G50: 0.2 | H50: 0.2 | I50: 0.2 | J50: 0.2
A51: DPA0306 | B51: Overhead 22 kV | C51: MVA | D51: 0 | E51: 0 | F51: 0 | G51: 0 | H51: 0 | I51: 0 | J51: 0
A52: DPA0307 | B52: Overhead 33 kV | C52: MVA | D52: 10.452 | E52: 10.452 | F52: 10.466 | G52: 10.509 | H52: 10.512 | I52: 10.512 | J52: 10.561
A53: DPA0308 | B53: Overhead 44 kV | C53: MVA | D53: 0 | E53: 0 | F53: 0 | G53: 0 | H53: 0 | I53: 0 | J53: 0
A54: DPA0309 | B54: Overhead 66 kV | C54: MVA | D54: 59.803 | E54: 59.803 | F54: 61.153 | G54: 61.297 | H54: 61.297 | I54: 61.658 | J54: 61.647
A55: DPA0310 | B55: Overhead 110 kV | C55: MVA | D55: 0 | E55: 0 | F55: 0 | G55: 0 | H55: 0 | I55: 0 | J55: 0
A56: DPA0311 | B56: Overhead 132 kV | C56: MVA | D56: 0 | E56: 0 | F56: 0 | G56: 0 | H56: 0 | I56: 0 | J56: 0
A57: DPA0312 | B57: Overhead 220 kV | C57: MVA | D57: 0 | E57: 0 | F57: 0 | G57: 0 | H57: 0 | I57: 0 | J57: 0
A58: DPA0313 | B58: Other | C58: MVA | D58: 0 | E58: 0 | F58: 0 | G58: 0 | H58: 0 | I58: 0 | J58: 0
B59: 3.5.1.4 - Estimated underground network weighted average MVA capacity by voltage class
A60: DPA0401 | B60: Underground low voltage distribution | C60: MVA | D60: 0.141 | E60: 0.141 | F60: 0.141 | G60: 0.141 | H60: 0.141 | I60: 0.141 | J60: 0.141
A61: DPA0402 | B61: Underground 5 kV | C61: MVA | D61: 0 | E61: 0 | F61: 0 | G61: 0 | H61: 0 | I61: 0 | J61: 0
A62: DPA0403 | B62: Underground 6.6 kV | C62: MVA | D62: 0 | E62: 0 | F62: 0 | G62: 0 | H62: 0 | I62: 0 | J62: 0
A63: DPA0404 | B63: Underground 7.6 kV | C63: MVA | D63: 2.814 | E63: 2.813 | F63: 2.813 | G63: 2.813 | H63: 2.813 | I63: 2.813 | J63: 2.813
A64: DPA0405 | B64: Underground 11 kV | C64: MVA | D64: 5.502 | E64: 5.502 | F64: 5.502 | G64: 5.502 | H64: 5.502 | I64: 5.502 | J64: 5.502
A65: DPA0406 | B65: Underground SWER | C65: MVA | D65: 0.2 | E65: 0.2 | F65: 0.2 | G65: 0.2 | H65: 0.2 | I65: 0.2 | J65: 0.2
A66: DPA0407 | B66: Underground 12.7 kV | C66: MVA | D66: 0 | E66: 0 | F66: 0 | G66: 0 | H66: 0 | I66: 0 | J66: 0
A67: DPA0408 | B67: Underground 22 kV | C67: MVA | D67: 0 | E67: 0 | F67: 0 | G67: 0 | H67: 0 | I67: 0 | J67: 0
A68: DPA0409 | B68: Underground 33 kV | C68: MVA | D68: 17.299 | E68: 17.456 | F68: 17.456 | G68: 17.531 | H68: 17.531 | I68: 17.531 | J68: 17.531
A69: DPA0410 | B69: Underground 66 kV | C69: MVA | D69: 126.315 | E69: 126.315 | F69: 126.315 | G69: 126.315 | H69: 126.315 | I69: 126.892 | J69: 126.892
A70: DPA0411 | B70: Underground 110 kV | C70: MVA | D70: 0 | E70: 0 | F70: 0 | G70: 0 | H70: 0 | I70: 0 | J70: 0
A71: DPA0412 | B71: Underground 132 kV | C71: MVA | D71: 0 | E71: 0 | F71: 0 | G71: 0 | H71: 0 | I71: 0 | J71: 0
A72: DPA0413 | B72: Other | C72: MVA | D72: 137.178 | E72: 137.178 | F72: 137.178 | G72: 137.178 | H72: 137.178 | I72: 137.178 | J72: 137.178
B76: 3.5.2 - TRANSFORMER CAPACITIES VARIABLES
D77: VOLUMES
C78: Units | D78: =CRCP_y4 -> 2023-24 | E78: =CRCP_y5 -> 2024-25 | F78: =FRCP_y1 -> 2025-26 | G78: =FRCP_y2 -> 2026-27 | H78: =FRCP_y3 -> 2027-28 | I78: =FRCP_y4 -> 2028-29 | J78: =FRCP_y5 -> 2029-30
B79: Distribution transformer total installed capacity
A80: DPA0501 | B80: Distribution transformer capacity owned by utility | C80: MVA | D80: 9862.09 | E80: 9888.9 | F80: 9894.24 | G80: 9904.65 | H80: 9920.06 | I80: 9940.59 | J80: 9956.12
A81: DPA0502 | B81: Distribution transformer capacity owned by High Voltage Customers | C81: MVA | D81: 552.31 | E81: 593.6 | F81: 618.48 | G81: 638.04 | H81: 647.87 | I81: 656.1 | J81: 662.72
A82: DPA0503 | B82: Cold spare capacity included in DPA0501 | C82: MVA | D82: 140 | E82: 150 | F82: 140 | G82: 135 | H82: 135 | I82: 140 | J82: 140
B83: Zone substation transformer capacity
A84: DPA0601 | B84: Total installed capacity for first step transformation where there are two steps to reach distribution voltage | C84: MVA | D84: 245.5 | E84: 238 | F84: 238 | G84: 238 | H84: 238 | I84: 238 | J84: 238
A85: DPA0602 | B85: Total installed capacity for second step transformation where there are two steps to reach distribution voltage | C85: MVA | D85: 113.6 | E85: 109.3 | F85: 109.3 | G85: 109.3 | H85: 109.3 | I85: 114.2 | J85: 114.2
A86: DPA0603 | B86: Total zone substation transformer capacity where there is only a single step transformation to reach distribution voltage | C86: MVA | D86: 4956.6 | E86: 4985.6 | F86: 4991.8 | G86: 5025.8 | H86: 5074.5 | I86: 5087 | J86: 5118.5
A87: DPA0604 | B87: Total zone substation transformer capacity | C87: MVA | D87: 5828.8 | E87: 5833.5 | F87: 5839.7 | G87: 5873.7 | H87: 5921.5 | I87: 5959 | J87: 5990.5
A88: DPA0605 | B88: Cold spare capacity of zone substation transformers included in DPA0604 | C88: MVA | D88: 513.2 | E88: 500.7 | F88: 500.7 | G88: 500.7 | H88: 499.7 | I88: 519.8 | J88: 519.8
B92: 3.5.3 - PUBLIC LIGHTING
D93: VOLUMES
C94: Units | D94: =CRCP_y4 -> 2023-24 | E94: =CRCP_y5 -> 2024-25 | F94: =FRCP_y1 -> 2025-26 | G94: =FRCP_y2 -> 2026-27 | H94: =FRCP_y3 -> 2027-28 | I94: =FRCP_y4 -> 2028-29 | J94: =FRCP_y5 -> 2029-30
A95: DPA0701 | B95: Public lighting luminaires | C95: 0's | D95: 240200 | E95: 242002 | F95: 243817 | G95: 245645 | H95: 247488 | I95: 249344 | J95: 251214
A96: DPA0702 | B96: Public lighting poles | C96: 0's | D96: 118754 | E96: 120733 | F96: 122711 | G96: 124690 | H96: 126669 | I96: 128647 | J96: 130626

Sheet 3.6 Quality of service
B1: =INDEX(dms_Worksheet_List,MATCH(dms_Model,dms_Model_List)) -> REGULATORY REPORTING STATEMENT
B2: =INDEX(dms_TradingNameFull_List,MATCH(dms_TradingName,dms_TradingName_List)) -> SA Power Networks
B3: =CONCATENATE("REGULATORY PERIOD FROM ", FRCP_y1," TO ",dms_MultiYear_FinalYear_Result) -> REGULATORY PERIOD FROM 2025-26 TO 2029-30
B4: 3.6 QUALITY OF SERVICE DATA
B5: TEMPLATE DATE - OCTOBER 2023 - FINAL RIN
B7: 3.6.2 - ENERGY NOT SUPPLIED
D8: FORECAST
C9: Units | D9: =CRCP_y4 -> 2023-24 | E9: =CRCP_y5 -> 2024-25 | F9: =FRCP_y1 -> 2025-26 | G9: =FRCP_y2 -> 2026-27 | H9: =FRCP_y3 -> 2027-28 | I9: =FRCP_y4 -> 2028-29 | J9: =FRCP_y5 -> 2029-30
A10: DQS0201 | B10: Energy Not Supplied (planned) | C10: GWh | D10: 1.24 | E10: 1.39 | F10: 1.46 | G10: 1.52 | H10: 1.56 | I10: 1.61 | J10: 1.65
A11: DQS0202 | B11: Energy Not Supplied (unplanned) | C11: GWh | D11: 4.02 | E11: 4.48 | F11: 4.7 | G11: 4.89 | H11: 4.97 | I11: 5.12 | J11: 5.22
A12: DQS02 | B12: Total | D12: =SUM(D10:D11) -> 5.26 | E12: 5.87 | F12: 6.16 | G12: 6.41 | H12: 6.53 | I12: 6.73 | J12: 6.87
B14: 3.6.3 - SYSTEM LOSSES
D15: FORECAST
C16: Units | D16: =CRCP_y4 -> 2023-24 | E16: =CRCP_y5 -> 2024-25 | F16: =FRCP_y1 -> 2025-26 | G16: =FRCP_y2 -> 2026-27 | H16: =FRCP_y3 -> 2027-28 | I16: =FRCP_y4 -> 2028-29 | J16: =FRCP_y5 -> 2029-30
A17: DQS03 | B17: System losses | C17: % | D17: 6.61% | E17: 6.61% | F17: 6.61% | G17: 6.61% | H17: 6.61% | I17: 6.61% | J17: 6.61%
B19: 3.6.4 - CAPACITY UTILISATION
D20: FORECAST
C21: Units | D21: =CRCP_y4 -> 2023-24 | E21: =CRCP_y5 -> 2024-25 | F21: =FRCP_y1 -> 2025-26 | G21: =FRCP_y2 -> 2026-27 | H21: =FRCP_y3 -> 2027-28 | I21: =FRCP_y4 -> 2028-29 | J21: =FRCP_y5 -> 2029-30
A22: DQS04 | B22: Overall utilisation | C22: % | D22: 58.21% | E22: 59.35% | F22: 60.84% | G22: 62.63% | H22: 63.05% | I22: 63.56% | J22: 64.23%

Sheet 3.7 Operating Environment
B1: =INDEX(dms_Worksheet_List,MATCH(dms_Model,dms_Model_List)) -> REGULATORY REPORTING STATEMENT
B2: =INDEX(dms_TradingNameFull_List,MATCH(dms_TradingName,dms_TradingName_List)) -> SA Power Networks
B3: =CONCATENATE("REGULATORY PERIOD FROM ", FRCP_y1," TO ",dms_MultiYear_FinalYear_Result) -> REGULATORY PERIOD FROM 2025-26 TO 2029-30
B4: 3.7 OPERATING ENVIRONMENT FACTORS
B5: TEMPLATE DATE - OCTOBER 2023 - FINAL RIN
B7: There are THREE tables on this worksheet. Each table has been grouped (and sub-grouped) for ease of navigation. See the Instructions sheet on how to group or ungroup tables.
A9: DOEF01 | B9: 3.7.1 - DENSITY FACTORS
D10: FORECAST
C11: Units | D11: =CRCP_y4 -> 2023-24 | E11: =CRCP_y5 -> 2024-25 | F11: =FRCP_y1 -> 2025-26 | G11: =FRCP_y2 -> 2026-27 | H11: =FRCP_y3 -> 2027-28 | I11: =FRCP_y4 -> 2028-29 | J11: =FRCP_y5 -> 2029-30
A12: DOEF0101 | B12: Customer density | C12: Customer / km | D12: 11.361
A13: DOEF0102 | B13: Energy density | C13: MWh/customer | D13: 10.585
A14: DOEF0103 | B14: Demand density | C14: kVA / customer | D14: 3.589
A16: DOEF02 | B16: 3.7.2 - TERRAIN FACTORS
D17: FORECAST
C18: Units | D18: =CRCP_y4 -> 2023-24 | E18: =CRCP_y5 -> 2024-25 | F18: =FRCP_y1 -> 2025-26 | G18: =FRCP_y2 -> 2026-27 | H18: =FRCP_y3 -> 2027-28 | I18: =FRCP_y4 -> 2028-29 | J18: =FRCP_y5 -> 2029-30
A19: DOEF0201 | B19: Rural proportion | C19: % | D19: 0.8011
A20: DOEF0202 | B20: Urban and CBD vegetation maintenance spans | C20: 0's | D20: 23365
A21: DOEF0203 | B21: Rural vegetation maintenance spans | C21: 0's | D21: 73904
A22: DOEF0204 | B22: Total vegetation maintenance spans | C22: 0's | D22: 97269
A23: DOEF0205 | B23: Total number of spans | C23: 0's | D23: 621003
A24: DOEF0206 | B24: Average urban and CBD vegetation maintenance span cycle | C24: Years | D24: 2.791
A25: DOEF0207 | B25: Average rural vegetation maintenance span cycle | C25: Years | D25: 1.384
A26: DOEF0208 | B26: Average number of trees per urban and CBD vegetation maintenance span | C26: Trees | D26: 3.483
A27: DOEF0209 | B27: Average number of trees per rural vegetation maintenance span | C27: Trees | D27: 8.746
A28: DOEF0210 | B28: Average number of defects per urban and CBD vegetation maintenance span | C28: Defects | D28: 1.893
A29: DOEF0211 | B29: Average number of defects per rural vegetation maintenance span | C29: Defects | D29: 1.172
A30: DOEF0212 | B30: Tropical proportion | C30: Spans | D30: 0
A31: DOEF0213 | B31: Standard vehicle access | C31: km | D31: 5825 | E31: 5838 | F31: 5851 | G31: 5865 | H31: 5878 | I31: 5892 | J31: 5905
A32: DOEF0214 | B32: Bushfire risk | C32: Spans | D32: 374959
A34: DOEF03 | B34: 3.7.3 - SERVICE AREA FACTORS
D35: FORECAST
C36: Units | D36: =CRCP_y4 -> 2023-24 | E36: =CRCP_y5 -> 2024-25 | F36: =FRCP_y1 -> 2025-26 | G36: =FRCP_y2 -> 2026-27 | H36: =FRCP_y3 -> 2027-28 | I36: =FRCP_y4 -> 2028-29 | J36: =FRCP_y5 -> 2029-30
A37: DOEF0301 | B37: Route Line length | C37: km | D37: 83206.1 | E37: 83396.1 | F37: 83586.5 | G37: 83777.3 | H37: 83968.6 | I37: 84160.3 | J37: 84352.4

Sheet 4.1 Public lighting
B1: =INDEX(dms_Worksheet_List,MATCH(dms_Model,dms_Model_List)) -> REGULATORY REPORTING STATEMENT
B2: =INDEX(dms_TradingNameFull_List,MATCH(dms_TradingName,dms_TradingName_List)) -> SA Power Networks
B3: =CONCATENATE("REGULATORY PERIOD FROM ", FRCP_y1," TO ",dms_MultiYear_FinalYear_Result) -> REGULATORY PERIOD FROM 2025-26 TO 2029-30
B4: 4.1 PUBLIC LIGHTING
B5: TEMPLATE DATE - OCTOBER 2023 - FINAL RIN
B7: There are TWO tables on this worksheet. Each table has been grouped (and sub-grouped) for ease of navigation. There are no further instructions.
B9: 4.1.2 - DESCRIPTOR METRICS ANNUALLY
D10: VOLUMES & EXPENDITURE
C11: Units | D11: =CRCP_y4 -> 2023-24 | E11: =CRCP_y5 -> 2024-25 | F11: =FRCP_y1 -> 2025-26 | G11: =FRCP_y2 -> 2026-27 | H11: =FRCP_y3 -> 2027-28 | I11: =FRCP_y4 -> 2028-29 | J11: =FRCP_y5 -> 2029-30
B12: LIGHT INSTALLATION
B13: Number of lights installed | C13: number | D13: 745 | E13: 745 | F13: 745 | G13: 745 | H13: 745 | I13: 745 | J13: 745
B14: Number of poles installed | C14: number | D14: 56 | E14: 56 | F14: 56 | G14: 56 | H14: 56 | I14: 56 | J14: 56
B15: Total expenditure | C15: $ | D15: 1497089.75 | E15: 1506229.86 | F15: 1516585.3 | G15: 1522099.39 | H15: 1526815.13 | I15: 1532802.7 | J15: 1539473.24
B16: LIGHT REPLACEMENT
B17: Number of lights replaced | C17: number | D17: 10118 | E17: 10082 | F17: 10121 | G17: 10131 | H17: 10212 | I17: 10227 | J17: 10323
B18: Number of poles replaced | C18: number | D18: 195 | E18: 195 | F18: 195 | G18: 195 | H18: 195 | I18: 195 | J18: 195
B19: Total expenditure | C19: $ | D19: 10797697.35 | E19: 10808423.37 | F19: 7815361.238 | G19: 7443707.171 | H19: 7359698.91 | I19: 6876347.232 | J19: 6441045.494
B20: LIGHT MAINTENANCE
B21: Number of lights maintained | C21: number | D21: 33833 | E21: 30424 | F21: 28027 | G21: 27243 | H21: 44292 | I21: 44783 | J21: 45293
B22: Number of poles maintained | C22: number | D22: 9357 | E22: 9357 | F22: 9357 | G22: 9357 | H22: 9357 | I22: 9357 | J22: 9357
B23: Total expenditure | C23: $ | D23: 6804627 | E23: 6165028 | F23: 5655220 | G23: 5409478 | H23: 6033694 | I23: 5920425 | J23: 5812584
B24: QUALITY OF SUPPLY
B25: Mean days to rectify/replace public lighting assets | C25: number of days | D25: 5.03 | E25: 5.04 | F25: 5.12 | G25: 5.01 | H25: 5.13 | I25: 5.13 | J25: 5.1
B26: GSO breaches | C26: number | D26: 1822 | E26: 1898 | F26: 1690 | G26: 1761 | H26: 1795 | I26: 1802 | J26: 1775
B27: GSL payments | C27: $ | D27: 194956.43 | E27: 192653.78 | F27: 0 | G27: 0 | H27: 0 | I27: 0 | J27: 0
B28: Customer complaints | C28: number | D28: 150 | E28: 156 | F28: 180 | G28: 180 | H28: 150 | I28: 140 | J28: 130
B32: 4.1.3 - COST METRICS
D33: =CONCATENATE("AVERAGE UNIT COST ($, real ",dms_DollarReal, ")") -> AVERAGE UNIT COST ($, real June 2025)
D34: =CRCP_y4 -> 2023-24 | E34: =CRCP_y5 -> 2024-25 | F34: =FRCP_y1 -> 2025-26 | G34: =FRCP_y2 -> 2026-27 | H34: =FRCP_y3 -> 2027-28 | I34: =FRCP_y4 -> 2028-29 | J34: =FRCP_y5 -> 2029-30
B35: LIGHT INSTALLATION
B36: LED16 | D36: 479.12 | E36: 482.05 | F36: 485.36 | G36: 487.13 | H36: 488.64 | I36: 490.55 | J36: 492.69
B37: LED24 | D37: 484.76 | E37: 487.72 | F37: 491.08 | G37: 492.86 | H37: 494.39 | I37: 496.33 | J37: 498.49
B38: LED58 | D38: 2096.43 | E38: 2109.23 | F38: 2123.73 | G38: 2131.45 | H38: 2138.05 | I38: 2146.44 | J38: 2155.78
B39: LED78 | D39: 2099.03 | E39: 2111.85 | F39: 2126.37 | G39: 2134.1 | H39: 2140.71 | I39: 2149.1 | J39: 2158.46
B40: LED151 | D40: 2099.03 | E40: 2111.85 | F40: 2126.37 | G40: 2134.1 | H40: 2140.71 | I40: 2149.1 | J40: 2158.46
B96: LIGHT REPLACEMENT
B97: cf-42 | D97: 342.9 | E97: 328.63 | F97: 314.82 | G97: 302.11 | H97: 296.51 | I97: 269.53 | J97: 242.23
B98: cf-42 PT | D98: 1020.12 | E98: 927.27 | F98: 834.73 | G98: 751.07 | H98: 713.3 | I98: 561.39 | J98: 408.73
B99: F-40 | D99: 159.6 | E99: 166.71 | F99: 174.2 | G99: 302.06 | H99: 296.36 | I99: 269.73 | J99: 242.47
B100: MV-80 | D100: 159.6 | E100: 166.71 | F100: 174.2 | G100: 179.9 | H100: 296.52 | I100: 269.54 | J100: 242.33
B101: MV-80 PT | D101: 1019.47 | E101: 926.11 | F101: 833.56 | G101: 753.39 | H101: 717.51 | I101: 565.44 | J101: 409.76
B102: MV-80+ | D102: 342.95 | E102: 328.61 | F102: 314.9 | G102: 302.05 | H102: 296.53 | I102: 269.31 | J102: 242.58
B103: S-HP Other | D103: 342.9 | E103: 329.26 | F103: 315.32 | G103: 299.84 | H103: 296.99 | I103: 267 | J103: 243.99
B104: S-HP100 | D104: 716.74 | E104: 649.14 | F104: 583.07 | G104: 513.19 | H104: 439.17 | I104: 369.66 | J104: 299.54
B105: S-HP150 | D105: 747.56 | E105: 675.8 | F105: 605.57 | G105: 531.7 | H105: 453.3 | I105: 379.8 | J105: 305.19
B106: S-HP250 | D106: 751.05 | E106: 678.49 | F106: 608.15 | G106: 534.06 | H106: 454.39 | I106: 380.43 | J106: 306.17
B107: S-HP360f | D107: 1469.04 | E107: 1351.86 | F107: 1231.89 | G107: 1101.99 | H107: 963.51 | I107: 826.32 | J107: 686.29
B108: S-HP50 | D108: 342.9 | E108: 328.61 | F108: 314.81 | G108: 302.03 | H108: 296.5 | I108: 269.55 | J108: 242.29
B109: S-HP50 PT | D109: 1020 | E109: 925.45 | F109: 832.59 | G109: 753.33 | H109: 718.86 | I109: 569.73 | J109: 409.15
B110: S-LP18 | D110: 342.7 | E110: 328.47 | F110: 314.54 | G110: 302.04 | H110: 296.32 | I110: 269.86 | J110: 241.84
B111: S-LP90 | D111: 747.6 | E111: 675.6 | F111: 605.56 | G111: 531.69 | H111: 453.69 | I111: 379.13 | J111: 304.98
B112: LED16 | D112: 409.7 | E112: 417.69 | F112: 426.91 | G112: 433.53 | H112: 436.75 | I112: 444.91 | J112: 453.15
B113: LED17 | D113: 508.68 | E113: 517.02 | F113: 526.92 | G113: 533.91 | H113: 537.44 | I113: 545.99 | J113: 554.67
B114: LED17 PT | D114: 1820.9 | E114: 1833.88 | F114: 1852.84 | G114: 1864.64 | H114: 1872.3 | I114: 1886.09 | J114: 1900.6
B115: LED18 PT | D115: 1136.64 | E115: 1147.21 | F115: 1161.44 | G115: 1170.73 | H115: 1176.24 | I115: 1187.3 | J115: 1198.77
B116: LED20 | D116: 1401.86 | E116: 1413.36 | F116: 1429.43 | G116: 1439.69 | H116: 1446.04 | I116: 1458.15 | J116: 1470.8
B117: LED22 | D117: 646.09 | E117: 654.92 | F117: 665.77 | G117: 673.26 | H117: 677.23 | I117: 686.32 | J117: 695.61
B118: LED23 PT | D118: 1309.88 | E118: 1321.05 | F118: 1336.48 | G118: 1346.41 | H118: 1352.46 | I118: 1364.21 | J118: 1376.45
B119: LED24 | D119: 504.96 | E119: 513.29 | F119: 523.17 | G119: 530.14 | H119: 533.66 | I119: 542.2 | J119: 550.86
B120: LED28 | D120: 1401.86 | E120: 1413.36 | F120: 1429.43 | G120: 1439.69 | H120: 1446.04 | I120: 1458.15 | J120: 1470.8
B121: LED29 | D121: 543.96 | E121: 552.43 | F121: 562.57 | G121: 569.69 | H121: 573.33 | I121: 582.02 | J121: 590.86
B122: LED32 PT | D122: 1243.98 | E122: 1254.93 | F122: 1269.9 | G122: 1279.59 | H122: 1285.44 | I122: 1296.92 | J122: 1308.86
B123: LED35 | D123: 1401.86 | E123: 1413.36 | F123: 1429.43 | G123: 1439.69 | H123: 1446.04 | I123: 1458.15 | J123: 1470.8
B124: LED43 | D124: 516.1 | E124: 524.48 | F124: 534.43 | G124: 541.44 | H124: 545 | I124: 553.58 | J124: 562.29
B125: LED58 | D125: 815.88 | E125: 825.31 | F125: 837.33 | G125: 845.45 | H125: 849.95 | I125: 859.72 | J125: 869.77
B126: LED72 | D126: 1030.48 | E126: 1040.66 | F126: 1054.16 | G126: 1063.07 | H126: 1068.24 | I126: 1078.87 | J126: 1089.87
B127: LED78 | D127: 860.86 | E127: 870.45 | F127: 882.78 | G127: 891.06 | H127: 895.7 | I127: 905.66 | J127: 915.9
B128: LED79 | D128: 1401.86 | E128: 1413.36 | F128: 1429.43 | G128: 1439.69 | H128: 1446.04 | I128: 1458.15 | J128: 1470.8
B129: LED80 | D129: 863.35 | E129: 872.95 | F129: 885.3 | G129: 893.59 | H129: 898.24 | I129: 908.2 | J129: 918.45
B130: LED81 TM | D130: 1578.39 | E130: 1590.52 | F130: 1607.8 | G130: 1618.71 | H130: 1625.61 | I130: 1638.43 | J130: 1651.86
B131: LED100 | D131: 856.36 | E131: 865.93 | F131: 878.23 | G131: 886.49 | H131: 891.12 | I131: 901.06 | J131: 911.28
B132: LED105 | D132: 1910.66 | E132: 1923.96 | F132: 1943.53 | G132: 1955.67 | H132: 1963.61 | I132: 1977.75 | J132: 1992.66
B133: LED117 | D133: 1401.86 | E133: 1413.36 | F133: 1429.43 | G133: 1439.69 | H133: 1446.04 | I133: 1458.15 | J133: 1470.8
B134: LED120 | D134: 856.36 | E134: 865.93 | F134: 878.23 | G134: 886.49 | H134: 891.12 | I134: 901.06 | J134: 911.28
B135: LED151 | D135: 865.77 | E135: 875.38 | F135: 887.74 | G135: 896.04 | H135: 900.7 | I135: 910.67 | J135: 920.94
B136: LED155 TM | D136: 1647.68 | E136: 1660.05 | F136: 1677.81 | G136: 1688.98 | H136: 1696.1 | I136: 1709.19 | J136: 1722.93
B137: LED175 | D137: 1123.32 | E137: 1133.84 | F137: 1147.98 | G137: 1157.22 | H137: 1162.69 | I137: 1173.69 | J137: 1185.1
B138: LED198 | D138: 1910.66 | E138: 1923.96 | F138: 1943.53 | G138: 1955.67 | H138: 1963.61 | I138: 1977.75 | J138: 1992.66
B139: LED180 F | E139: 1831.18 | F139: 1850.11 | G139: 1861.91 | H139: 1869.56 | I139: 1883.33 | J139: 1897.83
B157: LIGHT MAINTENANCE
B158: cf-42 | D158: 218.33 | E158: 222.13 | F158: 224.42 | G158: 225.79 | H158: 215.31 | I158: 214.85 | J158: 212.99
B159: cf-42 PT | D159: 220.87 | E159: 224.78 | F159: 227.3 | G159: 229.07 | H159: 219.22 | I159: 219.7 | J159: 219.68
B160: F-40 | D160: 284.41 | E160: 288.48 | F160: 291.61 | G160: 225.27 | H160: 213.98 | I160: 213.28 | J160: 210.92
B161: MV-80 | D161: 282.66 | E161: 286.5 | F161: 289.04 | G161: 290.27 | H161: 211.92 | I161: 209.75 | J161: 204.9
B162: MV-80 PT | D162: 219.44 | E162: 223.29 | F162: 225.68 | G162: 227.21 | H162: 216.96 | I162: 216.8 | J162: 215.68
B163: MV-80+ | D163: 216.22 | E163: 219.91 | F163: 222.04 | G163: 223.16 | H163: 212.27 | I163: 211.32 | J163: 208.37
B164: S-HP Other | D164: 184.09 | E164: 187.75 | F164: 189.53 | G164: 190.31 | H164: 179.25 | I164: 178.41 | J164: 176.68
B165: S-HP100 | D165: 211.18 | E165: 215.19 | F165: 217.58 | G165: 218.94 | H165: 208.19 | I165: 206.73 | J165: 202.83
B166: S-HP150 | D166: 201.56 | E166: 205.64 | F166: 207.96 | G166: 209.14 | H166: 198.03 | I166: 195.98 | J166: 191.45
B167: S-HP250 | D167: 178.66 | E167: 182.96 | F167: 185.52 | G167: 187.17 | H167: 176.87 | I167: 176.33 | J167: 175.13
B168: S-HP360f | D168: 220.5 | E168: 224.29 | F168: 226.67 | G168: 228.22 | H168: 218.02 | I168: 217.79 | J168: 216.74
B169: S-HP50 | D169: 219.49 | E169: 223.33 | F169: 225.73 | G169: 227.26 | H169: 217.02 | I169: 216.89 | J169: 215.8
B170: S-HP50 PT | D170: 221.44 | E170: 225.37 | F170: 227.93 | G170: 229.74 | H170: 219.93 | I170: 220.39 | J170: 220.86
B171: S-LP18 | D171: 215.16 | E171: 218.8 | F171: 220.86 | G171: 221.85 | H171: 210.82 | I171: 209.71 | J171: 206.39
B172: S-LP90 | D172: 219.02 | E172: 222.98 | F172: 225.51 | G172: 227.2 | H172: 217.15 | I172: 217.05 | J172: 216
B173: LED16 | D173: 175.73 | E173: 176.35 | F173: 176.32 | G173: 177.52 | H173: 119.95 | I173: 120.14 | J173: 120.4
B174: LED17 | D174: 175.73 | E174: 176.35 | F174: 176.32 | G174: 177.52 | H174: 119.95 | I174: 120.14 | J174: 120.4
B175: LED17 PT | D175: 175.73 | E175: 176.35 | F175: 176.32 | G175: 177.52 | H175: 119.95 | I175: 120.14 | J175: 120.4
B176: LED18 PT | D176: 175.73 | E176: 176.35 | F176: 176.32 | G176: 177.52 | H176: 119.95 | I176: 120.14 | J176: 120.4
B177: LED20 | D177: 175.73 | E177: 176.35 | F177: 176.32 | G177: 177.52 | H177: 119.95 | I177: 120.14 | J177: 120.4
B178: LED22 | D178: 175.73 | E178: 176.35 | F178: 176.32 | G178: 177.52 | H178: 119.95 | I178: 120.14 | J178: 120.4
B179: LED23 PT | D179: 175.73 | E179: 176.35 | F179: 176.32 | G179: 177.52 | H179: 119.95 | I179: 120.14 | J179: 120.4
B180: LED24 | D180: 175.73 | E180: 176.35 | F180: 176.32 | G180: 177.52 | H180: 119.95 | I180: 120.14 | J180: 120.4
B181: LED28 | D181: 175.73 | E181: 176.35 | F181: 176.32 | G181: 177.52 | H181: 119.95 | I181: 120.14 | J181: 120.4
B182: LED29 | D182: 175.73 | E182: 176.35 | F182: 176.32 | G182: 177.52 | H182: 119.95 | I182: 120.14 | J182: 120.4
B183: LED32 PT | D183: 175.73 | E183: 176.35 | F183: 176.32 | G183: 177.52 | H183: 119.95 | I183: 120.14 | J183: 120.4
B184: LED35 | D184: 175.73 | E184: 176.35 | F184: 176.32 | G184: 177.52 | H184: 119.95 | I184: 120.14 | J184: 120.4
B185: LED43 | D185: 175.73 | E185: 176.35 | F185: 176.32 | G185: 177.52 | H185: 119.95 | I185: 120.14 | J185: 120.4
B186: LED58 | D186: 187.09 | E186: 183.12 | F186: 178.09 | G186: 179.42 | H186: 124.15 | I186: 124.39 | J186: 124.69
B187: LED72 | D187: 187.09 | E187: 183.12 | F187: 178.09 | G187: 179.42 | H187: 124.15 | I187: 124.39 | J187: 124.69
B188: LED78 | D188: 187.09 | E188: 183.12 | F188: 178.09 | G188: 179.42 | H188: 124.15 | I188: 124.39 | J188: 124.69
B189: LED79 | D189: 187.09 | E189: 183.12 | F189: 178.09 | G189: 179.42 | H189: 124.15 | I189: 124.39 | J189: 124.69
B190: LED80 | D190: 187.09 | E190: 183.12 | F190: 178.09 | G190: 179.42 | H190: 124.15 | I190: 124.39 | J190: 124.69
B191: LED81 TM | D191: 187.09 | E191: 183.12 | F191: 178.09 | G191: 179.42 | H191: 124.15 | I191: 124.39 | J191: 124.69
B192: LED100 | D192: 187.09 | E192: 183.12 | F192: 178.09 | G192: 179.42 | H192: 124.15 | I192: 124.39 | J192: 124.69
B193: LED105 | D193: 187.09 | E193: 183.12 | F193: 178.09 | G193: 179.42 | H193: 124.15 | I193: 124.39 | J193: 124.69
B194: LED117 | D194: 187.09 | E194: 183.12 | F194: 178.09 | G194: 179.42 | H194: 124.15 | I194: 124.39 | J194: 124.69
B195: LED120 | D195: 187.09 | E195: 183.12 | F195: 178.09 | G195: 179.42 | H195: 124.15 | I195: 124.39 | J195: 124.69
B196: LED151 | D196: 187.09 | E196: 183.12 | F196: 178.09 | G196: 179.42 | H196: 124.15 | I196: 124.39 | J196: 124.69
B197: LED155 TM | D197: 187.09 | E197: 183.12 | F197: 178.09 | G197: 179.42 | H197: 124.15 | I197: 124.39 | J197: 124.69
B198: LED175 | D198: 187.09 | E198: 183.12 | F198: 178.09 | G198: 179.42 | H198: 124.15 | I198: 124.39 | J198: 124.69
B199: LED198 | D199: 187.09 | E199: 183.12 | F199: 178.09 | G199: 179.42 | H199: 124.15 | I199: 124.39 | J199: 124.69
B200: LED180 F | E200: 183.12 | F200: 178.09 | G200: 179.42 | H200: 124.15 | I200: 124.39 | J200: 124.69

Sheet 5.4 MD & utilisation-Spatial
B1: =INDEX(dms_Worksheet_List,MATCH(dms_Model,dms_Model_List)) -> REGULATORY REPORTING STATEMENT
B2: =INDEX(dms_TradingNameFull_List,MATCH(dms_TradingName,dms_TradingName_List)) -> SA Power Networks
B3: =CONCATENATE("REGULATORY PERIOD FROM ", FRCP_y1," TO ",dms_MultiYear_FinalYear_Result) -> REGULATORY PERIOD FROM 2025-26 TO 2029-30
B4: 5.4 MAXIMUM DEMAND AND UTILISATION AT SPATIAL LEVEL
B5: TEMPLATE DATE - OCTOBER 2023 - FINAL RIN
B7: There are two tables on this worksheet. The tables have been sub-grouped for ease of navigation. See the Instructions sheet on how to group or ungroup tables.
B9: 5.4.1 - NON-COINCIDENT & COINCIDENT MAXIMUM DEMAND
B10: SUBTRANSMISSION SUBSTATION
F11: DEMAND
B12: SUBSTATION | C12: FORECASTING ELEMENTS | D12: UNIT | E12: MAX DEMAND | F12: =CRCP_y4 -> 2023-24 | G12: =CRCP_y5 -> 2024-25 | H12: =FRCP_y1 -> 2025-26 | I12: =FRCP_y2 -> 2026-27 | J12: =FRCP_y3 -> 2027-28 | K12: =FRCP_y4 -> 2028-29 | L12: =FRCP_y5 -> 2029-30
B13: ACR 66kV | C13: Substation Rating | D13: MVA | E13: Non-Coincident | F13: 525 | G13: 525 | H13: 525 | I13: 525 | J13: 525 | K13: 525 | L13: 525
E14: Coincident | F14: 525 | G14: 525 | H14: 525 | I14: 525 | J14: 525 | K14: 525 | L14: 525
C15: Raw Adjusted MD | D15: MW | E15: Non-Coincident
E16: Coincident
C17: Raw Adjusted MD | D17: MVA | E17: Non-Coincident
E18: Coincident
C19: Date MD occurred | E19: Non-Coincident
E20: Coincident
C21: Half hour time period MD occurred | E21: Non-Coincident
E22: Coincident
C23: Winter/Summer Peaking | E23: Non-Coincident | F23: Summer | G23: Summer | H23: Summer | I23: Summer | J23: Summer | K23: Summer | L23: Summer
E24: Coincident | F24: Summer | G24: Summer | H24: Summer | I24: Summer | J24: Summer | K24: Summer | L24: Summer
C25: Adjustments - Embedded generation | D25: MW | E25: Non-Coincident | F25: 0 | G25: 0 | H25: 0 | I25: 0 | J25: 0 | K25: 0 | L25: 0
E26: Coincident | F26: 0 | G26: 0 | H26: 0 | I26: 0 | J26: 0 | K26: 0 | L26: 0
C27: Weather Corrected 10% POE | D27: MW | E27: Non-Coincident | F27: 202.5308948 | G27: 201.9237617 | H27: 200.9062079 | I27: 199.1388187 | J27: 197.4093577 | K27: 195.6944858 | L27: 194.0469522
E28: Coincident | F28: 130.4659301 | G28: 130.0748284 | H28: 129.4193427 | I28: 128.2808296 | J28: 127.166749 | K28: 126.0620663 | L28: 125.0007616
C29: Weather Corrected MD 10% POE | D29: MVA | E29: Non-Coincident | F29: 206.4310955 | G29: 205.8122707 | H29: 204.7751215 | I29: 202.9736971 | J29: 201.2109314 | K29: 199.4630356 | L29: 197.783775
E30: Coincident | F30: 132.9783532 | G30: 132.57972 | H30: 131.9116114 | I30: 130.7511736 | J30: 129.6156388 | K30: 128.489683 | L30: 127.4079403
C31: Weather Corrected MD 50% POE | D31: MW | E31: Non-Coincident | F31: 189.9679436 | G31: 189.3691624 | H31: 188.3893311 | I31: 186.6548655 | J31: 184.9337204 | K31: 183.2271644 | L31: 181.5879467
E32: Coincident | F32: 122.3731543 | G32: 121.9874327 | H32: 121.356247 | I32: 120.2389426 | J32: 119.1302189 | K32: 118.0308932 | L32: 116.9749454
C33: Weather Corrected MD 50% POE | D33: MVA | E33: Non-Coincident | F33: 193.6262156 | G33: 193.0159035 | H33: 192.0172033 | I33: 190.2493366 | J33: 188.4950468 | K33: 186.7556272 | L33: 185.0848426
E34: Coincident | F34: 124.7297324 | G34: 124.3365828 | H34: 123.6932422 | I34: 122.5544215 | J34: 121.4243468 | K34: 120.303851 | L34: 119.2275685
B35: Angas Creek 33kV | C35: Substation Rating | D35: MVA | E35: Non-Coincident | F35: 53.9 | G35: 53.9 | H35: 53.9 | I35: 53.9 | J35: 53.9 | K35: 53.9 | L35: 53.9
E36: Coincident | F36: 53.9 | G36: 53.9 | H36: 53.9 | I36: 53.9 | J36: 53.9 | K36: 53.9 | L36: 53.9
C37: Raw Adjusted MD | D37: MW | E37: Non-Coincident
E38: Coincident
C39: Raw Adjusted MD | D39: MVA | E39: Non-Coincident
E40: Coincident
C41: Date MD occurred | E41: Non-Coincident
E42: Coincident
C43: Half hour time period MD occurred | E43: Non-Coincident
E44: Coincident
C45: Winter/Summer Peaking | E45: Non-Coincident | F45: Summer | G45: Summer | H45: Summer | I45: Summer | J45: Summer | K45: Summer | L45: Summer
E46: Coincident | F46: Summer | G46: Summer | H46: Summer | I46: Summer | J46: Summer | K46: Summer | L46: Summer
C47: Adjustments - Embedded generation | D47: MW | E47: Non-Coincident | F47: 0 | G47: 0 | H47: 0 | I47: 0 | J47: 0 | K47: 0 | L47: 0
E48: Coincident | F48: 0 | G48: 0 | H48: 0 | I48: 0 | J48: 0 | K48: 0 | L48: 0
C49: Weather Corrected 10% POE | D49: MW | E49: Non-Coincident | F49: 20.21896991 | G49: 20.75649276 | H49: 21.4140546 | I49: 22.19526955 | J49: 22.75573372 | K49: 23.31893645 | L49: 23.88093571
E50: Coincident | F50: 19.59371161 | G50: 20.16545303 | H50: 20.70614763 | I50: 21.24225189 | J50: 21.78002194 | K50: 22.32047789 | L50: 22.85661673
C51: Weather Corrected MD 10% POE | D51: MVA | E51: Non-Coincident | F51: 20.63207375 | G51: 21.18057901 | H51: 21.85157581 | I51: 22.64875216 | J51: 23.22066745 | K51: 23.79537725 | L51: 24.368859
E52: Coincident | F52: 19.99404049 | G52: 20.57746344 | H52: 21.12920524 | I52: 21.67626292 | J52: 22.22502042 | K52: 22.77651869 | L52: 23.32361165
C53: Weather Corrected MD 50% POE | D53: MW | E53: Non-Coincident | F53: 18.26832987 | G53: 18.7444157 | H53: 19.35625228 | I53: 20.09669241 | J53: 20.65912587 | K53: 21.20538801 | L53: 21.74584566
E54: Coincident | F54: 17.94841781 | G54: 18.45561416 | H54: 18.9854368 | I54: 19.51347952 | J54: 20.06116771 | K54: 20.59293512 | L54: 21.11581102
C55: Weather Corrected MD 50% POE | D55: MVA | E55: Non-Coincident | F55: 18.64157921 | G55: 19.12739219 | H55: 19.75172951 | I55: 20.50729794 | J55: 21.08122276 | K55: 21.63864585 | L55: 22.19014586
E56: Coincident | F56: 18.31513087 | G56: 18.83269001 | H56: 19.37333771 | I56: 19.91216913 | J56: 20.47104742 | K56: 21.01367964 | L56: 21.54723867
B57: Ardrossan West 33kV | C57: Substation Rating | D57: MVA | E57: Non-Coincident | F57: 62 | G57: 62 | H57: 62 | I57: 62 | J57: 62 | K57: 62 | L57: 62
E58: Coincident | F58: 62 | G58: 62 | H58: 62 | I58: 62 | J58: 62 | K58: 62 | L58: 62
C59: Raw Adjusted MD | D59: MW | E59: Non-Coincident
E60: Coincident
C61: Raw Adjusted MD | D61: MVA | E61: Non-Coincident
E62: Coincident
C63: Date MD occurred | E63: Non-Coincident
E64: Coincident
C65: Half hour time period MD occurred | E65: Non-Coincident
E66: Coincident
C67: Winter/Summer Peaking | E67: Non-Coincident | F67: Summer | G67: Summer | H67: Summer | I67: Summer | J67: Summer | K67: Summer | L67: Summer
E68: Coincident | F68: Summer | G68: Summer | H68: Summer | I68: Summer | J68: Summer | K68: Summer | L68: Summer
C69: Adjustments - Embedded generation | D69: MW | E69: Non-Coincident | F69: - | G69: - | H69: - | I69: - | J69: - | K69: - | L69: -
E70: Coincident | F70: - | G70: - | H70: - | I70: - | J70: - | K70: - | L70: -
C71: Weather Corrected 10% POE | D71: MW | E71: Non-Coincident | F71: 12 | G71: 12 | H71: 12 | I71: 13 | J71: 13 | K71: 13 | L71: 13
E72: Coincident | F72: 10 | G72: 10 | H72: 10 | I72: 11 | J72: 11 | K72: 11 | L72: 11
C73: Weather Corrected MD 10% POE | D73: MVA | E73: Non-Coincident | F73: 12 | G73: 12 | H73: 12 | I73: 13 | J73: 13 | K73: 13 | L73: 13
E74: Coincident | F74: 10 | G74: 10 | H74: 10 | I74: 11 | J74: 11 | K74: 11 | L74: 11
C75: Weather Corrected MD 50% POE | D75: MW | E75: Non-Coincident | F75: 10 | G75: 10 | H75: 11 | I75: 11 | J75: 11 | K75: 12 | L75: 12
E76: Coincident | F76: 9 | G76: 9 | H76: 9 | I76: 9 | J76: 10 | K76: 10 | L76: 10
C77: Weather Corrected MD 50% POE | D77: MVA | E77: Non-Coincident | F77: 10 | G77: 10 | H77: 11 | I77: 11 | J77: 11 | K77: 12 | L77: 12
E78: Coincident | F78: 9 | G78: 9 | H78: 9 | I78: 9 | J78: 10 | K78: 10 | L78: 10
B79: Baroota 33kV | C79: Substation Rating | D79: MVA | E79: Non-Coincident | F79: 12 | G79: 12 | H79: 12 | I79: 12 | J79: 12 | K79: 12 | L79: 12
E80: Coincident | F80: 12 | G80: 12 | H80: 12 | I80: 12 | J80: 12 | K80: 12 | L80: 12
C81: Raw Adjusted MD | D81: MW | E81: Non-Coincident
E82: Coincident
C83: Raw Adjusted MD | D83: MVA | E83: Non-Coincident
E84: Coincident
C85: Date MD occurred | E85: Non-Coincident
E86: Coincident
C87: Half hour time period MD occurred | E87: Non-Coincident
E88: Coincident
C89: Winter/Summer Peaking | E89: Non-Coincident | F89: Summer | G89: Summer | H89: Summer | I89: Summer | J89: Summer | K89: Summer | L89: Summer
E90: Coincident | F90: Summer | G90: Summer | H90: Summer | I90: Summer | J90: Summer | K90: Summer | L90: Summer
C91: Adjustments - Embedded generation | D91: MW | E91: Non-Coincident | F91: 0 | G91: 0 | H91: 0 | I91: 0 | J91: 0 | K91: 0 | L91: 0
E92: Coincident | F92: 0 | G92: 0 | H92: 0 | I92: 0 | J92: 0 | K92: 0 | L92: 0
C93: Weather Corrected 10% POE | D93: MW | E93: Non-Coincident | F93: 7.263224208 | G93: 7.351240903 | H93: 7.478979945 | I93: 7.646142673 | J93: 7.7341076 | K93: 7.821002025 | L93: 7.905800121
E94: Coincident | F94: 6.153272213 | G94: 6.243579668 | H94: 6.322105824 | I94: 6.397370749 | J94: 6.471376562 | K94: 6.544495001 | L94: 6.614932676
C95: Weather Corrected MD 10% POE | D95: MVA | E95: Non-Coincident | F95: 7.296634607 | G95: 7.385056174 | H95: 7.513382808 | I95: 7.681314474 | J95: 7.769684034 | K95: 7.856978169 | L95: 7.942166331
E96: Coincident | F96: 6.181576899 | G96: 6.272299763 | H96: 6.351187134 | I96: 6.426798274 | J96: 6.501144509 | K96: 6.574599288 | L96: 6.645360973
C97: Weather Corrected MD 50% POE | D97: MW | E97: Non-Coincident | F97: 6.488285832 | G97: 6.552007137 | H97: 6.660410203 | I97: 6.809096346 | J97: 6.893931179 | K97: 6.970987242 | L97: 7.046471831
E98: Coincident | F98: 5.57283637 | G98: 5.639621386 | H98: 5.711093746 | I98: 5.779877084 | J98: 5.852348806 | K98: 5.918140996 | L98: 5.981666248
C99: Weather Corrected MD 50% POE | D99: MVA | E99: Non-Coincident | F99: 6.518131561 | G99: 6.58214598 | H99: 6.691047694 | I99: 6.840417784 | J99: 6.925642852 | K99: 7.003053368 | L99: 7.078885182
E100: Coincident | F100: 5.598471086 | G100: 5.665563309 | H100: 5.737364437 | I100: 5.806464175 | J100: 5.879269263 | K100: 5.945364093 | L100: 6.009181556
B101: Berri 66kV | C101: Substation Rating | D101: MVA | E101: Non-Coincident | F101: 190 | G101: 190 | H101: 190 | I101: 190 | J101: 190 | K101: 190 | L101: 190
E102: Coincident | F102: 190 | G102: 190 | H102: 190 | I102: 190 | J102: 190 | K102: 190 | L102: 190
C103: Raw Adjusted MD | D103: MW | E103: Non-Coincident
E104: Coincident
C105: Raw Adjusted MD | D105: MVA | E105: Non-Coincident
E106: Coincident
C107: Date MD occurred | E107: Non-Coincident
E108: Coincident
C109: Half hour time period MD occurred | E109: Non-Coincident
E110: Coincident
C111: Winter/Summer Peaking | E111: Non-Coincident | F111: Summer | G111: Summer | H111: Summer | I111: Summer | J111: Summer | K111: Summer | L111: Summer
E112: Coincident | F112: Summer | G112: Summer | H112: Summer | I112: Summer | J112: Summer | K112: Summer | L112: Summer
C113: Adjustments - Embedded generation | D113: MW | E113: Non-Coincident | F113: 0 | G113: 0 | H113: 0 | I113: 0 | J113: 0 | K113: 0 | L113: 0
E114: Coincident | F114: 0 | G114: 0 | H114: 0 | I114: 0 | J114: 0 | K114: 0 | L114: 0
C115: Weather Corrected 10% POE | D115: MW | E115: Non-Coincident | F115: 100.2780984 | G115: 105.9487278 | H115: 108.0769157 | I115: 110.7826032 | J115: 112.3474849 | K115: 113.9000972 | L115: 115.4161185
E116: Coincident | F116: 96.34677282 | G116: 102.0523839 | H116: 103.6112086 | I116: 105.1199375 | J116: 106.6115411 | K116: 108.0916737 | L116: 109.5217736
C117: Weather Corrected MD 10% POE | D117: MVA | E117: Non-Coincident | F117: 101.7391633 | G117: 107.4924145 | H117: 109.6516104 | I117: 112.3967201 | J117: 113.9844024 | K117: 115.5596364 | L117: 117.0977464
E118: Coincident | F118: 97.75055784 | G118: 103.5393004 | H118: 105.1208374 | I118: 106.6515486 | J118: 108.1648852 | K118: 109.6665835 | L118: 111.1175201
C119: Weather Corrected MD 50% POE | D119: MW | E119: Non-Coincident | F119: 92.3317048 | G119: 97.80820905 | H119: 99.84124763 | I119: 102.4912376 | J119: 104.1921866 | K119: 105.7828186 | L119: 107.3118629
E120: Coincident | F120: 89.9397295 | G120: 95.4784365 | H120: 97.09183652 | I120: 98.66662335 | J120: 100.3119831 | K120: 101.8498889 | L120: 103.3124347
C121: Weather Corrected MD 50% POE | D121: MVA | E121: Non-Coincident | F121: 93.67698975 | G121: 99.23328738 | H121: 101.2959476 | I121: 103.9845482 | J121: 105.7102803 | K121: 107.324088 | L121: 108.8754107
E122: Coincident | F122: 91.25016306 | G122: 96.86956975 | H122: 98.50647722 | I122: 100.1042089 | J122: 101.7735418 | K122: 103.333855 | L122: 104.8177103
B123: Blanche 33kV | C123: Substation Rating | D123: MVA | E123: Non-Coincident | F123: 126.3 | G123: 126.3 | H123: 126.3 | I123: 126.3 | J123: 126.3 | K123: 126.3 | L123: 126.3
E124: Coincident | F124: 126.3 | G124: 126.3 | H124: 126.3 | I124: 126.3 | J124: 126.3 | K124: 126.3 | L124: 126.3
C125: Raw Adjusted MD | D125: MW | E125: Non-Coincident
E126: Coincident
C127: Raw Adjusted MD | D127: MVA | E127: Non-Coincident
E128: Coincident
C129: Date MD occurred | E129: Non-Coincident
E130: Coincident
C131: Half hour time period MD occurred | E131: Non-Coincident
E132: Coincident
C133: Winter/Summer Peaking | E133: Non-Coincident | F133: Summer | G133: Summer | H133: Summer | I133: Summer | J133: Summer | K133: Summer | L133: Summer
E134: Coincident | F134: Summer | G134: Summer | H134: Summer | I134: Summer | J134: Summer | K134: Summer | L134: Summer
C135: Adjustments - Embedded generation | D135: MW | E135: Non-Coincident | F135: - | G135: - | H135: - | I135: - | J135: - | K135: - | L135: -
E136: Coincident | F136: - | G136: - | H136: - | I136: - | J136: - | K136: - | L136: -
C137: Weather Corrected 10% POE | D137: MW | E137: Non-Coincident | F137: 37 | G137: 38 | H137: 39 | I137: 40 | J137: 41 | K137: 42 | L137: 43
E138: Coincident | F138: 34 | G138: 35 | H138: 36 | I138: 37 | J138: 38 | K138: 38 | L138: 39
C139: Weather Corrected MD 10% POE | D139: MVA | E139: Non-Coincident | F139: 39 | G139: 40 | H139: 41 | I139: 43 | J139: 43 | K139: 44 | L139: 45
E140: Coincident | F140: 36 | G140: 37 | H140: 38 | I140: 39 | J140: 40 | K140: 41 | L140: 41
C141: Weather Corrected MD 50% POE | D141: MW | E141: Non-Coincident | F141: 34 | G141: 35 | H141: 36 | I141: 37 | J141: 38 | K141: 39 | L141: 39
E142: Coincident | F142: 32 | G142: 33 | H142: 34 | I142: 34 | J142: 35 | K142: 36 | L142: 36
C143: Weather Corrected MD 50% POE | D143: MVA | E143: Non-Coincident | F143: 36 | G143: 37 | H143: 38 | I143: 39 | J143: 40 | K143: 41 | L143: 41
E144: Coincident | F144: 34 | G144: 35 | H144: 35 | I144: 36 | J144: 37 | K144: 38 | L144: 38
B145: Brinkworth 33kV | C145: Substation Rating | D145: MVA | E145: Non-Coincident | F145: 25 | G145: 25 | H145: 25 | I145: 25 | J145: 25 | K145: 25 | L145: 25
E146: Coincident | F146: 25 | G146: 25 | H146: 25 | I146: 25 | J146: 25 | K146: 25 | L146: 25
C147: Raw Adjusted MD | D147: MW | E147: Non-Coincident
E148: Coincident
C149: Raw Adjusted MD | D149: MVA | E149: Non-Coincident
E150: Coincident
C151: Date MD occurred | E151: Non-Coincident
E152: Coincident
C153: Half hour time period MD occurred | E153: Non-Coincident
E154: Coincident
C155: Winter/Summer Peaking | E155: Non-Coincident | F155: Summer | G155: Summer | H155: Summer | I155: Summer | J155: Summer | K155: Summer | L155: Summer
E156: Coincident | F156: Summer | G156: Summer | H156: Summer | I156: Summer | J156: Summer | K156: Summer | L156: Summer
C157: Adjustments - Embedded generation | D157: MW | E157: Non-Coincident | F157: 0 | G157: 0 | H157: 0 | I157: 0 | J157: 0 | K157: 0 | L157: 0
E158: Coincident | F158: 0 | G158: 0 | H158: 0 | I158: 0 | J158: 0 | K158: 0 | L158: 0
C159: Weather Corrected 10% POE | D159: MW | E159: Non-Coincident | F159: 5.209941585 | G159: 5.313179941 | H159: 5.446237789 | I159: 5.609431856 | J159: 5.715736865 | K159: 5.8220121 | L159: 5.927208443
E160: Coincident | F160: 4.874162464 | G160: 4.983311056 | H160: 5.08401076 | I160: 5.182847958 | J160: 5.281401181 | K160: 5.379938549 | L160: 5.476716598
C161: Weather Corrected MD 10% POE | D161: MVA | E161: Non-Coincident | F161: 5.320533891 | G161: 5.425963705 | H161: 5.561845994 | I161: 5.72850421 | J161: 5.837065772 | K161: 5.94559693 | L161: 6.053026293
E162: Coincident | F162: 4.97762713 | G162: 5.089092638 | H162: 5.191929911 | I162: 5.292865144 | J162: 5.393510372 | K162: 5.49413941 | L162: 5.592971782
C163: Weather Corrected MD 50% POE | D163: MW | E163: Non-Coincident | F163: 4.699836565 | G163: 4.791322679 | H163: 4.916722641 | I163: 5.073573275 | J163: 5.184402825 | K163: 5.290427768 | L163: 5.394232962
E164: Coincident | F164: 4.457789356 | G164: 4.554298338 | H164: 4.655694672 | I164: 4.755908931 | J164: 4.860181266 | K164: 4.959892668 | L164: 5.056740012
C165: Weather Corrected MD 50% POE | D165: MVA | E165: Non-Coincident | F165: 4.799600786 | G165: 4.893028891 | H165: 5.02109074 | I165: 5.181270868 | J165: 5.294453016 | K165: 5.402728568 | L165: 5.508737252
E166: Coincident | F166: 4.5524156 | G166: 4.650973194 | H166: 4.754521886 | I166: 4.85686341 | J166: 4.963349151 | K166: 5.065177144 | L166: 5.164080282
B167: Clare North 33kV | C167: Substation Rating | D167: MVA | E167: Non-Coincident | F167: 50 | G167: 50 | H167: 50 | I167: 50 | J167: 50 | K167: 50 | L167: 50
E168: Coincident | F168: 50 | G168: 50 | H168: 50 | I168: 50 | J168: 50 | K168: 50 | L168: 50
C169: Raw Adjusted MD | D169: MW | E169: Non-Coincident
E170: Coincident
C171: Raw Adjusted MD | D171: MVA | E171: Non-Coincident
E172: Coincident
C173: Date MD occurred | E173: Non-Coincident
E174: Coincident
C175: Half hour time period MD occurred | E175: Non-Coincident
E176: Coincident
C177: Winter/Summer Peaking | E177: Non-Coincident | F177: Summer | G177: Summer | H177: Summer | I177: Summer | J177: Summer | K177: Summer | L177: Summer
E178: Coincident | F178: Summer | G178: Summer | H178: Summer | I178: Summer | J178: Summer | K178: Summer | L178: Summer
C179: Adjustments - Embedded generation | D179: MW | E179: Non-Coincident | F179: 0 | G179: 0 | H179: 0 | I179: 0 | J179: 0 | K179: 0 | L179: 0
E180: Coincident | F180: 0 | G180: 0 | H180: 0 | I180: 0 | J180: 0 | K180: 0 | L180: 0
C181: Weather Corrected 10% POE | D181: MW | E181: Non-Coincident | F181: 12.28022174 | G181: 12.41267091 | H181: 12.61188399 | I181: 12.87674934 | J181: 13.00754007 | K181: 13.13599158 | L181: 13.25968116
E182: Coincident | F182: 11.67606629 | G182: 11.83182969 | H182: 11.96500888 | I182: 12.09146798 | J182: 12.21505143 | K182: 12.33645188 | L182: 12.45163396
C183: Weather Corrected MD 10% POE | D183: MVA | E183: Non-Coincident | F183: 12.53706749 | G183: 12.67228689 | H183: 12.87566659 | I183: 13.1460717 | J183: 13.27959797 | K183: 13.4107361 | L183: 13.53701269
E184: Coincident | F184: 11.92027589 | G184: 12.07929714 | H184: 12.21526182 | I184: 12.34436587 | J184: 12.47053412 | K184: 12.5944737 | L184: 12.71206486
C185: Weather Corrected MD 50% POE | D185: MW | E185: Non-Coincident | F185: 11.06616916 | G185: 11.16679041 | H185: 11.34348381 | I185: 11.58824227 | J185: 11.72385916 | K185: 11.84583927 | L185: 11.96018631
E186: Coincident | F186: 10.66736825 | G186: 10.78742073 | H186: 10.91637466 | I186: 11.03977838 | J186: 11.16985453 | K186: 11.28679198 | L186: 11.39467828
C187: Weather Corrected MD 50% POE | D187: MVA | E187: Non-Coincident | F187: 11.29762251 | G187: 11.40034829 | H187: 11.58073731 | I187: 11.830615 | J187: 11.96906836 | K187: 12.09359973 | L187: 12.21033839
E188: Coincident | F188: 10.89048053 | G188: 11.01304395 | H188: 11.14469501 | I188: 11.27067977 | J188: 11.40347651 | K188: 11.52285975 | L188: 11.63300254
B189: Dalrymple 33kV | C189: Substation Rating | D189: MVA | E189: Non-Coincident | F189: 50 | G189: 50 | H189: 50 | I189: 50 | J189: 50 | K189: 50 | L189: 50
E190: Coincident | F190: 50 | G190: 50 | H190: 50 | I190: 50 | J190: 50 | K190: 50 | L190: 50
C191: Raw Adjusted MD | D191: MW | E191: Non-Coincident
E192: Coincident
C193: Raw Adjusted MD | D193: MVA | E193: Non-Coincident
E194: Coincident
C195: Date MD occurred | E195: Non-Coincident
E196: Coincident
C197: Half hour time period MD occurred | E197: Non-Coincident
E198: Coincident
C199: Winter/Summer Peaking | E199: Non-Coincident | F199: Summer | G199: Summer | H199: Summer | I199: Summer | J199: Summer | K199: Summer | L199: Summer
E200: Coincident | F200: Summer | G200: Summer | H200: Summer | I200: Summer | J200: Summer | K200: Summer | L200: Summer
C201: Adjustments - Embedded generation | D201: MW | E201: Non-Coincident | F201: 0 | G201: 0 | H201: 0 | I201: 0 | J201: 0 | K201: 0 | L201: 0
E202: Coincident | F202: 0 | G202: 0 | H202: 0 | I202: 0 | J202: 0 | K202: 0 | L202: 0
... 11371 more rows

Sheet 6.2 Reliability & Cust serv
B1: =INDEX(dms_Worksheet_List,MATCH(dms_Model,dms_Model_List)) -> REGULATORY REPORTING STATEMENT
B2: =INDEX(dms_TradingNameFull_List,MATCH(dms_TradingName,dms_TradingName_List)) -> SA Power Networks
B3: =CONCATENATE("REGULATORY PERIOD FROM ", FRCP_y1," TO ",dms_MultiYear_FinalYear_Result) -> REGULATORY PERIOD FROM 2025-26 TO 2029-30
B4: 6.2 RELIABILITY AND CUSTOMER SERVICE PERFORMANCE
B5: TEMPLATE DATE - OCTOBER 2023 - FINAL RIN
B7: There are FIVE tables on this worksheet. Each table has been grouped for ease of navigation. There are no further instructions.
B9: 6.2.1 - UNPLANNED MINUTES OFF SUPPLY (SAIDI)
E10: Proposed target
B11: SAIDI | E11: =FRCP_y1 -> 2025-26 | F11: =FRCP_y2 -> 2026-27 | G11: =FRCP_y3 -> 2027-28 | H11: =FRCP_y4 -> 2028-29 | I11: =FRCP_y5 -> 2029-30
B12: Total sustained minutes off supply after removing excluded events
B13: =INDEX(dms_FeederName_1,MATCH(dms_TradingName,dms_TradingName_List)) -> CBD | E13: 18 | F13: 17 | G13: 17 | H13: 16 | I13: 15
B14: =INDEX(dms_FeederName_2,MATCH(dms_TradingName,dms_TradingName_List)) -> Urban | E14: 94 | F14: 94 | G14: 94 | H14: 94 | I14: 94
B15: =INDEX(dms_FeederName_3,MATCH(dms_TradingName,dms_TradingName_List)) -> Short rural | E15: 189 | F15: 188 | G15: 188 | H15: 187 | I15: 186
B16: =INDEX(dms_FeederName_4,MATCH(dms_TradingName,dms_TradingName_List)) -> Long rural | E16: 302 | F16: 296 | G16: 290 | H16: 284 | I16: 278
B17: =IF(ISBLANK(INDEX(dms_FeederName_5,MATCH(dms_TradingName,dms_TradingName_List))),"",INDEX(dms_FeederName_5,MATCH(dms_TradingName,dms_TradingName_List))) -> 
B18: Total | E18: =SUM(E13:E17) -> 603 | F18: =SUM(F13:F17) -> 595 | G18: =SUM(G13:G17) -> 589 | H18: =SUM(H13:H17) -> 581 | I18: =SUM(I13:I17) -> 573
B21: 6.2.2 - UNPLANNED INTERRUPTIONS TO SUPPLY (SAIFI)
E22: Proposed target
B23: SAIFI | E23: =FRCP_y1 -> 2025-26 | F23: =FRCP_y2 -> 2026-27 | G23: =FRCP_y3 -> 2027-28 | H23: =FRCP_y4 -> 2028-29 | I23: =FRCP_y5 -> 2029-30
B24: Total sustained interruptions after removing excluded events
B25: =INDEX(dms_FeederName_1,MATCH(dms_TradingName,dms_TradingName_List)) -> CBD | E25: 0.14 | F25: 0.14 | G25: 0.14 | H25: 0.14 | I25: 0.14
B26: =INDEX(dms_FeederName_2,MATCH(dms_TradingName,dms_TradingName_List)) -> Urban | E26: 0.86 | F26: 0.87 | G26: 0.87 | H26: 0.88 | I26: 0.88
B27: =INDEX(dms_FeederName_3,MATCH(dms_TradingName,dms_TradingName_List)) -> Short rural | E27: 1.28 | F27: 1.29 | G27: 1.3 | H27: 1.3 | I27: 1.31
B28: =INDEX(dms_FeederName_4,MATCH(dms_TradingName,dms_TradingName_List)) -> Long rural | E28: 1.49 | F28: 1.48 | G28: 1.47 | H28: 1.46 | I28: 1.45
B29: =IF(ISBLANK(INDEX(dms_FeederName_5,MATCH(dms_TradingName,dms_TradingName_List))),"",INDEX(dms_FeederName_5,MATCH(dms_TradingName,dms_TradingName_List))) -> 
B30: Total | E30: =SUM(E25:E29) -> 3.77 | F30: =SUM(F25:F29) -> 3.78 | G30: =SUM(G25:G29) -> 3.78 | H30: =SUM(H25:H29) -> 3.78 | I30: =SUM(I25:I29) -> 3.78
B33: 6.2.3 - UNPLANNED MOMENTARY INTERRUPTIONS TO SUPPLY (MAIFI)
E34: Proposed target
B35: MAIFI | E35: =FRCP_y1 -> 2025-26 | F35: =FRCP_y2 -> 2026-27 | G35: =FRCP_y3 -> 2027-28 | H35: =FRCP_y4 -> 2028-29 | I35: =FRCP_y5 -> 2029-30
B36: Total momentary interruptions after removing excluded events
B37: =INDEX(dms_FeederName_1,MATCH(dms_TradingName,dms_TradingName_List)) -> CBD
B38: =INDEX(dms_FeederName_2,MATCH(dms_TradingName,dms_TradingName_List)) -> Urban
B39: =INDEX(dms_FeederName_3,MATCH(dms_TradingName,dms_TradingName_List)) -> Short rural
B40: =INDEX(dms_FeederName_4,MATCH(dms_TradingName,dms_TradingName_List)) -> Long rural
B41: =IF(ISBLANK(INDEX(dms_FeederName_5,MATCH(dms_TradingName,dms_TradingName_List))),"",INDEX(dms_FeederName_5,MATCH(dms_TradingName,dms_TradingName_List))) -> 
B42: Total | E42: =SUM(E37:E41) -> 0 | F42: =SUM(F37:F41) -> 0 | G42: =SUM(G37:G41) -> 0 | H42: =SUM(H37:H41) -> 0 | I42: =SUM(I37:I41) -> 0
B45: 6.2.3(B) - UNPLANNED MOMENTARY INTERRUPTIONS TO SUPPLY (MAIFIe)
E46: Proposed target
B47: MAIFIe | E47: =FRCP_y1 -> 2025-26 | F47: =FRCP_y2 -> 2026-27 | G47: =FRCP_y3 -> 2027-28 | H47: =FRCP_y4 -> 2028-29 | I47: =FRCP_y5 -> 2029-30
B48: Total momentary interruptions after removing excluded events
B49: =INDEX(dms_FeederName_1,MATCH(dms_TradingName,dms_TradingName_List)) -> CBD
B50: =INDEX(dms_FeederName_2,MATCH(dms_TradingName,dms_TradingName_List)) -> Urban
B51: =INDEX(dms_FeederName_3,MATCH(dms_TradingName,dms_TradingName_List)) -> Short rural
B52: =INDEX(dms_FeederName_4,MATCH(dms_TradingName,dms_TradingName_List)) -> Long rural
B53: =IF(ISBLANK(INDEX(dms_FeederName_5,MATCH(dms_TradingName,dms_TradingName_List))),"",INDEX(dms_FeederName_5,MATCH(dms_TradingName,dms_TradingName_List))) -> 
B54: Total | E54: =SUM(E49:E53) -> 0 | F54: =SUM(F49:F53) -> 0 | G54: =SUM(G49:G53) -> 0 | H54: =SUM(H49:H53) -> 0 | I54: =SUM(I49:I53) -> 0
B57: The number of distribution customers is calculated as the average of the number of customers at the beginning of the reporting period and the number of customers at the end of the reporting period.
B59: 6.2.4 - DISTRIBUTION CUSTOMER NUMBERS (STPIS)
C60: FORECAST
B61: Average customer numbers | C61: =CRCP_y4 -> 2023-24 | D61: =CRCP_y5 -> 2024-25 | E61: =FRCP_y1 -> 2025-26 | F61: =FRCP_y2 -> 2026-27 | G61: =FRCP_y3 -> 2027-28 | H61: =FRCP_y4 -> 2028-29 | I61: =FRCP_y5 -> 2029-30
B62: =INDEX(dms_FeederName_1,MATCH(dms_TradingName,dms_TradingName_List)) -> CBD | C62: 6876 | D62: 6907 | E62: 6938 | F62: 6969 | G62: 7000 | H62: 7031 | I62: 7062
B63: =INDEX(dms_FeederName_2,MATCH(dms_TradingName,dms_TradingName_List)) -> Urban | C63: 648222 | D63: 654631 | E63: 661094 | F63: 667609 | G63: 674179 | H63: 680803 | I63: 687482
B64: =INDEX(dms_FeederName_3,MATCH(dms_TradingName,dms_TradingName_List)) -> Short rural | C64: 142301 | D64: 144475 | E64: 146679 | F64: 148915 | G64: 151182 | H64: 153482 | I64: 155814
B65: =INDEX(dms_FeederName_4,MATCH(dms_TradingName,dms_TradingName_List)) -> Long rural | C65: 138696 | D65: 138775 | E65: 138853 | F65: 138928 | G65: 139002 | H65: 139073 | I65: 139143
B66: =IF(ISBLANK(INDEX(dms_FeederName_5,MATCH(dms_TradingName,dms_TradingName_List))),"",INDEX(dms_FeederName_5,MATCH(dms_TradingName,dms_TradingName_List))) -> 
B67: Total | C67: =SUM(C62:C66) -> 936095 | D67: 944788 | E67: 953564 | F67: 962421 | G67: 971363 | H67: 980389 | I67: 989501
B69: The AER's definition of calls answered within 30 seconds is as follows: Calls to the fault line answered in 30 seconds where the time to answer a call is measured from when the call enters the telephone system of the call centre (including that time when it may be ringing unanswered by any response) and the caller speaks with a human operator, but excluding the time that the caller is connected to an automated interactive service that provides substantive information. This measure does not apply to: - calls to payment lines and automated interactive services; - calls abandoned by the customer within 30 seconds of the call being queued for response by a human operator. Where the time in which a telephone call is abandoned is not measured, then an estimate of the number of calls abandoned within 30 seconds will be determined by taking 20 per cent of all calls abandoned. Note: Being placed in a queuing system (automated or otherwise) does not constitute a response. 'Calls answered within 30 seconds' and 'Calls received' should be calculated excluding calls abandoned within 30 seconds of being queued for a human operator; and calls to payment lines and automated interactive services.
B71: 6.2.5 - CUSTOMER SERVICE
E72: Proposed target
E73: =FRCP_y1 -> 2025-26 | F73: =FRCP_y2 -> 2026-27 | G73: =FRCP_y3 -> 2027-28 | H73: =FRCP_y4 -> 2028-29 | I73: =FRCP_y5 -> 2029-30
B74: Number of calls received | E74: 70120 | F74: 69419 | G74: 68725 | H74: 68038 | I74: 67357
B75: Number of calls answered within 30 seconds | E75: 61895 | F75: 61276 | G75: 60663 | H75: 60057 | I75: 59456
B76: Percentage of calls answered within 30 seconds | E76: =IFERROR((E75/E74),"") -> 0.8827010839 | F76: =IFERROR((F75/F74),"") -> 0.8826978205 | G76: =IFERROR((G75/G74),"") -> 0.882691888 | H76: =IFERROR((H75/H74),"") -> 0.8826979041 | I76: =IFERROR((I75/I74),"") -> 0.8826996452

Sheet 7.1 Policies and Procedures
B1: =INDEX(dms_Worksheet_List,MATCH(dms_Model,dms_Model_List)) -> REGULATORY REPORTING STATEMENT
B2: =INDEX(dms_TradingNameFull_List,MATCH(dms_TradingName,dms_TradingName_List)) -> SA Power Networks
B3: =CONCATENATE("REGULATORY PERIOD FROM ", FRCP_y1," TO ",dms_MultiYear_FinalYear_Result) -> REGULATORY PERIOD FROM 2025-26 TO 2029-30
B4: 7.1 PLANS, POLICIES, PROCEDURES AND STRATEGIES
B5: TEMPLATE DATE - OCTOBER 2023 - FINAL RIN
B7: 7.1.1 - PLANS, POLICIES, PROCEDURES AND STRATEGIES
C8: Brief description | D8: Relevance to regulatory proposal | E8: Expenditure impact
C9: Description of the plan, policy, procedure or strategy. | D9: Identify the element of the proposal/supporting documents that the policy, plan, procedure or strategy is relevant to e.g. replacement capex, capacity utilisation thresholds, opex | E9: Is this policy, plan or procedure identified in the response to section 4 'Step Changes' of the notice (yes or no)?
B10: Corporate
B11: SA Power Networks Corporate Strategic Plan 2023 - 2027 | C11: Represents our view of internal and external business environments, corporate objectives and strategic directions for the next 5 years | D11: Balanced corporate directions that set the tone and priorities of almost all aspects of our Regulatory Proposal. | E11: No
B12: Human Relations and Ethics Policy | C12: SA Power Networks will endeavour to be recognised as an employer of choice with a reputation for very high ethical standards and professionalism. SA Power Networks recognises that committed employees are key stakeholders in the achievement of its Strategic Intent. SA Power Networks’ employees should perform their roles in a professional, courteous and ethical manner which reflects the values that underpin SA Power Networks’ Ethics Policy. | D12: How we achieve our business plans. | E12: No
B13: Customer Service Policy | C13: SA Power Networks is committed to providing our customers with value for money services which are targeted to their needs and expectations and delivered in a way which reinforces their vital importance to our business. | D13: How we achieve our business plans. | E13: No
B31: Governance framework
B32: Corporate Governance Policy | C32: The Corporate Governance Policy explains the Board approved Corporate Governance Model and details the Policies and Directives that emanate from the Model. The Policies and Directives provide approved direction to SA Power Networks’ managers, employees and directors in the manner in which we must conduct ourselves in our business operations. Compliance with the Policies and Directives is mandatory | D32: Corporate governance applies to all aspects of the day to day operations and set the tone of our Regulatory Proposal. | E32: No
B33: Risk Management Policy | C33: SA Power Networks will apply a risk management approach to all business activities in order to ensure that the organisation maximises opportunities while not exposing the business to unacceptable levels of risk. | D33: How we achieve our business plans. | E33: No
B34: Compliance Policy | C34: SA Power Networks will conduct its business activities in compliance with all relevant legal, regulatory and contractual obligations and requirements of relevant standards and internal policies (including directives, procedures and instructions). | D34: How we achieve our business plans. | E34: No
B35: Sustainability Policy | C35: Ensures that environmental and sustainability considerations are incorporated into all SA Power Networks’ business activities as a fundamental part of sound management practice. | D35: How we achieve our business plans. | E35: No
B36: Risk Management Framework | C36: This document outlines SA Power Networks Framework for the management of risk across the business. It is closely aligned to the requirements of AS/NZS ISO 31000:2018 Risk Management – Principles and Guidelines. This document is designed to outline the risk management activities of SA Power Networks as they relate to the principles and guidelines described in AS/NZS ISO 31000:2018. | D36: Supports Risk Management Policy. | E36: No
B37: Ring Fencing Directive | C37: This Directive contains information relating to the responsibilities of all SA Power Networks (SAPN) staff and contractors and all Enerven staff, and other third parties to appropriately follow the AER Ring-fencing guideline. | D37: How we achieve our business plans | E37: No
B38: Critical Infrastructure Risk Management Program | C38: The Critical Infrastructure Risk Management Program (CIRMP) provides an holistic approach towards identifying, preventing and mitigating material risks relating to the management of critical infrastructure in accordance with the Security of Critical Infrastructure Act and Rules. | D38: Supports Risk Management Policy. | E38: No
B39: Expenditure Governance Procedures (5.1.2) | C39: This document describes SA Power Networks’ robust planning and governance processes employed in its business planning and annual budget cycles. | D39: Attachment 5 and 6 | E39: Yes
B40: Negotiated services framework and criteria (Attachment 16) | C40: This document specifies the Negotiated Distribution Service Criteria, information disclosure process, and identifies the timetable that will apply to each classification of negotiated distribution service. | D40: Attachment 16 | E40: No
B49: Accounting policies, procedures and methodologies (including a capitalisation policy, depreciation policy and an approved expenditure allocation methodology)
B50: Accounting Practices and Guideline Manual | C50: Sets out the required accounting treatments for items in the Income Statement, the Balance Sheet, the Statement of Changes in Equity (or Statement of Recognised Income and Expense) and the Cash Flow Statement | D50: How we achieve our business plans. | E50: Yes
B51: Finance Policy | C51: Obligations in regard to the following financial management areas: • business plans and budgets; • accounts and financial statements; and • management reporting. | D51: How we achieve our business plans. | E51: No
B52: Cost Allocation Method | C52: This AER approved document describes the principles and policies for allocating costs within the categories of distribution services that SA Power Networks provides. | D52: Available at the following link https://www.sapowernetworks.com.au/public/download.jsp?id=309684#:~:text=SA%20Power%20Networks%20employs%20a,its%20integrated%20business%20management%20system. | E52: No
B72: Asset management plan or equivalent documentation
B73: Asset Management Policies
B74: Asset Management Policy | C74: SA Power Networks will manage its assets to satisfy customer service needs; meet Licence and Regulatory obligations; to provide a safe environment for employees, contractors and the community; and to deliver optimal returns to shareholders. Asset management includes risk management for the whole of life consideration of procurement, operation, maintenance, condition and performance monitoring, disposal or replacement and legal compliance. It includes assets owned or leased and those owned by clients if part of an asset management contract. It also includes long term planning and financial links, provision of assets for current and future services. | D74: How we achieve our business plans | E74: No
B75: Connections Policy 2025-2030 | C75: The SA Power Networks Connection Policy sets out the circumstances in which it may require a retail customer or real estate developer to pay a connection charge, for the provision of a connection service. | D75: Attachment 17 | E75: No
B96: Asset Management Strategies
B97: Strategic Asset Management Plan (SAMP) | C97: The Plan outlines SA Power Networks strategic direction and priorities for electricity distribution assets. | D97: Supporting Document 5.2.2 | E97: Yes
B98: Network Strategy | C98: This strategy sets out SA Power Networks' strategies to adapt our network business into the future in response to increased distributed energy resources on the network. | D98: Supporting Document 5.2.4 | E98: Yes
B117: Asset Management Plans
B118: Public Lighting Asset Management Plan | C118: The Plan outlines SA Power Networks approach to managing pubic lighting assets | D118: Attachment 15 | E118: No
B119: Metering Asset Management Strategy and Asset Plan | C119: The Plan outlines SA Power Networks approach to managing metering assets | D119: Attachment 19 | E119: No
B120: Reliability Management Strategy 2025-30 | C120: The document outlines SA Power Networks approach to reliability and resiliance of the network | D120: Key contents and information are covered in 5.9 supporting documents | E120: No
B142: Capital expenditure policies and procedures (including capex approval policies and procedures and replacement policy)
B143: Expenditure Forecasting Methodology | C143: This document describes the methodology which SA Power Networks is proposing to use when developing its operating and capital expenditure forecasts for the 2025-2030 regulatory control period. | D143: How we achieve our business plans. | E143: No
B163: Internal standards for network planning, design, maintenance and operation
B164: Future Operating Model 2016 - 2031 | C164: The SA Power Networks Future Operating Model (FOM) 2016 - 2031 represents a ‘living document’ vision that offers long-term directional insights into our most likely future development paths. These insights will help to guide our staff and decision makers in the coming years. | D164: How we achieve our business plans. | E164: No
B165: Customer Strategy 2022 - 2026 | C165: The SA Power Networks Customer Strategy provides our customer service and experience vision. This strategy outlines SA Power Networks customer vision and initiatives. It provides an overview of key customer segments, their current and future needs, and outlines our roadmap in response to this which we expect to deliver improved customer satisfaction. | D165: How we achieve our business plans. | E165: No
B166: SA Power Network’s Connection Policy | C166: The SA Power Networks Connection Policy sets out the circumstances in which it may require a retail customer or real estate developer to pay a connection charge, for the provision of a connection service. | D166: Attachment 17 | E166: No
B167: Sustainability Policy | C167: The SA Power Networks Sustainability Policy sets out the commitment and approach to conducting electricity distribution operations and business activities in a manner which is sustainable and prevents or minimises pollution and other adverse impacts on the environment. | D167: How we achieve our business plans. | E167: No
B243: Procurement and contracting out policies
B244: Procurement Directive | C244: Establishes the principles and direction which must be followed when making procurement decisions on behalf of the SA Power Networks Group | D244: How we achieve our business plans. | E244: No
B245: Supplier Management Framework and Strategic Supplier Management Program | C245: Sets out the governance, performance management and reviews required for procurement at SA Power Networks | D245: How we achieve our business plans. | E245: No
B264: Information technology policies or strategies
B265: IT Investment Plan 2025-30 | C265: The IT Investment Plan provides the overview, rationalse and portfolio summary of the proposed IT expenditure for the 2020-25 RCP and supports our regulatory proposal | D265: Attachment 5 Capex, Attachment 6 Opex, relating to the IT sections Supporting Document 5.12.1 | E265: Yes
B266: IT Asset Management Plan | C266: The IT Asset Management Plan provides alignment with SA Power Networks' Asset Management Policy to enable the delivery of essential energy services; Describe how we manage our IT Assets to deliver the most value to our customers and stakeholders; and provide a framework for ensuring IT Assets are prudently managed throughout the entire asset lifecycle. | D266: How we achieve our business plans. | E266: No
B267: Cyber Security Policy | C267: The SA Power Networks Cyber Security Policy sets out the circumstances in which SA Power Networks manages its cyber security risk. This includes via appropriate investments in cyber security to ensure that the organisation can prevent, detect and respond to increasing cyber security threats. SA Power Networks recognises that it's business is becoming increasingly reliant on digital technology, and that cyber security plays a critical role in ensuring the safety, integrity and availability of it's information and business systems. | D267: How we achieve our business plans. | E267: No
B301: Demand management policies or strategies
B302: Distribution Annual Planning Report | C302: SA Power Networks produces each year a Distribution Annual Planning Report (DAPR) in accordance with the requirements of Section 5.13.2 of the National Electricity Rules (NER). The information contained within the DAPR complies with the requirements of Schedule 5.8 of the NER. | D302: Available from our website www.sapowernetworks.com.au | E302: No
B303: Network Strategy 2020-2030 | C303: This strategy sets out SA Power Networks' strategies to adapt our network business into the future in response to increased distributed energy resources on the network. | D303: Supporting Document 5.2.4 | E303: No
B322: Self insurance guidelines or policy
B343: Land and easement acquisition polices
B344: 30 Year Property Strategy | C344: The document describes SA Power Networks' property strategy. | D344: How we achieve our business plans. | E344: No
B364: Asset security plans and policies
B365: Refer to Asset Management Plans | E365: No
B366: Bushfire Risk Management Policy & Manuals | C366: This manual details the policies and procedures which govern SA Power Networks bushfire risk management practices. It is a self contained document except where it specifically refers to other related documents. It supersedes all previous bushfire related letters and documents including all previous Bushfire Risk Management Manuals. | D366: Capital Expenditure | E366: No
B385: Disaster recovery policy
B386: Organisational Resilience Policy | C386: This policy addresses the resilience of the organisation through four key areas: • Risk Management; • Business Continuity; • Crisis and Emergency; and • IT Disaster Recovery These areas are interrelated and complimentary in managing risk to plan, prevent and respond to incidents. | D386: How we achieve our business plans | E386: No

Sheet 7.2 Contingent projects
B1: =INDEX(dms_Worksheet_List,MATCH(dms_Model,dms_Model_List)) -> REGULATORY REPORTING STATEMENT
B2: =INDEX(dms_TradingNameFull_List,MATCH(dms_TradingName,dms_TradingName_List)) -> SA Power Networks
B3: =CONCATENATE("REGULATORY PERIOD FROM ", FRCP_y1," TO ",dms_MultiYear_FinalYear_Result) -> REGULATORY PERIOD FROM 2025-26 TO 2029-30
B4: 7.2 CONTINGENT PROJECTS
B5: TEMPLATE DATE - OCTOBER 2023 - FINAL RIN
B7: 7.2.1 - PROPOSED CONTINGENT PROJECTS FOR THE FORTHCOMING REGULATORY CONTROL PERIOD
B8: Proposed contingent project name | C8: Proposed contingent capital expenditure ($, nominal) | D8: Proposed trigger events | E8: =CONCATENATE("Proposed annual revenue requirement for ", FRCP_y1, " ($, nominal)") -> Proposed annual revenue requirement for 2025-26 ($, nominal) | F8: =CONCATENATE("5% of the annual revenue requirement for ",FRCP_y1,"") -> 5% of the annual revenue requirement for 2025-26
F9: =+E9*0.05 -> 0
E10: =+$E$9 -> 0 | F10: 0
E11: 0 | F11: 0
E12: 0 | F12: 0
E13: 0 | F13: 0
E14: 0 | F14: 0
E15: 0 | F15: 0
E16: 0 | F16: 0
E17: 0 | F17: 0
E18: 0 | F18: 0
E19: 0 | F19: 0
E20: 0 | F20: 0
E21: 0 | F21: 0
E22: 0 | F22: 0
E23: 0 | F23: 0
E24: 0 | F24: 0
E25: 0 | F25: 0
E26: 0 | F26: 0
E27: 0 | F27: 0
E28: 0 | F28: 0
E29: 0 | F29: 0
E30: 0 | F30: 0
E31: 0 | F31: 0
E32: 0 | F32: 0
E33: 0 | F33: 0
E34: 0 | F34: 0
E35: 0 | F35: 0
E36: 0 | F36: 0
E37: 0 | F37: 0
E38: 0 | F38: 0
E39: 0 | F39: 0
E40: 0 | F40: 0
E41: 0 | F41: 0
E42: 0 | F42: 0
E43: 0 | F43: 0
E44: 0 | F44: 0
E45: 0 | F45: 0
E46: 0 | F46: 0

Sheet 7.3 Obligations
B1: =INDEX(dms_Worksheet_List,MATCH(dms_Model,dms_Model_List)) -> REGULATORY REPORTING STATEMENT
B2: =INDEX(dms_TradingNameFull_List,MATCH(dms_TradingName,dms_TradingName_List)) -> SA Power Networks
B3: =CONCATENATE("REGULATORY PERIOD FROM ", FRCP_y1," TO ",dms_MultiYear_FinalYear_Result) -> REGULATORY PERIOD FROM 2025-26 TO 2029-30
B4: 7.3 OBLIGATIONS, REQUIREMENTS & STANDARDS
B5: TEMPLATE DATE - OCTOBER 2023 - FINAL RIN
B7: 7.3.1 - OBLIGATIONS OR REQUIREMENTS
C8: Brief description | D8: Relevance to regulatory proposal | E8: Expenditure impact
C9: Description of relevant obligations or requirements within the instrument (e.g. safety obligations, reliability targets) | D9: Identify what element of the proposal/supporting documents the obligation or requirement is relevant to e.g. replacement capex, capacity utilisation thresholds, opex | E9: Is the obligation or requirement identified in the response to section 4 'Step Changes' of the notice (yes or no)?
B10: LEGISLATION
B11: State Government SA | C11: Aboriginal Heritage Act 1988 (SA) | D11: Business as usual | E11: No
B12: State Government SA | C12: Adelaide Parklands Act 2005 SA | D12: Capex and Opex | E12: No
B13: State Government SA | C13: Building and Construction Industry Security of Payment Act 2009 (SA) | D13: Business as usual | E13: No
B14: State Government SA | C14: Building and Construction Industry Security of Payment Regulations 2011 (SA) | D14: Business as usual | E14: No
B15: State Government SA | C15: Building Work Contractors Act 1995 (SA) | D15: Business as usual | E15: No
B16: State Government SA | C16: Building Work Contractors Regulations 2011 (SA) | D16: Business as usual | E16: No
B17: State Government SA | C17: Business Names (Commonwealth Powers) Act 2012 SA | D17: Business as usual | E17: No
B18: State Government SA | C18: Children’s Protection Act 1993 (SA) | D18: Business as usual | E18: No
B19: State Government SA | C19: Civil Liability Act 1936 (SA) | D19: Business as usual | E19: No
B20: State Government SA | C20: Civil Liability Regulations 2013 (SA) | D20: Business as usual | E20: No
B21: State Government SA | C21: Civil Liability Regulations 2013 SA | D21: Business as usual | E21: No
B22: State Government SA | C22: Construction Industry Long Service Leave Act 1987 (SA) | D22: Opex | E22: No
B23: State Government SA | C23: Construction Industry Training Fund Act 1993 SA | D23: Opex | E23: No
B24: State Government SA | C24: Dangerous Substances (Goods Transport) Regulations 2008 SA | D24: Business as usual | E24: No
B25: State Government SA | C25: Dangerous Substances Act 1979 SA | D25: Business as usual | E25: No
B26: State Government SA | C26: Dangerous Substances Regulations 2002 SA | D26: Business as usual | E26: No
B27: State Government SA | C27: Electricity (General) Regulations 2012 (SA) | D27: Capex and Opex | E27: Yes
B28: State Government SA | C28: Electricity (Principles of Vegetation Clearance) Regulations 2010 (SA) | D28: Opex | E28: No
B29: State Government SA | C29: Electricity Act 1996 (SA) | D29: Capex / Opex Comply with and adapt to: - distribution licence conditions - changes in vegetation cleareance practices - report 'prescribed fires' - change in penalties - enhanced powers of Essential Services Commission of SA and the Office of the Technical Regulator | E29: Yes
B30: State Government SA | C30: Electricity Corporations (Restructuring and Disposal) Act 1999 SA | D30: Opex | E30: No
B31: State Government SA | C31: Electricity Corporations (Restructuring and Disposal) Regulations 2012 SA | D31: Opex | E31: No
B32: State Government SA | C32: Electronic Communication Act 2000 (SA) | D32: Business as usual | E32: No
B33: State Government SA | C33: Electronic Communication Regulations 1997 (SA) | D33: Business as usual | E33: No
B34: State Government SA | C34: Emergency Management Act 2004 (SA) | D34: Opex | E34: No
B35: State Government SA | C35: Emergency Management Regulations 2009 (SA) | D35: Opex | E35: No
B36: State Government SA | C36: Emergency Services Funding (Remissions - Land) Regulations 2014 (SA) | D36: Business as usual | E36: No
B37: State Government SA | C37: Emergency Services Funding (Remissions - Motor Vehicles and Vessels) Regulations 2014 (SA) | D37: Business as usual | E37: No
B38: State Government SA | C38: Emergency Services Funding Act 1998 (SA) | D38: Business as usual | E38: No
B39: State Government SA | C39: Energy Products (Safety and Efficiency) Act 2000 SA | D39: Business as usual | E39: No
B40: State Government SA | C40: Energy Products (Safety and Efficiency) Regulations 2012 SA | D40: Business as usual | E40: No
B41: State Government SA | C41: Environment Protection Act 1993 (SA) | D41: Capex / Opex - Environmental | E41: No
B42: State Government SA | C42: Environment Protection Regulations 2009 (SA) | D42: Capex / Opex - Environmental | E42: No
B43: State Government SA | C43: Equal Opportunity Act 1984 (SA) | D43: Business as usual | E43: No
B44: State Government SA | C44: Essential Services Act 1981 (SA) | D44: Business as usual | E44: No
B45: State Government SA | C45: Essential Services Commission Act 2002 (SA) | D45: Business as usual | E45: No
B46: State Government SA | C46: Essential Services Commission Regulations 2004 (SA) | D46: Business as usual | E46: No
B47: State Government SA | C47: Fair Trading Act 1987 (SA) | D47: Business as usual | E47: No
B48: State Government SA | C48: Fair Trading Regulations 2010 (SA) | D48: Business as usual | E48: No
B49: State Government SA | C49: Fair Work (Clothing Outworker Code of Practice) Regulations 2007 | D49: Business as usual | E49: No
B50: State Government SA | C50: Fair Work (General) Regulations 2009 | D50: Capex and Opex | E50: No
B51: State Government SA | C51: Fair Work (Representation) Regulations 2009 | D51: Capex and Opex | E51: No
B52: State Government SA | C52: Fair Work Act 1994 (SA) | D52: Capex and Opex | E52: No
B53: State Government SA | C53: Fences Act 1975 SA | D53: Business as usual | E53: No
B54: State Government SA | C54: Fences Regulations 2003 SA | D54: Business as usual | E54: No
B55: State Government SA | C55: Fire & Emergency Services Act 2005 (SA) | D55: Business as usual | E55: No
B56: State Government SA | C56: Fire & Emergency Services Regulations 2005 (SA) | D56: Business as usual | E56: No
B57: State Government SA | C57: Foreign Acquisitions and Takeovers (Notices) Regulations 1975 (Cth) | D57: Business as usual | E57: No
B58: State Government SA | C58: Freedom of Information (Exempt Agency) Regulations 2008 (SA) | D58: Business as usual | E58: No
B59: State Government SA | C59: Freedom of Information (Fees and Charges) Regulations 2003 (SA) | D59: Business as usual | E59: No
B60: State Government SA | C60: Freedom of Information (General) Regulations 2002 (SA) | D60: Business as usual | E60: No
B61: State Government SA | C61: Freedom of Information Act 1991 (SA) | D61: Business as usual | E61: No
B62: State Government SA | C62: Heavy Vehicle National Law (South Australia) (Expiation Fees) Regulations 2013 (SA) | D62: Opex | E62: No
B63: State Government SA | C63: Heavy Vehicle National Law (South Australia) (Fees) Regulations 2013 (SA) | D63: Opex | E63: No
B64: State Government SA | C64: Heavy Vehicle National Law (South Australia) (Savings, Transitional and Declaratory) Regulations 2013 (SA) | D64: Opex | E64: No
B65: State Government SA | C65: Heavy Vehicle National Law (South Australia) Act 2013 (SA) | D65: Opex Comply with and adapt to: - overarching primary duty of care - reasonably practicable’ defence - Eexcutive Officers proactive duty to exercise due diligence - increase in penalties | E65: No
B66: State Government SA | C66: Highways Act 1926 SA | D66: Business as usual | E66: No
B67: State Government SA | C67: Labour Hire Licensing Act 2017 | D67: Business as usual | E67: No
B68: State Government SA | C68: Labour Hire Licensing Regulation 2017 | D68: Business as usual | E68: No
B69: State Government SA | C69: Land Tax Act 1936 SA | D69: Opex | E69: No
B70: State Government SA | C70: Land Tax Regulations 2010 SA | D70: Business as usual | E70: No
B71: State Government SA | C71: Landlord and Tenant Act 1936 SA | D71: Business as usual | E71: No
B72: State Government SA | C72: Law of Property Act 1936 (SA) | D72: Business as usual | E72: No
B73: State Government SA | C73: Mines and Works Inspection Act 1920 (SA) | D73: Business as usual | E73: No
B74: State Government SA | C74: Mines and Works Inspection Regulations 1998 (SA) | D74: Opex | E74: No
B75: State Government SA | C75: Misrepresentation Act 1972 SA | D75: Business as usual | E75: No
B76: State Government SA | C76: Motor Vehicles Act 1959 SA | D76: Opex | E76: No
B77: State Government SA | C77: Motor Vehicles Regulations 2010 SA | D77: Opex | E77: No
B78: State Government SA | C78: National Electricity (South Australia) Act 1996 (SA) | D78: Capex and Opex | E78: No
B79: State Government SA | C79: National Electricity (South Australia) Regulations 1998 (SA) | D79: Opex | E79: No
B80: State Government SA | C80: National Energy Retail Law (Local Provisions) Regulations 2013 (SA) | D80: Capex and Opex | E80: No
B81: State Government SA | C81: National Energy Retail Law (South Australia) Act 2011 (SA) | D81: Capex and Opex | E81: Yes
B82: State Government SA | C82: National Energy Retail Regulations 2012 (SA) | D82: Business as usual | E82: No
B83: State Government SA | C83: Native Title (South Australia) Act 1994 (SA) | D83: Opex | E83: No
B84: State Government SA | C84: Native Title (South Australia) Regulations 2001 (SA) | D84: Opex | E84: No
B85: State Government SA | C85: Native Vegetation Act 1991 SA | D85: Capex and Opex | E85: No
B86: State Government SA | C86: Native Vegetation Regulations 2017 (SA) | D86: Capex and Opex | E86: No
B87: State Government SA | C87: Partnership Act 1981 SA | D87: Business as usual | E87: No
B88: State Government SA | C88: Payroll Tax Act 2009 (SA) | D88: Opex | E88: No
E89: No
B90: State Government SA | C90: Planning, Development and Infrastructure Act 2016 | D90: Capex and Opex | E90: No
B91: State Government SA | C91: Planning, Development and Infrastructure (General) Regulations 2016 | D91: Capex and Opex | E91: No
B92: State Government SA | C92: Plumbers, Gas Fitters and Electricians Act 1995 (SA) | D92: Opex | E92: No
B93: State Government SA | C93: Plumbers, Gas Fitters and Electricians Regulations 2010 (SA) | D93: Opex | E93: No
B94: State Government SA | C94: Race Discrimination Commissioner (Cth) (Allowances) Regulations 1987 | D94: Business as usual | E94: No
B95: State Government SA | C95: Racial Vilification Act 1996 (SA) | D95: Business as usual | E95: No
B96: State Government SA | C96: Real Property Act 1886 (SA) | D96: Business as usual | E96: No
B97: State Government SA | C97: Real Property Regulations 2009 (SA) | D97: Opex | E97: No
B98: State Government SA | C98: Retail and Commercial Leases Act 1995 SA | D98: Business as usual | E98: No
B99: State Government SA | C99: Return to Work Act 2014 | D99: Opex | E99: No
B100: Sate Government SA | C100: Return to Work Regulations 2015 | D100: Opex | E100: No
B101: State Government SA | C101: Road Traffic (Light Vehicle Mass and Loading Requirements) Regulations 2013 (SA) | D101: Opex | E101: No
B102: State Government SA | C102: Road Traffic (Miscellaneous) Regulations 1999 (SA) | D102: Opex | E102: No
B103: State Government SA | C103: Road Traffic (Oversize or Overmass Vehicle Exemptions) Regulations 1999 (SA) | D103: Opex | E103: No
B104: State Government SA | C104: Road Traffic Act 1961 (SA) | D104: Capex / Opex Comply with and adapt to: - requirement to obtain a permit from Comissioner of Highways on main roads - increased penalties | E104: No
B105: State Government SA | C105: Sale of Goods Act 1895 SA | D105: Business as usual | E105: No
B106: State Government SA | C106: Stamp Duties Act 1923 SA | D106: Opex | E106: No
B107: State Government SA | C107: State Records Act 1997 (SA) | D107: Business as usual | E107: No
B108: State Government SA | C108: State Records Regulations 2013 (SA) | D108: Business as usual | E108: No
B109: State Government SA | C109: Surveillance Devices Act 2016 (SA) | D109: Business as usual | E109: No
B110: State Government SA | C110: Surveillance Devices Regulations 2017 (SA) | D110: Business as usual | E110: No
B111: State Government SA | C111: Telecommunications (Interception) Act 2012 (SA) | D111: Opex | E111: No
B112: State Government SA | C112: Training and Skills Development Act 2008 SA | D112: Business as usual | E112: No
B113: State Government SA | C113: Work Health & Safety Act 2012 (SA) | D113: Capex and Opex | E113: No
B114: State Government SA | C114: Work Health & Safety Regulations 2012 (SA) | D114: Capex and Opex | E114: No
B115: State Government SA | C115: Workers Rehabilitation & Compensation Act 1986 (SA) | D115: Opex | E115: No
B116: State Government SA | C116: Workers Rehabilitation and Compensation Regulations 2010 (SA) | D116: Opex | E116: No
B117: Commonwealth Government | C117: A New Tax System (Goods and Services Tax) Act 1999 (Cth) | D117: Capex and Opex | E117: No
B118: Commonwealth Government | C118: A New Tax System (Goods and Services Tax) Regulations 1999 (Cth) | D118: Capex and Opex | E118: No
B119: Commonwealth Government | C119: Aboriginal and Torres Strait Islander Heritage Protection Act 1984 (Cth) | D119: Business as usual | E119: No
B120: Commonwealth Government | C120: Aboriginal and Torres Strait Islander Heritage Protection Regulations 1984 (Cth) | D120: Business as usual | E120: No
B121: Commonwealth Government | C121: Affirmative Action (Equal Employment Opportunity for Women) Regulations 1986 (Cth) | D121: Business as usual | E121: No
B122: Commonwealth Government | C122: Age Discrimination Act 2004 (Cth) | D122: Business as usual | E122: No
B123: Commonwealth Government | C123: Australian Human Rights Commission Act 1986 (Cth) | D123: Business as usual | E123: No
B124: Commonwealth Government | C124: Australian Human Rights Commission Regulations 1989 (Cth) | D124: Business as usual | E124: No
B125: Commonwealth Government | C125: Australian Modern Slavery Act 2018 (Cth) | D125: Business as usual | E125: No
B126: Commonwealth Government | C126: Australian Securities and Investments Commission Act 2001 (Cth) | D126: Business as usual | E126: No
B127: Commonwealth Government | C127: Australian Securities and Investments Commission Regulations 2001 (Cth) | D127: Business as usual | E127: No
B128: Commonwealth Government | C128: Building and Construction Industry (Improving Productivity) Act 2016 | D128: Business as usual | E128: No
B129: Commonwealth Government | C129: Climate Change Act 2022 | D129: Business as usual | E129: No
B130: Commonwealth Government | C130: Competition and Consumer Act 2010 (Cth) | D130: Business as usual | E130: No
B131: Commonwealth Government | C131: Competition and Consumer Regulations 2010 (Cth) | D131: Business as usual | E131: No
B132: Commonwealth Government | C132: Corporations Act 2001 (Cth) | D132: Business as usual | E132: No
B133: Commonwealth Government | C133: Corporations Regulations 2001 (Cth) | D133: Business as usual | E133: No
B134: Commonwealth Government | C134: Designs Act 2003 (Cth) | D134: Business as usual | E134: No
B135: Commonwealth Government | C135: Disability Discrimination Act 1992 (Cth) | D135: Business as usual | E135: No
B136: Commonwealth Government | C136: Disability Discrimination Regulations 1996 (Cth) | D136: Business as usual | E136: No
B137: Commonwealth Government | C137: Electronic Transactions Act 1999 (Cth) | D137: Business as usual | E137: No
B138: Commonwealth Government | C138: Electronic Transactions Act Regulations 2020 (Cth) | D138: Business as usual | E138: No
B139: Commonwealth Government | C139: Environment Protection and Biodiversity Conservation Act 1999 (Cth) | D139: Capex and Opex | E139: No
B140: Commonwealth Government | C140: Equal Employment Opportunity (Commonwealth Authorities) Act 1987 (Cth) | D140: Business as usual | E140: No
B141: Commonwealth Government | C141: Fair Work (Transitional Provisions and Consequential Amendments) Regulations 2009 (Cth) | D141: Business as usual | E141: No
B142: Commonwealth Government | C142: Fair Work Act 2009 (Cth) | D142: Business as usual | E142: No
B143: Commonwealth Government | C143: Fair Work Regulations 2009 (Cth) | D143: Business as usual | E143: No
B144: Commonwealth Government | C144: Foreign Acquisitions and Takeovers Act 1975 (Cth) | D144: Business as usual | E144: No
B145: Commonwealth Government | C145: Foreign Acquisitions and Takeovers Regulations 1989 (Cth) | D145: Business as usual | E145: No
B146: Commonwealth Government | C146: Fringe Benefits Tax Act 1986 (Cth) | D146: Opex | E146: No
B147: Commonwealth Government | C147: Fringe Benefits Tax Assessment Act 1986 (Cth) | D147: Opex | E147: No
B148: Commonwealth Government | C148: Fringe Benefits Tax Regulations 1992 (Cth) | D148: Opex | E148: No
B149: Commonwealth Government | C149: National Harmonisation of Work Health and Safety Regulations 2011 (Cth) | D149: Business as usual | E149: No
B150: Commonwealth Government | C150: Income Tax (Excluded STBs) Regulations 1997 (Cth) | D150: Opex | E150: No
B151: Commonwealth Government | C151: Income Tax Act 1986 (Cth) | D151: Opex | E151: No
B152: Commonwealth Government | C152: Income Tax Assessment Act 1936 (Cth) | D152: Opex | E152: No
B153: Commonwealth Government | C153: Income Tax Assessment Act 1997 (Cth) | D153: Opex | E153: No
B154: Commonwealth Government | C154: Income Tax Assessment Regulations 1997 (Cth) | D154: Opex | E154: No
B155: Commonwealth Government | C155: Income Tax Regulations 1936 (Cth) | D155: Opex | E155: No
B156: Commonwealth Government | C156: Law Reform (Contributory Negligence and Apportionment of Liability) Act 2001 (Cth) | D156: Business as usual | E156: No
B157: Commonwealth Government | C157: National Greenhouse and Energy Reporting Act 2007 (Cth) | D157: Business as usual | E157: No
B158: Commonwealth Government | C158: Native Title (Indigenous Land Use Agreements) Regulations 1999 (Cth) | D158: Opex | E158: No
B159: Commonwealth Government | C159: Native Title Act 1993 (Cth) | D159: Business as usual | E159: No
B160: Commonwealth Government | C160: Patents Act 1990 (Cth) | D160: Business as usual | E160: No
B161: Commonwealth Government | C161: Personal Property Securities Act 2000 (Cth) | D161: Business as usual | E161: No
B162: Commonwealth Government | C162: Privacy Act 1988 (Cth) | D162: Business as usual | E162: No
B163: Commonwealth Government | C163: Privacy Amendment (Notifiable Data Breaches) Act 2017 | D163: Business as usual | E163: No
B164: Commonwealth Government | C164: Privacy Regulation 2013 (Cth) | D164: Business as usual | E164: No
B165: Commonwealth Government | C165: Racial Discrimination Act 1975 (Cth) | D165: Business as usual | E165: No
B166: Commonwealth Government | C166: Racial Discrimination Regulations 1987 (Cth) | D166: Business as usual | E166: No
B167: Commonwealth Government | C167: Security of Critical Infrastructure Act 2018 (Cth) | D167: Capex and Opex | E167: Yes
B168: Commonwealth Government | C168: Sex Discrimination Amendment (Sexual Orientation, Gender Identity and Intersex Status) Act 2013 | D168: Business as usual | E168: No
B169: Commonwealth Government | C169: Sex Discrimination Act 1984 (Cth) | D169: Business as usual | E169: No
B170: Commonwealth Government | C170: Sex Discrimination Regulations 1984 (Cth) | D170: Business as usual | E170: No
B171: Commonwealth Government | C171: Superannuation Guarantee (Administration) Act 1992 (Cth) | D171: Opex | E171: No
B172: Commonwealth Government | C172: Superannuation Guarantee (Administration) Regulations 1993 (Cth) | D172: Opex | E172: No
B173: Commonwealth Government | C173: Superannuation Industry (Supervision) Act 1993 (Cth) | D173: Opex | E173: No
B174: Commonwealth Government | C174: Superannuation Industry (Supervision) Regulations 1994 (Cth) | D174: Opex | E174: No
B175: Commonwealth Government | C175: Telecommunications (Interception and Access) Act 1979 (Cth) | D175: Opex | E175: No
B176: Commonwealth Government | C176: Telecommunications (Interception and Access) Regulations 1987 (Cth) | D176: Opex | E176: No
B177: Commonwealth Government | C177: Telecommunications Act 1997 (Cth) | D177: Opex | E177: No
B178: Commonwealth Government | C178: Telecommunications Regulations 2001 (Cth) | D178: Opex | E178: No
B179: Commonwealth Government | C179: Trade Marks Act 1995 (Cth) | D179: Business as usual | E179: No
B180: Commonwealth Government | C180: Workplace Gender Equality Act 2012 (Cth) | D180: Business as usual | E180: No
B181: Commonwealth Government | C181: Workplace Relations Acts and Regulations (Cth) | D181: Capex and Opex | E181: No
B182: Commonwealth Government | C182: Security Legislation Amendment (Critical Infrastructure Protection) Act 2022 | D182: Capex and Opex | E182: Yes
B222: LICENCES
B223: ACMA | C223: Carrier licences for telecommunications and radio communications permits us to operate our radio and operational telecommunications | D223: Opex | E223: No
B224: ESCoSA | C224: Electricity Distribution Licence - Licenses and imposes obligations on DNSPs | D224: Opex | E224: Yes
B225: ESCoSA | C225: Electricity Generation Licence- Kangaroo Island Power Station - Permits us to operate the Kingscote Generator in SA | D225: Opex | E225: No
B227: RULES
B228: Equal Opportunity Tribunal Rules (SA) | C228: Equal Opportunity Tribunal Rules (SA) | D228: Business as usual | E228: No
B229: Industrial Proceedings Rules 2010 | C229: Industrial Proceedings Rules 2010 | D229: Business as usual | E229: No
B230: Fair Work Commission Rules 2013 (Cth) | C230: Fair Work Commission Rules 2013 (Cth) | D230: Business as usual | E230: No
B231: National Electricity Rules National Energy Retail Rules | C231: National Electricity Rules - Details the technical operational requirements for the operation of the National Electricity Market National Energy Retail Rules | D231: Capex and Opex | E231: Yes
B232: ORDERS
B233: N/A
B236: CODES
B237: AEMO | C237: National Metrology procedures | D237: Opex | E237: No
B238: AEMO | C238: MSATS | D238: Opex | E238: No
B239: ESCoSA (ESC Act) | C239: ESCOSA Electricity Distribution Code (SA) | D239: Capex and Opex | E239: No
B240: ESCoSA (ESC Act) | C240: ESCOSA Electricity Metering Code (SA) | D240: Opex | E240: No
B241: ESCoSA (ESC Act) | C241: ESCOSA Electricity Transmission Code (SA) | D241: Capex and Opex | E241: No
B242: Building Code of Australia | C242: Building Code of Australia published by the Australian Building Codes Board as in force from time to time Building and Construction Industry (Fair and Lawful Building Sites) Code 2014 Code for the Tendering and Performance of Building Work | D242: Capex and Opex | E242: No
B243: State Government SA | C243: Approved Code of Working Hours | D243: Capex and Opex | E243: No
... 29 more rows

Sheet 7.4 Shared Assets
B1: =INDEX(dms_Worksheet_List,MATCH(dms_Model,dms_Model_List)) -> REGULATORY REPORTING STATEMENT
B2: =INDEX(dms_TradingNameFull_List,MATCH(dms_TradingName,dms_TradingName_List)) -> SA Power Networks
B3: =CONCATENATE("REGULATORY PERIOD FROM ", FRCP_y1," TO ",dms_MultiYear_FinalYear_Result) -> REGULATORY PERIOD FROM 2025-26 TO 2029-30
B4: 7.4 SHARED ASSETS
B5: TEMPLATE DATE - OCTOBER 2023 - FINAL RIN
B7: 7.4.1 - TOTAL UNREGULATED REVENUE EARNED WITH SHARED ASSETS
B8: Name of shared asset unregulated service | C8: Description of shared assets used to provide the service | D8: =CONCATENATE("Shared asset unregulated revenue ($, real ", dms_DollarReal,")") -> Shared asset unregulated revenue ($, real June 2025)
D9: =CRCP_y4 -> 2023-24 | E9: =CRCP_y5 -> 2024-25 | F9: =FRCP_y1 -> 2025-26 | G9: =FRCP_y2 -> 2026-27 | H9: =FRCP_y3 -> 2027-28 | I9: =FRCP_y4 -> 2028-29 | J9: =FRCP_y5 -> 2029-30 | K9: =CONCATENATE("Total ",FRCP_y1," to ", FRCP_y5) -> Total 2025-26 to 2029-30
B10: Fibre Access | C10: Rental of overhead and underground distribution assets for telecommunication services. | K10: =SUM(F10:J10) -> 0
B11: Pole Rental | C11: Rental of overhead and underground distribution assets for telecommunication services. | K11: 0
B12: Duct Space Rental | C12: Rental of underground distribution assets for telecommunication services. | K12: 0
B13: Facilities Access | C13: Facilities Access Agreements for access to other assets - e.g. towers, base stations etc | K13: 0
B14: Property Rentals | C14: Rental fees received for lease of properties. | D14: 303704 | E14: 303704 | F14: 303704 | G14: 303704 | H14: 303704 | I14: 303704 | J14: 303704 | K14: 1518520
B15: Unregulated Services - Vehicle revenue | C15: Unregulated construction and maintenance services provided to external groups, e.g. ElectraNet. Relates specifically to use of regulated heavy vehicles in undertaking work. | D15: 3164674 | E15: 3164674 | F15: 3164674 | G15: 3164674 | H15: 3164674 | I15: 3164674 | J15: 3164674 | K15: 15823370
B16: Unregulated Services - Property/IT revenue | C16: Unregulated construction and maintenance services provided to external groups, e.g. ElectraNet. Relates specifically to use of infrastructure assets of property and IT in undertaking work. | D16: 8239934 | E16: 8239934 | F16: 8239934 | G16: 8239934 | H16: 8239934 | I16: 8239934 | J16: 8239934 | K16: 41199670
B17: HV Test Equipment Hire | C17: Hire of high voltage test equipment by electrical contractors for compliance testing for new subdivisions. Ceased in December 2015, as not cost effective to continue to provide this service. | D17: - | E17: - | F17: - | G17: - | H17: - | I17: - | J17: - | K17: 0
B18: Training - Overheads revenue only | C18: Electrical related training programs provided to external groups, principally electrical contractors requiring accreditation to work on SA Power Networks' assets. Relates to corporate infrastructure assets e.g. property, IT. Ceases from 2020 as service wil | D18: - | E18: - | F18: - | G18: - | H18: - | I18: - | J18: - | K18: 0
K19: 0
K20: 0
K21: 0
K22: 0
K23: 0
K24: 0
B26: 7.4.2 - SHARED ASSET UNREGULATED SERVICES - APPORTIONMENT METHODOLOGY
B27: Name of shared asset unregulated service for which revenues were apportioned | C27: Apportionment methodology
B29: Unregulated Services - Vehicle revenue | C29: Allocated only transfer costs including a margin for regulated vehicles when used by Enerven.
B30: Unregulated Services - Property/IT revenue | C30: Partial internal allocation based on CAM apportionment for property and IT of revenue recived for overheads

Sheet 7.7 TSS-LRMC
B1: =INDEX(dms_Worksheet_List,MATCH(dms_Model,dms_Model_List)) -> REGULATORY REPORTING STATEMENT
B2: =INDEX(dms_TradingNameFull_List,MATCH(dms_TradingName,dms_TradingName_List)) -> SA Power Networks
B3: =CONCATENATE("REGULATORY PERIOD FROM ", FRCP_y1," TO ",dms_MultiYear_FinalYear_Result) -> REGULATORY PERIOD FROM 2025-26 TO 2029-30
B4: 7.7 - TARIFF STRUCTURE STATEMENT - INPUTS TO LRMC CALCULATION
B5: TEMPLATE DATE - OCTOBER 2023 - FINAL RIN
D7: ="Is "&dms_TradingName&" using the 'Average Incremental Cost' approach?" -> Is SA Power Networks using the 'Average Incremental Cost' approach?
F8: YES
B10: 7.7.1 - INPUTS TO LRMC CALCULATION - STANDARD CONTROL SERVICES - CAPEX
B11: 7.7.1.1 - SERIES A
C12: =CONCATENATE("FORECAST ($, real ", dms_DollarReal) -> FORECAST ($, real June 2025
C13: =CRCP_y4 -> 2023-24 | D13: =IF(dms_RPT="financial",(VALUE(LEFT(C13,4)+1)&"-"&MID(C13,3,2)+2),VALUE(LEFT(C13,4)+1)) -> 2024-25 | E13: 2025-26 | F13: 2026-27 | G13: 2027-28 | H13: 2028-29 | I13: 2029-30 | J13: 2030-31 | K13: 2031-32 | L13: 2032-33 | M13: 2033-34 | N13: 2034-35 | O13: 2035-36 | P13: 2036-37 | Q13: 2037-38 | R13: 2038-39 | S13: 2039-40 | T13: 2040-41 | U13: 2041-42 | V13: 2042-43
B14: Replacement expenditure | E14: 11388678.56 | F14: 12353240.31 | G14: 13850299.07 | H14: 12773407.81 | I14: 13453146.54 | J14: 13060000 | K14: 13321200 | L14: 13587624 | M14: 13859376.48 | N14: 14136564.01 | O14: 13592952.9 | P14: 13592952.9 | Q14: 13592952.9 | R14: 13592952.9 | S14: 13592952.9 | T14: 13592952.9 | U14: 13592952.9 | V14: 13592952.9
B15: Connections
B16: Augmentation Expenditure | E16: 82684234.53 | F16: 88354041.96 | G16: 90202615.29 | H16: 102510008.3 | I16: 107439348.3 | J16: 104985500 | K16: 106149822 | L16: 107337430.4 | M16: 108548791 | N16: 109784378.9 | O16: 107361184.5 | P16: 107361184.5 | Q16: 107361184.5 | R16: 107361184.5 | S16: 107361184.5 | T16: 107361184.5 | U16: 107361184.5 | V16: 107361184.5
B17: Non-network
B18: Export services
B19: Capitalised network overheads
B20: Capitalised corporate overheads
B21: Total capex | C21: =SUM(C14:C20) -> 0 | D21: =SUM(D14:D20) -> 0 | E21: 94072913.09 | F21: 100707282.3 | G21: 104052914.4 | H21: 115283416.1 | I21: 120892494.8 | J21: 118045500 | K21: 119471022 | L21: 120925054.4 | M21: 122408167.5 | N21: 123920942.9 | O21: 120954137.4 | P21: 120954137.4 | Q21: 120954137.4 | R21: 120954137.4 | S21: 120954137.4 | T21: 120954137.4 | U21: 120954137.4 | V21: 120954137.4
B23: 7.7.1.2 - SERIES B
C24: =CONCATENATE("FORECAST ($, real ", dms_DollarReal) -> FORECAST ($, real June 2025
C25: =CRCP_y4 -> 2023-24 | D25: =IF(dms_RPT="financial",(VALUE(LEFT(C25,4)+1)&"-"&MID(C25,3,2)+2),VALUE(LEFT(C25,4)+1)) -> 2024-25 | E25: =IF(dms_RPT="financial",(VALUE(LEFT(D25,4)+1)&"-"&MID(D25,3,2)+2),VALUE(LEFT(D25,4)+1)) -> 2025-26 | F25: =IF(dms_RPT="financial",(VALUE(LEFT(E25,4)+1)&"-"&MID(E25,3,2)+2),VALUE(LEFT(E25,4)+1)) -> 2026-27 | G25: =IF(dms_RPT="financial",(VALUE(LEFT(F25,4)+1)&"-"&MID(F25,3,2)+2),VALUE(LEFT(F25,4)+1)) -> 2027-28 | H25: =IF(dms_RPT="financial",(VALUE(LEFT(G25,4)+1)&"-"&MID(G25,3,2)+2),VALUE(LEFT(G25,4)+1)) -> 2028-29 | I25: =IF(dms_RPT="financial",(VALUE(LEFT(H25,4)+1)&"-"&MID(H25,3,2)+2),VALUE(LEFT(H25,4)+1)) -> 2029-30 | J25: =IF(dms_RPT="financial",(VALUE(LEFT(I25,4)+1)&"-"&MID(I25,3,2)+2),VALUE(LEFT(I25,4)+1)) -> 2030-31 | K25: =IF(dms_RPT="financial",(VALUE(LEFT(J25,4)+1)&"-"&MID(J25,3,2)+2),VALUE(LEFT(J25,4)+1)) -> 2031-32 | L25: =IF(dms_RPT="financial",(VALUE(LEFT(K25,4)+1)&"-"&MID(K25,3,2)+2),VALUE(LEFT(K25,4)+1)) -> 2032-33 | M25: =IF(dms_RPT="financial",(VALUE(LEFT(L25,4)+1)&"-"&MID(L25,3,2)+2),VALUE(LEFT(L25,4)+1)) -> 2033-34 | N25: =IF(dms_RPT="financial",(VALUE(LEFT(M25,4)+1)&"-"&MID(M25,3,2)+2),VALUE(LEFT(M25,4)+1)) -> 2034-35 | O25: =IF(dms_RPT="financial",(VALUE(LEFT(N25,4)+1)&"-"&MID(N25,3,2)+2),VALUE(LEFT(N25,4)+1)) -> 2035-36 | P25: =IF(dms_RPT="financial",(VALUE(LEFT(O25,4)+1)&"-"&MID(O25,3,2)+2),VALUE(LEFT(O25,4)+1)) -> 2036-37 | Q25: =IF(dms_RPT="financial",(VALUE(LEFT(P25,4)+1)&"-"&MID(P25,3,2)+2),VALUE(LEFT(P25,4)+1)) -> 2037-38 | R25: =IF(dms_RPT="financial",(VALUE(LEFT(Q25,4)+1)&"-"&MID(Q25,3,2)+2),VALUE(LEFT(Q25,4)+1)) -> 2038-39 | S25: =IF(dms_RPT="financial",(VALUE(LEFT(R25,4)+1)&"-"&MID(R25,3,2)+2),VALUE(LEFT(R25,4)+1)) -> 2039-40 | T25: =IF(dms_RPT="financial",(VALUE(LEFT(S25,4)+1)&"-"&MID(S25,3,2)+2),VALUE(LEFT(S25,4)+1)) -> 2040-41 | U25: =IF(dms_RPT="financial",(VALUE(LEFT(T25,4)+1)&"-"&MID(T25,3,2)+2),VALUE(LEFT(T25,4)+1)) -> 2041-42 | V25: =IF(dms_RPT="financial",(VALUE(LEFT(U25,4)+1)&"-"&MID(U25,3,2)+2),VALUE(LEFT(U25,4)+1)) -> 2042-43
B26: Replacement expenditure
B27: Connections
B28: Augmentation Expenditure
B29: Non-network
B30: Export services | E30: 29530000 | F30: 11140000 | G30: 15310000 | H30: 9370000 | I30: 10060000
B31: Capitalised network overheads
B32: Capitalised corporate overheads
B33: Total capex | C33: =SUM(C26:C32) -> 0 | D33: =SUM(D26:D32) -> 0 | E33: 29530000 | F33: 11140000 | G33: 15310000 | H33: 9370000 | I33: 10060000 | J33: 0 | K33: 0 | L33: 0 | M33: 0 | N33: 0 | O33: 0 | P33: 0 | Q33: 0 | R33: 0 | S33: 0 | T33: 0 | U33: 0 | V33: 0
B35: 7.7.1.3 - SERIES C
C36: =CONCATENATE("FORECAST ($, real ", dms_DollarReal) -> FORECAST ($, real June 2025
C37: =CRCP_y4 -> 2023-24 | D37: =IF(dms_RPT="financial",(VALUE(LEFT(C37,4)+1)&"-"&MID(C37,3,2)+2),VALUE(LEFT(C37,4)+1)) -> 2024-25 | E37: =IF(dms_RPT="financial",(VALUE(LEFT(D37,4)+1)&"-"&MID(D37,3,2)+2),VALUE(LEFT(D37,4)+1)) -> 2025-26 | F37: =IF(dms_RPT="financial",(VALUE(LEFT(E37,4)+1)&"-"&MID(E37,3,2)+2),VALUE(LEFT(E37,4)+1)) -> 2026-27 | G37: =IF(dms_RPT="financial",(VALUE(LEFT(F37,4)+1)&"-"&MID(F37,3,2)+2),VALUE(LEFT(F37,4)+1)) -> 2027-28 | H37: =IF(dms_RPT="financial",(VALUE(LEFT(G37,4)+1)&"-"&MID(G37,3,2)+2),VALUE(LEFT(G37,4)+1)) -> 2028-29 | I37: =IF(dms_RPT="financial",(VALUE(LEFT(H37,4)+1)&"-"&MID(H37,3,2)+2),VALUE(LEFT(H37,4)+1)) -> 2029-30 | J37: =IF(dms_RPT="financial",(VALUE(LEFT(I37,4)+1)&"-"&MID(I37,3,2)+2),VALUE(LEFT(I37,4)+1)) -> 2030-31 | K37: =IF(dms_RPT="financial",(VALUE(LEFT(J37,4)+1)&"-"&MID(J37,3,2)+2),VALUE(LEFT(J37,4)+1)) -> 2031-32 | L37: =IF(dms_RPT="financial",(VALUE(LEFT(K37,4)+1)&"-"&MID(K37,3,2)+2),VALUE(LEFT(K37,4)+1)) -> 2032-33 | M37: =IF(dms_RPT="financial",(VALUE(LEFT(L37,4)+1)&"-"&MID(L37,3,2)+2),VALUE(LEFT(L37,4)+1)) -> 2033-34 | N37: =IF(dms_RPT="financial",(VALUE(LEFT(M37,4)+1)&"-"&MID(M37,3,2)+2),VALUE(LEFT(M37,4)+1)) -> 2034-35 | O37: =IF(dms_RPT="financial",(VALUE(LEFT(N37,4)+1)&"-"&MID(N37,3,2)+2),VALUE(LEFT(N37,4)+1)) -> 2035-36 | P37: =IF(dms_RPT="financial",(VALUE(LEFT(O37,4)+1)&"-"&MID(O37,3,2)+2),VALUE(LEFT(O37,4)+1)) -> 2036-37 | Q37: =IF(dms_RPT="financial",(VALUE(LEFT(P37,4)+1)&"-"&MID(P37,3,2)+2),VALUE(LEFT(P37,4)+1)) -> 2037-38 | R37: =IF(dms_RPT="financial",(VALUE(LEFT(Q37,4)+1)&"-"&MID(Q37,3,2)+2),VALUE(LEFT(Q37,4)+1)) -> 2038-39 | S37: =IF(dms_RPT="financial",(VALUE(LEFT(R37,4)+1)&"-"&MID(R37,3,2)+2),VALUE(LEFT(R37,4)+1)) -> 2039-40 | T37: =IF(dms_RPT="financial",(VALUE(LEFT(S37,4)+1)&"-"&MID(S37,3,2)+2),VALUE(LEFT(S37,4)+1)) -> 2040-41 | U37: =IF(dms_RPT="financial",(VALUE(LEFT(T37,4)+1)&"-"&MID(T37,3,2)+2),VALUE(LEFT(T37,4)+1)) -> 2041-42 | V37: =IF(dms_RPT="financial",(VALUE(LEFT(U37,4)+1)&"-"&MID(U37,3,2)+2),VALUE(LEFT(U37,4)+1)) -> 2042-43
B38: Replacement expenditure
B39: Connections
B40: Augmentation Expenditure
B41: Non-network
B42: Capitalised network overheads
B43: Capitalised corporate overheads
B44: Total capex | C44: =SUM(C37:C43) -> 0 | D44: 0 | E44: 0 | F44: 0 | G44: 0 | H44: 0 | I44: 0 | J44: 0 | K44: 0 | L44: 0 | M44: 0 | N44: 0 | O44: 0 | P44: 0 | Q44: 0 | R44: 0 | S44: 0 | T44: 0 | U44: 0 | V44: 0
B48: 7.7.2 - INPUTS TO LRMC CALCULATION - STANDARD CONTROL SERVICES - OPEX
B49: 7.7.2.1 - SERIES A
C50: =CONCATENATE("FORECAST ($, real ", dms_DollarReal) -> FORECAST ($, real June 2025
C51: =CRCP_y4 -> 2023-24 | D51: =IF(dms_RPT="financial",(VALUE(LEFT(C51,4)+1)&"-"&MID(C51,3,2)+2),VALUE(LEFT(C51,4)+1)) -> 2024-25 | E51: =IF(dms_RPT="financial",(VALUE(LEFT(D51,4)+1)&"-"&MID(D51,3,2)+2),VALUE(LEFT(D51,4)+1)) -> 2025-26 | F51: =IF(dms_RPT="financial",(VALUE(LEFT(E51,4)+1)&"-"&MID(E51,3,2)+2),VALUE(LEFT(E51,4)+1)) -> 2026-27 | G51: =IF(dms_RPT="financial",(VALUE(LEFT(F51,4)+1)&"-"&MID(F51,3,2)+2),VALUE(LEFT(F51,4)+1)) -> 2027-28 | H51: =IF(dms_RPT="financial",(VALUE(LEFT(G51,4)+1)&"-"&MID(G51,3,2)+2),VALUE(LEFT(G51,4)+1)) -> 2028-29 | I51: =IF(dms_RPT="financial",(VALUE(LEFT(H51,4)+1)&"-"&MID(H51,3,2)+2),VALUE(LEFT(H51,4)+1)) -> 2029-30 | J51: =IF(dms_RPT="financial",(VALUE(LEFT(I51,4)+1)&"-"&MID(I51,3,2)+2),VALUE(LEFT(I51,4)+1)) -> 2030-31 | K51: =IF(dms_RPT="financial",(VALUE(LEFT(J51,4)+1)&"-"&MID(J51,3,2)+2),VALUE(LEFT(J51,4)+1)) -> 2031-32 | L51: =IF(dms_RPT="financial",(VALUE(LEFT(K51,4)+1)&"-"&MID(K51,3,2)+2),VALUE(LEFT(K51,4)+1)) -> 2032-33 | M51: =IF(dms_RPT="financial",(VALUE(LEFT(L51,4)+1)&"-"&MID(L51,3,2)+2),VALUE(LEFT(L51,4)+1)) -> 2033-34 | N51: =IF(dms_RPT="financial",(VALUE(LEFT(M51,4)+1)&"-"&MID(M51,3,2)+2),VALUE(LEFT(M51,4)+1)) -> 2034-35 | O51: =IF(dms_RPT="financial",(VALUE(LEFT(N51,4)+1)&"-"&MID(N51,3,2)+2),VALUE(LEFT(N51,4)+1)) -> 2035-36 | P51: =IF(dms_RPT="financial",(VALUE(LEFT(O51,4)+1)&"-"&MID(O51,3,2)+2),VALUE(LEFT(O51,4)+1)) -> 2036-37 | Q51: =IF(dms_RPT="financial",(VALUE(LEFT(P51,4)+1)&"-"&MID(P51,3,2)+2),VALUE(LEFT(P51,4)+1)) -> 2037-38 | R51: =IF(dms_RPT="financial",(VALUE(LEFT(Q51,4)+1)&"-"&MID(Q51,3,2)+2),VALUE(LEFT(Q51,4)+1)) -> 2038-39 | S51: =IF(dms_RPT="financial",(VALUE(LEFT(R51,4)+1)&"-"&MID(R51,3,2)+2),VALUE(LEFT(R51,4)+1)) -> 2039-40 | T51: =IF(dms_RPT="financial",(VALUE(LEFT(S51,4)+1)&"-"&MID(S51,3,2)+2),VALUE(LEFT(S51,4)+1)) -> 2040-41 | U51: =IF(dms_RPT="financial",(VALUE(LEFT(T51,4)+1)&"-"&MID(T51,3,2)+2),VALUE(LEFT(T51,4)+1)) -> 2041-42 | V51: =IF(dms_RPT="financial",(VALUE(LEFT(U51,4)+1)&"-"&MID(U51,3,2)+2),VALUE(LEFT(U51,4)+1)) -> 2042-43
B52: Consumption - Opex | F52: 545667.45 | G52: 581000.64 | H52: 601368.02 | I52: 1481999.43 | J52: 1563993.11 | K52: 1576713.63 | L52: 1677415.73 | M52: 1728563.45 | N52: 1709627.65 | O52: 1728854 | P52: 1724716.23 | Q52: 1736431.26 | R52: 1748380.6 | S52: 1724945.96 | T52: 1724945.96 | U52: 1724945.96 | V52: 1724945.96
B67: Total opex | C67: =SUM(C52:C66) -> 0 | D67: =SUM(D52:D66) -> 0 | E67: 0 | F67: 545667.45 | G67: 581000.64 | H67: 601368.02 | I67: 1481999.43 | J67: 1563993.11 | K67: 1576713.63 | L67: 1677415.73 | M67: 1728563.45 | N67: 1709627.65 | O67: 1728854 | P67: 1724716.23 | Q67: 1736431.26 | R67: 1748380.6 | S67: 1724945.96 | T67: 1724945.96 | U67: 1724945.96 | V67: 1724945.96
B69: 7.7.2.2- SERIES B
C70: =CONCATENATE("FORECAST ($, real ", dms_DollarReal) -> FORECAST ($, real June 2025
C71: =CRCP_y4 -> 2023-24 | D71: =IF(dms_RPT="financial",(VALUE(LEFT(C71,4)+1)&"-"&MID(C71,3,2)+2),VALUE(LEFT(C71,4)+1)) -> 2024-25 | E71: =IF(dms_RPT="financial",(VALUE(LEFT(D71,4)+1)&"-"&MID(D71,3,2)+2),VALUE(LEFT(D71,4)+1)) -> 2025-26 | F71: =IF(dms_RPT="financial",(VALUE(LEFT(E71,4)+1)&"-"&MID(E71,3,2)+2),VALUE(LEFT(E71,4)+1)) -> 2026-27 | G71: =IF(dms_RPT="financial",(VALUE(LEFT(F71,4)+1)&"-"&MID(F71,3,2)+2),VALUE(LEFT(F71,4)+1)) -> 2027-28 | H71: =IF(dms_RPT="financial",(VALUE(LEFT(G71,4)+1)&"-"&MID(G71,3,2)+2),VALUE(LEFT(G71,4)+1)) -> 2028-29 | I71: =IF(dms_RPT="financial",(VALUE(LEFT(H71,4)+1)&"-"&MID(H71,3,2)+2),VALUE(LEFT(H71,4)+1)) -> 2029-30 | J71: =IF(dms_RPT="financial",(VALUE(LEFT(I71,4)+1)&"-"&MID(I71,3,2)+2),VALUE(LEFT(I71,4)+1)) -> 2030-31 | K71: =IF(dms_RPT="financial",(VALUE(LEFT(J71,4)+1)&"-"&MID(J71,3,2)+2),VALUE(LEFT(J71,4)+1)) -> 2031-32 | L71: =IF(dms_RPT="financial",(VALUE(LEFT(K71,4)+1)&"-"&MID(K71,3,2)+2),VALUE(LEFT(K71,4)+1)) -> 2032-33 | M71: =IF(dms_RPT="financial",(VALUE(LEFT(L71,4)+1)&"-"&MID(L71,3,2)+2),VALUE(LEFT(L71,4)+1)) -> 2033-34 | N71: =IF(dms_RPT="financial",(VALUE(LEFT(M71,4)+1)&"-"&MID(M71,3,2)+2),VALUE(LEFT(M71,4)+1)) -> 2034-35 | O71: =IF(dms_RPT="financial",(VALUE(LEFT(N71,4)+1)&"-"&MID(N71,3,2)+2),VALUE(LEFT(N71,4)+1)) -> 2035-36 | P71: =IF(dms_RPT="financial",(VALUE(LEFT(O71,4)+1)&"-"&MID(O71,3,2)+2),VALUE(LEFT(O71,4)+1)) -> 2036-37 | Q71: =IF(dms_RPT="financial",(VALUE(LEFT(P71,4)+1)&"-"&MID(P71,3,2)+2),VALUE(LEFT(P71,4)+1)) -> 2037-38 | R71: =IF(dms_RPT="financial",(VALUE(LEFT(Q71,4)+1)&"-"&MID(Q71,3,2)+2),VALUE(LEFT(Q71,4)+1)) -> 2038-39 | S71: =IF(dms_RPT="financial",(VALUE(LEFT(R71,4)+1)&"-"&MID(R71,3,2)+2),VALUE(LEFT(R71,4)+1)) -> 2039-40 | T71: =IF(dms_RPT="financial",(VALUE(LEFT(S71,4)+1)&"-"&MID(S71,3,2)+2),VALUE(LEFT(S71,4)+1)) -> 2040-41 | U71: =IF(dms_RPT="financial",(VALUE(LEFT(T71,4)+1)&"-"&MID(T71,3,2)+2),VALUE(LEFT(T71,4)+1)) -> 2041-42 | V71: =IF(dms_RPT="financial",(VALUE(LEFT(U71,4)+1)&"-"&MID(U71,3,2)+2),VALUE(LEFT(U71,4)+1)) -> 2042-43
B72: Export Services - Opex | E72: 921572.9 | F72: 1263128.2 | G72: 1395767.3 | H72: 1593211.2 | I72: 1719678.3 | J72: 1844310.54 | K72: 1966676.73 | L72: 2087909.9 | M72: 2209143.08 | N72: 2329243.23 | O72: 2329243.23 | P72: 2329243.23 | Q72: 2329243.23 | R72: 2329243.23 | S72: 2329243.23 | T72: 2329243.23 | U72: 2329243.23 | V72: 2329243.23
B87: Total opex | C87: =SUM(C72:C86) -> 0 | D87: =SUM(D72:D86) -> 0 | E87: =SUM(E72:E86) -> 921572.9 | F87: =SUM(F72:F86) -> 1263128.2 | G87: =SUM(G72:G86) -> 1395767.3 | H87: =SUM(H72:H86) -> 1593211.2 | I87: =SUM(I72:I86) -> 1719678.3 | J87: =SUM(J72:J86) -> 1844310.54 | K87: =SUM(K72:K86) -> 1966676.73 | L87: =SUM(L72:L86) -> 2087909.9 | M87: =SUM(M72:M86) -> 2209143.08 | N87: =SUM(N72:N86) -> 2329243.23 | O87: =SUM(O72:O86) -> 2329243.23 | P87: =SUM(P72:P86) -> 2329243.23 | Q87: =SUM(Q72:Q86) -> 2329243.23 | R87: =SUM(R72:R86) -> 2329243.23 | S87: =SUM(S72:S86) -> 2329243.23 | T87: =SUM(T72:T86) -> 2329243.23 | U87: =SUM(U72:U86) -> 2329243.23 | V87: =SUM(V72:V86) -> 2329243.23
B89: 7.7.2.3 - SERIES C
C90: =CONCATENATE("FORECAST ($, real ", dms_DollarReal) -> FORECAST ($, real June 2025
C91: =CRCP_y4 -> 2023-24 | D91: =IF(dms_RPT="financial",(VALUE(LEFT(C91,4)+1)&"-"&MID(C91,3,2)+2),VALUE(LEFT(C91,4)+1)) -> 2024-25 | E91: =IF(dms_RPT="financial",(VALUE(LEFT(D91,4)+1)&"-"&MID(D91,3,2)+2),VALUE(LEFT(D91,4)+1)) -> 2025-26 | F91: =IF(dms_RPT="financial",(VALUE(LEFT(E91,4)+1)&"-"&MID(E91,3,2)+2),VALUE(LEFT(E91,4)+1)) -> 2026-27 | G91: =IF(dms_RPT="financial",(VALUE(LEFT(F91,4)+1)&"-"&MID(F91,3,2)+2),VALUE(LEFT(F91,4)+1)) -> 2027-28 | H91: =IF(dms_RPT="financial",(VALUE(LEFT(G91,4)+1)&"-"&MID(G91,3,2)+2),VALUE(LEFT(G91,4)+1)) -> 2028-29 | I91: =IF(dms_RPT="financial",(VALUE(LEFT(H91,4)+1)&"-"&MID(H91,3,2)+2),VALUE(LEFT(H91,4)+1)) -> 2029-30 | J91: =IF(dms_RPT="financial",(VALUE(LEFT(I91,4)+1)&"-"&MID(I91,3,2)+2),VALUE(LEFT(I91,4)+1)) -> 2030-31 | K91: =IF(dms_RPT="financial",(VALUE(LEFT(J91,4)+1)&"-"&MID(J91,3,2)+2),VALUE(LEFT(J91,4)+1)) -> 2031-32 | L91: =IF(dms_RPT="financial",(VALUE(LEFT(K91,4)+1)&"-"&MID(K91,3,2)+2),VALUE(LEFT(K91,4)+1)) -> 2032-33 | M91: =IF(dms_RPT="financial",(VALUE(LEFT(L91,4)+1)&"-"&MID(L91,3,2)+2),VALUE(LEFT(L91,4)+1)) -> 2033-34 | N91: =IF(dms_RPT="financial",(VALUE(LEFT(M91,4)+1)&"-"&MID(M91,3,2)+2),VALUE(LEFT(M91,4)+1)) -> 2034-35 | O91: =IF(dms_RPT="financial",(VALUE(LEFT(N91,4)+1)&"-"&MID(N91,3,2)+2),VALUE(LEFT(N91,4)+1)) -> 2035-36 | P91: =IF(dms_RPT="financial",(VALUE(LEFT(O91,4)+1)&"-"&MID(O91,3,2)+2),VALUE(LEFT(O91,4)+1)) -> 2036-37 | Q91: =IF(dms_RPT="financial",(VALUE(LEFT(P91,4)+1)&"-"&MID(P91,3,2)+2),VALUE(LEFT(P91,4)+1)) -> 2037-38 | R91: =IF(dms_RPT="financial",(VALUE(LEFT(Q91,4)+1)&"-"&MID(Q91,3,2)+2),VALUE(LEFT(Q91,4)+1)) -> 2038-39 | S91: =IF(dms_RPT="financial",(VALUE(LEFT(R91,4)+1)&"-"&MID(R91,3,2)+2),VALUE(LEFT(R91,4)+1)) -> 2039-40 | T91: =IF(dms_RPT="financial",(VALUE(LEFT(S91,4)+1)&"-"&MID(S91,3,2)+2),VALUE(LEFT(S91,4)+1)) -> 2040-41 | U91: =IF(dms_RPT="financial",(VALUE(LEFT(T91,4)+1)&"-"&MID(T91,3,2)+2),VALUE(LEFT(T91,4)+1)) -> 2041-42 | V91: =IF(dms_RPT="financial",(VALUE(LEFT(U91,4)+1)&"-"&MID(U91,3,2)+2),VALUE(LEFT(U91,4)+1)) -> 2042-43
B107: Total opex | C107: =SUM(C92:C106) -> 0 | D107: =SUM(D92:D106) -> 0 | E107: =SUM(E92:E106) -> 0 | F107: =SUM(F92:F106) -> 0 | G107: =SUM(G92:G106) -> 0 | H107: =SUM(H92:H106) -> 0 | I107: =SUM(I92:I106) -> 0 | J107: =SUM(J92:J106) -> 0 | K107: =SUM(K92:K106) -> 0 | L107: =SUM(L92:L106) -> 0 | M107: =SUM(M92:M106) -> 0 | N107: =SUM(N92:N106) -> 0 | O107: =SUM(O92:O106) -> 0 | P107: =SUM(P92:P106) -> 0 | Q107: =SUM(Q92:Q106) -> 0 | R107: =SUM(R92:R106) -> 0 | S107: =SUM(S92:S106) -> 0 | T107: =SUM(T92:T106) -> 0 | U107: =SUM(U92:U106) -> 0 | V107: =SUM(V92:V106) -> 0
B111: 7.7.3 - INPUTS TO LRMC CALCULATION - DEMAND
B112: 7.7.3.1 - SERIES A
C113: FORECAST (MWh)
